Workbook

Sheet SUMMARY ALL FUELS
A1: DRAFT - Do not Cite or Quote. For NPC Study Discussion Only
A2: Dispensed Fuel Costs and Levelized Dispensing Infrastructure Costs
A3: *Note: GEG = 125,000 BTU
A4: All Costs are in 2008$/GEG | B4: 2010 | C4: =B4+5 -> 2015 | D4: =C4+5 -> 2020 | E4: 2025 | F4: 2030 | G4: 2035 | H4: 2040 | I4: 2045 | J4: 2050 | K4: Comments
A5: High Case (Required):
A6: Dispensed Fuel Cost ($/GEG) | K6: Inclusive of distribution & dispensing infrastructure costs
A7: Gasoline ($/GEG) | B7: =Gasoline!D9 -> 2.5860672 | C7: =Gasoline!E9 -> 4.329775333 | D7: =Gasoline!F9 -> 5.307139874 | E7: =Gasoline!G9 -> 5.507891655 | F7: =Gasoline!H9 -> 5.663994789 | G7: =Gasoline!I9 -> 5.831809044 | H7: =Gasoline!J9 -> 6.004595341 | I7: =Gasoline!K9 -> 6.182500995 | J7: =Gasoline!L9 -> 6.365677681 | K7: from AEO2010 High Oil Price Case
A8: Diesel ($/GEG) | B8: =Diesel!D9 -> 2.316126585 | C8: =Diesel!E9 -> 3.934934139 | D8: =Diesel!F9 -> 4.868714333 | E8: =Diesel!G9 -> 5.054554939 | F8: =Diesel!H9 -> 5.239487171 | G8: =Diesel!I9 -> 5.404794216 | H8: =Diesel!J9 -> 5.575316737 | I8: =Diesel!K9 -> 5.751219283 | J8: =Diesel!L9 -> 5.932671596 | K8: from AEO2010 High Oil Price Case
A9: CNG ($/GEG) | B9: ='CNG Summary'!E153 -> 1.922041311 | C9: ='CNG Summary'!F153 -> 2.190306474 | D9: ='CNG Summary'!G153 -> 2.197686774 | E9: ='CNG Summary'!H153 -> 2.229802061 | F9: ='CNG Summary'!I153 -> 2.344323014 | G9: ='CNG Summary'!J153 -> 2.469172043 | H9: ='CNG Summary'!K153 -> 2.645884585 | I9: ='CNG Summary'!L153 -> 2.839280881 | J9: ='CNG Summary'!M153 -> 3.053148627 | K9: see CNG Summary tab
A10: LNG ($/GEG) | B10: ='LNG Summary'!E130 -> 2.001453682 | C10: ='LNG Summary'!F130 -> 2.267780022 | D10: ='LNG Summary'!G130 -> 2.273069428 | E10: ='LNG Summary'!H130 -> 2.303033737 | F10: ='LNG Summary'!I130 -> 2.415591117 | G10: ='LNG Summary'!J130 -> 2.538656199 | H10: ='LNG Summary'!K130 -> 2.713140934 | I10: ='LNG Summary'!L130 -> 2.905927583 | J10: ='LNG Summary'!M130 -> 3.119197516 | K10: see LNG summary tab
A11: PHEV10 ($/GEG) - Home Charging | B11: ='Electricity Summary'!B9 -> 4.952342605 | C11: ='Electricity Summary'!C9 -> 5.862995953 | D11: ='Electricity Summary'!D9 -> 5.584629645 | E11: ='Electricity Summary'!E9 -> 5.71054663 | F11: ='Electricity Summary'!F9 -> 5.85037692 | G11: ='Electricity Summary'!G9 -> 5.98160989 | H11: ='Electricity Summary'!H9 -> 6.228857352 | I11: ='Electricity Summary'!I9 -> 6.512835175 | J11: ='Electricity Summary'!J9 -> 6.845134103 | K11: see Electricity Summary tab
A12: PHEV40 ($/GEG) - Home Charging | B12: ='Electricity Summary'!B11 -> 5.006798763 | C12: ='Electricity Summary'!C11 -> 6.10756201 | D12: ='Electricity Summary'!D11 -> 5.773961383 | E12: ='Electricity Summary'!E11 -> 5.851376306 | F12: ='Electricity Summary'!F11 -> 5.97364602 | G12: ='Electricity Summary'!G11 -> 6.089454032 | H12: ='Electricity Summary'!H11 -> 6.325988312 | I12: ='Electricity Summary'!I11 -> 6.600606579 | J12: ='Electricity Summary'!J11 -> 6.927612147 | K12: see Electricity Summary tab
A13: BEV100 ($/GEG) - Home Charging | B13: ='Electricity Summary'!B13 -> 7.014519653 | C13: ='Electricity Summary'!C13 -> 6.562342889 | D13: ='Electricity Summary'!D13 -> 6.116398651 | E13: ='Electricity Summary'!E13 -> 6.192272787 | F13: ='Electricity Summary'!F13 -> 6.289289298 | G13: ='Electricity Summary'!G13 -> 6.365299053 | H13: ='Electricity Summary'!H13 -> 6.583055938 | I13: ='Electricity Summary'!I13 -> 6.842609529 | J13: ='Electricity Summary'!J13 -> 7.158517944 | K13: see Electricity Summary tab
A14: PHEV10 ($/GEG) - Home + Public Charging | B14: ='Electricity Summary'!B17 -> 4.952342605 | C14: ='Electricity Summary'!C17 -> 6.080114719 | D14: ='Electricity Summary'!D17 -> 5.779155047 | E14: ='Electricity Summary'!E17 -> 5.838835723 | F14: ='Electricity Summary'!F17 -> 6.006708927 | G14: ='Electricity Summary'!G17 -> 6.17188905 | H14: ='Electricity Summary'!H17 -> 6.453820716 | I14: ='Electricity Summary'!I17 -> 6.766842371 | J14: ='Electricity Summary'!J17 -> 7.119246456 | K14: see Electricity Summary tab
A15: PHEV40 ($/GEG) - Home + Public Charging | B15: ='Electricity Summary'!B19 -> 5.006798763 | C15: ='Electricity Summary'!C19 -> 5.981444296 | D15: ='Electricity Summary'!D19 -> 5.674565308 | E15: ='Electricity Summary'!E19 -> 5.759171662 | F15: ='Electricity Summary'!F19 -> 5.905803265 | G15: ='Electricity Summary'!G19 -> 6.047465846 | H15: ='Electricity Summary'!H19 -> 6.309200646 | I15: ='Electricity Summary'!I19 -> 6.606176537 | J15: ='Electricity Summary'!J19 -> 6.950767434 | K15: see Electricity Summary tab
A16: BEV100 ($/GEG) - Home + Public Charging | B16: ='Electricity Summary'!B21 -> 7.023350904 | C16: ='Electricity Summary'!C21 -> 6.569615354 | D16: ='Electricity Summary'!D21 -> 6.122302381 | E16: ='Electricity Summary'!E21 -> 6.197093802 | F16: ='Electricity Summary'!F21 -> 6.293860516 | G16: ='Electricity Summary'!G21 -> 6.369657599 | H16: ='Electricity Summary'!H21 -> 6.587260389 | I16: ='Electricity Summary'!I21 -> 6.846668888 | J16: ='Electricity Summary'!J21 -> 7.162438866 | K16: see Electricity Summary tab
A17: Hydrogen ($/GEG) | B17: ='Hydrogen High'!G67 -> 11.09797139 | C17: ='Hydrogen High'!H67 -> 11.36452888 | D17: ='Hydrogen High'!I67 -> 9.31255355 | E17: ='Hydrogen High'!J67 -> 9.331947505 | F17: ='Hydrogen High'!K67 -> 6.306404027 | G17: ='Hydrogen High'!L67 -> 6.425062377 | H17: ='Hydrogen High'!M67 -> 6.626618434 | I17: ='Hydrogen High'!N67 -> 6.84723571 | J17: ='Hydrogen High'!O67 -> 7.089219841 | K17: see Hydrogen High tab
A18: Levelized Dispensing Infrastructure Cost ($/GEG)
A19: Gasoline ($/GEG) | B19: 0 | C19: 0 | D19: 0 | E19: 0 | F19: 0 | G19: 0 | H19: 0 | I19: 0 | J19: 0 | K19: Existing dispensing/distribution infrastructure sufficient for oil demand; commodity price includes renewal/maintenance cost
A20: Diesel ($/GEG) | B20: 0 | C20: 0 | D20: 0 | E20: 0 | F20: 0 | G20: 0 | H20: 0 | I20: 0 | J20: 0 | K20: Existing dispensing/distribution infrastructure sufficient for oil demand; commodity price includes renewal/maintenance cost
A21: CNG ($/GEG) | B21: ='CNG Summary'!E155 -> 0.3821460395 | C21: ='CNG Summary'!F155 -> 0.3821460395 | D21: ='CNG Summary'!G155 -> 0.3821460395 | E21: ='CNG Summary'!H155 -> 0.3821460395 | F21: ='CNG Summary'!I155 -> 0.3821460395 | G21: ='CNG Summary'!J155 -> 0.3821460395 | H21: ='CNG Summary'!K155 -> 0.3821460395 | I21: ='CNG Summary'!L155 -> 0.3821460395 | J21: ='CNG Summary'!M155 -> 0.3821460395 | K21: see CNG Summary tab
A22: LNG ($/GEG) | B22: ='LNG Summary'!E131 -> 0.05638061989 | C22: ='LNG Summary'!F131 -> 0.05638061989 | D22: ='LNG Summary'!G131 -> 0.05638061989 | E22: ='LNG Summary'!H131 -> 0.05638061989 | F22: ='LNG Summary'!I131 -> 0.05638061989 | G22: ='LNG Summary'!J131 -> 0.05638061989 | H22: ='LNG Summary'!K131 -> 0.05638061989 | I22: ='LNG Summary'!L131 -> 0.05638061989 | J22: ='LNG Summary'!M131 -> 0.05638061989 | K22: see LNG summary tab
A23: PHEV10 ($/GEG) - Home Charging | B23: ='Elec Dist & Disp'!B9 -> 0 | C23: ='Elec Dist & Disp'!C9 -> 1.054098298 | D23: ='Elec Dist & Disp'!D9 -> 0.8590719882 | E23: ='Elec Dist & Disp'!E9 -> 0.7711491888 | F23: ='Elec Dist & Disp'!F9 -> 0.6348625121 | G23: ='Elec Dist & Disp'!G9 -> 0.4948564731 | H23: ='Elec Dist & Disp'!H9 -> 0.3613871097 | I23: ='Elec Dist & Disp'!I9 -> 0.2424102357 | J23: ='Elec Dist & Disp'!J9 -> 0.1472913978 | K23: see Elec Dist and Disp tab
A24: PHEV40 ($/GEG) - Home Charging | B24: ='Elec Dist & Disp'!B11 -> 0 | C24: ='Elec Dist & Disp'!C11 -> 1.245964224 | D24: ='Elec Dist & Disp'!D11 -> 1.002636239 | E24: ='Elec Dist & Disp'!E11 -> 0.8642467559 | F24: ='Elec Dist & Disp'!F11 -> 0.7116810523 | G24: ='Elec Dist & Disp'!G11 -> 0.555742642 | H24: ='Elec Dist & Disp'!H11 -> 0.406599549 | I24: ='Elec Dist & Disp'!I11 -> 0.2732110651 | J24: ='Elec Dist & Disp'!J11 -> 0.166438276 | K24: see Elec Dist and Disp tab
A25: BEV100 ($/GEG) - Home Charging | B25: ='Elec Dist & Disp'!B13 -> 1.824092338 | C25: ='Elec Dist & Disp'!C13 -> 1.523037951 | D25: ='Elec Dist & Disp'!D13 -> 1.197861489 | E25: ='Elec Dist & Disp'!E13 -> 1.040801599 | F25: ='Elec Dist & Disp'!F13 -> 0.8617458221 | G25: ='Elec Dist & Disp'!G13 -> 0.6722832361 | H25: ='Elec Dist & Disp'!H13 -> 0.4927276738 | I25: ='Elec Dist & Disp'!I13 -> 0.331964385 | J25: ='Elec Dist & Disp'!J13 -> 0.202774122 | K25: see Elec Dist and Disp tab
A26: PHEV10 ($/GEG) - Home + Public Charging | B26: ='Elec Dist & Disp'!B17 -> 0 | C26: ='Elec Dist & Disp'!C17 -> 1.271217064 | D26: ='Elec Dist & Disp'!D17 -> 1.05359739 | E26: ='Elec Dist & Disp'!E17 -> 0.8994382824 | F26: ='Elec Dist & Disp'!F17 -> 0.7911945194 | G26: ='Elec Dist & Disp'!G17 -> 0.6851356331 | H26: ='Elec Dist & Disp'!H17 -> 0.5863504732 | I26: ='Elec Dist & Disp'!I17 -> 0.4964174316 | J26: ='Elec Dist & Disp'!J17 -> 0.4214037511 | K26: see Elec Dist and Disp tab
A27: PHEV40 ($/GEG) - Home + Public Charging | B27: ='Elec Dist & Disp'!B19 -> 0 | C27: ='Elec Dist & Disp'!C19 -> 1.11984651 | D27: ='Elec Dist & Disp'!D19 -> 0.9032401631 | E27: ='Elec Dist & Disp'!E19 -> 0.7720421111 | F27: ='Elec Dist & Disp'!F19 -> 0.643838297 | G27: ='Elec Dist & Disp'!G19 -> 0.5137544558 | H27: ='Elec Dist & Disp'!H19 -> 0.3898118828 | I27: ='Elec Dist & Disp'!I19 -> 0.2787810224 | J27: ='Elec Dist & Disp'!J19 -> 0.1895935627 | K27: see Elec Dist and Disp tab
A28: BEV100 ($/GEG) - Home + Public Charging | B28: ='Elec Dist & Disp'!B21 -> 1.832923588 | C28: ='Elec Dist & Disp'!C21 -> 1.530310417 | D28: ='Elec Dist & Disp'!D21 -> 1.203765219 | E28: ='Elec Dist & Disp'!E21 -> 1.045622614 | F28: ='Elec Dist & Disp'!F21 -> 0.86631704 | G28: ='Elec Dist & Disp'!G21 -> 0.6766417825 | H28: ='Elec Dist & Disp'!H21 -> 0.4969321247 | I28: ='Elec Dist & Disp'!I21 -> 0.3360237437 | J28: ='Elec Dist & Disp'!J21 -> 0.2066950438 | K28: see Elec Dist and Disp tab
A29: Hydrogen ($/GEG) | B29: ='Hydrogen High'!G70 -> 4.607147197 | C29: ='Hydrogen High'!H70 -> 4.607147197 | D29: ='Hydrogen High'!I70 -> 3.413036392 | E29: ='Hydrogen High'!J70 -> 3.413036392 | F29: ='Hydrogen High'!K70 -> 1.898649611 | G29: ='Hydrogen High'!L70 -> 1.898649611 | H29: ='Hydrogen High'!M70 -> 1.898649611 | I29: ='Hydrogen High'!N70 -> 1.898649611 | J29: ='Hydrogen High'!O70 -> 1.898649611 | K29: see Hydrogen High tab
A31: Low Case (Required):
A32: Dispensed Fuel Cost ($/GEG) | K32: Inclusive of distribution & dispensing infrastructure costs
A33: Gasoline ($/GEG) | B33: =Gasoline!D10 -> 2.599258661 | C33: =Gasoline!E10 -> 2.131386757 | D33: =Gasoline!F10 -> 2.156774998 | E33: =Gasoline!G10 -> 2.162542343 | F33: =Gasoline!H10 -> 2.147493601 | G33: =Gasoline!I10 -> 2.215032816 | H33: =Gasoline!J10 -> 2.284696156 | I33: =Gasoline!K10 -> 2.356550426 | J33: =Gasoline!L10 -> 2.430664531 | K33: from AEO2010 Low Oil Price Case
A34: Diesel ($/GEG) | B34: =Diesel!D10 -> 2.388011694 | C34: =Diesel!E10 -> 1.967348576 | D34: =Diesel!F10 -> 1.959311962 | E34: =Diesel!G10 -> 1.975031972 | F34: =Diesel!H10 -> 1.955567837 | G34: =Diesel!I10 -> 2.002534628 | H34: =Diesel!J10 -> 2.050629419 | I34: =Diesel!K10 -> 2.0998793 | J34: =Diesel!L10 -> 2.150312013 | K34: from AEO2010 Low Oil Price Case
A35: CNG ($/GEG) | B35: ='CNG Summary'!E145 -> 1.915249225 | C35: ='CNG Summary'!F145 -> 2.036221649 | D35: ='CNG Summary'!G145 -> 2.057056958 | E35: ='CNG Summary'!H145 -> 2.157897133 | F35: ='CNG Summary'!I145 -> 2.209834616 | G35: ='CNG Summary'!J145 -> 2.294177979 | H35: ='CNG Summary'!K145 -> 2.423229062 | I35: ='CNG Summary'!L145 -> 2.560733796 | J35: ='CNG Summary'!M145 -> 2.709256465 | K35: see CNG Summary tab
A36: LNG ($/GEG) | B36: ='LNG Summary'!E124 -> 1.994661596 | C36: ='LNG Summary'!F124 -> 2.113695196 | D36: ='LNG Summary'!G124 -> 2.132439612 | E36: ='LNG Summary'!H124 -> 2.231128809 | F36: ='LNG Summary'!I124 -> 2.281102719 | G36: ='LNG Summary'!J124 -> 2.363662136 | H36: ='LNG Summary'!K124 -> 2.490485411 | I36: ='LNG Summary'!L124 -> 2.627380498 | J36: ='LNG Summary'!M124 -> 2.775305354 | K36: see LNG summary tab
A37: PHEV10 ($/GEG) - Home Charging | B37: ='Electricity Summary'!B43 -> 4.95572791 | C37: ='Electricity Summary'!C43 -> 5.673618407 | D37: ='Electricity Summary'!D43 -> 5.491703381 | E37: ='Electricity Summary'!E43 -> 5.403406041 | F37: ='Electricity Summary'!F43 -> 5.362838344 | G37: ='Electricity Summary'!G43 -> 5.394124339 | H37: ='Electricity Summary'!H43 -> 5.546493483 | I37: ='Electricity Summary'!I43 -> 5.727954444 | J37: ='Electricity Summary'!J43 -> 5.947611087 | K37: see Electricity Summary tab
A38: PHEV40 ($/GEG) - Home Charging | B38: ='Electricity Summary'!B45 -> 5.010184068 | C38: ='Electricity Summary'!C45 -> 5.918184463 | D38: ='Electricity Summary'!D45 -> 5.68103512 | E38: ='Electricity Summary'!E45 -> 5.544235718 | F38: ='Electricity Summary'!F45 -> 5.486107444 | G38: ='Electricity Summary'!G45 -> 5.50196848 | H38: ='Electricity Summary'!H45 -> 5.643624443 | I38: ='Electricity Summary'!I45 -> 5.815725848 | J38: ='Electricity Summary'!J45 -> 6.030089131 | K38: see Electricity Summary tab
A39: BEV100 ($/GEG) - Home Charging | B39: ='Electricity Summary'!B47 -> 7.017904959 | C39: ='Electricity Summary'!C47 -> 6.372965343 | D39: ='Electricity Summary'!D47 -> 6.023472387 | E39: ='Electricity Summary'!E47 -> 5.885132199 | F39: ='Electricity Summary'!F47 -> 5.801750722 | G39: ='Electricity Summary'!G47 -> 5.777813501 | H39: ='Electricity Summary'!H47 -> 5.900692069 | I39: ='Electricity Summary'!I47 -> 6.057728797 | J39: ='Electricity Summary'!J47 -> 6.260994927 | K39: see Electricity Summary tab
A40: PHEV10 ($/GEG) - Home + Public Charging | B40: ='Electricity Summary'!B51 -> 4.95572791 | C40: ='Electricity Summary'!C51 -> 5.890737173 | D40: ='Electricity Summary'!D51 -> 5.686228783 | E40: ='Electricity Summary'!E51 -> 5.531695134 | F40: ='Electricity Summary'!F51 -> 5.519170351 | G40: ='Electricity Summary'!G51 -> 5.584403499 | H40: ='Electricity Summary'!H51 -> 5.771456846 | I40: ='Electricity Summary'!I51 -> 5.981961639 | J40: ='Electricity Summary'!J51 -> 6.22172344 | K40: see Electricity Summary tab
A41: PHEV40 ($/GEG) - Home + Public Charging | B41: ='Electricity Summary'!B53 -> 5.010184068 | C41: ='Electricity Summary'!C53 -> 5.792066749 | D41: ='Electricity Summary'!D53 -> 5.581639044 | E41: ='Electricity Summary'!E53 -> 5.452031073 | F41: ='Electricity Summary'!F53 -> 5.418264689 | G41: ='Electricity Summary'!G53 -> 5.459980294 | H41: ='Electricity Summary'!H53 -> 5.626836777 | I41: ='Electricity Summary'!I53 -> 5.821295805 | J41: ='Electricity Summary'!J53 -> 6.053244418 | K41: see Electricity Summary tab
A42: BEV100 ($/GEG) - Home + Public Charging | B42: ='Electricity Summary'!B55 -> 7.026736209 | C42: ='Electricity Summary'!C55 -> 6.380237808 | D42: ='Electricity Summary'!D55 -> 6.029376117 | E42: ='Electricity Summary'!E55 -> 5.889953214 | F42: ='Electricity Summary'!F55 -> 5.80632194 | G42: ='Electricity Summary'!G55 -> 5.782172047 | H42: ='Electricity Summary'!H55 -> 5.90489652 | I42: ='Electricity Summary'!I55 -> 6.061788156 | J42: ='Electricity Summary'!J55 -> 6.264915849 | K42: see Electricity Summary tab
A43: Hydrogen ($/GEG) | B43: ='Hydrogen Low'!G67 -> 8.287165127 | C43: ='Hydrogen Low'!H67 -> 8.400865473 | D43: ='Hydrogen Low'!I67 -> 6.720211597 | E43: ='Hydrogen Low'!J67 -> 6.811034124 | F43: ='Hydrogen Low'!K67 -> 5.319459124 | G43: ='Hydrogen Low'!L67 -> 5.396688903 | H43: ='Hydrogen Low'!M67 -> 5.549493458 | I43: ='Hydrogen Low'!N67 -> 5.712933386 | J43: ='Hydrogen Low'!O67 -> 5.888057728 | K43: see Hydrogen Low tab
A44: Levelized Dispensing Infrastructure Cost ($/GEG)
A45: Gasoline ($/GEG) | B45: 0 | C45: 0 | D45: 0 | E45: 0 | F45: 0 | G45: 0 | H45: 0 | I45: 0 | J45: 0 | K45: Existing dispensing/distribution infrastructure sufficient for oil demand; commodity price includes renewal/maintenance cost
A46: Diesel ($/GEG) | B46: 0 | C46: 0 | D46: 0 | E46: 0 | F46: 0 | G46: 0 | H46: 0 | I46: 0 | J46: 0 | K46: Existing dispensing/distribution infrastructure sufficient for oil demand; commodity price includes renewal/maintenance cost
A47: CNG ($/GEG) | B47: ='CNG Summary'!E147 -> 0.3821460395 | C47: ='CNG Summary'!F147 -> 0.3821460395 | D47: ='CNG Summary'!G147 -> 0.3821460395 | E47: ='CNG Summary'!H147 -> 0.3821460395 | F47: ='CNG Summary'!I147 -> 0.3821460395 | G47: ='CNG Summary'!J147 -> 0.3821460395 | H47: ='CNG Summary'!K147 -> 0.3821460395 | I47: ='CNG Summary'!L147 -> 0.3821460395 | J47: ='CNG Summary'!M147 -> 0.3821460395 | K47: see CNG Summary tab
A48: LNG ($/GEG) | B48: ='LNG Summary'!E125 -> 0.05638061989 | C48: ='LNG Summary'!F125 -> 0.05638061989 | D48: ='LNG Summary'!G125 -> 0.05638061989 | E48: ='LNG Summary'!H125 -> 0.05638061989 | F48: ='LNG Summary'!I125 -> 0.05638061989 | G48: ='LNG Summary'!J125 -> 0.05638061989 | H48: ='LNG Summary'!K125 -> 0.05638061989 | I48: ='LNG Summary'!L125 -> 0.05638061989 | J48: ='LNG Summary'!M125 -> 0.05638061989 | K48: see LNG summary tab
A49: PHEV10 ($/GEG) - Home Charging | B49: ='Elec Dist & Disp'!B43 -> 0 | C49: ='Elec Dist & Disp'!C43 -> 1.054098298 | D49: ='Elec Dist & Disp'!D43 -> 0.8590719882 | E49: ='Elec Dist & Disp'!E43 -> 0.7711491888 | F49: ='Elec Dist & Disp'!F43 -> 0.6348625121 | G49: ='Elec Dist & Disp'!G43 -> 0.4948564731 | H49: ='Elec Dist & Disp'!H43 -> 0.3613871097 | I49: ='Elec Dist & Disp'!I43 -> 0.2424102357 | J49: ='Elec Dist & Disp'!J43 -> 0.1472913978 | K49: see Elec Dist and Disp tab
A50: PHEV40 ($/GEG) - Home Charging | B50: ='Elec Dist & Disp'!B45 -> 0 | C50: ='Elec Dist & Disp'!C45 -> 1.245964224 | D50: ='Elec Dist & Disp'!D45 -> 1.002636239 | E50: ='Elec Dist & Disp'!E45 -> 0.8642467559 | F50: ='Elec Dist & Disp'!F45 -> 0.7116810523 | G50: ='Elec Dist & Disp'!G45 -> 0.555742642 | H50: ='Elec Dist & Disp'!H45 -> 0.406599549 | I50: ='Elec Dist & Disp'!I45 -> 0.2732110651 | J50: ='Elec Dist & Disp'!J45 -> 0.166438276 | K50: see Elec Dist and Disp tab
A51: BEV100 ($/GEG) - Home Charging | B51: ='Elec Dist & Disp'!B47 -> 1.824092338 | C51: ='Elec Dist & Disp'!C47 -> 1.523037951 | D51: ='Elec Dist & Disp'!D47 -> 1.197861489 | E51: ='Elec Dist & Disp'!E47 -> 1.040801599 | F51: ='Elec Dist & Disp'!F47 -> 0.8617458221 | G51: ='Elec Dist & Disp'!G47 -> 0.6722832361 | H51: ='Elec Dist & Disp'!H47 -> 0.4927276738 | I51: ='Elec Dist & Disp'!I47 -> 0.331964385 | J51: ='Elec Dist & Disp'!J47 -> 0.202774122 | K51: see Elec Dist and Disp tab
A52: PHEV10 ($/GEG) - Home + Public Charging | B52: ='Elec Dist & Disp'!B51 -> 0 | C52: ='Elec Dist & Disp'!C51 -> 1.271217064 | D52: ='Elec Dist & Disp'!D51 -> 1.05359739 | E52: ='Elec Dist & Disp'!E51 -> 0.8994382824 | F52: ='Elec Dist & Disp'!F51 -> 0.7911945194 | G52: ='Elec Dist & Disp'!G51 -> 0.6851356331 | H52: ='Elec Dist & Disp'!H51 -> 0.5863504732 | I52: ='Elec Dist & Disp'!I51 -> 0.4964174316 | J52: ='Elec Dist & Disp'!J51 -> 0.4214037511 | K52: see Elec Dist and Disp tab
A53: PHEV40 ($/GEG) - Home + Public Charging | B53: ='Elec Dist & Disp'!B53 -> 0 | C53: ='Elec Dist & Disp'!C53 -> 1.11984651 | D53: ='Elec Dist & Disp'!D53 -> 0.9032401631 | E53: ='Elec Dist & Disp'!E53 -> 0.7720421111 | F53: ='Elec Dist & Disp'!F53 -> 0.643838297 | G53: ='Elec Dist & Disp'!G53 -> 0.5137544558 | H53: ='Elec Dist & Disp'!H53 -> 0.3898118828 | I53: ='Elec Dist & Disp'!I53 -> 0.2787810224 | J53: ='Elec Dist & Disp'!J53 -> 0.1895935627 | K53: see Elec Dist and Disp tab
A54: BEV100 ($/GEG) - Home + Public Charging | B54: ='Elec Dist & Disp'!B55 -> 1.832923588 | C54: ='Elec Dist & Disp'!C55 -> 1.530310417 | D54: ='Elec Dist & Disp'!D55 -> 1.203765219 | E54: ='Elec Dist & Disp'!E55 -> 1.045622614 | F54: ='Elec Dist & Disp'!F55 -> 0.86631704 | G54: ='Elec Dist & Disp'!G55 -> 0.6766417825 | H54: ='Elec Dist & Disp'!H55 -> 0.4969321247 | I54: ='Elec Dist & Disp'!I55 -> 0.3360237437 | J54: ='Elec Dist & Disp'!J55 -> 0.2066950438 | K54: see Elec Dist and Disp tab
A55: Hydrogen ($/GEG) | B55: ='Hydrogen Low'!G70 -> 2.655843001 | C55: ='Hydrogen Low'!H70 -> 2.655843001 | D55: ='Hydrogen Low'!I70 -> 1.788326533 | E55: ='Hydrogen Low'!J70 -> 1.788326533 | F55: ='Hydrogen Low'!K70 -> 1.320305299 | G55: ='Hydrogen Low'!L70 -> 1.320305299 | H55: ='Hydrogen Low'!M70 -> 1.320305299 | I55: ='Hydrogen Low'!N70 -> 1.320305299 | J55: ='Hydrogen Low'!O70 -> 1.320305299 | K55: see Hydrogen Low tab
A57: Nominal Case
A58: Dispensed Fuel Cost ($/GEG) | K58: Inclusive of distribution & dispensing infrastructure costs
A59: Gasoline ($/GEG) | B59: =Gasoline!D8 -> 2.569325875 | C59: =Gasoline!E8 -> 3.17111825 | D59: =Gasoline!F8 -> 3.44886975 | E59: =Gasoline!G8 -> 3.6087565 | F59: =Gasoline!H8 -> 3.8021925 | G59: =Gasoline!I8 -> 4.04101325 | H59: =Gasoline!J8 -> 4.293470309 | I59: =Gasoline!K8 -> 4.540580421 | J59: =Gasoline!L8 -> 4.787554758 | K59: from AEO2010 Reference Case
A60: Diesel ($/GEG) | B60: =Diesel!D8 -> 2.389922125 | C60: =Diesel!E8 -> 2.866665125 | D60: =Diesel!F8 -> 3.199694375 | E60: =Diesel!G8 -> 3.328247125 | F60: =Diesel!H8 -> 3.494777625 | G60: =Diesel!I8 -> 3.744829625 | H60: =Diesel!J8 -> 3.99992522 | I60: =Diesel!K8 -> 4.250293927 | J60: =Diesel!L8 -> 4.500662634 | K60: from AEO2010 Reference Case
A61: CNG ($/GEG) | B61: ='CNG Summary'!E149 -> 1.919854778 | C61: ='CNG Summary'!F149 -> 2.122454709 | D61: ='CNG Summary'!G149 -> 2.142859116 | E61: ='CNG Summary'!H149 -> 2.17143586 | F61: ='CNG Summary'!I149 -> 2.290388433 | G61: ='CNG Summary'!J149 -> 2.381476915 | H61: ='CNG Summary'!K149 -> 2.51782825 | I61: ='CNG Summary'!L149 -> 2.663233026 | J61: ='CNG Summary'!M149 -> 2.820303656 | K61: see CNG Summary tab
A62: LNG ($/GEG) | B62: ='LNG Summary'!E127 -> 1.999267149 | C62: ='LNG Summary'!F127 -> 2.199928257 | D62: ='LNG Summary'!G127 -> 2.21824177 | E62: ='LNG Summary'!H127 -> 2.244667536 | F62: ='LNG Summary'!I127 -> 2.361656536 | G62: ='LNG Summary'!J127 -> 2.450961072 | H62: ='LNG Summary'!K127 -> 2.583538304 | I62: ='LNG Summary'!L127 -> 2.726383873 | J62: ='LNG Summary'!M127 -> 2.880578034 | K62: see LNG summary tab
A63: PHEV10 ($/GEG) - Home Charging | B63: ='Electricity Summary'!B26 -> 4.949429901 | C63: ='Electricity Summary'!C26 -> 5.778585342 | D63: ='Electricity Summary'!D26 -> 5.546302371 | E63: ='Electricity Summary'!E26 -> 5.419234354 | F63: ='Electricity Summary'!F26 -> 5.545694706 | G63: ='Electricity Summary'!G26 -> 5.655650231 | H63: ='Electricity Summary'!H26 -> 5.885739366 | I63: ='Electricity Summary'!I26 -> 6.151695672 | J63: ='Electricity Summary'!J26 -> 6.464939354 | K63: see Electricity Summary tab
A64: PHEV40 ($/GEG) - Home Charging | B64: ='Electricity Summary'!B28 -> 5.003886059 | C64: ='Electricity Summary'!C28 -> 6.023151398 | D64: ='Electricity Summary'!D28 -> 5.73563411 | E64: ='Electricity Summary'!E28 -> 5.560064031 | F64: ='Electricity Summary'!F28 -> 5.668963806 | G64: ='Electricity Summary'!G28 -> 5.763494372 | H64: ='Electricity Summary'!H28 -> 5.982870327 | I64: ='Electricity Summary'!I28 -> 6.239467076 | J64: ='Electricity Summary'!J28 -> 6.547417398 | K64: see Electricity Summary tab
A65: BEV100 ($/GEG) - Home Charging | B65: ='Electricity Summary'!B30 -> 7.011606949 | C65: ='Electricity Summary'!C30 -> 6.477932277 | D65: ='Electricity Summary'!D30 -> 6.078071377 | E65: ='Electricity Summary'!E30 -> 5.900960512 | F65: ='Electricity Summary'!F30 -> 5.984607084 | G65: ='Electricity Summary'!G30 -> 6.039339393 | H65: ='Electricity Summary'!H30 -> 6.239937952 | I65: ='Electricity Summary'!I30 -> 6.481470025 | J65: ='Electricity Summary'!J30 -> 6.778323195 | K65: see Electricity Summary tab
A66: PHEV10 ($/GEG) - Home + Public Charging | B66: ='Electricity Summary'!B34 -> 4.949429901 | C66: ='Electricity Summary'!C34 -> 5.995704108 | D66: ='Electricity Summary'!D34 -> 5.740827773 | E66: ='Electricity Summary'!E34 -> 5.547523447 | F66: ='Electricity Summary'!F34 -> 5.702026713 | G66: ='Electricity Summary'!G34 -> 5.84592939 | H66: ='Electricity Summary'!H34 -> 6.11070273 | I66: ='Electricity Summary'!I34 -> 6.405702868 | J66: ='Electricity Summary'!J34 -> 6.739051707 | K66: see Electricity Summary tab
A67: PHEV40 ($/GEG) - Home + Public Charging | B67: ='Electricity Summary'!B36 -> 5.003886059 | C67: ='Electricity Summary'!C36 -> 5.897033684 | D67: ='Electricity Summary'!D36 -> 5.636238034 | E67: ='Electricity Summary'!E36 -> 5.467859386 | F67: ='Electricity Summary'!F36 -> 5.601121051 | G67: ='Electricity Summary'!G36 -> 5.721506186 | H67: ='Electricity Summary'!H36 -> 5.96608266 | I67: ='Electricity Summary'!I36 -> 6.245037033 | J67: ='Electricity Summary'!J36 -> 6.570572685 | K67: see Electricity Summary tab
A68: BEV100 ($/GEG) - Home + Public Charging | B68: ='Electricity Summary'!B38 -> 7.0204382 | C68: ='Electricity Summary'!C38 -> 6.485204742 | D68: ='Electricity Summary'!D38 -> 6.083975107 | E68: ='Electricity Summary'!E38 -> 5.905781527 | F68: ='Electricity Summary'!F38 -> 5.989178302 | G68: ='Electricity Summary'!G38 -> 6.043697939 | H68: ='Electricity Summary'!H38 -> 6.244142403 | I68: ='Electricity Summary'!I38 -> 6.485529384 | J68: ='Electricity Summary'!J38 -> 6.782244117 | K68: see Electricity Summary tab
A69: Hydrogen ($/GEG) | B69: n.a. | C69: n.a. | D69: n.a. | E69: n.a. | F69: n.a. | G69: n.a. | H69: n.a. | I69: n.a. | J69: n.a.
A70: Levelized Dispensing Infrastructure Cost ($/GEG)
A71: Gasoline ($/GEG) | B71: 0 | C71: 0 | D71: 0 | E71: 0 | F71: 0 | G71: 0 | H71: 0 | I71: 0 | J71: 0 | K71: Existing dispensing/distribution infrastructure sufficient for oil demand; commodity price includes renewal/maintenance cost
A72: Diesel ($/GEG) | B72: 0 | C72: 0 | D72: 0 | E72: 0 | F72: 0 | G72: 0 | H72: 0 | I72: 0 | J72: 0 | K72: Existing dispensing/distribution infrastructure sufficient for oil demand; commodity price includes renewal/maintenance cost
A73: CNG ($/GEG) | B73: ='CNG Summary'!E151 -> 0.3821460395 | C73: ='CNG Summary'!F151 -> 0.3821460395 | D73: ='CNG Summary'!G151 -> 0.3821460395 | E73: ='CNG Summary'!H151 -> 0.3821460395 | F73: ='CNG Summary'!I151 -> 0.3821460395 | G73: ='CNG Summary'!J151 -> 0.3821460395 | H73: ='CNG Summary'!K151 -> 0.3821460395 | I73: ='CNG Summary'!L151 -> 0.3821460395 | J73: ='CNG Summary'!M151 -> 0.3821460395 | K73: see CNG Summary tab
A74: LNG ($/GEG) | B74: ='LNG Summary'!E128 -> 0.05638061989 | C74: ='LNG Summary'!F128 -> 0.05638061989 | D74: ='LNG Summary'!G128 -> 0.05638061989 | E74: ='LNG Summary'!H128 -> 0.05638061989 | F74: ='LNG Summary'!I128 -> 0.05638061989 | G74: ='LNG Summary'!J128 -> 0.05638061989 | H74: ='LNG Summary'!K128 -> 0.05638061989 | I74: ='LNG Summary'!L128 -> 0.05638061989 | J74: ='LNG Summary'!M128 -> 0.05638061989 | K74: see LNG summary tab
A75: PHEV10 ($/GEG) - Home Charging | B75: ='Elec Dist & Disp'!B26 -> 0 | C75: ='Elec Dist & Disp'!C26 -> 1.054098298 | D75: ='Elec Dist & Disp'!D26 -> 0.8590719882 | E75: ='Elec Dist & Disp'!E26 -> 0.7711491888 | F75: ='Elec Dist & Disp'!F26 -> 0.6348625121 | G75: ='Elec Dist & Disp'!G26 -> 0.4948564731 | H75: ='Elec Dist & Disp'!H26 -> 0.3613871097 | I75: ='Elec Dist & Disp'!I26 -> 0.2424102357 | J75: ='Elec Dist & Disp'!J26 -> 0.1472913978 | K75: see Elec Dist and Disp tab
A76: PHEV40 ($/GEG) - Home Charging | B76: ='Elec Dist & Disp'!B28 -> 0 | C76: ='Elec Dist & Disp'!C28 -> 1.245964224 | D76: ='Elec Dist & Disp'!D28 -> 1.002636239 | E76: ='Elec Dist & Disp'!E28 -> 0.8642467559 | F76: ='Elec Dist & Disp'!F28 -> 0.7116810523 | G76: ='Elec Dist & Disp'!G28 -> 0.555742642 | H76: ='Elec Dist & Disp'!H28 -> 0.406599549 | I76: ='Elec Dist & Disp'!I28 -> 0.2732110651 | J76: ='Elec Dist & Disp'!J28 -> 0.166438276 | K76: see Elec Dist and Disp tab
A77: BEV100 ($/GEG) - Home Charging | B77: ='Elec Dist & Disp'!B30 -> 1.824092338 | C77: ='Elec Dist & Disp'!C30 -> 1.523037951 | D77: ='Elec Dist & Disp'!D30 -> 1.197861489 | E77: ='Elec Dist & Disp'!E30 -> 1.040801599 | F77: ='Elec Dist & Disp'!F30 -> 0.8617458221 | G77: ='Elec Dist & Disp'!G30 -> 0.6722832361 | H77: ='Elec Dist & Disp'!H30 -> 0.4927276738 | I77: ='Elec Dist & Disp'!I30 -> 0.331964385 | J77: ='Elec Dist & Disp'!J30 -> 0.202774122 | K77: see Elec Dist and Disp tab
A78: PHEV10 ($/GEG) - Home + Public Charging | B78: ='Elec Dist & Disp'!B34 -> 0 | C78: ='Elec Dist & Disp'!C34 -> 1.271217064 | D78: ='Elec Dist & Disp'!D34 -> 1.05359739 | E78: ='Elec Dist & Disp'!E34 -> 0.8994382824 | F78: ='Elec Dist & Disp'!F34 -> 0.7911945194 | G78: ='Elec Dist & Disp'!G34 -> 0.6851356331 | H78: ='Elec Dist & Disp'!H34 -> 0.5863504732 | I78: ='Elec Dist & Disp'!I34 -> 0.4964174316 | J78: ='Elec Dist & Disp'!J34 -> 0.4214037511 | K78: see Elec Dist and Disp tab
A79: PHEV40 ($/GEG) - Home + Public Charging | B79: ='Elec Dist & Disp'!B36 -> 0 | C79: ='Elec Dist & Disp'!C36 -> 1.11984651 | D79: ='Elec Dist & Disp'!D36 -> 0.9032401631 | E79: ='Elec Dist & Disp'!E36 -> 0.7720421111 | F79: ='Elec Dist & Disp'!F36 -> 0.643838297 | G79: ='Elec Dist & Disp'!G36 -> 0.5137544558 | H79: ='Elec Dist & Disp'!H36 -> 0.3898118828 | I79: ='Elec Dist & Disp'!I36 -> 0.2787810224 | J79: ='Elec Dist & Disp'!J36 -> 0.1895935627 | K79: see Elec Dist and Disp tab
A80: BEV100 ($/GEG) - Home + Public Charging | B80: ='Elec Dist & Disp'!B38 -> 1.832923588 | C80: ='Elec Dist & Disp'!C38 -> 1.530310417 | D80: ='Elec Dist & Disp'!D38 -> 1.203765219 | E80: ='Elec Dist & Disp'!E38 -> 1.045622614 | F80: ='Elec Dist & Disp'!F38 -> 0.86631704 | G80: ='Elec Dist & Disp'!G38 -> 0.6766417825 | H80: ='Elec Dist & Disp'!H38 -> 0.4969321247 | I80: ='Elec Dist & Disp'!I38 -> 0.3360237437 | J80: ='Elec Dist & Disp'!J38 -> 0.2066950438 | K80: see Elec Dist and Disp tab
A81: Hydrogen ($/GEG) | B81: n.a. | C81: n.a. | D81: n.a. | E81: n.a. | F81: n.a. | G81: n.a. | H81: n.a. | I81: n.a. | J81: n.a.

Sheet Gasoline
A1: DRAFT - Do not Cite or Quote. For NPC Study Discussion Only
A2: Source: Charlie Schleyer (hydrocarbon liquids)
A3: Pathway --> | B3: Hydrocarbon Liquids
A5: Note: GEG = Gasoline Equivalent Gallons (energy basis) | C5: Reference | D5: 2010 | E5: =D5+5 -> 2015 | F5: =E5+5 -> 2020 | G5: 2025 | H5: 2030 | I5: 2035 | J5: 2040 | K5: 2045 | L5: 2050
A6: Will pathway use AEO2010 Reference Case Dispensed Fuel Price? | B6: Yes
A7: + If "YES" above, indicate Dispensed Fuel Price (2008$)
A8: + Reference Case (2008$/GEG) | B8: GEG=125,000 BTU | C8: AEO2010 Reference Case through 2035 | D8: ='PetPriceExtrapolations_5 Yr'!E45/8 -> 2.569325875 | E8: ='PetPriceExtrapolations_5 Yr'!F45/8 -> 3.17111825 | F8: ='PetPriceExtrapolations_5 Yr'!G45/8 -> 3.44886975 | G8: ='PetPriceExtrapolations_5 Yr'!H45/8 -> 3.6087565 | H8: ='PetPriceExtrapolations_5 Yr'!I45/8 -> 3.8021925 | I8: ='PetPriceExtrapolations_5 Yr'!J45/8 -> 4.04101325 | J8: ='PetPriceExtrapolations_5 Yr'!K45/8 -> 4.293470309 | K8: ='PetPriceExtrapolations_5 Yr'!L45/8 -> 4.540580421 | L8: ='PetPriceExtrapolations_5 Yr'!M45/8 -> 4.787554758
A9: + High Oil Price (2008$/GEG) | B9: GEG=125,000 BTU | C9: AEO2010 High Oil Price through 2035 | D9: ='PetPriceExtrapolations_5 Yr'!E13/8 -> 2.5860672 | E9: ='PetPriceExtrapolations_5 Yr'!F13/8 -> 4.329775333 | F9: ='PetPriceExtrapolations_5 Yr'!G13/8 -> 5.307139874 | G9: ='PetPriceExtrapolations_5 Yr'!H13/8 -> 5.507891655 | H9: ='PetPriceExtrapolations_5 Yr'!I13/8 -> 5.663994789 | I9: ='PetPriceExtrapolations_5 Yr'!J13/8 -> 5.831809044 | J9: ='PetPriceExtrapolations_5 Yr'!K13/8 -> 6.004595341 | K9: ='PetPriceExtrapolations_5 Yr'!L13/8 -> 6.182500995 | L9: ='PetPriceExtrapolations_5 Yr'!M13/8 -> 6.365677681
A10: + Low Oil Price (2008$/GEG) | B10: GEG=125,000 BTU | C10: AEO2010 Low Oil Price through 2035 | D10: ='PetPriceExtrapolations_5 Yr'!E31/8 -> 2.599258661 | E10: ='PetPriceExtrapolations_5 Yr'!F31/8 -> 2.131386757 | F10: ='PetPriceExtrapolations_5 Yr'!G31/8 -> 2.156774998 | G10: ='PetPriceExtrapolations_5 Yr'!H31/8 -> 2.162542343 | H10: ='PetPriceExtrapolations_5 Yr'!I31/8 -> 2.147493601 | I10: ='PetPriceExtrapolations_5 Yr'!J31/8 -> 2.215032816 | J10: ='PetPriceExtrapolations_5 Yr'!K31/8 -> 2.284696156 | K10: ='PetPriceExtrapolations_5 Yr'!L31/8 -> 2.356550426 | L10: ='PetPriceExtrapolations_5 Yr'!M31/8 -> 2.430664531
A11: Will Pathway use AEO2010 Reference Case FUEL PRODUCTION PRICE? (e.g. Lower 48 Gas Price, Refinery Gate Gasoline price) | B11: N/A
A12: Fuel Production PRICE used ($/GEG) (2008$) | B12: N/A
A13: + Reference: Public source for price (if other than AEO2010) | B13: N/A
A14: Are governmental subsidies included in PRODUCTION PRICE? (Y/N) | B14: No
A15: + If "YES" above, amount of subsidy assumed ($/GEG) | B15: N/A
A16: Does pathway need an adjustment for bulk distribution & vehicle dispensing infrastructure costs? (Y/N) | B16: No
A17: VEHICLE DISPENSING INFRASTRUCTURE | C17: Existing dispensing/distribution infrastructure sufficient for oil demand; commodity price includes renewal/maintenance cost
A18: Current number of dispensing stations
A19: Number of additional dispensing stations required for ubiquitous supply | B19: 0
A20: Average dispensing capacity per station (GEG/station-yr) | B20: 1000000
A21: Total Fuel Dispensing Capacity Available (billion GEG/yr) - Calculated from above | B21: =(B18+B19)*B20/1000000000 -> 0
A22: Capital investment per additional dispensing station (i.e. typical station 8 dispensers) (2008$)
A23: +Land | B23: 0
A24: +Dispensing infrastructure | B24: 0
A25: Economic Life (Years) | B25: 20
A26: Real Weighted Average Cost-of-Capital (incl. capital depreciation and investor return) | B26: 0.1
A27: Levelized Fixed Cost for Dispensing ($/GEG) - Calculated from above | B27: =((B23+B24)*B26/(1-(1/(1+B26)^B25)))/B20 -> 0
A28: Variable Cost for dispensing ($/GEG) - incl. Operating & Maintenance, taxes (land, etc) | B28: 0
A29: Total Dispensing Infrastructure Cost (2008$/GEG) - Calculated from above | B29: =SUM(B27:B28) -> 0
A30: Are governmental subsidies included in DISPENSING COST? (Y/N) | B30: No
A31: + If "YES" above, amount of subsidy assumed ($/GEG) | B31: 0
A32: BULK DISTRIBUTION INFRASTRUCTURE | C32: Existing dispensing/distribution infrastructure sufficient for oil demand; commodity price includes renewal/maintenance cost
A33: Capital investment required in distribution infrastructure for ubiquitous supply (billion 2008$) | B33: 0
A34: Economic Life (Years) -- use AEO2010 values | B34: 20
A35: Real Weighted Average Cost-of-Capital (incl. capital depreciation and investor return) | B35: 0.1
A36: Levelized Fixed Cost for Distribution (2008$/GEG) - Calculated from above | B36: =(B33*B35/(1-(1/(1+B35)^B34)))/B21 -> 
A37: Variable Cost for distribution ($/GEG) - incl. Operating & Maintenanc, taxes (land,etc) | B37: 0
A38: Total Distribution Infrastructure Cost (2008$/GEG) - Calculated from above | B38: =SUM(B36:B37) -> 
A39: Are governmental subsidies included in BULK DISTRIBUTION COST? (Y/N) | B39: No
A40: + If "YES" above, amount of subsidy assumed ($/GEG)
A41: Other Pathway-specific Miscellaneous Costs (Subsidies) - (2008$/GEG) | B41: 0
A42: - Explanation of other cost/subsidy (if shown above)
A43: Federal Taxes ($/GEG) - use AEO2010 numbers (2008$) | D43: 0.178613031 | E43: 0.1651141734 | F43: 0.1505565382 | G43: 0.1355805784 | H43: 0.121909402 | I43: 0.1094888561 | J43: 0.1161831076 | K43: 0.1228700109 | L43: 0.1295532401
A44: State and Local Taxes ($/GEG) - use AEO2010 numbers (2008$) | D44: 0.24 | E44: 0.24 | F44: 0.24 | G44: 0.24 | H44: 0.24 | I44: 0.24 | J44: 0.2546738255 | K44: 0.2693315436 | L44: 0.2839812081
A45: Total Fuel Cost, including infrastructure costs and taxes | C45: see rows 8-10

Sheet Diesel
A1: DRAFT - Do not Cite or Quote. For NPC Study Discussion Only
A2: Source: Charlie Schleyer (hydrocarbon liquids)
A3: Pathway --> | B3: Hydrocarbon Liquids
A5: Note: GEG = Gasoline Equivalent Gallons (energy basis) | C5: Reference | D5: 2010 | E5: =D5+5 -> 2015 | F5: 2020 | G5: 2025 | H5: 2030 | I5: 2035 | J5: 2040 | K5: 2045 | L5: 2050
A6: Will pathway use AEO2010 Reference Case Dispensed Fuel Price? | B6: Yes
A7: + If "YES" above, indicate Dispensed Fuel Price (2008$)
A8: + Reference Case (2008$/GEG) | B8: GEG=125,000 BTU | C8: AEO2010 Reference Case through 2035 | D8: ='PetPriceExtrapolations_5 Yr'!E46/8 -> 2.389922125 | E8: ='PetPriceExtrapolations_5 Yr'!F46/8 -> 2.866665125 | F8: ='PetPriceExtrapolations_5 Yr'!G46/8 -> 3.199694375 | G8: ='PetPriceExtrapolations_5 Yr'!H46/8 -> 3.328247125 | H8: ='PetPriceExtrapolations_5 Yr'!I46/8 -> 3.494777625 | I8: ='PetPriceExtrapolations_5 Yr'!J46/8 -> 3.744829625 | J8: ='PetPriceExtrapolations_5 Yr'!K46/8 -> 3.99992522 | K8: ='PetPriceExtrapolations_5 Yr'!L46/8 -> 4.250293927 | L8: ='PetPriceExtrapolations_5 Yr'!M46/8 -> 4.500662634
A9: + High Oil Price (2008$/GEG) | B9: GEG=125,000 BTU | C9: AEO2010 High Oil Price through 2035 | D9: ='PetPriceExtrapolations_5 Yr'!E15/8 -> 2.316126585 | E9: ='PetPriceExtrapolations_5 Yr'!F15/8 -> 3.934934139 | F9: ='PetPriceExtrapolations_5 Yr'!G15/8 -> 4.868714333 | G9: ='PetPriceExtrapolations_5 Yr'!H15/8 -> 5.054554939 | H9: ='PetPriceExtrapolations_5 Yr'!I15/8 -> 5.239487171 | I9: ='PetPriceExtrapolations_5 Yr'!J15/8 -> 5.404794216 | J9: ='PetPriceExtrapolations_5 Yr'!K15/8 -> 5.575316737 | K9: ='PetPriceExtrapolations_5 Yr'!L15/8 -> 5.751219283 | L9: ='PetPriceExtrapolations_5 Yr'!M15/8 -> 5.932671596
A10: + Low Oil Price (2008$/GEG) | B10: GEG=125,000 BTU | C10: AEO2010 Low Oil Price through 2035 | D10: ='PetPriceExtrapolations_5 Yr'!E33/8 -> 2.388011694 | E10: ='PetPriceExtrapolations_5 Yr'!F33/8 -> 1.967348576 | F10: ='PetPriceExtrapolations_5 Yr'!G33/8 -> 1.959311962 | G10: ='PetPriceExtrapolations_5 Yr'!H33/8 -> 1.975031972 | H10: ='PetPriceExtrapolations_5 Yr'!I33/8 -> 1.955567837 | I10: ='PetPriceExtrapolations_5 Yr'!J33/8 -> 2.002534628 | J10: ='PetPriceExtrapolations_5 Yr'!K33/8 -> 2.050629419 | K10: ='PetPriceExtrapolations_5 Yr'!L33/8 -> 2.0998793 | L10: ='PetPriceExtrapolations_5 Yr'!M33/8 -> 2.150312013
A11: Will Pathway use AEO2010 Reference Case FUEL PRODUCTION PRICE? (e.g. Lower 48 Gas Price, Refinery Gate Gasoline price) | B11: N/A
A12: Fuel Production PRICE used ($/GEG) (2008$) | B12: N/A
A13: + Reference: Public source for price (if other than AEO2010) | B13: N/A
A14: Are governmental subsidies included in PRODUCTION PRICE? (Y/N) | B14: NO
A15: + If "YES" above, amount of subsidy assumed ($/GEG) | B15: N/A
A16: Does pathway need an adjustment for bulk distribution & vehicle dispensing infrastructure costs? (Y/N) | B16: NO
A17: VEHICLE DISPENSING INFRASTRUCTURE | C17: Existing dispensing/distribution infrastructure sufficient for oil demand; commodity price includes renewal/maintenance cost
A18: Current number of dispensing stations
A19: Number of additional dispensing stations required for ubiquitous supply | B19: 0
A20: Average dispensing capacity per station (GEG/station-yr)
A21: Total Fuel Dispensing Capacity Available (billion GEG/yr) - Calculated from above | B21: =(B18+B19)*B20/1000000000 -> 0
A22: Capital investment per additional dispensing station (i.e. typical station 8 dispensers) (2008$)
A23: +Land | B23: 0
A24: +Dispensing infrastructure | B24: 0
A25: Economic Life (Years) | B25: 20
A26: Real Weighted Average Cost-of-Capital (incl. capital depreciation and investor return) | B26: 0.1
A27: Levelized Fixed Cost for Dispensing ($/GEG) - Calculated from above | B27: =((B23+B24)*B26/(1-(1/(1+B26)^B25)))/B20 -> 
A28: Variable Cost for dispensing ($/GEG) - incl. Operating & Maintenance, taxes (land, etc) | B28: 0
A29: Total Dispensing Infrastructure Cost (2008$/GEG) - Calculated from above | B29: =SUM(B27:B28) -> 
A30: Are governmental subsidies included in DISPENSING COST? (Y/N) | B30: No
A31: + If "YES" above, amount of subsidy assumed ($/GEG) | B31: 0
A32: BULK DISTRIBUTION INFRASTRUCTURE | C32: Existing dispensing/distribution infrastructure sufficient for oil demand; commodity price includes renewal/maintenance cost
A33: Capital investment required in distribution infrastructure for ubiquitous supply (billion 2008$) | B33: 0
A34: Economic Life (Years) -- use AEO2010 values | B34: 20
A35: Real Weighted Average Cost-of-Capital (incl. capital depreciation and investor return) | B35: 0.1
A36: Levelized Fixed Cost for Distribution (2008$/GEG) - Calculated from above | B36: =(B33*B35/(1-(1/(1+B35)^B34)))/B21 -> 
A37: Variable Cost for distribution ($/GEG) - incl. Operating & Maintenanc, taxes (land,etc) | B37: 0
A38: Total Distribution Infrastructure Cost (2008$/GEG) - Calculated from above | B38: =SUM(B36:B37) -> 
A39: Are governmental subsidies included in BULK DISTRIBUTION COST? (Y/N) | B39: No
A40: + If "YES" above, amount of subsidy assumed ($/GEG)
A41: Other Pathway-specific Miscellaneous Costs (Subsidies) - (2008$/GEG) | B41: 0
A42: - Explanation of other cost/subsidy (if shown above)
A43: Federal Taxes ($/GEG) - use AEO2010 numbers (2008$) | D43: 0.2134610767 | E43: 0.1973285434 | F43: 0.1799306611 | G43: 0.1620328376 | H43: 0.1456943654 | I43: 0.1308505263 | J43: 0.1395877934 | K43: 0.1483250606 | L43: 0.1570623278
A44: State and Local Taxes ($/GEG) - use AEO2010 numbers (2008$) | D44: 0.1982696467 | E44: 0.1982696467 | F44: 0.1982696467 | G44: 0.1982696467 | H44: 0.1982696467 | I44: 0.1982696467 | J44: 0.2115086831 | K44: 0.2247477195 | L44: 0.2379867558
A45: Total Fuel Cost, including infrastructure costs and taxes | C45: see rows 8-10

Sheet Biofuel
A1: DRAFT - Do not Cite or Quote. For NPC Study Discussion Only | B1: Biofuel Blend
A3: Costs are incremental to E10
A5: references:
A6: AEO2010
A7: API RFS2 Comments, Attachment 4: E85 Retail Fueling Cost Study, American Petroleum Institute, 2009
A8: EPA, Draft Regulatory Impact Analysis: Changes to Renewable Fuel Standard Program, March 2009
A9: NACS: http://www.nacsonline.com/NACS/Resources/campaigns/GasPrices_2011/Pages/ChallengesRemainBeforeE15UsageIsWidespread.aspx
A11: Assumptions for Calculating Biofuel Infrastructure
A13: Number of stations modified (~1/3 of Stations modified in ubiquitous supply to dispense higher ethanol-gasoline Blends) | B13: 50000
A14: Cost of modifying station (Dispensing infrastructure ref: API, EPA, NACS see above) | B14: 180000
A15: Total fixed investment in dispensing infrastructure (billion $) | B15: =B13*B14/1000000000 -> 9
A17: Capital investment required in distribution infrastructure for ubiquitous supply (billion 2008$):epa | B17: 9
A18: Incremental ethanol volume supported by distribution infrastructure investment (RFS2) : bgy | B18: 19
A19: Distribution infrastructure investment per gallon of ethanol ($ / gal/y) | B19: =B17/B18 -> 0.4736842105
A20: Investment to distribute 46 bgy (1/3rd of current gasoline supply) | B20: =B19*46 -> 21.78947368
A22: Total distribution and dispensing infrastructure investment | B22: =ROUND(SUM(B15,B20),-1) -> 30

Sheet CNG Summary
B1: DRAFT - Do not Cite or Quote. For NPC Study Discussion Only
B2: Source: Graham Williams (Natural Gas Subgroup)
D4: 2008 | E4: 2010 | F4: 2015 | G4: 2020 | H4: 2025 | I4: 2030 | J4: 2035 | K4: 2040 | L4: 2045 | M4: 2050
B7: Dedicated New CNG Station
B9: Based on AEO 2010 Reference Case - Transportation CNG Price | C9: $/GEG inc taxes | D9: ='CNG Retail per AEO'!C9 -> 1.995052875 | E9: ='CNG Retail per AEO'!D9 -> 1.499466 | F9: ='CNG Retail per AEO'!E9 -> 1.6715755 | G9: ='CNG Retail per AEO'!F9 -> 1.68023325 | H9: ='CNG Retail per AEO'!G9 -> 1.679111625 | I9: ='CNG Retail per AEO'!H9 -> 1.77408725 | J9: ='CNG Retail per AEO'!I9 -> 1.847560125 | K9: ='CNG Retail per AEO'!J9 -> 1.92407584 | L9: ='CNG Retail per AEO'!K9 -> 2.003760412 | M9: ='CNG Retail per AEO'!L9 -> 2.086745078
B10: Gas Commodity Price | C10: $/GEG
B11: Other Costs To Deliver fuel to Refuelling Station | C11: $/GEG
B12: Refuelling Infrastructure Capital cost per GEG (Inc land) | C12: $/GEG | D12: =D19 -> 0.2936490619 | E12: =E19 -> 0.2936490619 | F12: 0.2936490619 | G12: 0.2936490619 | H12: 0.2936490619 | I12: 0.2936490619 | J12: 0.2936490619 | K12: 0.2936490619 | L12: 0.2936490619 | M12: 0.2936490619
B13: Refuelling O&M Costs | C13: $/GEG
B14: Taxes | C14: $/GEG
B16: Based on AEO 2010 Reference Case - Industrial Price (inc Taxes and infrastructure) | C16: $/GEG | D16: ='CNG New Station -Industrial'!C56 -> 2.324639192 | E16: ='CNG New Station -Industrial'!D56 -> 1.7367578 | F16: ='CNG New Station -Industrial'!E56 -> 1.939357731 | G16: ='CNG New Station -Industrial'!F56 -> 1.959762139 | H16: ='CNG New Station -Industrial'!G56 -> 1.988338882 | I16: ='CNG New Station -Industrial'!H56 -> 2.107291456 | J16: ='CNG New Station -Industrial'!I56 -> 2.198379938 | K16: ='CNG New Station -Industrial'!J56 -> 2.334731273 | L16: ='CNG New Station -Industrial'!K56 -> 2.480136048 | M16: ='CNG New Station -Industrial'!L56 -> 2.637206679
B17: Gas Commodity Price | C17: $/GEG | D17: ='CNG New Station -Industrial'!C9*(125000/1000000) -> 1.1389085 | E17: ='CNG New Station -Industrial'!D9*(125000/1000000) -> 0.6093415 | F17: ='CNG New Station -Industrial'!E9*(125000/1000000) -> 0.80572825 | G17: ='CNG New Station -Industrial'!F9*(125000/1000000) -> 0.83744 | H17: ='CNG New Station -Industrial'!G9*(125000/1000000) -> 0.876959375 | I17: ='CNG New Station -Industrial'!H9*(125000/1000000) -> 0.997458875 | J17: ='CNG New Station -Industrial'!I9*(125000/1000000) -> 1.091496625 | K17: ='CNG New Station -Industrial'!J9*(125000/1000000) -> 1.194400002 | L17: ='CNG New Station -Industrial'!K9*(125000/1000000) -> 1.307004834 | M17: ='CNG New Station -Industrial'!L9*(125000/1000000) -> 1.430225747
B18: Other Costs To Deliver fuel to Refuelling Station | C18: $/GEG | D18: ='CNG New Station -Industrial'!C10*125000/1000000 -> 0.095 | E18: ='CNG New Station -Industrial'!D10*125000/1000000 -> 0.095 | F18: ='CNG New Station -Industrial'!E10*125000/1000000 -> 0.095 | G18: ='CNG New Station -Industrial'!F10*125000/1000000 -> 0.095 | H18: ='CNG New Station -Industrial'!G10*125000/1000000 -> 0.095 | I18: ='CNG New Station -Industrial'!H10*125000/1000000 -> 0.095 | J18: ='CNG New Station -Industrial'!I10*125000/1000000 -> 0.095 | K18: ='CNG New Station -Industrial'!J10*125000/1000000 -> 0.095 | L18: ='CNG New Station -Industrial'!K10*125000/1000000 -> 0.095 | M18: ='CNG New Station -Industrial'!L10*125000/1000000 -> 0.095
B19: Refuelling Infrastructure Capital cost per GEG (inc land) | C19: $/GEG | D19: ='CNG New Station -Industrial'!C59 -> 0.2936490619 | E19: ='CNG New Station -Industrial'!D59 -> 0.2936490619 | F19: ='CNG New Station -Industrial'!E59 -> 0.2936490619 | G19: ='CNG New Station -Industrial'!F59 -> 0.2936490619 | H19: ='CNG New Station -Industrial'!G59 -> 0.2936490619 | I19: ='CNG New Station -Industrial'!H59 -> 0.2936490619 | J19: ='CNG New Station -Industrial'!I59 -> 0.2936490619 | K19: ='CNG New Station -Industrial'!J59 -> 0.2936490619 | L19: ='CNG New Station -Industrial'!K59 -> 0.2936490619 | M19: ='CNG New Station -Industrial'!L59 -> 0.2936490619
B20: Refuelling O&M Costs | C20: $/GEG | D20: =SUM('CNG New Station -Industrial'!C33:C37) -> 0.37189085 | E20: =SUM('CNG New Station -Industrial'!D33:D37) -> 0.31893415 | F20: =SUM('CNG New Station -Industrial'!E33:E37) -> 0.338572825 | G20: =SUM('CNG New Station -Industrial'!F33:F37) -> 0.341744 | H20: =SUM('CNG New Station -Industrial'!G33:G37) -> 0.3456959375 | I20: =SUM('CNG New Station -Industrial'!H33:H37) -> 0.3577458875 | J20: =SUM('CNG New Station -Industrial'!I33:I37) -> 0.3671496625 | K20: =SUM('CNG New Station -Industrial'!J33:J37) -> 0.3774400002 | L20: =SUM('CNG New Station -Industrial'!K33:K37) -> 0.3887004834 | M20: =SUM('CNG New Station -Industrial'!L33:L37) -> 0.4010225747
B21: Taxes | C21: $/GEG | D21: ='CNG New Station -Industrial'!C54+'CNG New Station -Industrial'!C55 -> 0.4251907805 | E21: ='CNG New Station -Industrial'!D54+'CNG New Station -Industrial'!D55 -> 0.4198330885 | F21: ='CNG New Station -Industrial'!E54+'CNG New Station -Industrial'!E55 -> 0.4064075943 | G21: ='CNG New Station -Industrial'!F54+'CNG New Station -Industrial'!F55 -> 0.3919290766 | H21: ='CNG New Station -Industrial'!G54+'CNG New Station -Industrial'!G55 -> 0.3770345079 | I21: ='CNG New Station -Industrial'!H54+'CNG New Station -Industrial'!H55 -> 0.3634376313 | J21: ='CNG New Station -Industrial'!I54+'CNG New Station -Industrial'!I55 -> 0.3510845884 | K21: ='CNG New Station -Industrial'!J54+'CNG New Station -Industrial'!J55 -> 0.3742422086 | L21: ='CNG New Station -Industrial'!K54+'CNG New Station -Industrial'!K55 -> 0.3957816691 | M21: ='CNG New Station -Industrial'!L54+'CNG New Station -Industrial'!L55 -> 0.4173092948
B23: Based on AEO 2010 Low Oil Case - Industrial Price (inc Taxes and infrastructure) | C23: $/GEG | D23: ='CNG New Station -Industrial'!Y56 -> 2.324639192 | E23: ='CNG New Station -Industrial'!Z56 -> 1.732152247 | F23: ='CNG New Station -Industrial'!AA56 -> 1.853124671 | G23: ='CNG New Station -Industrial'!AB56 -> 1.87395998 | H23: ='CNG New Station -Industrial'!AC56 -> 1.974800156 | I23: ='CNG New Station -Industrial'!AD56 -> 2.026737638 | J23: ='CNG New Station -Industrial'!AE56 -> 2.111081002 | K23: ='CNG New Station -Industrial'!AF56 -> 2.240132084 | L23: ='CNG New Station -Industrial'!AG56 -> 2.377636819 | M23: ='CNG New Station -Industrial'!AH56 -> 2.526159488
B24: Gas Commodity Price | C24: $/GEG | D24: ='CNG New Station -Industrial'!Y9*(125000/1000000) -> 1.1389085 | E24: ='CNG New Station -Industrial'!Z9*(125000/1000000) -> 0.6051546335 | F24: ='CNG New Station -Industrial'!AA9*(125000/1000000) -> 0.727334559 | G24: ='CNG New Station -Industrial'!AB9*(125000/1000000) -> 0.7594380379 | H24: ='CNG New Station -Industrial'!AC9*(125000/1000000) -> 0.8646514416 | I24: ='CNG New Station -Industrial'!AD9*(125000/1000000) -> 0.9242281318 | J24: ='CNG New Station -Industrial'!AE9*(125000/1000000) -> 1.012133956 | K24: ='CNG New Station -Industrial'!AF9*(125000/1000000) -> 1.10840074 | L24: ='CNG New Station -Industrial'!AG9*(125000/1000000) -> 1.213823716 | M24: ='CNG New Station -Industrial'!AH9*(125000/1000000) -> 1.329273755
B25: Other Costs To Deliver fuel to Refuelling Station | C25: $/GEG | D25: ='CNG New Station -Industrial'!Y10*125000/1000000 -> 0.095 | E25: ='CNG New Station -Industrial'!Z10*125000/1000000 -> 0.095 | F25: ='CNG New Station -Industrial'!AA10*125000/1000000 -> 0.095 | G25: ='CNG New Station -Industrial'!AB10*125000/1000000 -> 0.095 | H25: ='CNG New Station -Industrial'!AC10*125000/1000000 -> 0.095 | I25: ='CNG New Station -Industrial'!AD10*125000/1000000 -> 0.095 | J25: ='CNG New Station -Industrial'!AE10*125000/1000000 -> 0.095 | K25: ='CNG New Station -Industrial'!AF10*125000/1000000 -> 0.095 | L25: ='CNG New Station -Industrial'!AG10*125000/1000000 -> 0.095 | M25: ='CNG New Station -Industrial'!AH10*125000/1000000 -> 0.095
B26: Refuelling Infrastructure Capital cost per GEG (inc land) | C26: $/GEG | D26: ='CNG New Station -Industrial'!Y59 -> 0.2936490619 | E26: ='CNG New Station -Industrial'!Z59 -> 0.2936490619 | F26: ='CNG New Station -Industrial'!AA59 -> 0.2936490619 | G26: ='CNG New Station -Industrial'!AB59 -> 0.2936490619 | H26: ='CNG New Station -Industrial'!AC59 -> 0.2936490619 | I26: ='CNG New Station -Industrial'!AD59 -> 0.2936490619 | J26: ='CNG New Station -Industrial'!AE59 -> 0.2936490619 | K26: ='CNG New Station -Industrial'!AF59 -> 0.2936490619 | L26: ='CNG New Station -Industrial'!AG59 -> 0.2936490619 | M26: ='CNG New Station -Industrial'!AH59 -> 0.2936490619
B27: Refuelling O&M Costs | C27: $/GEG | D27: =SUM('CNG New Station -Industrial'!Y33:Y37) -> 0.37189085 | E27: =SUM('CNG New Station -Industrial'!Z33:Z37) -> 0.3185154634 | F27: =SUM('CNG New Station -Industrial'!AA33:AA37) -> 0.3307334559 | G27: =SUM('CNG New Station -Industrial'!AB33:AB37) -> 0.3339438038 | H27: =SUM('CNG New Station -Industrial'!AC33:AC37) -> 0.3444651442 | I27: =SUM('CNG New Station -Industrial'!AD33:AD37) -> 0.3504228132 | J27: =SUM('CNG New Station -Industrial'!AE33:AE37) -> 0.3592133956 | K27: =SUM('CNG New Station -Industrial'!AF33:AF37) -> 0.368840074 | L27: =SUM('CNG New Station -Industrial'!AG33:AG37) -> 0.3793823716 | M27: =SUM('CNG New Station -Industrial'!AH33:AH37) -> 0.3909273755
B28: Taxes | C28: $/GEG | D28: ='CNG New Station -Industrial'!Y54+'CNG New Station -Industrial'!Y55 -> 0.4251907805 | E28: ='CNG New Station -Industrial'!Z54+'CNG New Station -Industrial'!Z55 -> 0.4198330885 | F28: ='CNG New Station -Industrial'!AA54+'CNG New Station -Industrial'!AA55 -> 0.4064075943 | G28: ='CNG New Station -Industrial'!AB54+'CNG New Station -Industrial'!AB55 -> 0.3919290766 | H28: ='CNG New Station -Industrial'!AC54+'CNG New Station -Industrial'!AC55 -> 0.3770345079 | I28: ='CNG New Station -Industrial'!AD54+'CNG New Station -Industrial'!AD55 -> 0.3634376313 | J28: ='CNG New Station -Industrial'!AE54+'CNG New Station -Industrial'!AE55 -> 0.3510845884 | K28: ='CNG New Station -Industrial'!AF54+'CNG New Station -Industrial'!AF55 -> 0.3742422086 | L28: ='CNG New Station -Industrial'!AG54+'CNG New Station -Industrial'!AG55 -> 0.3957816691 | M28: ='CNG New Station -Industrial'!AH54+'CNG New Station -Industrial'!AH55 -> 0.4173092948
B30: Based AEO 2010 High Oil Case - Industrial Gas Pricing (inc taxes and infrastructure) | C30: $/GEG | D30: ='CNG New Station -Industrial'!N56 -> 2.324639192 | E30: ='CNG New Station -Industrial'!O56 -> 1.738944334 | F30: ='CNG New Station -Industrial'!P56 -> 2.007209497 | G30: ='CNG New Station -Industrial'!Q56 -> 2.014589796 | H30: ='CNG New Station -Industrial'!R56 -> 2.046705083 | I30: ='CNG New Station -Industrial'!S56 -> 2.161226036 | J30: ='CNG New Station -Industrial'!T56 -> 2.286075065 | K30: ='CNG New Station -Industrial'!U56 -> 2.462787607 | L30: ='CNG New Station -Industrial'!V56 -> 2.656183904 | M30: ='CNG New Station -Industrial'!W56 -> 2.870051649
B31: Gas Commodity Price | C31: $/GEG | D31: ='CNG New Station -Industrial'!N9*125000/1000000 -> 1.1389085 | E31: ='CNG New Station -Industrial'!O9*125000/1000000 -> 0.6113292575 | F31: ='CNG New Station -Industrial'!P9*125000/1000000 -> 0.8674116731 | G31: ='CNG New Station -Industrial'!Q9*125000/1000000 -> 0.8872833252 | H31: ='CNG New Station -Industrial'!R9*125000/1000000 -> 0.9300195575 | I31: ='CNG New Station -Industrial'!S9*125000/1000000 -> 1.046490312 | J31: ='CNG New Station -Industrial'!T9*125000/1000000 -> 1.171219468 | K31: ='CNG New Station -Industrial'!U9*125000/1000000 -> 1.310814852 | L31: ='CNG New Station -Industrial'!V9*125000/1000000 -> 1.467048339 | M31: ='CNG New Station -Industrial'!W9*125000/1000000 -> 1.641902993
B32: Other Costs To Deliver fuel to Refuelling Station | C32: $/GEG | D32: ='CNG New Station -Industrial'!N10*125000/1000000 -> 0.095 | E32: ='CNG New Station -Industrial'!O10*125000/1000000 -> 0.095 | F32: ='CNG New Station -Industrial'!P10*125000/1000000 -> 0.095 | G32: ='CNG New Station -Industrial'!Q10*125000/1000000 -> 0.095 | H32: ='CNG New Station -Industrial'!R10*125000/1000000 -> 0.095 | I32: ='CNG New Station -Industrial'!S10*125000/1000000 -> 0.095 | J32: ='CNG New Station -Industrial'!T10*125000/1000000 -> 0.095 | K32: ='CNG New Station -Industrial'!U10*125000/1000000 -> 0.095 | L32: ='CNG New Station -Industrial'!V10*125000/1000000 -> 0.095 | M32: ='CNG New Station -Industrial'!W10*125000/1000000 -> 0.095
B33: Refuelling Infrastructure Capital cost per GEG (inc land) | C33: $/GEG | D33: ='CNG New Station -Industrial'!N59 -> 0.2936490619 | E33: ='CNG New Station -Industrial'!O59 -> 0.2936490619 | F33: ='CNG New Station -Industrial'!P59 -> 0.2936490619 | G33: ='CNG New Station -Industrial'!Q59 -> 0.2936490619 | H33: ='CNG New Station -Industrial'!R59 -> 0.2936490619 | I33: ='CNG New Station -Industrial'!S59 -> 0.2936490619 | J33: ='CNG New Station -Industrial'!T59 -> 0.2936490619 | K33: ='CNG New Station -Industrial'!U59 -> 0.2936490619 | L33: ='CNG New Station -Industrial'!V59 -> 0.2936490619 | M33: ='CNG New Station -Industrial'!W59 -> 0.2936490619
B34: Refuelling O&M Costs | C34: $/GEG | D34: =SUM('CNG New Station -Industrial'!N33:N37) -> 0.37189085 | E34: =SUM('CNG New Station -Industrial'!O33:O37) -> 0.3191329257 | F34: =SUM('CNG New Station -Industrial'!P33:P37) -> 0.3447411673 | G34: =SUM('CNG New Station -Industrial'!Q33:Q37) -> 0.3467283325 | H34: =SUM('CNG New Station -Industrial'!R33:R37) -> 0.3510019557 | I34: =SUM('CNG New Station -Industrial'!S33:S37) -> 0.3626490312 | J34: =SUM('CNG New Station -Industrial'!T33:T37) -> 0.3751219468 | K34: =SUM('CNG New Station -Industrial'!U33:U37) -> 0.3890814852 | L34: =SUM('CNG New Station -Industrial'!V33:V37) -> 0.4047048339 | M34: =SUM('CNG New Station -Industrial'!W33:W37) -> 0.4221902993
B35: Taxes | C35: $/GEG | D35: ='CNG New Station -Industrial'!N54+'CNG New Station -Industrial'!N55 -> 0.4251907805 | E35: ='CNG New Station -Industrial'!O54+'CNG New Station -Industrial'!O55 -> 0.4198330885 | F35: ='CNG New Station -Industrial'!P54+'CNG New Station -Industrial'!P55 -> 0.4064075943 | G35: ='CNG New Station -Industrial'!Q54+'CNG New Station -Industrial'!Q55 -> 0.3919290766 | H35: ='CNG New Station -Industrial'!R54+'CNG New Station -Industrial'!R55 -> 0.3770345079 | I35: ='CNG New Station -Industrial'!S54+'CNG New Station -Industrial'!S55 -> 0.3634376313 | J35: ='CNG New Station -Industrial'!T54+'CNG New Station -Industrial'!T55 -> 0.3510845884 | K35: ='CNG New Station -Industrial'!U54+'CNG New Station -Industrial'!U55 -> 0.3742422086 | L35: ='CNG New Station -Industrial'!V54+'CNG New Station -Industrial'!V55 -> 0.3957816691 | M35: ='CNG New Station -Industrial'!W54+'CNG New Station -Industrial'!W55 -> 0.4173092948
B52: CNG Upgrade to Existing Gasoline Station
B54: Based on AEO 2010 Reference Case - Transportation CNG Price | C54: $/GEG | D54: ='CNG Retail per AEO'!C9 -> 1.995052875 | E54: ='CNG Retail per AEO'!D9 -> 1.499466 | F54: ='CNG Retail per AEO'!E9 -> 1.6715755 | G54: ='CNG Retail per AEO'!F9 -> 1.68023325 | H54: ='CNG Retail per AEO'!G9 -> 1.679111625 | I54: ='CNG Retail per AEO'!H9 -> 1.77408725 | J54: ='CNG Retail per AEO'!I9 -> 1.847560125 | K54: ='CNG Retail per AEO'!J9 -> 1.92407584 | L54: ='CNG Retail per AEO'!K9 -> 2.003760412 | M54: ='CNG Retail per AEO'!L9 -> 2.086745078
B55: Gas Commodity Price | C55: $/GEG
B56: Other Costs To Deliver fuel to Refuelling Station | C56: $/GEG
B57: Refuelling Infrastructure Capital cost per GEG (inc land) | C57: $/GEG | D57: =D64 -> 0.5148915059 | E57: =E64 -> 0.5148915059 | F57: 0.5148915059 | G57: 0.5148915059 | H57: 0.5148915059 | I57: 0.5148915059 | J57: 0.5148915059 | K57: 0.5148915059 | L57: 0.5148915059 | M57: 0.5148915059
B58: Refuelling O&M Costs | C58: $/GEG
B59: Taxes | C59: $/GEG
B61: Based on AEO 2010 Reference Case - Industrial Price (inc Taxes and infrastructure) | C61: $/GEG | D61: ='CNG Station - ReVamp'!C56 -> 2.782381636 | E61: ='CNG Station - ReVamp'!D56 -> 2.194500244 | F61: ='CNG Station - ReVamp'!E56 -> 2.397100175 | G61: ='CNG Station - ReVamp'!F56 -> 2.417504582 | H61: ='CNG Station - ReVamp'!G56 -> 2.446081326 | I61: ='CNG Station - ReVamp'!H56 -> 2.5650339 | J61: ='CNG Station - ReVamp'!I56 -> 2.656122382 | K61: ='CNG Station - ReVamp'!J56 -> 2.792473717 | L61: ='CNG Station - ReVamp'!K56 -> 2.937878492 | M61: ='CNG Station - ReVamp'!L56 -> 3.094949123
B62: Gas Commodity Price | C62: $/GEG | D62: ='CNG Station - ReVamp'!C9*125000/1000000 -> 1.1389085 | E62: ='CNG Station - ReVamp'!D9*125000/1000000 -> 0.6093415 | F62: ='CNG Station - ReVamp'!E9*125000/1000000 -> 0.80572825 | G62: ='CNG Station - ReVamp'!F9*125000/1000000 -> 0.83744 | H62: ='CNG Station - ReVamp'!G9*125000/1000000 -> 0.876959375 | I62: ='CNG Station - ReVamp'!H9*125000/1000000 -> 0.997458875 | J62: ='CNG Station - ReVamp'!I9*125000/1000000 -> 1.091496625 | K62: ='CNG Station - ReVamp'!J9*125000/1000000 -> 1.194400002 | L62: ='CNG Station - ReVamp'!K9*125000/1000000 -> 1.307004834 | M62: ='CNG Station - ReVamp'!L9*125000/1000000 -> 1.430225747
B63: Other Costs To Deliver fuel to Refuelling Station | C63: $/GEG | D63: ='CNG Station - ReVamp'!C10*125000/1000000 -> 0.095 | E63: ='CNG Station - ReVamp'!D10*125000/1000000 -> 0.095 | F63: ='CNG Station - ReVamp'!E10*125000/1000000 -> 0.095 | G63: ='CNG Station - ReVamp'!F10*125000/1000000 -> 0.095 | H63: ='CNG Station - ReVamp'!G10*125000/1000000 -> 0.095 | I63: ='CNG Station - ReVamp'!H10*125000/1000000 -> 0.095 | J63: ='CNG Station - ReVamp'!I10*125000/1000000 -> 0.095 | K63: ='CNG Station - ReVamp'!J10*125000/1000000 -> 0.095 | L63: ='CNG Station - ReVamp'!K10*125000/1000000 -> 0.095 | M63: ='CNG Station - ReVamp'!L10*125000/1000000 -> 0.095
B64: Refuelling Infrastructure Capital cost per GEG (inc land) | C64: $/GEG | D64: ='CNG Station - ReVamp'!C59 -> 0.5148915059 | E64: ='CNG Station - ReVamp'!D59 -> 0.5148915059 | F64: ='CNG Station - ReVamp'!E59 -> 0.5148915059 | G64: ='CNG Station - ReVamp'!F59 -> 0.5148915059 | H64: ='CNG Station - ReVamp'!G59 -> 0.5148915059 | I64: ='CNG Station - ReVamp'!H59 -> 0.5148915059 | J64: ='CNG Station - ReVamp'!I59 -> 0.5148915059 | K64: ='CNG Station - ReVamp'!J59 -> 0.5148915059 | L64: ='CNG Station - ReVamp'!K59 -> 0.5148915059 | M64: ='CNG Station - ReVamp'!L59 -> 0.5148915059
B65: Refuelling O&M Costs | C65: $/GEG | D65: =SUM('CNG Station - ReVamp'!C33:C37) -> 0.60839085 | E65: =SUM('CNG Station - ReVamp'!D33:D37) -> 0.55543415 | F65: =SUM('CNG Station - ReVamp'!E33:E37) -> 0.575072825 | G65: =SUM('CNG Station - ReVamp'!F33:F37) -> 0.578244 | H65: =SUM('CNG Station - ReVamp'!G33:G37) -> 0.5821959375 | I65: =SUM('CNG Station - ReVamp'!H33:H37) -> 0.5942458875 | J65: =SUM('CNG Station - ReVamp'!I33:I37) -> 0.6036496625 | K65: =SUM('CNG Station - ReVamp'!J33:J37) -> 0.6139400002 | L65: =SUM('CNG Station - ReVamp'!K33:K37) -> 0.6252004834 | M65: =SUM('CNG Station - ReVamp'!L33:L37) -> 0.6375225747
B66: Taxes | C66: $/GEG | D66: ='CNG Station - ReVamp'!C54+'CNG Station - ReVamp'!C55 -> 0.4251907805 | E66: ='CNG Station - ReVamp'!D54+'CNG Station - ReVamp'!D55 -> 0.4198330885 | F66: ='CNG Station - ReVamp'!E54+'CNG Station - ReVamp'!E55 -> 0.4064075943 | G66: ='CNG Station - ReVamp'!F54+'CNG Station - ReVamp'!F55 -> 0.3919290766 | H66: ='CNG Station - ReVamp'!G54+'CNG Station - ReVamp'!G55 -> 0.3770345079 | I66: ='CNG Station - ReVamp'!H54+'CNG Station - ReVamp'!H55 -> 0.3634376313 | J66: ='CNG Station - ReVamp'!I54+'CNG Station - ReVamp'!I55 -> 0.3510845884 | K66: ='CNG Station - ReVamp'!J54+'CNG Station - ReVamp'!J55 -> 0.3742422086 | L66: ='CNG Station - ReVamp'!K54+'CNG Station - ReVamp'!K55 -> 0.3957816691 | M66: ='CNG Station - ReVamp'!L54+'CNG Station - ReVamp'!L55 -> 0.4173092948
B68: Based on AEO 2010 Low Oil Case - Industrial Price (inc Taxes and infrastructure) | C68: $/GEG | D68: ='CNG Station - ReVamp'!Y56 -> 2.782381636 | E68: ='CNG Station - ReVamp'!Z56 -> 2.189894691 | F68: ='CNG Station - ReVamp'!AA56 -> 2.310867115 | G68: ='CNG Station - ReVamp'!AB56 -> 2.331702424 | H68: ='CNG Station - ReVamp'!AC56 -> 2.432542599 | I68: ='CNG Station - ReVamp'!AD56 -> 2.484480082 | J68: ='CNG Station - ReVamp'!AE56 -> 2.568823446 | K68: ='CNG Station - ReVamp'!AF56 -> 2.697874528 | L68: ='CNG Station - ReVamp'!AG56 -> 2.835379263 | M68: ='CNG Station - ReVamp'!AH56 -> 2.983901931
B69: Gas Commodity Price | C69: $/GEG | D69: ='CNG Station - ReVamp'!Y9*125000/1000000 -> 1.1389085 | E69: ='CNG Station - ReVamp'!Z9*125000/1000000 -> 0.6051546335 | F69: ='CNG Station - ReVamp'!AA9*125000/1000000 -> 0.727334559 | G69: ='CNG Station - ReVamp'!AB9*125000/1000000 -> 0.7594380379 | H69: ='CNG Station - ReVamp'!AC9*125000/1000000 -> 0.8646514416 | I69: ='CNG Station - ReVamp'!AD9*125000/1000000 -> 0.9242281318 | J69: ='CNG Station - ReVamp'!AE9*125000/1000000 -> 1.012133956 | K69: ='CNG Station - ReVamp'!AF9*125000/1000000 -> 1.10840074 | L69: ='CNG Station - ReVamp'!AG9*125000/1000000 -> 1.213823716 | M69: ='CNG Station - ReVamp'!AH9*125000/1000000 -> 1.329273755
B70: Other Costs To Deliver fuel to Refuelling Station | C70: $/GEG | D70: ='CNG Station - ReVamp'!Y10*125000/1000000 -> 0.095 | E70: ='CNG Station - ReVamp'!Z10*125000/1000000 -> 0.095 | F70: ='CNG Station - ReVamp'!AA10*125000/1000000 -> 0.095 | G70: ='CNG Station - ReVamp'!AB10*125000/1000000 -> 0.095 | H70: ='CNG Station - ReVamp'!AC10*125000/1000000 -> 0.095 | I70: ='CNG Station - ReVamp'!AD10*125000/1000000 -> 0.095 | J70: ='CNG Station - ReVamp'!AE10*125000/1000000 -> 0.095 | K70: ='CNG Station - ReVamp'!AF10*125000/1000000 -> 0.095 | L70: ='CNG Station - ReVamp'!AG10*125000/1000000 -> 0.095 | M70: ='CNG Station - ReVamp'!AH10*125000/1000000 -> 0.095
B71: Refuelling Infrastructure Capital cost per GEG (inc land) | C71: $/GEG | D71: ='CNG Station - ReVamp'!Y59 -> 0.5148915059 | E71: ='CNG Station - ReVamp'!Z59 -> 0.5148915059 | F71: ='CNG Station - ReVamp'!AA59 -> 0.5148915059 | G71: ='CNG Station - ReVamp'!AB59 -> 0.5148915059 | H71: ='CNG Station - ReVamp'!AC59 -> 0.5148915059 | I71: ='CNG Station - ReVamp'!AD59 -> 0.5148915059 | J71: ='CNG Station - ReVamp'!AE59 -> 0.5148915059 | K71: ='CNG Station - ReVamp'!AF59 -> 0.5148915059 | L71: ='CNG Station - ReVamp'!AG59 -> 0.5148915059 | M71: ='CNG Station - ReVamp'!AH59 -> 0.5148915059
B72: Refuelling O&M Costs | C72: $/GEG | D72: =SUM('CNG Station - ReVamp'!Y33:Y37) -> 0.60839085 | E72: =SUM('CNG Station - ReVamp'!Z33:Z37) -> 0.5550154634 | F72: =SUM('CNG Station - ReVamp'!AA33:AA37) -> 0.5672334559 | G72: =SUM('CNG Station - ReVamp'!AB33:AB37) -> 0.5704438038 | H72: =SUM('CNG Station - ReVamp'!AC33:AC37) -> 0.5809651442 | I72: =SUM('CNG Station - ReVamp'!AD33:AD37) -> 0.5869228132 | J72: =SUM('CNG Station - ReVamp'!AE33:AE37) -> 0.5957133956 | K72: =SUM('CNG Station - ReVamp'!AF33:AF37) -> 0.605340074 | L72: =SUM('CNG Station - ReVamp'!AG33:AG37) -> 0.6158823716 | M72: =SUM('CNG Station - ReVamp'!AH33:AH37) -> 0.6274273755
B73: Taxes | C73: $/GEG | D73: ='CNG Station - ReVamp'!Y54+'CNG Station - ReVamp'!Y55 -> 0.4251907805 | E73: ='CNG Station - ReVamp'!Z54+'CNG Station - ReVamp'!Z55 -> 0.4198330885 | F73: ='CNG Station - ReVamp'!AA54+'CNG Station - ReVamp'!AA55 -> 0.4064075943 | G73: ='CNG Station - ReVamp'!AB54+'CNG Station - ReVamp'!AB55 -> 0.3919290766 | H73: ='CNG Station - ReVamp'!AC54+'CNG Station - ReVamp'!AC55 -> 0.3770345079 | I73: ='CNG Station - ReVamp'!AD54+'CNG Station - ReVamp'!AD55 -> 0.3634376313 | J73: ='CNG Station - ReVamp'!AE54+'CNG Station - ReVamp'!AE55 -> 0.3510845884 | K73: ='CNG Station - ReVamp'!AF54+'CNG Station - ReVamp'!AF55 -> 0.3742422086 | L73: ='CNG Station - ReVamp'!AG54+'CNG Station - ReVamp'!AG55 -> 0.3957816691 | M73: ='CNG Station - ReVamp'!AH54+'CNG Station - ReVamp'!AH55 -> 0.4173092948
B75: Based AEO 2010 High Oil Case - Industrial Gas Pricing (inc taxes and infrastructure) | C75: $/GEG | D75: ='CNG Station - ReVamp'!N56 -> 2.782381636 | E75: ='CNG Station - ReVamp'!O56 -> 2.196686778 | F75: ='CNG Station - ReVamp'!P56 -> 2.464951941 | G75: ='CNG Station - ReVamp'!Q56 -> 2.47233224 | H75: ='CNG Station - ReVamp'!R56 -> 2.504447527 | I75: ='CNG Station - ReVamp'!S56 -> 2.61896848 | J75: ='CNG Station - ReVamp'!T56 -> 2.743817509 | K75: ='CNG Station - ReVamp'!U56 -> 2.920530051 | L75: ='CNG Station - ReVamp'!V56 -> 3.113926348 | M75: ='CNG Station - ReVamp'!W56 -> 3.327794093
B76: Gas Commodity Price | C76: $/GEG | D76: ='CNG Station - ReVamp'!N9*125000/1000000 -> 1.1389085 | E76: ='CNG Station - ReVamp'!O9*125000/1000000 -> 0.6113292575 | F76: ='CNG Station - ReVamp'!P9*125000/1000000 -> 0.8674116731 | G76: ='CNG Station - ReVamp'!Q9*125000/1000000 -> 0.8872833252 | H76: ='CNG Station - ReVamp'!R9*125000/1000000 -> 0.9300195575 | I76: ='CNG Station - ReVamp'!S9*125000/1000000 -> 1.046490312 | J76: ='CNG Station - ReVamp'!T9*125000/1000000 -> 1.171219468 | K76: ='CNG Station - ReVamp'!U9*125000/1000000 -> 1.310814852 | L76: ='CNG Station - ReVamp'!V9*125000/1000000 -> 1.467048339 | M76: ='CNG Station - ReVamp'!W9*125000/1000000 -> 1.641902993
B77: Other Costs To Deliver fuel to Refuelling Station | C77: $/GEG | D77: ='CNG Station - ReVamp'!N10*125000/1000000 -> 0.095 | E77: ='CNG Station - ReVamp'!O10*125000/1000000 -> 0.095 | F77: ='CNG Station - ReVamp'!P10*125000/1000000 -> 0.095 | G77: ='CNG Station - ReVamp'!Q10*125000/1000000 -> 0.095 | H77: ='CNG Station - ReVamp'!R10*125000/1000000 -> 0.095 | I77: ='CNG Station - ReVamp'!S10*125000/1000000 -> 0.095 | J77: ='CNG Station - ReVamp'!T10*125000/1000000 -> 0.095 | K77: ='CNG Station - ReVamp'!U10*125000/1000000 -> 0.095 | L77: ='CNG Station - ReVamp'!V10*125000/1000000 -> 0.095 | M77: ='CNG Station - ReVamp'!W10*125000/1000000 -> 0.095
B78: Refuelling Infrastructure Capital cost per GEG (inc land) | C78: $/GEG | D78: ='CNG Station - ReVamp'!N59 -> 0.5148915059 | E78: ='CNG Station - ReVamp'!O59 -> 0.5148915059 | F78: ='CNG Station - ReVamp'!P59 -> 0.5148915059 | G78: ='CNG Station - ReVamp'!Q59 -> 0.5148915059 | H78: ='CNG Station - ReVamp'!R59 -> 0.5148915059 | I78: ='CNG Station - ReVamp'!S59 -> 0.5148915059 | J78: ='CNG Station - ReVamp'!T59 -> 0.5148915059 | K78: ='CNG Station - ReVamp'!U59 -> 0.5148915059 | L78: ='CNG Station - ReVamp'!V59 -> 0.5148915059 | M78: ='CNG Station - ReVamp'!W59 -> 0.5148915059
B79: Refuelling O&M Costs | C79: $/GEG | D79: =SUM('CNG Station - ReVamp'!N33:N37) -> 0.60839085 | E79: =SUM('CNG Station - ReVamp'!O33:O37) -> 0.5556329257 | F79: =SUM('CNG Station - ReVamp'!P33:P37) -> 0.5812411673 | G79: =SUM('CNG Station - ReVamp'!Q33:Q37) -> 0.5832283325 | H79: =SUM('CNG Station - ReVamp'!R33:R37) -> 0.5875019557 | I79: =SUM('CNG Station - ReVamp'!S33:S37) -> 0.5991490312 | J79: =SUM('CNG Station - ReVamp'!T33:T37) -> 0.6116219468 | K79: =SUM('CNG Station - ReVamp'!U33:U37) -> 0.6255814852 | L79: =SUM('CNG Station - ReVamp'!V33:V37) -> 0.6412048339 | M79: =SUM('CNG Station - ReVamp'!W33:W37) -> 0.6586902993
B80: Taxes | C80: $/GEG | D80: ='CNG Station - ReVamp'!N54+'CNG Station - ReVamp'!N55 -> 0.4251907805 | E80: ='CNG Station - ReVamp'!O54+'CNG Station - ReVamp'!O55 -> 0.4198330885 | F80: ='CNG Station - ReVamp'!P54+'CNG Station - ReVamp'!P55 -> 0.4064075943 | G80: ='CNG Station - ReVamp'!Q54+'CNG Station - ReVamp'!Q55 -> 0.3919290766 | H80: ='CNG Station - ReVamp'!R54+'CNG Station - ReVamp'!R55 -> 0.3770345079 | I80: ='CNG Station - ReVamp'!S54+'CNG Station - ReVamp'!S55 -> 0.3634376313 | J80: ='CNG Station - ReVamp'!T54+'CNG Station - ReVamp'!T55 -> 0.3510845884 | K80: ='CNG Station - ReVamp'!U54+'CNG Station - ReVamp'!U55 -> 0.3742422086 | L80: ='CNG Station - ReVamp'!V54+'CNG Station - ReVamp'!V55 -> 0.3957816691 | M80: ='CNG Station - ReVamp'!W54+'CNG Station - ReVamp'!W55 -> 0.4173092948
B98: Blended Prices based on a mix of dedicated new stations and station upgrades | D98: 0.6 | E98: new stations
B100: Based on AEO 2010 Reference Case - Transportation CNG Price | C100: $/GEG | D100: =($D$98*D9)+((1-$D$98)*D54) -> 1.995052875 | E100: =($D$98*E9)+((1-$D$98)*E54) -> 1.499466 | F100: =($D$98*F9)+((1-$D$98)*F54) -> 1.6715755 | G100: 1.68023325 | H100: 1.679111625 | I100: 1.77408725 | J100: 1.847560125 | K100: 1.92407584 | L100: 2.003760412 | M100: 2.086745078
B101: Gas Commodity Price | C101: $/GEG
B102: Other Costs To Deliver fuel to Refuelling Station | C102: $/GEG
B103: Refuelling Infrastructure Capital cost per GEG (inc land) | C103: $/GEG | D103: =($D$98*D12)+((1-$D$98)*D57) -> 0.3821460395 | E103: =($D$98*E12)+((1-$D$98)*E57) -> 0.3821460395 | F103: 0.3821460395 | G103: 0.3821460395 | H103: 0.3821460395 | I103: 0.3821460395 | J103: 0.3821460395 | K103: 0.3821460395 | L103: 0.3821460395 | M103: 0.3821460395
B104: Refuelling O&M Costs | C104: $/GEG
B105: Taxes | C105: $/GEG
B107: Based on AEO 2010 Reference Case - Industrial Price (inc Taxes and infrastructure) | C107: $/GEG | D107: =($D$98*D16)+((1-$D$98)*D61) -> 2.50773617 | E107: =($D$98*E16)+((1-$D$98)*E61) -> 1.919854778 | F107: 2.122454709 | G107: 2.142859116 | H107: 2.17143586 | I107: 2.290388433 | J107: 2.381476915 | K107: 2.51782825 | L107: 2.663233026 | M107: 2.820303656
B108: Gas Commodity Price | C108: $/GEG | D108: =($D$98*D17)+((1-$D$98)*D62) -> 1.1389085 | E108: 0.6093415 | F108: 0.80572825 | G108: 0.83744 | H108: 0.876959375 | I108: 0.997458875 | J108: 1.091496625 | K108: 1.194400002 | L108: 1.307004834 | M108: 1.430225747
B109: Other Costs To Deliver fuel to Refuelling Station | C109: $/GEG | D109: 0.095 | E109: 0.095 | F109: 0.095 | G109: 0.095 | H109: 0.095 | I109: 0.095 | J109: 0.095 | K109: 0.095 | L109: 0.095 | M109: 0.095
B110: Refuelling Infrastructure Capital cost per GEG (inc land) | C110: $/GEG | D110: 0.3821460395 | E110: 0.3821460395 | F110: 0.3821460395 | G110: 0.3821460395 | H110: 0.3821460395 | I110: 0.3821460395 | J110: 0.3821460395 | K110: 0.3821460395 | L110: 0.3821460395 | M110: 0.3821460395
B111: Refuelling O&M Costs | C111: $/GEG | D111: 0.46649085 | E111: 0.41353415 | F111: 0.433172825 | G111: 0.436344 | H111: 0.4402959375 | I111: 0.4523458875 | J111: 0.4617496625 | K111: 0.4720400002 | L111: 0.4833004834 | M111: 0.4956225747
B112: Taxes | C112: $/GEG | D112: 0.4251907805 | E112: 0.4198330885 | F112: 0.4064075943 | G112: 0.3919290766 | H112: 0.3770345079 | I112: 0.3634376313 | J112: 0.3510845884 | K112: 0.3742422086 | L112: 0.3957816691 | M112: 0.4173092948
B114: Based AEO 2010 Low Oil Case - Industrial Gas Pricing (inc taxes and infrastructure) | C114: $/GEG | D114: =($D$98*D23)+((1-$D$98)*D68) -> 2.50773617 | E114: =($D$98*E23)+((1-$D$98)*E68) -> 1.915249225 | F114: 2.036221649 | G114: 2.057056958 | H114: 2.157897133 | I114: 2.209834616 | J114: 2.294177979 | K114: 2.423229062 | L114: 2.560733796 | M114: 2.709256465
B115: Gas Commodity Price | C115: $/GEG | D115: =($D$98*D24)+((1-$D$98)*D69) -> 1.1389085 | E115: 0.6051546335 | F115: 0.727334559 | G115: 0.7594380379 | H115: 0.8646514416 | I115: 0.9242281318 | J115: 1.012133956 | K115: 1.10840074 | L115: 1.213823716 | M115: 1.329273755
B116: Other Costs To Deliver fuel to Refuelling Station | C116: $/GEG | D116: 0.095 | E116: 0.095 | F116: 0.095 | G116: 0.095 | H116: 0.095 | I116: 0.095 | J116: 0.095 | K116: 0.095 | L116: 0.095 | M116: 0.095
B117: Refuelling Infrastructure Capital cost per GEG (inc land) | C117: $/GEG | D117: =($D$98*D26)+((1-$D$98)*D71) -> 0.3821460395 | E117: 0.3821460395 | F117: 0.3821460395 | G117: 0.3821460395 | H117: 0.3821460395 | I117: 0.3821460395 | J117: 0.3821460395 | K117: 0.3821460395 | L117: 0.3821460395 | M117: 0.3821460395
B118: Refuelling O&M Costs | C118: $/GEG | D118: 0.46649085 | E118: 0.4131154634 | F118: 0.4253334559 | G118: 0.4285438038 | H118: 0.4390651442 | I118: 0.4450228132 | J118: 0.4538133956 | K118: 0.463440074 | L118: 0.4739823716 | M118: 0.4855273755
B119: Taxes | C119: $/GEG | D119: 0.4251907805 | E119: 0.4198330885 | F119: 0.4064075943 | G119: 0.3919290766 | H119: 0.3770345079 | I119: 0.3634376313 | J119: 0.3510845884 | K119: 0.3742422086 | L119: 0.3957816691 | M119: 0.4173092948
B121: Based AEO 2010 High Oil Case - Industrial Gas Pricing (inc taxes and infrastructure) | C121: $/GEG | D121: =($D$98*D30)+((1-$D$98)*D75) -> 2.50773617 | E121: =($D$98*E30)+((1-$D$98)*E75) -> 1.922041311 | F121: 2.190306474 | G121: 2.197686774 | H121: 2.229802061 | I121: 2.344323014 | J121: 2.469172043 | K121: 2.645884585 | L121: 2.839280881 | M121: 3.053148627
B122: Gas Commodity Price | C122: $/GEG | D122: =($D$98*D31)+((1-$D$98)*D76) -> 1.1389085 | E122: 0.6113292575 | F122: 0.8674116731 | G122: 0.8872833252 | H122: 0.9300195575 | I122: 1.046490312 | J122: 1.171219468 | K122: 1.310814852 | L122: 1.467048339 | M122: 1.641902993
B123: Other Costs To Deliver fuel to Refuelling Station | C123: $/GEG | D123: 0.095 | E123: 0.095 | F123: 0.095 | G123: 0.095 | H123: 0.095 | I123: 0.095 | J123: 0.095 | K123: 0.095 | L123: 0.095 | M123: 0.095
B124: Refuelling Infrastructure Capital cost per GEG (inc land) | C124: $/GEG | D124: 0.3821460395 | E124: 0.3821460395 | F124: 0.3821460395 | G124: 0.3821460395 | H124: 0.3821460395 | I124: 0.3821460395 | J124: 0.3821460395 | K124: 0.3821460395 | L124: 0.3821460395 | M124: 0.3821460395
B125: Refuelling O&M Costs | C125: $/GEG | D125: 0.46649085 | E125: 0.4137329257 | F125: 0.4393411673 | G125: 0.4413283325 | H125: 0.4456019557 | I125: 0.4572490312 | J125: 0.4697219468 | K125: 0.4836814852 | L125: 0.4993048339 | M125: 0.5167902993
B126: Taxes | C126: $/GEG | D126: 0.4251907805 | E126: 0.4198330885 | F126: 0.4064075943 | G126: 0.3919290766 | H126: 0.3770345079 | I126: 0.3634376313 | J126: 0.3510845884 | K126: 0.3742422086 | L126: 0.3957816691 | M126: 0.4173092948
B143: FOR INITIAL VCM MODELLING
B145: Low CNG Price (based on AEO 2010 Low Oil) | C145: $/GEG | D145: =D114 -> 2.50773617 | E145: =E114 -> 1.915249225 | F145: 2.036221649 | G145: 2.057056958 | H145: 2.157897133 | I145: 2.209834616 | J145: 2.294177979 | K145: 2.423229062 | L145: 2.560733796 | M145: 2.709256465
B146: CNG Price | C146: $MMBTU | D146: =D145*1000000/125000 -> 20.06188936 | E146: =E145*1000000/125000 -> 15.3219938 | F146: 16.28977319 | G146: 16.45645566 | H146: 17.26317707 | I146: 17.67867693 | J146: 18.35342384 | K146: 19.38583249 | L146: 20.48587037 | M146: 21.67405172
B147: Refuelling Infrastructure Capital cost per GEG (inc land) | C147: $/GEG | D147: =D117 -> 0.3821460395 | E147: =E117 -> 0.3821460395 | F147: 0.3821460395 | G147: 0.3821460395 | H147: 0.3821460395 | I147: 0.3821460395 | J147: 0.3821460395 | K147: 0.3821460395 | L147: 0.3821460395 | M147: 0.3821460395
B149: Nominal CNG Price (based on AEO 2010 Reference Oil) | C149: $/GEG | D149: =D107 -> 2.50773617 | E149: =E107 -> 1.919854778 | F149: 2.122454709 | G149: 2.142859116 | H149: 2.17143586 | I149: 2.290388433 | J149: 2.381476915 | K149: 2.51782825 | L149: 2.663233026 | M149: 2.820303656
B150: CNG Price | C150: $MMBTU | D150: =D149*1000000/125000 -> 20.06188936 | E150: 15.35883822 | F150: 16.97963767 | G150: 17.14287293 | H150: 17.37148688 | I150: 18.32310747 | J150: 19.05181532 | K150: 20.142626 | L150: 21.30586421 | M150: 22.56242925
B151: Refuelling Infrastructure Capital cost per GEG (inc land) | C151: $/GEG | D151: =D110 -> 0.3821460395 | E151: =E110 -> 0.3821460395 | F151: 0.3821460395 | G151: 0.3821460395 | H151: 0.3821460395 | I151: 0.3821460395 | J151: 0.3821460395 | K151: 0.3821460395 | L151: 0.3821460395 | M151: 0.3821460395
B153: High CNG Price (based on AEO 2010 High Oil) | C153: $/GEG | D153: =D121 -> 2.50773617 | E153: =E121 -> 1.922041311 | F153: 2.190306474 | G153: 2.197686774 | H153: 2.229802061 | I153: 2.344323014 | J153: 2.469172043 | K153: 2.645884585 | L153: 2.839280881 | M153: 3.053148627
B154: CNG Price | C154: $MMBTU | D154: =D153*1000000/125000 -> 20.06188936 | E154: 15.37633049 | F154: 17.52245179 | G154: 17.58149419 | H154: 17.83841649 | I154: 18.75458411 | J154: 19.75337634 | K154: 21.16707668 | L154: 22.71424705 | M154: 24.42518901
B155: Refuelling Infrastructure Capital cost per GEG (inc land) | C155: $/GEG | D155: =D124 -> 0.3821460395 | E155: =E124 -> 0.3821460395 | F155: 0.3821460395 | G155: 0.3821460395 | H155: 0.3821460395 | I155: 0.3821460395 | J155: 0.3821460395 | K155: 0.3821460395 | L155: 0.3821460395 | M155: 0.3821460395
B158: For Reference - AEO2010 Reference Gasoline Price | C158: $/MMBTU | E158: 20.554607 | F158: 25.368946 | G158: 27.590958 | H158: 28.870052 | I158: 30.41754 | J158: 32.328106 | K158: 34.902581 | L158: 37.477056 | M158: 40.051531
C159: $/GEG | E159: =E158*(125000/1000000) -> 2.569325875 | F159: =F158*(125000/1000000) -> 3.17111825 | G159: 3.44886975 | H159: 3.6087565 | I159: 3.8021925 | J159: 4.04101325 | K159: 4.362822625 | L159: 4.684632 | M159: 5.006441375

Sheet LNG Summary
B1: DRAFT - Do not Cite or Quote. For NPC Study Discussion Only
B2: Source: Graham Williams (Natural Gas Subgroup)
D4: 2008 | E4: 2010 | F4: 2015 | G4: 2020 | H4: 2025 | I4: 2030 | J4: 2035 | K4: 2040 | L4: 2045 | M4: 2050
B7: Dedicated New LCNG Station - Dispensing LNG for HD
B10: Based on AEO 2010 Reference Case - Industrial Gas Price (inc Taxes and infrastructure) | C10: $/GEG | D10: ='LCNG -Dispensing LNG'!C62 -> 2.588925439 | E10: ='LCNG -Dispensing LNG'!D62 -> 2.000270324 | F10: ='LCNG -Dispensing LNG'!E62 -> 2.200931432 | G10: ='LCNG -Dispensing LNG'!F62 -> 2.219244945 | H10: ='LCNG -Dispensing LNG'!G62 -> 2.245670711 | I10: ='LCNG -Dispensing LNG'!H62 -> 2.362659712 | J10: ='LCNG -Dispensing LNG'!I62 -> 2.451964247 | K10: ='LCNG -Dispensing LNG'!J62 -> 2.586087775 | L10: ='LCNG -Dispensing LNG'!K62 -> 2.730882903 | M10: ='LCNG -Dispensing LNG'!L62 -> 2.88735572
B11: Gas Commodity Price | C11: $/GEG | D11: ='LCNG -Dispensing LNG'!C10*(125000/1000000) -> 1.1389085 | E11: ='LCNG -Dispensing LNG'!D10*(125000/1000000) -> 0.6093415 | F11: ='LCNG -Dispensing LNG'!E10*(125000/1000000) -> 0.80572825 | G11: ='LCNG -Dispensing LNG'!F10*(125000/1000000) -> 0.83744 | H11: ='LCNG -Dispensing LNG'!G10*(125000/1000000) -> 0.876959375 | I11: ='LCNG -Dispensing LNG'!H10*(125000/1000000) -> 0.997458875 | J11: ='LCNG -Dispensing LNG'!I10*(125000/1000000) -> 1.091496625 | K11: ='LCNG -Dispensing LNG'!J10*(125000/1000000) -> 1.194400002 | L11: ='LCNG -Dispensing LNG'!K10*(125000/1000000) -> 1.307004834 | M11: ='LCNG -Dispensing LNG'!L10*(125000/1000000) -> 1.430225747
B12: Other Costs To Deliver fuel to Refuelling Station | C12: $/GEG | D12: =('LCNG -Dispensing LNG'!C11*(125000/1000000))+SUM('LCNG -Dispensing LNG'!C12:C14) -> 0.705368705 | E12: =('LCNG -Dispensing LNG'!D11*(125000/1000000))+SUM('LCNG -Dispensing LNG'!D12:D14) -> 0.705368705 | F12: =('LCNG -Dispensing LNG'!E11*(125000/1000000))+SUM('LCNG -Dispensing LNG'!E12:E14) -> 0.705368705 | G12: =('LCNG -Dispensing LNG'!F11*(125000/1000000))+SUM('LCNG -Dispensing LNG'!F12:F14) -> 0.705368705 | H12: =('LCNG -Dispensing LNG'!G11*(125000/1000000))+SUM('LCNG -Dispensing LNG'!G12:G14) -> 0.705368705 | I12: =('LCNG -Dispensing LNG'!H11*(125000/1000000))+SUM('LCNG -Dispensing LNG'!H12:H14) -> 0.705368705 | J12: =('LCNG -Dispensing LNG'!I11*(125000/1000000))+SUM('LCNG -Dispensing LNG'!I12:I14) -> 0.705368705 | K12: =('LCNG -Dispensing LNG'!J11*(125000/1000000))+SUM('LCNG -Dispensing LNG'!J12:J14) -> 0.705368705 | L12: =('LCNG -Dispensing LNG'!K11*(125000/1000000))+SUM('LCNG -Dispensing LNG'!K12:K14) -> 0.705368705 | M12: =('LCNG -Dispensing LNG'!L11*(125000/1000000))+SUM('LCNG -Dispensing LNG'!L12:L14) -> 0.705368705
B13: Refuelling Infrastructure Capital cost per GEG (inc land) | C13: $/GEG | D13: ='LCNG -Dispensing LNG'!C67 -> 0.05285683115 | E13: ='LCNG -Dispensing LNG'!D67 -> 0.05285683115 | F13: ='LCNG -Dispensing LNG'!E67 -> 0.05285683115 | G13: ='LCNG -Dispensing LNG'!F67 -> 0.05285683115 | H13: ='LCNG -Dispensing LNG'!G67 -> 0.05285683115 | I13: ='LCNG -Dispensing LNG'!H67 -> 0.05285683115 | J13: ='LCNG -Dispensing LNG'!I67 -> 0.05285683115 | K13: ='LCNG -Dispensing LNG'!J67 -> 0.05285683115 | L13: ='LCNG -Dispensing LNG'!K67 -> 0.05285683115 | M13: ='LCNG -Dispensing LNG'!L67 -> 0.05285683115
B14: Refuelling O&M Costs | C14: $/GEG | D14: =SUM('LCNG -Dispensing LNG'!C40:C43) -> 0.2935354896 | E14: =SUM('LCNG -Dispensing LNG'!D40:D43) -> 0.2405787896 | F14: =SUM('LCNG -Dispensing LNG'!E40:E43) -> 0.2602174646 | G14: =SUM('LCNG -Dispensing LNG'!F40:F43) -> 0.2633886396 | H14: =SUM('LCNG -Dispensing LNG'!G40:G43) -> 0.2673405771 | I14: =SUM('LCNG -Dispensing LNG'!H40:H43) -> 0.2793905271 | J14: =SUM('LCNG -Dispensing LNG'!I40:I43) -> 0.2887943021 | K14: =SUM('LCNG -Dispensing LNG'!J40:J43) -> 0.2990846398 | L14: =SUM('LCNG -Dispensing LNG'!K40:K43) -> 0.3103451229 | M14: =SUM('LCNG -Dispensing LNG'!L40:L43) -> 0.3226672143
B15: Taxes | C15: $/GEG | D15: ='LCNG -Dispensing LNG'!C60+'LCNG -Dispensing LNG'!C61 -> 0.3982559138 | E15: ='LCNG -Dispensing LNG'!D60+'LCNG -Dispensing LNG'!D61 -> 0.3921244985 | F15: ='LCNG -Dispensing LNG'!E60+'LCNG -Dispensing LNG'!E61 -> 0.3767601811 | G15: ='LCNG -Dispensing LNG'!F60+'LCNG -Dispensing LNG'!F61 -> 0.3601907693 | H15: ='LCNG -Dispensing LNG'!G60+'LCNG -Dispensing LNG'!G61 -> 0.3431452232 | I15: ='LCNG -Dispensing LNG'!H60+'LCNG -Dispensing LNG'!H61 -> 0.3275847734 | J15: ='LCNG -Dispensing LNG'!I60+'LCNG -Dispensing LNG'!I61 -> 0.3134477838 | K15: ='LCNG -Dispensing LNG'!J60+'LCNG -Dispensing LNG'!J61 -> 0.3343775967 | L15: ='LCNG -Dispensing LNG'!K60+'LCNG -Dispensing LNG'!K61 -> 0.3553074096 | M15: ='LCNG -Dispensing LNG'!L60+'LCNG -Dispensing LNG'!L61 -> 0.3762372225
B17: Based on AEO 2010 Low Oil Case - Industrial Gas Price (inc Taxes and infrastructure) | C17: $/GEG | D17: ='LCNG -Dispensing LNG'!Y62 -> 2.588925439 | E17: ='LCNG -Dispensing LNG'!Z62 -> 1.995664771 | F17: ='LCNG -Dispensing LNG'!AA62 -> 2.114698372 | G17: ='LCNG -Dispensing LNG'!AB62 -> 2.133442787 | H17: ='LCNG -Dispensing LNG'!AC62 -> 2.232131985 | I17: ='LCNG -Dispensing LNG'!AD62 -> 2.282105894 | J17: ='LCNG -Dispensing LNG'!AE62 -> 2.364665311 | K17: ='LCNG -Dispensing LNG'!AF62 -> 2.491488586 | L17: ='LCNG -Dispensing LNG'!AG62 -> 2.628383673 | M17: ='LCNG -Dispensing LNG'!AH62 -> 2.776308529
B18: Gas Commodity Price | C18: $/GEG | D18: ='LCNG -Dispensing LNG'!Y10*(125000/1000000) -> 1.1389085 | E18: ='LCNG -Dispensing LNG'!Z10*(125000/1000000) -> 0.6051546335 | F18: ='LCNG -Dispensing LNG'!AA10*(125000/1000000) -> 0.727334559 | G18: ='LCNG -Dispensing LNG'!AB10*(125000/1000000) -> 0.7594380379 | H18: ='LCNG -Dispensing LNG'!AC10*(125000/1000000) -> 0.8646514416 | I18: ='LCNG -Dispensing LNG'!AD10*(125000/1000000) -> 0.9242281318 | J18: ='LCNG -Dispensing LNG'!AE10*(125000/1000000) -> 1.012133956 | K18: ='LCNG -Dispensing LNG'!AF10*(125000/1000000) -> 1.10840074 | L18: ='LCNG -Dispensing LNG'!AG10*(125000/1000000) -> 1.213823716 | M18: ='LCNG -Dispensing LNG'!AH10*(125000/1000000) -> 1.329273755
B19: Other Costs To Deliver fuel to Refuelling Station | C19: $/GEG | D19: =('LCNG -Dispensing LNG'!Y11*(125000/1000000))+SUM('LCNG -Dispensing LNG'!Y12:Y14) -> 0.705368705 | E19: =('LCNG -Dispensing LNG'!Z11*(125000/1000000))+SUM('LCNG -Dispensing LNG'!Z12:Z14) -> 0.705368705 | F19: =('LCNG -Dispensing LNG'!AA11*(125000/1000000))+SUM('LCNG -Dispensing LNG'!AA12:AA14) -> 0.705368705 | G19: =('LCNG -Dispensing LNG'!AB11*(125000/1000000))+SUM('LCNG -Dispensing LNG'!AB12:AB14) -> 0.705368705 | H19: =('LCNG -Dispensing LNG'!AC11*(125000/1000000))+SUM('LCNG -Dispensing LNG'!AC12:AC14) -> 0.705368705 | I19: =('LCNG -Dispensing LNG'!AD11*(125000/1000000))+SUM('LCNG -Dispensing LNG'!AD12:AD14) -> 0.705368705 | J19: =('LCNG -Dispensing LNG'!AE11*(125000/1000000))+SUM('LCNG -Dispensing LNG'!AE12:AE14) -> 0.705368705 | K19: =('LCNG -Dispensing LNG'!AF11*(125000/1000000))+SUM('LCNG -Dispensing LNG'!AF12:AF14) -> 0.705368705 | L19: =('LCNG -Dispensing LNG'!AG11*(125000/1000000))+SUM('LCNG -Dispensing LNG'!AG12:AG14) -> 0.705368705 | M19: =('LCNG -Dispensing LNG'!AH11*(125000/1000000))+SUM('LCNG -Dispensing LNG'!AH12:AH14) -> 0.705368705
B20: Refuelling Infrastructure Capital cost per GEG (inc land) | C20: $/GEG | D20: ='LCNG -Dispensing LNG'!Y67 -> 0.05285683115 | E20: ='LCNG -Dispensing LNG'!Z67 -> 0.05285683115 | F20: ='LCNG -Dispensing LNG'!AA67 -> 0.05285683115 | G20: ='LCNG -Dispensing LNG'!AB67 -> 0.05285683115 | H20: ='LCNG -Dispensing LNG'!AC67 -> 0.05285683115 | I20: ='LCNG -Dispensing LNG'!AD67 -> 0.05285683115 | J20: ='LCNG -Dispensing LNG'!AE67 -> 0.05285683115 | K20: ='LCNG -Dispensing LNG'!AF67 -> 0.05285683115 | L20: ='LCNG -Dispensing LNG'!AG67 -> 0.05285683115 | M20: ='LCNG -Dispensing LNG'!AH67 -> 0.05285683115
B21: Refuelling O&M Costs | C21: $/GEG | D21: =SUM('LCNG -Dispensing LNG'!Y40:Y43) -> 0.2935354896 | E21: =SUM('LCNG -Dispensing LNG'!Z40:Z43) -> 0.2401601029 | F21: =SUM('LCNG -Dispensing LNG'!AA40:AA43) -> 0.2523780955 | G21: =SUM('LCNG -Dispensing LNG'!AB40:AB43) -> 0.2555884433 | H21: =SUM('LCNG -Dispensing LNG'!AC40:AC43) -> 0.2661097837 | I21: =SUM('LCNG -Dispensing LNG'!AD40:AD43) -> 0.2720674527 | J21: =SUM('LCNG -Dispensing LNG'!AE40:AE43) -> 0.2808580352 | K21: =SUM('LCNG -Dispensing LNG'!AF40:AF43) -> 0.2904847135 | L21: =SUM('LCNG -Dispensing LNG'!AG40:AG43) -> 0.3010270112 | M21: =SUM('LCNG -Dispensing LNG'!AH40:AH43) -> 0.3125720151
B22: Taxes | C22: $/GEG | D22: ='LCNG -Dispensing LNG'!Y60+'LCNG -Dispensing LNG'!Y61 -> 0.3982559138 | E22: ='LCNG -Dispensing LNG'!Z60+'LCNG -Dispensing LNG'!Z61 -> 0.3921244985 | F22: ='LCNG -Dispensing LNG'!AA60+'LCNG -Dispensing LNG'!AA61 -> 0.3767601811 | G22: ='LCNG -Dispensing LNG'!AB60+'LCNG -Dispensing LNG'!AB61 -> 0.3601907693 | H22: ='LCNG -Dispensing LNG'!AC60+'LCNG -Dispensing LNG'!AC61 -> 0.3431452232 | I22: ='LCNG -Dispensing LNG'!AD60+'LCNG -Dispensing LNG'!AD61 -> 0.3275847734 | J22: ='LCNG -Dispensing LNG'!AE60+'LCNG -Dispensing LNG'!AE61 -> 0.3134477838 | K22: ='LCNG -Dispensing LNG'!AF60+'LCNG -Dispensing LNG'!AF61 -> 0.3343775967 | L22: ='LCNG -Dispensing LNG'!AG60+'LCNG -Dispensing LNG'!AG61 -> 0.3553074096 | M22: ='LCNG -Dispensing LNG'!AH60+'LCNG -Dispensing LNG'!AH61 -> 0.3762372225
B24: Based on AEO 2010 High Oil Case - Industrial Gas Pricing (inc taxes and infrastructure) | C24: $/GEG | D24: ='LCNG -Dispensing LNG'!N62 -> 2.588925439 | E24: ='LCNG -Dispensing LNG'!O62 -> 2.002456857 | F24: ='LCNG -Dispensing LNG'!P62 -> 2.268783197 | G24: ='LCNG -Dispensing LNG'!Q62 -> 2.274072603 | H24: ='LCNG -Dispensing LNG'!R62 -> 2.304036912 | I24: ='LCNG -Dispensing LNG'!S62 -> 2.416594292 | J24: ='LCNG -Dispensing LNG'!T62 -> 2.539659374 | K24: ='LCNG -Dispensing LNG'!U62 -> 2.714144109 | L24: ='LCNG -Dispensing LNG'!V62 -> 2.906930758 | M24: ='LCNG -Dispensing LNG'!W62 -> 3.120200691
B25: Gas Commodity Price | C25: $/GEG | D25: ='LCNG -Dispensing LNG'!N10*(125000/1000000) -> 1.1389085 | E25: ='LCNG -Dispensing LNG'!O10*(125000/1000000) -> 0.6113292575 | F25: ='LCNG -Dispensing LNG'!P10*(125000/1000000) -> 0.8674116731 | G25: ='LCNG -Dispensing LNG'!Q10*(125000/1000000) -> 0.8872833252 | H25: ='LCNG -Dispensing LNG'!R10*(125000/1000000) -> 0.9300195575 | I25: ='LCNG -Dispensing LNG'!S10*(125000/1000000) -> 1.046490312 | J25: ='LCNG -Dispensing LNG'!T10*(125000/1000000) -> 1.171219468 | K25: ='LCNG -Dispensing LNG'!U10*(125000/1000000) -> 1.310814852 | L25: ='LCNG -Dispensing LNG'!V10*(125000/1000000) -> 1.467048339 | M25: ='LCNG -Dispensing LNG'!W10*(125000/1000000) -> 1.641902993
B26: Other Costs To Deliver fuel to Refuelling Station | C26: $/GEG | D26: =('LCNG -Dispensing LNG'!N11*(125000/1000000))+SUM('LCNG -Dispensing LNG'!N12:N14) -> 0.705368705 | E26: =('LCNG -Dispensing LNG'!O11*(125000/1000000))+SUM('LCNG -Dispensing LNG'!O12:O14) -> 0.705368705 | F26: =('LCNG -Dispensing LNG'!P11*(125000/1000000))+SUM('LCNG -Dispensing LNG'!P12:P14) -> 0.705368705 | G26: =('LCNG -Dispensing LNG'!Q11*(125000/1000000))+SUM('LCNG -Dispensing LNG'!Q12:Q14) -> 0.705368705 | H26: =('LCNG -Dispensing LNG'!R11*(125000/1000000))+SUM('LCNG -Dispensing LNG'!R12:R14) -> 0.705368705 | I26: =('LCNG -Dispensing LNG'!S11*(125000/1000000))+SUM('LCNG -Dispensing LNG'!S12:S14) -> 0.705368705 | J26: =('LCNG -Dispensing LNG'!T11*(125000/1000000))+SUM('LCNG -Dispensing LNG'!T12:T14) -> 0.705368705 | K26: =('LCNG -Dispensing LNG'!U11*(125000/1000000))+SUM('LCNG -Dispensing LNG'!U12:U14) -> 0.705368705 | L26: =('LCNG -Dispensing LNG'!V11*(125000/1000000))+SUM('LCNG -Dispensing LNG'!V12:V14) -> 0.705368705 | M26: =('LCNG -Dispensing LNG'!W11*(125000/1000000))+SUM('LCNG -Dispensing LNG'!W12:W14) -> 0.705368705
B27: Refuelling Infrastructure Capital cost per GEG (inc land) | C27: $/GEG | D27: ='LCNG -Dispensing LNG'!N67 -> 0.05285683115 | E27: ='LCNG -Dispensing LNG'!O67 -> 0.05285683115 | F27: ='LCNG -Dispensing LNG'!P67 -> 0.05285683115 | G27: ='LCNG -Dispensing LNG'!Q67 -> 0.05285683115 | H27: ='LCNG -Dispensing LNG'!R67 -> 0.05285683115 | I27: ='LCNG -Dispensing LNG'!S67 -> 0.05285683115 | J27: ='LCNG -Dispensing LNG'!T67 -> 0.05285683115 | K27: ='LCNG -Dispensing LNG'!U67 -> 0.05285683115 | L27: ='LCNG -Dispensing LNG'!V67 -> 0.05285683115 | M27: ='LCNG -Dispensing LNG'!W67 -> 0.05285683115
B28: Refuelling O&M Costs | C28: $/GEG | D28: =SUM('LCNG -Dispensing LNG'!N40:N43) -> 0.2935354896 | E28: =SUM('LCNG -Dispensing LNG'!O40:O43) -> 0.2407775653 | F28: =SUM('LCNG -Dispensing LNG'!P40:P43) -> 0.2663858069 | G28: =SUM('LCNG -Dispensing LNG'!Q40:Q43) -> 0.2683729721 | H28: =SUM('LCNG -Dispensing LNG'!R40:R43) -> 0.2726465953 | I28: =SUM('LCNG -Dispensing LNG'!S40:S43) -> 0.2842936707 | J28: =SUM('LCNG -Dispensing LNG'!T40:T43) -> 0.2967665864 | K28: =SUM('LCNG -Dispensing LNG'!U40:U43) -> 0.3107261247 | L28: =SUM('LCNG -Dispensing LNG'!V40:V43) -> 0.3263494734 | M28: =SUM('LCNG -Dispensing LNG'!W40:W43) -> 0.3438349389
B29: Taxes | C29: $/GEG | D29: ='LCNG -Dispensing LNG'!N60+'LCNG -Dispensing LNG'!N61 -> 0.3982559138 | E29: ='LCNG -Dispensing LNG'!O60+'LCNG -Dispensing LNG'!O61 -> 0.3921244985 | F29: ='LCNG -Dispensing LNG'!P60+'LCNG -Dispensing LNG'!P61 -> 0.3767601811 | G29: ='LCNG -Dispensing LNG'!Q60+'LCNG -Dispensing LNG'!Q61 -> 0.3601907693 | H29: ='LCNG -Dispensing LNG'!R60+'LCNG -Dispensing LNG'!R61 -> 0.3431452232 | I29: ='LCNG -Dispensing LNG'!S60+'LCNG -Dispensing LNG'!S61 -> 0.3275847734 | J29: ='LCNG -Dispensing LNG'!T60+'LCNG -Dispensing LNG'!T61 -> 0.3134477838 | K29: ='LCNG -Dispensing LNG'!U60+'LCNG -Dispensing LNG'!U61 -> 0.3343775967 | L29: ='LCNG -Dispensing LNG'!V60+'LCNG -Dispensing LNG'!V61 -> 0.3553074096 | M29: ='LCNG -Dispensing LNG'!W60+'LCNG -Dispensing LNG'!W61 -> 0.3762372225
B46: New LCNG Station - Dispensing CNG for HD
B48: Based on AEO 2010 Reference Case - Industrial Gas Price (inc Taxes and infrastructure) | C48: $/GEG | D48: ='LCNG -Dispensing CNG'!C60 -> 2.578893687 | E48: ='LCNG -Dispensing CNG'!D60 -> 1.990238572 | F48: ='LCNG -Dispensing CNG'!E60 -> 2.19089968 | G48: ='LCNG -Dispensing CNG'!F60 -> 2.209213193 | H48: ='LCNG -Dispensing CNG'!G60 -> 2.235638959 | I48: ='LCNG -Dispensing CNG'!H60 -> 2.35262796 | J48: ='LCNG -Dispensing CNG'!I60 -> 2.441932495 | K48: ='LCNG -Dispensing CNG'!J60 -> 2.560593067 | L48: ='LCNG -Dispensing CNG'!K60 -> 2.685892608 | M48: ='LCNG -Dispensing CNG'!L60 -> 2.819578855
B49: Gas Commodity Price | C49: $/GEG | D49: ='LCNG -Dispensing CNG'!C10*(125000/1000000) -> 1.1389085 | E49: ='LCNG -Dispensing CNG'!D10*(125000/1000000) -> 0.6093415 | F49: ='LCNG -Dispensing CNG'!E10*(125000/1000000) -> 0.80572825 | G49: ='LCNG -Dispensing CNG'!F10*(125000/1000000) -> 0.83744 | H49: ='LCNG -Dispensing CNG'!G10*(125000/1000000) -> 0.876959375 | I49: ='LCNG -Dispensing CNG'!H10*(125000/1000000) -> 0.997458875 | J49: ='LCNG -Dispensing CNG'!I10*(125000/1000000) -> 1.091496625 | K49: ='LCNG -Dispensing CNG'!J10*(125000/1000000) -> 1.18034277 | L49: ='LCNG -Dispensing CNG'!K10*(125000/1000000) -> 1.27522434 | M49: ='LCNG -Dispensing CNG'!L10*(125000/1000000) -> 1.377730189
B50: Other Costs To Deliver fuel to Refuelling Station | C50: $/GEG | D50: =('LCNG -Dispensing CNG'!C11*125000/1000000)+SUM('LCNG -Dispensing CNG'!C12:C14) -> 0.705368705 | E50: =('LCNG -Dispensing CNG'!D11*125000/1000000)+SUM('LCNG -Dispensing CNG'!D12:D14) -> 0.705368705 | F50: =('LCNG -Dispensing CNG'!E11*125000/1000000)+SUM('LCNG -Dispensing CNG'!E12:E14) -> 0.705368705 | G50: =('LCNG -Dispensing CNG'!F11*125000/1000000)+SUM('LCNG -Dispensing CNG'!F12:F14) -> 0.705368705 | H50: =('LCNG -Dispensing CNG'!G11*125000/1000000)+SUM('LCNG -Dispensing CNG'!G12:G14) -> 0.705368705 | I50: =('LCNG -Dispensing CNG'!H11*125000/1000000)+SUM('LCNG -Dispensing CNG'!H12:H14) -> 0.705368705 | J50: =('LCNG -Dispensing CNG'!I11*125000/1000000)+SUM('LCNG -Dispensing CNG'!I12:I14) -> 0.705368705 | K50: =('LCNG -Dispensing CNG'!J11*125000/1000000)+SUM('LCNG -Dispensing CNG'!J12:J14) -> 0.705368705 | L50: =('LCNG -Dispensing CNG'!K11*125000/1000000)+SUM('LCNG -Dispensing CNG'!K12:K14) -> 0.705368705 | M50: =('LCNG -Dispensing CNG'!L11*125000/1000000)+SUM('LCNG -Dispensing CNG'!L12:L14) -> 0.705368705
B51: Refuelling Infrastructure Capital cost per GEG (inc land) | C51: $/GEG | D51: ='LCNG -Dispensing CNG'!C65 -> 0.08809471858 | E51: ='LCNG -Dispensing CNG'!D65 -> 0.08809471858 | F51: ='LCNG -Dispensing CNG'!E65 -> 0.08809471858 | G51: ='LCNG -Dispensing CNG'!F65 -> 0.08809471858 | H51: ='LCNG -Dispensing CNG'!G65 -> 0.08809471858 | I51: ='LCNG -Dispensing CNG'!H65 -> 0.08809471858 | J51: ='LCNG -Dispensing CNG'!I65 -> 0.08809471858 | K51: ='LCNG -Dispensing CNG'!J65 -> 0.08809471858 | L51: ='LCNG -Dispensing CNG'!K65 -> 0.08809471858 | M51: ='LCNG -Dispensing CNG'!L65 -> 0.08809471858
B52: Refuelling O&M Costs | C52: $/GEG | D52: =SUM('LCNG -Dispensing CNG'!C38:C41) -> 0.24826585 | E52: =SUM('LCNG -Dispensing CNG'!D38:D41) -> 0.19530915 | F52: =SUM('LCNG -Dispensing CNG'!E38:E41) -> 0.214947825 | G52: =SUM('LCNG -Dispensing CNG'!F38:F41) -> 0.218119 | H52: =SUM('LCNG -Dispensing CNG'!G38:G41) -> 0.2220709375 | I52: =SUM('LCNG -Dispensing CNG'!H38:H41) -> 0.2341208875 | J52: =SUM('LCNG -Dispensing CNG'!I38:I41) -> 0.2435246625 | K52: =SUM('LCNG -Dispensing CNG'!J38:J41) -> 0.252409277 | L52: =SUM('LCNG -Dispensing CNG'!K38:K41) -> 0.261897434 | M52: =SUM('LCNG -Dispensing CNG'!L38:L41) -> 0.2721480189
B53: Taxes | C53: $/GEG | D53: ='LCNG -Dispensing CNG'!C58+'LCNG -Dispensing CNG'!C59 -> 0.3982559138 | E53: ='LCNG -Dispensing CNG'!D58+'LCNG -Dispensing CNG'!D59 -> 0.3921244985 | F53: ='LCNG -Dispensing CNG'!E58+'LCNG -Dispensing CNG'!E59 -> 0.3767601811 | G53: ='LCNG -Dispensing CNG'!F58+'LCNG -Dispensing CNG'!F59 -> 0.3601907693 | H53: ='LCNG -Dispensing CNG'!G58+'LCNG -Dispensing CNG'!G59 -> 0.3431452232 | I53: ='LCNG -Dispensing CNG'!H58+'LCNG -Dispensing CNG'!H59 -> 0.3275847734 | J53: ='LCNG -Dispensing CNG'!I58+'LCNG -Dispensing CNG'!I59 -> 0.3134477838 | K53: ='LCNG -Dispensing CNG'!J58+'LCNG -Dispensing CNG'!J59 -> 0.3343775967 | L53: ='LCNG -Dispensing CNG'!K58+'LCNG -Dispensing CNG'!K59 -> 0.3553074096 | M53: ='LCNG -Dispensing CNG'!L58+'LCNG -Dispensing CNG'!L59 -> 0.3762372225
B55: Based on AEO 2010 Low Oil Case - Industrial Gas Price (inc Taxes and infrastructure) | C55: $/GEG | D55: ='LCNG -Dispensing CNG'!Y60 -> 2.578893687 | E55: ='LCNG -Dispensing CNG'!Z60 -> 1.985633019 | F55: ='LCNG -Dispensing CNG'!AA60 -> 2.10466662 | G55: ='LCNG -Dispensing CNG'!AB60 -> 2.123411035 | H55: ='LCNG -Dispensing CNG'!AC60 -> 2.222100232 | I55: ='LCNG -Dispensing CNG'!AD60 -> 2.272074142 | J55: ='LCNG -Dispensing CNG'!AE60 -> 2.354633559 | K55: ='LCNG -Dispensing CNG'!AF60 -> 2.481456834 | L55: ='LCNG -Dispensing CNG'!AG60 -> 2.618351921 | M55: ='LCNG -Dispensing CNG'!AH60 -> 2.766276777
B56: Gas Commodity Price | C56: $/GEG | D56: ='LCNG -Dispensing CNG'!Y10*(125000/1000000) -> 1.1389085 | E56: ='LCNG -Dispensing CNG'!Z10*(125000/1000000) -> 0.6051546335 | F56: ='LCNG -Dispensing CNG'!AA10*(125000/1000000) -> 0.727334559 | G56: ='LCNG -Dispensing CNG'!AB10*(125000/1000000) -> 0.7594380379 | H56: ='LCNG -Dispensing CNG'!AC10*(125000/1000000) -> 0.8646514416 | I56: ='LCNG -Dispensing CNG'!AD10*(125000/1000000) -> 0.9242281318 | J56: ='LCNG -Dispensing CNG'!AE10*(125000/1000000) -> 1.012133956 | K56: ='LCNG -Dispensing CNG'!AF10*(125000/1000000) -> 1.10840074 | L56: ='LCNG -Dispensing CNG'!AG10*(125000/1000000) -> 1.213823716 | M56: ='LCNG -Dispensing CNG'!AH10*(125000/1000000) -> 1.329273755
B57: Other Costs To Deliver fuel to Refuelling Station | C57: $/GEG | D57: =('LCNG -Dispensing CNG'!Y11*125000/1000000)+SUM('LCNG -Dispensing CNG'!Y12:Y14) -> 0.705368705 | E57: =('LCNG -Dispensing CNG'!Z11*125000/1000000)+SUM('LCNG -Dispensing CNG'!Z12:Z14) -> 0.705368705 | F57: =('LCNG -Dispensing CNG'!AA11*125000/1000000)+SUM('LCNG -Dispensing CNG'!AA12:AA14) -> 0.705368705 | G57: =('LCNG -Dispensing CNG'!AB11*125000/1000000)+SUM('LCNG -Dispensing CNG'!AB12:AB14) -> 0.705368705 | H57: =('LCNG -Dispensing CNG'!AC11*125000/1000000)+SUM('LCNG -Dispensing CNG'!AC12:AC14) -> 0.705368705 | I57: =('LCNG -Dispensing CNG'!AD11*125000/1000000)+SUM('LCNG -Dispensing CNG'!AD12:AD14) -> 0.705368705 | J57: =('LCNG -Dispensing CNG'!AE11*125000/1000000)+SUM('LCNG -Dispensing CNG'!AE12:AE14) -> 0.705368705 | K57: =('LCNG -Dispensing CNG'!AF11*125000/1000000)+SUM('LCNG -Dispensing CNG'!AF12:AF14) -> 0.705368705 | L57: =('LCNG -Dispensing CNG'!AG11*125000/1000000)+SUM('LCNG -Dispensing CNG'!AG12:AG14) -> 0.705368705 | M57: =('LCNG -Dispensing CNG'!AH11*125000/1000000)+SUM('LCNG -Dispensing CNG'!AH12:AH14) -> 0.705368705
B58: Refuelling Infrastructure Capital cost per GEG (inc land) | C58: $/GEG | D58: ='LCNG -Dispensing CNG'!Y65 -> 0.08809471858 | E58: ='LCNG -Dispensing CNG'!Z65 -> 0.08809471858 | F58: ='LCNG -Dispensing CNG'!AA65 -> 0.08809471858 | G58: ='LCNG -Dispensing CNG'!AB65 -> 0.08809471858 | H58: ='LCNG -Dispensing CNG'!AC65 -> 0.08809471858 | I58: ='LCNG -Dispensing CNG'!AD65 -> 0.08809471858 | J58: ='LCNG -Dispensing CNG'!AE65 -> 0.08809471858 | K58: ='LCNG -Dispensing CNG'!AF65 -> 0.08809471858 | L58: ='LCNG -Dispensing CNG'!AG65 -> 0.08809471858 | M58: ='LCNG -Dispensing CNG'!AH65 -> 0.08809471858
B59: Refuelling O&M Costs | C59: $/GEG | D59: =SUM('LCNG -Dispensing CNG'!Y38:Y41) -> 0.24826585 | E59: =SUM('LCNG -Dispensing CNG'!Z38:Z41) -> 0.1948904634 | F59: =SUM('LCNG -Dispensing CNG'!AA38:AA41) -> 0.2071084559 | G59: =SUM('LCNG -Dispensing CNG'!AB38:AB41) -> 0.2103188038 | H59: =SUM('LCNG -Dispensing CNG'!AC38:AC41) -> 0.2208401442 | I59: =SUM('LCNG -Dispensing CNG'!AD38:AD41) -> 0.2267978132 | J59: =SUM('LCNG -Dispensing CNG'!AE38:AE41) -> 0.2355883956 | K59: =SUM('LCNG -Dispensing CNG'!AF38:AF41) -> 0.245215074 | L59: =SUM('LCNG -Dispensing CNG'!AG38:AG41) -> 0.2557573716 | M59: =SUM('LCNG -Dispensing CNG'!AH38:AH41) -> 0.2673023755
B60: Taxes | C60: $/GEG | D60: ='LCNG -Dispensing CNG'!Y58+'LCNG -Dispensing CNG'!Y59 -> 0.3982559138 | E60: ='LCNG -Dispensing CNG'!Z58+'LCNG -Dispensing CNG'!Z59 -> 0.3921244985 | F60: ='LCNG -Dispensing CNG'!AA58+'LCNG -Dispensing CNG'!AA59 -> 0.3767601811 | G60: ='LCNG -Dispensing CNG'!AB58+'LCNG -Dispensing CNG'!AB59 -> 0.3601907693 | H60: ='LCNG -Dispensing CNG'!AC58+'LCNG -Dispensing CNG'!AC59 -> 0.3431452232 | I60: ='LCNG -Dispensing CNG'!AD58+'LCNG -Dispensing CNG'!AD59 -> 0.3275847734 | J60: ='LCNG -Dispensing CNG'!AE58+'LCNG -Dispensing CNG'!AE59 -> 0.3134477838 | K60: ='LCNG -Dispensing CNG'!AF58+'LCNG -Dispensing CNG'!AF59 -> 0.3343775967 | L60: ='LCNG -Dispensing CNG'!AG58+'LCNG -Dispensing CNG'!AG59 -> 0.3553074096 | M60: ='LCNG -Dispensing CNG'!AH58+'LCNG -Dispensing CNG'!AH59 -> 0.3762372225
B62: Based on AEO 2010 High Oil Case - Industrial Gas Pricing (inc taxes and infrastructure) | C62: $/GEG | D62: ='LCNG -Dispensing CNG'!N60 -> 2.578893687 | E62: ='LCNG -Dispensing CNG'!O60 -> 1.992425105 | F62: ='LCNG -Dispensing CNG'!P60 -> 2.258751445 | G62: ='LCNG -Dispensing CNG'!Q60 -> 2.264040851 | H62: ='LCNG -Dispensing CNG'!R60 -> 2.29400516 | I62: ='LCNG -Dispensing CNG'!S60 -> 2.40656254 | J62: ='LCNG -Dispensing CNG'!T60 -> 2.529627622 | K62: ='LCNG -Dispensing CNG'!U60 -> 2.704112357 | L62: ='LCNG -Dispensing CNG'!V60 -> 2.896899006 | M62: ='LCNG -Dispensing CNG'!W60 -> 3.110168939
B63: Gas Commodity Price | C63: $/GEG | D63: ='LCNG -Dispensing CNG'!N10*(125000/1000000) -> 1.1389085 | E63: ='LCNG -Dispensing CNG'!O10*(125000/1000000) -> 0.6113292575 | F63: ='LCNG -Dispensing CNG'!P10*(125000/1000000) -> 0.8674116731 | G63: ='LCNG -Dispensing CNG'!Q10*(125000/1000000) -> 0.8872833252 | H63: ='LCNG -Dispensing CNG'!R10*(125000/1000000) -> 0.9300195575 | I63: ='LCNG -Dispensing CNG'!S10*(125000/1000000) -> 1.046490312 | J63: ='LCNG -Dispensing CNG'!T10*(125000/1000000) -> 1.171219468 | K63: ='LCNG -Dispensing CNG'!U10*(125000/1000000) -> 1.310814852 | L63: ='LCNG -Dispensing CNG'!V10*(125000/1000000) -> 1.467048339 | M63: ='LCNG -Dispensing CNG'!W10*(125000/1000000) -> 1.641902993
B64: Other Costs To Deliver fuel to Refuelling Station | C64: $/GEG | D64: =('LCNG -Dispensing CNG'!N11*(125000/1000000))+SUM('LCNG -Dispensing CNG'!N12:N14) -> 0.705368705 | E64: =('LCNG -Dispensing CNG'!O11*(125000/1000000))+SUM('LCNG -Dispensing CNG'!O12:O14) -> 0.705368705 | F64: =('LCNG -Dispensing CNG'!P11*(125000/1000000))+SUM('LCNG -Dispensing CNG'!P12:P14) -> 0.705368705 | G64: =('LCNG -Dispensing CNG'!Q11*(125000/1000000))+SUM('LCNG -Dispensing CNG'!Q12:Q14) -> 0.705368705 | H64: =('LCNG -Dispensing CNG'!R11*(125000/1000000))+SUM('LCNG -Dispensing CNG'!R12:R14) -> 0.705368705 | I64: =('LCNG -Dispensing CNG'!S11*(125000/1000000))+SUM('LCNG -Dispensing CNG'!S12:S14) -> 0.705368705 | J64: =('LCNG -Dispensing CNG'!T11*(125000/1000000))+SUM('LCNG -Dispensing CNG'!T12:T14) -> 0.705368705 | K64: =('LCNG -Dispensing CNG'!U11*(125000/1000000))+SUM('LCNG -Dispensing CNG'!U12:U14) -> 0.705368705 | L64: =('LCNG -Dispensing CNG'!V11*(125000/1000000))+SUM('LCNG -Dispensing CNG'!V12:V14) -> 0.705368705 | M64: =('LCNG -Dispensing CNG'!W11*(125000/1000000))+SUM('LCNG -Dispensing CNG'!W12:W14) -> 0.705368705
B65: Refuelling Infrastructure Capital cost per GEG (inc land) | C65: $/GEG | D65: ='LCNG -Dispensing CNG'!N65 -> 0.08809471858 | E65: ='LCNG -Dispensing CNG'!O65 -> 0.08809471858 | F65: ='LCNG -Dispensing CNG'!P65 -> 0.08809471858 | G65: ='LCNG -Dispensing CNG'!Q65 -> 0.08809471858 | H65: ='LCNG -Dispensing CNG'!R65 -> 0.08809471858 | I65: ='LCNG -Dispensing CNG'!S65 -> 0.08809471858 | J65: ='LCNG -Dispensing CNG'!T65 -> 0.08809471858 | K65: ='LCNG -Dispensing CNG'!U65 -> 0.08809471858 | L65: ='LCNG -Dispensing CNG'!V65 -> 0.08809471858 | M65: ='LCNG -Dispensing CNG'!W65 -> 0.08809471858
B66: Refuelling O&M Costs | C66: $/GEG | D66: =SUM('LCNG -Dispensing CNG'!N38:N41) -> 0.24826585 | E66: =SUM('LCNG -Dispensing CNG'!O38:O41) -> 0.1955079257 | F66: =SUM('LCNG -Dispensing CNG'!P38:P41) -> 0.2211161673 | G66: =SUM('LCNG -Dispensing CNG'!Q38:Q41) -> 0.2231033325 | H66: =SUM('LCNG -Dispensing CNG'!R38:R41) -> 0.2273769557 | I66: =SUM('LCNG -Dispensing CNG'!S38:S41) -> 0.2390240312 | J66: =SUM('LCNG -Dispensing CNG'!T38:T41) -> 0.2514969468 | K66: =SUM('LCNG -Dispensing CNG'!U38:U41) -> 0.2654564852 | L66: =SUM('LCNG -Dispensing CNG'!V38:V41) -> 0.2810798339 | M66: =SUM('LCNG -Dispensing CNG'!W38:W41) -> 0.2985652993
B67: Taxes | C67: $/GEG | D67: ='LCNG -Dispensing CNG'!N58+'LCNG -Dispensing CNG'!N59 -> 0.3982559138 | E67: ='LCNG -Dispensing CNG'!O58+'LCNG -Dispensing CNG'!O59 -> 0.3921244985 | F67: ='LCNG -Dispensing CNG'!P58+'LCNG -Dispensing CNG'!P59 -> 0.3767601811 | G67: ='LCNG -Dispensing CNG'!Q58+'LCNG -Dispensing CNG'!Q59 -> 0.3601907693 | H67: ='LCNG -Dispensing CNG'!R58+'LCNG -Dispensing CNG'!R59 -> 0.3431452232 | I67: ='LCNG -Dispensing CNG'!S58+'LCNG -Dispensing CNG'!S59 -> 0.3275847734 | J67: ='LCNG -Dispensing CNG'!T58+'LCNG -Dispensing CNG'!T59 -> 0.3134477838 | K67: ='LCNG -Dispensing CNG'!U58+'LCNG -Dispensing CNG'!U59 -> 0.3343775967 | L67: ='LCNG -Dispensing CNG'!V58+'LCNG -Dispensing CNG'!V59 -> 0.3553074096 | M67: ='LCNG -Dispensing CNG'!W58+'LCNG -Dispensing CNG'!W59 -> 0.3762372225
B84: Blended Prices based on 90-10 mix of dedicated LNG and CNG dispensed from LCNG stations
B86: Based on AEO 2010 Reference Case - Industrial Gas Price (inc Taxes and infrastructure) | C86: $/GEG | D86: =(0.9*D10)+(0.1*D48) -> 2.587922264 | E86: 1.999267149 | F86: 2.199928257 | G86: 2.21824177 | H86: 2.244667536 | I86: 2.361656536 | J86: 2.450961072 | K86: 2.583538304 | L86: 2.726383873 | M86: 2.880578034
B87: Gas Commodity Price | C87: $/GEG | D87: 1.1389085 | E87: 0.6093415 | F87: 0.80572825 | G87: 0.83744 | H87: 0.876959375 | I87: 0.997458875 | J87: 1.091496625 | K87: 1.192994279 | L87: 1.303826784 | M87: 1.424976192
B88: Other Costs To Deliver fuel to Refuelling Station | C88: $/GEG | D88: 0.705368705 | E88: 0.705368705 | F88: 0.705368705 | G88: 0.705368705 | H88: 0.705368705 | I88: 0.705368705 | J88: 0.705368705 | K88: 0.705368705 | L88: 0.705368705 | M88: 0.705368705
B89: Refuelling Infrastructure Capital cost per GEG (inc land) | C89: $/GEG | D89: 0.05638061989 | E89: 0.05638061989 | F89: 0.05638061989 | G89: 0.05638061989 | H89: 0.05638061989 | I89: 0.05638061989 | J89: =(0.9*J13)+(0.1*J51) -> 0.05638061989 | K89: 0.05638061989 | L89: 0.05638061989 | M89: 0.05638061989
B90: Refuelling O&M Costs | C90: $/GEG | D90: 0.2890085256 | E90: 0.2360518256 | F90: 0.2556905006 | G90: 0.2588616756 | H90: 0.2628136131 | I90: 0.2748635631 | J90: 0.2842673381 | K90: 0.2944171035 | L90: 0.3055003541 | M90: 0.3176152948
B91: Taxes | C91: $/GEG | D91: 0.3982559138 | E91: 0.3921244985 | F91: 0.3767601811 | G91: 0.3601907693 | H91: 0.3431452232 | I91: 0.3275847734 | J91: 0.3134477838 | K91: 0.3343775967 | L91: 0.3553074096 | M91: 0.3762372225
B93: Based on AEO 2010 Low Oil Case - Industrial Gas Price (inc Taxes and infrastructure) | C93: $/GEG | D93: =(0.9*D17)+(0.1*D55) -> 2.587922264 | E93: 1.994661596 | F93: 2.113695196 | G93: 2.132439612 | H93: 2.231128809 | I93: 2.281102719 | J93: 2.363662136 | K93: 2.490485411 | L93: 2.627380498 | M93: 2.775305354
B94: Gas Commodity Price | C94: $/GEG | D94: 1.1389085 | E94: 0.6051546335 | F94: 0.727334559 | G94: 0.7594380379 | H94: 0.8646514416 | I94: 0.9242281318 | J94: 1.012133956 | K94: 1.10840074 | L94: 1.213823716 | M94: 1.329273755
B95: Other Costs To Deliver fuel to Refuelling Station | C95: $/GEG | D95: 0.705368705 | E95: 0.705368705 | F95: 0.705368705 | G95: 0.705368705 | H95: 0.705368705 | I95: 0.705368705 | J95: 0.705368705 | K95: 0.705368705 | L95: 0.705368705 | M95: 0.705368705
B96: Refuelling Infrastructure Capital cost per GEG (inc land) | C96: $/GEG | D96: 0.05638061989 | E96: 0.05638061989 | F96: 0.05638061989 | G96: 0.05638061989 | H96: 0.05638061989 | I96: 0.05638061989 | J96: 0.05638061989 | K96: 0.05638061989 | L96: 0.05638061989 | M96: 0.05638061989
B97: Refuelling O&M Costs | C97: $/GEG | D97: 0.2890085256 | E97: 0.235633139 | F97: 0.2478511315 | G97: 0.2510614794 | H97: 0.2615828198 | I97: 0.2675404888 | J97: 0.2763310712 | K97: 0.2859577496 | L97: 0.2965000472 | M97: 0.3080450511
B98: Taxes | C98: $/GEG | D98: 0.3982559138 | E98: 0.3921244985 | F98: 0.3767601811 | G98: 0.3601907693 | H98: 0.3431452232 | I98: 0.3275847734 | J98: 0.3134477838 | K98: 0.3343775967 | L98: 0.3553074096 | M98: 0.3762372225
B100: Based on AEO 2010 High Oil Case - Industrial Gas Pricing (inc taxes and infrastructure) | C100: $/GEG | D100: =(0.9*D24)+(0.1*D62) -> 2.587922264 | E100: 2.001453682 | F100: 2.267780022 | G100: 2.273069428 | H100: 2.303033737 | I100: 2.415591117 | J100: 2.538656199 | K100: 2.713140934 | L100: 2.905927583 | M100: 3.119197516
B101: Gas Commodity Price | C101: $/GEG | D101: 1.1389085 | E101: 0.6113292575 | F101: 0.8674116731 | G101: 0.8872833252 | H101: 0.9300195575 | I101: 1.046490312 | J101: 1.171219468 | K101: 1.310814852 | L101: 1.467048339 | M101: 1.641902993
B102: Other Costs To Deliver fuel to Refuelling Station | C102: $/GEG | D102: 0.705368705 | E102: 0.705368705 | F102: 0.705368705 | G102: 0.705368705 | H102: 0.705368705 | I102: 0.705368705 | J102: 0.705368705 | K102: 0.705368705 | L102: 0.705368705 | M102: 0.705368705
B103: Refuelling Infrastructure Capital cost per GEG (inc land) | C103: $/GEG | D103: 0.05638061989 | E103: 0.05638061989 | F103: 0.05638061989 | G103: 0.05638061989 | H103: 0.05638061989 | I103: 0.05638061989 | J103: 0.05638061989 | K103: 0.05638061989 | L103: 0.05638061989 | M103: 0.05638061989
B104: Refuelling O&M Costs | C104: $/GEG | D104: 0.2890085256 | E104: 0.2362506014 | F104: 0.2618588429 | G104: 0.2638460081 | H104: 0.2681196313 | I104: 0.2797667068 | J104: 0.2922396224 | K104: 0.3061991608 | L104: 0.3218225095 | M104: 0.3393079749
B105: Taxes | C105: $/GEG | D105: 0.3982559138 | E105: 0.3921244985 | F105: 0.3767601811 | G105: 0.3601907693 | H105: 0.3431452232 | I105: 0.3275847734 | J105: 0.3134477838 | K105: 0.3343775967 | L105: 0.3553074096 | M105: 0.3762372225
B122: FOR INITIAL VCM MODELLING
B124: Low NG Fuel Price for HD (based on AEO 2010 Low Oil Case) | C124: $/GEG | D124: =D93 -> 2.587922264 | E124: =E93 -> 1.994661596 | F124: 2.113695196 | G124: 2.132439612 | H124: 2.231128809 | I124: 2.281102719 | J124: 2.363662136 | K124: 2.490485411 | L124: 2.627380498 | M124: 2.775305354
B125: Refuelling Infrastructure Capital cost per GEG (inc land) | C125: $/GEG | D125: =D96 -> 0.05638061989 | E125: =E96 -> 0.05638061989 | F125: 0.05638061989 | G125: 0.05638061989 | H125: 0.05638061989 | I125: 0.05638061989 | J125: 0.05638061989 | K125: 0.05638061989 | L125: 0.05638061989 | M125: 0.05638061989
B127: Nominal NG Fuel Price for HD (based on AEO 2010 Reference) | C127: $/GEG | D127: =D86 -> 2.587922264 | E127: 1.999267149 | F127: 2.199928257 | G127: 2.21824177 | H127: 2.244667536 | I127: 2.361656536 | J127: 2.450961072 | K127: 2.583538304 | L127: 2.726383873 | M127: 2.880578034
B128: Refuelling Infrastructure Capital cost per GEG (inc land) | C128: $/GEG | D128: =D89 -> 0.05638061989 | E128: =E89 -> 0.05638061989 | F128: 0.05638061989 | G128: 0.05638061989 | H128: 0.05638061989 | I128: 0.05638061989 | J128: 0.05638061989 | K128: 0.05638061989 | L128: 0.05638061989 | M128: 0.05638061989
B130: High NG Fuel Price for HD (based on AEO 2010 High Oil) | C130: $/GEG | D130: =D100 -> 2.587922264 | E130: =E100 -> 2.001453682 | F130: 2.267780022 | G130: 2.273069428 | H130: 2.303033737 | I130: 2.415591117 | J130: 2.538656199 | K130: 2.713140934 | L130: 2.905927583 | M130: 3.119197516
B131: Refuelling Infrastructure Capital cost per GEG (inc land) | C131: $/GEG | D131: =D103 -> 0.05638061989 | E131: =E103 -> 0.05638061989 | F131: 0.05638061989 | G131: 0.05638061989 | H131: 0.05638061989 | I131: 0.05638061989 | J131: 0.05638061989 | K131: 0.05638061989 | L131: 0.05638061989 | M131: 0.05638061989
B133: Low NG Fuel Price for HD | C133: $/DEG | D133: =D124*(139000/125000) -> 2.877769558 | E133: =E124*(139000/125000) -> 2.218063695 | F133: 2.350429058 | G133: 2.371272848 | H133: 2.481015236 | I133: 2.536586223 | J133: 2.628392295 | K133: 2.769419777 | L133: 2.921647113 | M133: 3.086139554
B135: Nominal NG Fuel Price for HD | C135: $/DEG | D135: =D127*(139000/125000) -> 2.877769558 | E135: =E127*(139000/125000) -> 2.22318507 | F135: 2.446320221 | G135: 2.466684848 | H135: 2.4960703 | I135: 2.626162069 | J135: 2.725468712 | K135: 2.872894594 | L135: 3.031738867 | M135: 3.203202774
B137: High NG Fuel Price for HD | C137: $/DEG | D137: =D130*(139000/125000) -> 2.877769558 | E137: =E130*(139000/125000) -> 2.225616495 | F137: 2.521771384 | G137: 2.527653203 | H137: 2.560973515 | I137: 2.686137322 | J137: 2.822985694 | K137: 3.017012719 | L137: 3.231391472 | M137: 3.468547637
B140: For Reference - AEO2010 Reference Diesel Price | C140: $/MMBTU | E140: 19.119377 | F140: 22.933321 | G140: 25.597555 | H140: 26.625977 | I140: 27.958221 | J140: 29.958637 | K140: 32.311322 | L140: 34.664007 | M140: 37.016692
C141: $/DEG | E141: =E140*(137000/1000000) -> 2.619354649 | F141: =F140*(137000/1000000) -> 3.141864977 | G141: 3.506865035 | H141: 3.647758849 | I141: 3.830276277 | J141: 4.104333269 | K141: 4.426651114 | L141: 4.748968959 | M141: 5.071286804

Sheet Hydrogen High
A1: DRAFT - Do not Cite or Quote. For NPC Study Discussion Only
A2: Source: Puneet Verma (Hydrogen Subgroup)
A3: Hydrogen Pathway | B3: Near Term | C3: Mid Term | D3: Long Term
A4: Note: GEG = Gasoline Equivalent Gallons (energy basis) | E4: Notes | F4: Reference | G4: 2010 | H4: 2015 | I4: 2020 | J4: 2025 | K4: 2030 | L4: 2035 | M4: 2040 | N4: 2045 | O4: 2050
A5: Will pathway use AEO2010 Reference Case CUSTOMER PRICE? | B5: No | C5: No | D5: No | G5: No | H5: No | I5: No | J5: No | K5: No | L5: No | M5: No | N5: No | O5: No
A6: + If "YES" above, indicate CUSTOMER Price (2008$)
A7: Will Pathway use AEO2010 Reference Case FUEL PRODUCTION PRICE? (e.g. Lower 48 Gas Price, Refinery Gate Gasoline price) | B7: No | C7: No | D7: No | G7: No | H7: No | I7: No | J7: No | K7: No | L7: No | M7: No | N7: No | O7: No
A8: Henry Hub Natural Gas Price ($/mmbtu) (2008$) | B8: =H8 -> 6.27072 | C8: 6.639969 | D8: =L8 -> 8.879857 | G8: 4.504156 | H8: 6.27072 | I8: 6.639969 | J8: 6.991752 | K8: 8.049836 | L8: 8.879857
A9: Ref Commercial Natural Gas Price ($/mmbtu) (2008$) | B9: 10.284433 | C9: 10.654593 | D9: =L9 -> 0 | G9: 8.923866 | H9: 10.284433 | I9: 10.654593
A10: Ref Industrial Natural Gas Price ($/mmbtu) (2008$) | B10: =H10 -> 6.45 | C10: 6.7 | D10: =N10 -> 10.44809105 | F10: AEO'10 Reference Oil Price Case | G10: 4.87 | H10: 6.45 | I10: 6.7 | J10: 7.02 | K10: 7.98 | L10: 8.73 | M10: 9.550488722 | N10: 10.44809105 | O10: 11.43005449
A11: High Oil Price: Industrial Natural Gas Price ($/mmbtu) (2008$) | B11: =H11 -> 6.94 | C11: 7.1 | D11: =N11 -> 11.74269705 | F11: AEO'10 High Oil Price Case | G11: 4.89 | H11: 6.94 | I11: 7.1 | J11: 7.44 | K11: 8.37 | L11: 9.37 | M11: 10.48947431 | N11: 11.74269705 | O11: 13.14564771
A12: Low Oil Price: Industrial Natural Gas Price ($/mmbtu) (2008$) | B12: 5.82 | C12: 6.08 | D12: 9.731195101 | F12: AEO'10 Low Oil Price Case | G12: 4.84 | H12: 5.82 | I12: 6.08 | J12: 6.92 | K12: 7.39 | L12: 8.1 | M12: 8.878213802 | N12: 9.731195101 | O12: 10.66612724
A13: Ref Fuel Production COST used ($/mmbtu) (2008$) | B13: =(B10*8/7)+4.2 -> 11.57142857 | C13: =(C10*8/7)+4.2 -> 11.85714286 | D13: =(D10*8/7)+4.2 -> 16.14067548 | E13: 341,448 kg/d Centralized Reforming; Assume industrial price | F13: formula from IEA Hydrogen Production Cost.pdf chart (http://www.iea.org/techno/essentials5.pdf) | G13: =(G10*8/7)+4.2 -> 9.765714286 | H13: =(H10*8/7)+4.2 -> 11.57142857 | I13: =(I10*8/7)+4.2 -> 11.85714286 | J13: =(J10*8/7)+4.2 -> 12.22285714 | K13: 13.32 | L13: 14.17714286 | M13: 15.11484425 | N13: 16.14067548 | O13: 17.26291942
A14: Ref Fuel Production COST used ($/kg) & ($/gge) (2008$) | B14: =B13/8 -> 1.446428571 | C14: =C13/8 -> 1.482142857 | D14: =D13/8 -> 2.017584435 | G14: =G13/8 -> 1.220714286 | H14: =H13/8 -> 1.446428571 | I14: =I13/8 -> 1.482142857 | J14: =J13/8 -> 1.527857143 | K14: 1.665 | L14: 1.772142857 | M14: 1.889355532 | N14: 2.017584435 | O14: 2.157864927
A15: High Oil Price: Fuel Production COST used ($/mmbtu) (2008$) | B15: =(B11*8/7)+4.2 -> 12.13142857 | C15: =(C11*8/7)+4.2 -> 12.31428571 | D15: =(D11*8/7)+4.2 -> 17.6202252 | E15: 341,448 kg/d Centralized Reforming; Assume industrial price | F15: formula from IEA Hydrogen Production Cost.pdf chart (http://www.iea.org/techno/essentials5.pdf) | G15: =(G11*8/7)+4.2 -> 9.788571429 | H15: =(H11*8/7)+4.2 -> 12.13142857 | I15: =(I11*8/7)+4.2 -> 12.31428571 | J15: =(J11*8/7)+4.2 -> 12.70285714 | K15: 13.76571429 | L15: 14.90857143 | M15: 16.18797064 | N15: 17.6202252 | O15: 19.22359739
A16: High Oil Price: Fuel Production COST used ($/kg) & ($/gge) (2008$) | B16: =B15/8 -> 1.516428571 | C16: =C15/8 -> 1.539285714 | D16: =D15/8 -> 2.20252815 | G16: =G15/8 -> 1.223571429 | H16: =H15/8 -> 1.516428571 | I16: =I15/8 -> 1.539285714 | J16: =J15/8 -> 1.587857143 | K16: 1.720714286 | L16: 1.863571429 | M16: 2.02349633 | N16: 2.20252815 | O16: 2.402949673
A17: Low Oil Price: Fuel Production COST used ($/mmbtu) (2008$) | B17: =(B12*8/7)+4.2 -> 10.85142857 | C17: =(C12*8/7)+4.2 -> 11.14857143 | D17: =(D12*8/7)+4.2 -> 15.32136583 | E17: 341,448 kg/d Centralized Reforming; Assume industrial price | F17: formula from IEA Hydrogen Production Cost.pdf chart (http://www.iea.org/techno/essentials5.pdf) | G17: =(G12*8/7)+4.2 -> 9.731428571 | H17: =(H12*8/7)+4.2 -> 10.85142857 | I17: =(I12*8/7)+4.2 -> 11.14857143 | J17: =(J12*8/7)+4.2 -> 12.10857143 | K17: 12.64571429 | L17: 13.45714286 | M17: 14.34653006 | N17: 15.32136583 | O17: 16.38985971
A18: Low Oil Price: Fuel Production COST used ($/kg) & ($/gge) (2008$) | B18: =B17/8 -> 1.356428571 | C18: =C17/8 -> 1.393571429 | D18: =D17/8 -> 1.915170729 | G18: =G17/8 -> 1.216428571 | H18: =H17/8 -> 1.356428571 | I18: =I17/8 -> 1.393571429 | J18: =J17/8 -> 1.513571429 | K18: 1.580714286 | L18: 1.682142857 | M18: 1.793316257 | N18: 1.915170729 | O18: 2.048732463
A19: Fuel Production COST used ($/kg) & ($/gge) (2005$)
A20: Fuel Production COST used ($/kg) & ($/gge) (2008$)
A21: SMR Capital Charge
A22: SMR Plant O&M
A23: + Reference: Public source for price (if other than AEO2010)
A24: Are governmental subsidies included in PRODUCTION PRICE? (Y/N) | B24: No | C24: No | D24: No | G24: No | H24: No | I24: No | J24: No | K24: No | L24: No | M24: No | N24: No | O24: No
A25: + If "YES" above, amount of subsidy assumed ($/GEG)
A26: Does pathway need an adjustment for bulk distribution & vehicle dispensing infrastructure costs? (Y/N) | B26: Yes | C26: Yes | D26: Yes | G26: Yes | H26: Yes | I26: Yes | J26: Yes | K26: Yes | L26: Yes | M26: Yes | N26: Yes | O26: Yes
A27: VEHICLE DISPENSING INFRASTRUCTURE
A28: Total VMT (billion miles) | D28: =O28 -> 5290 | F28: AEO'10 Table 60 | G28: 2727.1 | H28: 2915.8 | I28: 3192.8 | J28: 3554.1 | K28: 3891.4 | L28: 4203.4 | M28: 4539 | N28: 4901 | O28: 5290
A29: Hydrogen Fuel Cell Vehicle share of VMT (rising to 30% by 2035) | D29: 0.3 | F29: 30% based on study normalization assumption | O29: =D29 -> 0.3
A30: VMT for Hydrogen's share | B30: =B28*B29 -> 0 | C30: =C28*C29 -> 0 | D30: =D28*D29 -> 1587 | E30: billion miles | G30: =G28*G29 -> 0 | H30: 0 | I30: 0 | J30: 0 | K30: 0 | L30: 0 | M30: 0 | N30: 0 | O30: 1587
A33: Fuel Cell efficiency (miles per gge) | B33: 88 | C33: 88 | D33: 88 | F33: avg on road fuel economy from input generator model | G33: =IF(G$35=$B$35,$B33,IF(G$35=$C$35,$C33,IF(G$35=$D$35,$D33))) -> 88 | H33: 88 | I33: 88 | J33: 88 | K33: 88 | L33: 88 | M33: 88 | N33: 88 | O33: =IF(O$35=$B$35,$B33,IF(O$35=$C$35,$C33,IF(O$35=$D$35,$D33))) -> 88
A34: Total Hydrogen to Dispense billion gge | B34: =B30/B33 -> 0 | C34: =C30/C33 -> 0 | D34: =D30/D33 -> 18.03409091 | E34: billion gge | G34: =G30/G33 -> 0 | H34: 0 | I34: 0 | J34: 0 | K34: 0 | L34: 0 | M34: 0 | N34: =N30/N33 -> 0 | O34: =O30/O33 -> 18.03409091
A35: Average dispensing capacity per station (kg/station/day) | B35: 180 | C35: 250 | D35: 750 | E35: kg/day from Puneet | G35: =B35 -> 180 | H35: =G35 -> 180 | I35: =C35 -> 250 | J35: =I35 -> 250 | K35: =D35 -> 750 | L35: =K35 -> 750 | M35: =L35 -> 750 | N35: =M35 -> 750 | O35: =N35 -> 750
A36: Average dispensing capacity per station (kg/station-yr) | B36: =B35*365*0.85 -> 55845 | C36: =C35*365*0.85 -> 77562.5 | D36: =D35*365*0.85 -> 232687.5 | E36: 85% capacity utilization | F36: Table 3 in http://www.nrel.gov/docs/fy05osti/37903.pdf | G36: =IF(G$35=$B$35,$B36,IF(G$35=$C$35,$C36,IF(G$35=$D$35,$D36))) -> 55845 | H36: 55845 | I36: 77562.5 | J36: 77562.5 | K36: 232687.5 | L36: 232687.5 | M36: 232687.5 | N36: 232687.5 | O36: =IF(O$35=$B$35,$B36,IF(O$35=$C$35,$C36,IF(O$35=$D$35,$D36))) -> 232687.5
A37: Number of dispensing stations required for ubiquitous supply for Hydrogen FCV 30% share | B37: =B34*1000000000/(B36) -> 0 | C37: =C34*1000000000/(C36) -> 0 | D37: =D34*1000000000/(D36) -> 77503.4796 | G37: =G34*1000000000/(G36) -> 0 | H37: =H34*1000000000/(H36) -> 0 | I37: 0 | J37: 0 | K37: 0 | L37: 0 | M37: 0 | N37: 0 | O37: =O34*1000000000/(O36) -> 77503.4796
A38: Current number of dispensing stations | B38: 58 | C38: 58 | D38: 58 | F38: (http://www.afdc.energy.gov/afdc/fuels/stations_counts.html) | G38: =IF(G$35=$B$35,$B38,IF(G$35=$C$35,$C38,IF(G$35=$D$35,$D38))) -> 58 | H38: 58 | I38: 58 | J38: 58 | K38: 58 | L38: 58 | M38: 58 | N38: 58 | O38: =IF(O$35=$B$35,$B38,IF(O$35=$C$35,$C38,IF(O$35=$D$35,$D38))) -> 58
A39: Number of additional dispensing stations required to supply Hydrogen for above share | B39: =B37-B38 -> -58 | C39: =C37-C38 -> -58 | D39: =D37-D38 -> 77445.4796 | G39: =G37-G38 -> -58 | H39: =H37-H38 -> -58 | I39: -58 | J39: -58 | K39: -58 | L39: -58 | M39: -58 | N39: -58 | O39: 77445.4796
A40: Total Fuel Dispensing Capacity Available (billion GEG/yr) - Calculated from above | B40: =B37*B36/1000000000 -> 0 | C40: =C37*C36/1000000000 -> 0 | D40: =D37*D36/1000000000 -> 18.03409091 | G40: =G37*G36/1000000000 -> 0 | H40: =H37*H36/1000000000 -> 0 | I40: 0 | J40: 0 | K40: 0 | L40: 0 | M40: 0 | N40: 0 | O40: 18.03409091
A41: Capital investment per additional dispensing station (i.e. typical station 8 dispensers) (2008$)
A42: +Land | B42: =600*46 -> 27600 | C42: =600*46 -> 27600 | D42: =1800*46 -> 82800 | E42: 600 sf & 1800 sf @ $46/sf | F42: assume comingled fuel stations only | G42: =IF(G$35=$B$35,$B42,IF(G$35=$C$35,$C42,IF(G$35=$D$35,$D42))) -> 27600 | H42: 27600 | I42: 27600 | J42: 27600 | K42: 82800 | L42: 82800 | M42: 82800 | N42: 82800 | O42: =IF(O$35=$B$35,$B42,IF(O$35=$C$35,$C42,IF(O$35=$D$35,$D42))) -> 82800
A43: +Dispensing infrastructure | B43: 2000000 | C43: 2000000 | D43: 3000000 | G43: 2000000 | H43: 2000000 | I43: 2000000 | J43: 2000000 | K43: 3000000 | L43: 3000000 | M43: 3000000 | N43: 3000000 | O43: 3000000
A44: Economic Life (Years) -- use AEO2010 values | B44: 20 | C44: 20 | D44: 20 | G44: 20 | H44: 20 | I44: 20 | J44: 20 | K44: 20 | L44: 20 | M44: 20 | N44: 20 | O44: 20
A45: Real Weighted Average Cost-of-Capital (incl. capital depreciation and investor return) | B45: 0.1 | C45: 0.1 | D45: 0.1 | G45: 0.1 | H45: 0.1 | I45: 0.1 | J45: 0.1 | K45: 0.1 | L45: 0.1 | M45: 0.1 | N45: 0.1 | O45: 0.1
A46: Levelized Fixed Cost for Dispensing ($/GEG) - Calculated from above | B46: =((B42+B43)*B45/(1-(1/(1+B45)^B44)))/B36 -> 4.264681443 | C46: =((C42+C43)*C45/(1-(1/(1+C45)^C44)))/C36 -> 3.070570639 | D46: =((D42+D43)*D45/(1-(1/(1+D45)^D44)))/D36 -> 1.556183857 | G46: 4.264681443 | H46: 4.264681443 | I46: 3.070570639 | J46: 3.070570639 | K46: 1.556183857 | L46: 1.556183857 | M46: 1.556183857 | N46: 1.556183857 | O46: 1.556183857
A47: Variable Cost for dispensing ($/GEG) - incl. Operating & Maintenance, taxes (land, etc) | B47: =170000/B36 -> 3.04414003 | C47: =170000/C36 -> 2.191780822 | D47: =250000/D36 -> 1.074402364 | E47: ~170k & 250k per h2 chapter | G47: 3.04414003 | H47: 3.04414003 | I47: 2.191780822 | J47: 2.191780822 | K47: 1.074402364 | L47: 1.074402364 | M47: 1.074402364 | N47: 1.074402364 | O47: 1.074402364
A48: Total Dispensing Cost (2008$/GEG) - Calculated from above | B48: =SUM(B46:B47) -> 7.308821474 | C48: =SUM(C46:C47) -> 5.262351461 | D48: =SUM(D46:D47) -> 2.630586221 | G48: =SUM(G46:G47) -> 7.308821474 | H48: =SUM(H46:H47) -> 7.308821474 | I48: 5.262351461 | J48: =SUM(J46:J47) -> 5.262351461 | K48: 2.630586221 | L48: 2.630586221 | M48: 2.630586221 | N48: 2.630586221 | O48: 2.630586221
A49: Total Dispensing Infrastructure Investment (billion 2008$) - Calculated from above | B49: =B39*(B42+B43)/1000000000 -> -0.1176008 | C49: =C39*(C42+C43)/1000000000 -> -0.1176008 | D49: =D39*(D42+D43)/1000000000 -> 238.7489245 | G49: =G39*(G42+G43)/1000000000 -> -0.1176008 | H49: -0.1176008 | I49: -0.1176008 | J49: -0.1176008 | K49: -0.1788024 | L49: -0.1788024 | M49: -0.1788024 | N49: -0.1788024 | O49: =O39*(O42+O43)/1000000000 -> 238.7489245
A50: Are governmental subsidies included in DISPENSING COST? (Y/N) | B50: No | C50: No | D50: No | G50: =IF(G$35=$B$35,$B50,IF(G$35=$C$35,$C50,IF(G$35=$D$35,$D50))) -> No | H50: No | I50: No | J50: No | K50: No | L50: No | M50: No | N50: No | O50: =IF(O$35=$B$35,$B50,IF(O$35=$C$35,$C50,IF(O$35=$D$35,$D50))) -> No
A51: + If "YES" above, amount of subsidy assumed ($/GEG) | B51: 0 | C51: 0 | D51: 0 | G51: 0 | H51: 0 | I51: 0 | J51: 0 | K51: 0 | L51: 0 | M51: 0 | N51: 0 | O51: =IF(O$35=$B$35,$B51,IF(O$35=$C$35,$C51,IF(O$35=$D$35,$D51))) -> 0
A52: BULK DISTRIBUTION INFRASTRUCTURE
A53: Capital investment required in distribution infrastructure for ubiquitous supply (billion 2008$)
A54: Economic Life (Years) -- use AEO2010 values | B54: 20 | C54: 20 | D54: 20 | G54: =IF(G$35=$B$35,$B54,IF(G$35=$C$35,$C54,IF(G$35=$D$35,$D54))) -> 20 | H54: 20 | I54: 20 | J54: 20 | K54: 20 | L54: 20 | M54: 20 | N54: 20 | O54: =IF(O$35=$B$35,$B54,IF(O$35=$C$35,$C54,IF(O$35=$D$35,$D54))) -> 20
A55: Real Weighted Average Cost-of-Capital (incl. capital depreciation and investor return) | B55: 0.1 | C55: 0.1 | D55: 0.1 | G55: 0.1 | H55: 0.1 | I55: 0.1 | J55: 0.1 | K55: 0.1 | L55: 0.1 | M55: 0.1 | N55: 0.1 | O55: =IF(O$35=$B$35,$B55,IF(O$35=$C$35,$C55,IF(O$35=$D$35,$D55))) -> 0.1
A56: Levelized Fixed Capital Cost for Trucks & Tubes (2008$/GEG) | B56: =500000/(400*365*1*10) -> 0.3424657534 | C56: =500000/(400*365*1*10) -> 0.3424657534 | D56: =500000/(400*365*1*10) -> 0.3424657534 | E56: 500k per trailer divided by volume of (400 kg/trailer*365days*10ys) ; scale as needed | G56: 0.3424657534 | H56: 0.3424657534 | I56: 0.3424657534 | J56: 0.3424657534 | K56: 0.3424657534 | L56: 0.3424657534 | M56: 0.3424657534 | N56: 0.3424657534 | O56: =IF(O$35=$B$35,$B56,IF(O$35=$C$35,$C56,IF(O$35=$D$35,$D56))) -> 0.3424657534
A57: Levelized Distribution Opex (2008$/GEG) | B57: =B58-B56 -> 1.407534247 | C57: =C58-C56 -> 1.407534247 | D57: =D58-D56 -> 0.9075342466 | G57: =G58-G56 -> 1.407534247 | H57: 1.407534247 | I57: 1.407534247 | J57: =J58-J56 -> 1.407534247 | K57: 0.9075342466 | L57: 0.9075342466 | M57: 0.9075342466 | N57: 0.9075342466 | O57: 0.9075342466
A58: Total Distribution Cost (2008$/GEG) - Calculated from above | B58: 1.75 | C58: 1.75 | D58: 1.25 | G58: =IF(G$35=$B$35,$B58,IF(G$35=$C$35,$C58,IF(G$35=$D$35,$D58))) -> 1.75 | H58: 1.75 | I58: 1.75 | J58: 1.75 | K58: 1.25 | L58: 1.25 | M58: 1.25 | N58: 1.25 | O58: =IF(O$35=$B$35,$B58,IF(O$35=$C$35,$C58,IF(O$35=$D$35,$D58))) -> 1.25
A59: Total Distribution Infrastructure Investment (billion 2008$) | B59: =B40*500000/(400*2*365) -> 0 | C59: =C40*500000/(400*3*365) -> 0 | D59: =D39*500000/1000000000 -> 38.7227398 | G59: =IF(G$35=B$35,$B59,IF(G$35=C$35,$C59,IF(G$35>D$35,$D59))) -> 0 | H59: =H40*500000/(400*2*365) -> 0 | I59: =I40*500000/(400*3*365) -> 0 | J59: =J40*500000/(400*3*365) -> 0 | K59: 0 | L59: 0 | M59: 0 | N59: 0 | O59: =O40*500000/(400*3*365) -> 20.58686177
A60: Are governmental subsidies included in BULK DISTRIBUTION COST? (Y/N) | B60: No | C60: No | D60: No | G60: =IF(G$35=$B$35,$B60,IF(G$35=$C$35,$C60,IF(G$35=$D$35,$D60))) -> No | H60: No | I60: No | J60: No | K60: No | L60: No | M60: No | N60: No | O60: =IF(O$35=$B$35,$B60,IF(O$35=$C$35,$C60,IF(O$35=$D$35,$D60))) -> No
A61: + If "YES" above, amount of subsidy assumed ($/GEG)
A62: Other Pathway-specific Miscellaneous Costs (Subsidies) - (2008$/GEG)
A63: - Explanation of other cost/subsidy (if shown above)
A64: Total Fuel Cost (including Production, Distribution & Dispensing Infrastructure)- ex fuel Taxes 2008$/GGE | B64: =B16+B48+B58 -> 10.57525004 | C64: =C16+C48+C58 -> 8.551637175 | D64: 6.083114371 | G64: =G16+G48+G58 -> 10.2823929 | H64: =H16+H48+H58 -> 10.57525004 | I64: 8.551637175 | J64: 8.600208604 | K64: 5.601300506 | L64: 5.744157649 | M64: 5.904082551 | N64: 6.083114371 | O64: 6.283535894
A65: Federal Taxes ($/GEG) - use AEO2010 numbers (2008$) | B65: =H65 -> 0.3216898605 | C65: =I65 -> 0.2933274034 | D65: =N65 -> 0.2393860917 | G65: 0.3479895143 | H65: 0.3216898605 | I65: 0.2933274034 | J65: 0.26414993 | K65: 0.2375145494 | L65: 0.2133157566 | M65: 0.2263580824 | N65: 0.2393860917 | O65: 0.2524069428
A66: State and Local Taxes ($/GEG) - use AEO2010 numbers (2008$) | B66: =H66 -> 0.4675889713 | C66: =I66 -> 0.4675889713 | D66: =N66 -> 0.5247352476 | G66: 0.4675889713 | H66: 0.4675889713 | I66: 0.4675889713 | J66: 0.4675889713 | K66: 0.4675889713 | L66: 0.4675889713 | M66: 0.4961778004 | N66: 0.5247352476 | O66: 0.553277004
A67: Total Fuel Cost (including infrastructure costs and taxes) (2008$/GEG) | B67: =B64+B65+B66 -> 11.36452888 | C67: =C64+C65+C66 -> 9.31255355 | D67: =D64+D65+D66 -> 6.84723571 | G67: =G64+G65+G66 -> 11.09797139 | H67: =H64+H65+H66 -> 11.36452888 | I67: 9.31255355 | J67: =J64+J65+J66 -> 9.331947505 | K67: 6.306404027 | L67: 6.425062377 | M67: 6.626618434 | N67: 6.84723571 | O67: =O64+O65+O66 -> 7.089219841
A69: Total Distribution and Dispensing Infrastructure Investment (billion 2008$) | B69: =SUM(B49,B59) -> -0.1176008 | C69: =SUM(C49,C59) -> -0.1176008 | D69: 277.4716643 | G69: =SUM(G49,G59) -> -0.1176008 | H69: -0.1176008 | I69: -0.1176008 | J69: -0.1176008 | K69: -0.1788024 | L69: -0.1788024 | M69: -0.1788024 | N69: -0.1788024 | O69: 259.3357863
A70: P50 Distribution and Dispensing Infrastructure Capital Cost ($/GEG) | B70: =B67-B66-B65-B57-B22- B21-B16-B47 -> 4.607147197 | C70: =C67-C66-C65-C57-C22- C21-C16-C47 -> 3.413036392 | D70: =D67-D66-D65-D57-D22- D21-D16-D47 -> 1.898649611 | G70: =G67-G65-G66-G16-G21-G22-G57-G47 -> 4.607147197 | H70: =H67-H65-H66-H16-H21-H22-H57-H47 -> 4.607147197 | I70: 3.413036392 | J70: 3.413036392 | K70: 1.898649611 | L70: 1.898649611 | M70: 1.898649611 | N70: 1.898649611 | O70: 1.898649611
A72: Total Fuel Cost (including infrastructure costs and taxes) (2008$/GEG) - HIGH | B72: =B67 -> 11.36452888 | C72: =C67 -> 9.31255355 | D72: =D67 -> 6.84723571
A73: Total Fuel Cost (including infrastructure costs and taxes) (2008$/GEG) - LOW | B73: ='Hydrogen Low'!B67 -> 8.372503016 | C73: ='Hydrogen Low'!B67 -> 8.372503016 | D73: ='Hydrogen Low'!C67 -> 6.808783026

Sheet Hydrogen Low
A1: DRAFT - Do not Cite or Quote. For NPC Study Discussion Only
A2: Source: Puneet Verma (Hydrogen Subgroup)
A3: Hydrogen Pathway | B3: Near Term | C3: Mid Term | D3: Long Term
A4: Note: GEG = Gasoline Equivalent Gallons (energy basis) | E4: Notes | F4: Reference | G4: 2010 | H4: 2015 | I4: 2020 | J4: 2025 | K4: 2030 | L4: 2035 | M4: 2040 | N4: 2045 | O4: 2050
A5: Will pathway use AEO2010 Reference Case CUSTOMER PRICE? | B5: No | C5: No | D5: No | G5: No | H5: No | I5: No | J5: No | K5: No | L5: No | M5: No | N5: No | O5: No
A6: + If "YES" above, indicate CUSTOMER Price (2008$)
A7: Will Pathway use AEO2010 Reference Case FUEL PRODUCTION PRICE? (e.g. Lower 48 Gas Price, Refinery Gate Gasoline price) | B7: No | C7: No | D7: No | G7: No | H7: No | I7: No | J7: No | K7: No | L7: No | M7: No | N7: No | O7: No
A8: Henry Hub Natural Gas Price ($/mmbtu) (2008$) | B8: =H8 -> 6.27072 | C8: 6.639969 | D8: =L8 -> 8.879857 | G8: 4.504156 | H8: 6.27072 | I8: 6.639969 | J8: 6.991752 | K8: 8.049836 | L8: 8.879857
A9: Ref Commercial Natural Gas Price ($/mmbtu) (2008$) | B9: =H9 -> 10.284433 | C9: 10.654593 | D9: =L9 -> 0 | G9: 8.923866 | H9: 10.284433 | I9: 10.654593
A10: Ref Industrial Natural Gas Price ($/mmbtu) (2008$) | B10: =H10 -> 6.45 | C10: 6.7 | D10: =N10 -> 10.44809105 | F10: AEO'10 Reference Oil Price Case | G10: 4.87 | H10: 6.45 | I10: 6.7 | J10: 7.02 | K10: 7.98 | L10: 8.73 | M10: 9.550488722 | N10: 10.44809105 | O10: 11.43005449
A11: High Oil Price: Industrial Natural Gas Price ($/mmbtu) (2008$) | B11: =H11 -> 6.94 | C11: 7.1 | D11: =N11 -> 11.74269705 | F11: AEO'10 High Oil Price Case | G11: 4.89 | H11: 6.94 | I11: 7.1 | J11: 7.44 | K11: 8.37 | L11: 9.37 | M11: 10.48947431 | N11: 11.74269705 | O11: 13.14564771
A12: Low Oil Price: Industrial Natural Gas Price ($/mmbtu) (2008$) | B12: 5.82 | C12: 6.08 | D12: 9.731195101 | F12: AEO'10 Low Oil Price Case | G12: 4.84 | H12: 5.82 | I12: 6.08 | J12: 6.92 | K12: 7.39 | L12: 8.1 | M12: 8.878213802 | N12: 9.731195101 | O12: 10.66612724
A13: Ref Fuel Production COST used ($/mmbtu) (2008$) | B13: =(B10*8/7)+4.2 -> 11.57142857 | C13: =(C10*8/7)+4.2 -> 11.85714286 | D13: =(D10*8/7)+4.2 -> 16.14067548 | E13: 341,448 kg/d Centralized Reforming; Assume industrial price | F13: formula from IEA Hydrogen Production Cost.pdf chart (http://www.iea.org/techno/essentials5.pdf) | G13: =(G10*8/7)+4.2 -> 9.765714286 | H13: =(H10*8/7)+4.2 -> 11.57142857 | I13: =(I10*8/7)+4.2 -> 11.85714286 | J13: =(J10*8/7)+4.2 -> 12.22285714 | K13: 13.32 | L13: 14.17714286 | M13: 15.11484425 | N13: 16.14067548 | O13: 17.26291942
A14: Ref Fuel Production COST used ($/kg) & ($/gge) (2008$) | B14: =B13/8 -> 1.446428571 | C14: =C13/8 -> 1.482142857 | D14: =D13/8 -> 2.017584435 | G14: =G13/8 -> 1.220714286 | H14: =H13/8 -> 1.446428571 | I14: =I13/8 -> 1.482142857 | J14: =J13/8 -> 1.527857143 | K14: 1.665 | L14: 1.772142857 | M14: 1.889355532 | N14: 2.017584435 | O14: 2.157864927
A15: High Oil Price: Fuel Production COST used ($/mmbtu) (2008$) | B15: =(B11*8/7)+4.2 -> 12.13142857 | C15: =(C11*8/7)+4.2 -> 12.31428571 | D15: =(D11*8/7)+4.2 -> 17.6202252 | E15: 341,448 kg/d Centralized Reforming; Assume industrial price | F15: formula from IEA Hydrogen Production Cost.pdf chart (http://www.iea.org/techno/essentials5.pdf) | G15: =(G11*8/7)+4.2 -> 9.788571429 | H15: =(H11*8/7)+4.2 -> 12.13142857 | I15: =(I11*8/7)+4.2 -> 12.31428571 | J15: =(J11*8/7)+4.2 -> 12.70285714 | K15: 13.76571429 | L15: 14.90857143 | M15: 16.18797064 | N15: 17.6202252 | O15: 19.22359739
A16: High Oil Price: Fuel Production COST used ($/kg) & ($/gge) (2008$) | B16: =B15/8 -> 1.516428571 | C16: =C15/8 -> 1.539285714 | D16: =D15/8 -> 2.20252815 | G16: =G15/8 -> 1.223571429 | H16: =H15/8 -> 1.516428571 | I16: =I15/8 -> 1.539285714 | J16: =J15/8 -> 1.587857143 | K16: 1.720714286 | L16: 1.863571429 | M16: 2.02349633 | N16: 2.20252815 | O16: 2.402949673
A17: Low Oil Price: Fuel Production COST used ($/mmbtu) (2008$) | B17: =(B12*8/7)+4.2 -> 10.85142857 | C17: =(C12*8/7)+4.2 -> 11.14857143 | D17: =(D12*8/7)+4.2 -> 15.32136583 | E17: 341,448 kg/d Centralized Reforming; Assume industrial price | F17: formula from IEA Hydrogen Production Cost.pdf chart (http://www.iea.org/techno/essentials5.pdf) | G17: =(G12*8/7)+4.2 -> 9.731428571 | H17: =(H12*8/7)+4.2 -> 10.85142857 | I17: =(I12*8/7)+4.2 -> 11.14857143 | J17: =(J12*8/7)+4.2 -> 12.10857143 | K17: 12.64571429 | L17: 13.45714286 | M17: 14.34653006 | N17: 15.32136583 | O17: 16.38985971
A18: Low Oil Price: Fuel Production COST used ($/kg) & ($/gge) (2008$) | B18: =B17/8 -> 1.356428571 | C18: =C17/8 -> 1.393571429 | D18: =D17/8 -> 1.915170729 | G18: =G17/8 -> 1.216428571 | H18: =H17/8 -> 1.356428571 | I18: =I17/8 -> 1.393571429 | J18: =J17/8 -> 1.513571429 | K18: 1.580714286 | L18: 1.682142857 | M18: 1.793316257 | N18: 1.915170729 | O18: 2.048732463
A19: Fuel Production COST used ($/kg) & ($/gge) (2005$)
A20: Fuel Production COST used ($/kg) & ($/gge) (2008$)
A21: SMR Capital Charge
A22: SMR Plant O&M
A23: + Reference: Public source for price (if other than AEO2010)
A24: Are governmental subsidies included in PRODUCTION PRICE? (Y/N) | B24: No | C24: No | D24: No | G24: No | H24: No | I24: No | J24: No | K24: No | L24: No | M24: No | N24: No | O24: No
A25: + If "YES" above, amount of subsidy assumed ($/GEG)
A26: Does pathway need an adjustment for bulk distribution & vehicle dispensing infrastructure costs? (Y/N) | B26: Yes | C26: Yes | D26: Yes | G26: Yes | H26: Yes | I26: Yes | J26: Yes | K26: Yes | L26: Yes | M26: Yes | N26: Yes | O26: Yes
A27: VEHICLE DISPENSING INFRASTRUCTURE
A28: Total VMT (billion miles) | C28: =I28 -> 3192.8 | D28: =O28 -> 5290 | F28: AEO'10 Table 60 | G28: 2727.1 | H28: 2915.8 | I28: 3192.8 | J28: 3554.1 | K28: 3891.4 | L28: 4203.4 | M28: 4539 | N28: 4901 | O28: 5290
A29: Hydrogen Fuel Cell Vehicle share of VMT (rising to 30% by 2035) | D29: 0.3 | F29: 30% based on study normalization assumption | O29: =D29 -> 0.3
A30: VMT for Hydrogen's share | B30: =B28*B29 -> 0 | C30: =C28*C29 -> 0 | D30: =D28*D29 -> 1587 | E30: billion miles | G30: =G28*G29 -> 0 | H30: 0 | I30: 0 | J30: 0 | K30: 0 | L30: 0 | M30: 0 | N30: 0 | O30: 1587
A33: Fuel Cell efficiency (miles per gge) | B33: 104 | C33: 104 | D33: 104 | F33: avg on road fuel economy from input generator model | G33: =IF(G$35=$B$35,$B33,IF(G$35=$C$35,$C33,IF(G$35=$D$35,$D33))) -> 104 | H33: 104 | I33: 104 | J33: 104 | K33: 104 | L33: 104 | M33: 104 | N33: 104 | O33: 104
A34: Total Hydrogen to Dispense billion gge | B34: =B30/B33 -> 0 | C34: =C30/C33 -> 0 | D34: =D30/D33 -> 15.25961538 | E34: billion gge | G34: =G30/G33 -> 0 | H34: 0 | I34: 0 | J34: 0 | K34: 0 | L34: 0 | M34: 0 | N34: =N30/N33 -> 0 | O34: =O30/O33 -> 15.25961538
A35: Average dispensing capacity per station (kg/station/day) | B35: 250 | C35: 400 | D35: 1000 | E35: kg/day from Puneet | G35: =B35 -> 250 | H35: =G35 -> 250 | I35: 400 | J35: =I35 -> 400 | K35: =D35 -> 1000 | L35: =K35 -> 1000 | M35: =L35 -> 1000 | N35: =M35 -> 1000 | O35: =N35 -> 1000
A36: Average dispensing capacity per station (kg/station-yr) | B36: =B35*365*0.85 -> 77562.5 | C36: =C35*365*0.85 -> 124100 | D36: =D35*365*0.85 -> 310250 | E36: 85% capacity utilization | F36: Table 3 in http://www.nrel.gov/docs/fy05osti/37903.pdf | G36: =IF(G$35=$B$35,$B36,IF(G$35=$C$35,$C36,IF(G$35=$D$35,$D36))) -> 77562.5 | H36: 77562.5 | I36: 124100 | J36: 124100 | K36: 310250 | L36: 310250 | M36: 310250 | N36: 310250 | O36: 310250
A37: Number of dispensing stations required for ubiquitous supply for Hydrogen FCV 30% share | B37: =B34*1000000000/(B36) -> 0 | C37: =C34*1000000000/(C36) -> 0 | D37: =D34*1000000000/(D36) -> 49184.90051 | G37: =G34*1000000000/(G36) -> 0 | H37: =H34*1000000000/(H36) -> 0 | I37: 0 | J37: 0 | K37: 0 | L37: 0 | M37: 0 | N37: 0 | O37: =O34*1000000000/(O36) -> 49184.90051
A38: Current number of dispensing stations | B38: 58 | C38: 58 | D38: 58 | F38: (http://www.afdc.energy.gov/afdc/fuels/stations_counts.html) | G38: =IF(G$35=$B$35,$B38,IF(G$35=$C$35,$C38,IF(G$35=$D$35,$D38))) -> 58 | H38: 58 | I38: 58 | J38: 58 | K38: 58 | L38: 58 | M38: 58 | N38: 58 | O38: 58
A39: Number of additional dispensing stations required to supply Hydrogen for above share | B39: =B37-B38 -> -58 | C39: =C37-C38 -> -58 | D39: =D37-D38 -> 49126.90051 | G39: =G37-G38 -> -58 | H39: =H37-H38 -> -58 | I39: -58 | J39: -58 | K39: -58 | L39: -58 | M39: -58 | N39: -58 | O39: 49126.90051
A40: Total Fuel Dispensing Capacity Available (billion GEG/yr) - Calculated from above | B40: =B37*B36/1000000000 -> 0 | C40: =C37*C36/1000000000 -> 0 | D40: =D37*D36/1000000000 -> 15.25961538 | G40: =G37*G36/1000000000 -> 0 | H40: =H37*H36/1000000000 -> 0 | I40: 0 | J40: 0 | K40: 0 | L40: 0 | M40: 0 | N40: 0 | O40: 15.25961538
A41: Capital investment per additional dispensing station (i.e. typical station 8 dispensers) (2008$)
A42: +Land | B42: =600*46 -> 27600 | C42: =600*46 -> 27600 | D42: =1800*46 -> 82800 | E42: 600 sf & 1800 sf @ $46/sf | F42: assume comingled fuel stations only | G42: =IF(G$35=$B$35,$B42,IF(G$35=$C$35,$C42,IF(G$35=$D$35,$D42))) -> 27600 | H42: 27600 | I42: 27600 | J42: 27600 | K42: 82800 | L42: 82800 | M42: 82800 | N42: 82800 | O42: 82800
A43: +Dispensing infrastructure | B43: 1500000 | C43: 1500000 | D43: 2500000 | G43: 1500000 | H43: 1500000 | I43: 1500000 | J43: 1500000 | K43: 2500000 | L43: 2500000 | M43: 2500000 | N43: 2500000 | O43: 2500000
A44: Economic Life (Years) -- use AEO2010 values | B44: 20 | C44: 20 | D44: 20 | G44: 20 | H44: 20 | I44: 20 | J44: 20 | K44: 20 | L44: 20 | M44: 20 | N44: 20 | O44: 20
A45: Real Weighted Average Cost-of-Capital (incl. capital depreciation and investor return) | B45: 0.1 | C45: 0.1 | D45: 0.1 | G45: 0.1 | H45: 0.1 | I45: 0.1 | J45: 0.1 | K45: 0.1 | L45: 0.1 | M45: 0.1 | N45: 0.1 | O45: 0.1
A46: Levelized Fixed Cost for Dispensing ($/GEG) - Calculated from above | B46: =((B42+B43)*B45/(1-(1/(1+B45)^B44)))/B36 -> 2.313377248 | C46: =((C42+C43)*C45/(1-(1/(1+C45)^C44)))/C36 -> 1.44586078 | D46: =((D42+D43)*D45/(1-(1/(1+D45)^D44)))/D36 -> 0.9778395451 | G46: 2.313377248 | H46: =IF(H$35=$B$35,$B46,IF(H$35=$C$35,$C46,IF(H$35=$D$35,$D46))) -> 2.313377248 | I46: 1.44586078 | J46: 1.44586078 | K46: 0.9778395451 | L46: 0.9778395451 | M46: 0.9778395451 | N46: 0.9778395451 | O46: 0.9778395451
A47: Variable Cost for dispensing ($/GEG) - incl. Operating & Maintenance, taxes (land, etc) | B47: =170000/B36 -> 2.191780822 | C47: =170000/C36 -> 1.369863014 | D47: =250000/D36 -> 0.8058017728 | E47: ~170k & 250k per h2 chapter | G47: 2.191780822 | H47: 2.191780822 | I47: 1.369863014 | J47: 1.369863014 | K47: 0.8058017728 | L47: 0.8058017728 | M47: 0.8058017728 | N47: 0.8058017728 | O47: 0.8058017728
A48: Total Dispensing Cost (2008$/GEG) - Calculated from above | B48: =SUM(B46:B47) -> 4.50515807 | C48: =SUM(C46:C47) -> 2.815723794 | D48: =SUM(D46:D47) -> 1.783641318 | G48: =SUM(G46:G47) -> 4.50515807 | H48: =SUM(H46:H47) -> 4.50515807 | I48: 2.815723794 | J48: =SUM(J46:J47) -> 2.815723794 | K48: 1.783641318 | L48: 1.783641318 | M48: 1.783641318 | N48: 1.783641318 | O48: 1.783641318
A49: Total Dispensing Infrastructure Investment (billion 2008$) - Calculated from above | B49: =B39*(B42+B43)/1000000000 -> -0.0886008 | C49: =C39*(C42+C43)/1000000000 -> -0.0886008 | D49: =D39*(D42+D43)/1000000000 -> 126.8849586 | G49: =G39*(G42+G43)/1000000000 -> -0.0886008 | H49: -0.0886008 | I49: -0.0886008 | J49: -0.0886008 | K49: -0.1498024 | L49: -0.1498024 | M49: -0.1498024 | N49: -0.1498024 | O49: =O39*(O42+O43)/1000000000 -> 126.8849586
A50: Are governmental subsidies included in DISPENSING COST? (Y/N) | B50: No | C50: No | D50: No | G50: =IF(G$35=$B$35,$B50,IF(G$35=$C$35,$C50,IF(G$35=$D$35,$D50))) -> No | H50: No | I50: No | J50: No | K50: No | L50: No | M50: No | N50: No | O50: No
A51: + If "YES" above, amount of subsidy assumed ($/GEG) | B51: 0 | C51: 0 | D51: 0 | G51: 0 | H51: 0 | I51: 0 | J51: 0 | K51: 0 | L51: 0 | M51: 0 | N51: 0 | O51: 0
A52: BULK DISTRIBUTION INFRASTRUCTURE
A53: Capital investment required in distribution infrastructure for ubiquitous supply (billion 2008$)
A54: Economic Life (Years) -- use AEO2010 values | B54: 20 | C54: 20 | D54: 20 | G54: =IF(G$35=$B$35,$B54,IF(G$35=$C$35,$C54,IF(G$35=$D$35,$D54))) -> 20 | H54: 20 | I54: 20 | J54: 20 | K54: 20 | L54: 20 | M54: 20 | N54: 20 | O54: 20
A55: Real Weighted Average Cost-of-Capital (incl. capital depreciation and investor return) | B55: 0.1 | C55: 0.1 | D55: 0.1 | G55: 0.1 | H55: 0.1 | I55: 0.1 | J55: 0.1 | K55: 0.1 | L55: 0.1 | M55: 0.1 | N55: 0.1 | O55: 0.1
A56: Levelized Fixed Capital Cost for Trucks & Tubes (2008$/GEG) | B56: =500000/(400*365*1*10) -> 0.3424657534 | C56: =500000/(400*365*1*10) -> 0.3424657534 | D56: =500000/(400*365*1*10) -> 0.3424657534 | E56: 500k per trailer divided by volume of (400 kg/trailer*365days*10ys) ; scale as needed | G56: 0.3424657534 | H56: 0.3424657534 | I56: 0.3424657534 | J56: 0.3424657534 | K56: 0.3424657534 | L56: 0.3424657534 | M56: 0.3424657534 | N56: 0.3424657534 | O56: 0.3424657534
A57: Levelized Distribution Opex (2008$/GEG) | B57: =B58-B56 -> 1.407534247 | C57: =C58-C56 -> 1.407534247 | D57: =D58-D56 -> 0.9075342466 | G57: =G58-G56 -> 1.407534247 | H57: 1.407534247 | I57: 1.407534247 | J57: =J58-J56 -> 1.407534247 | K57: 0.9075342466 | L57: 0.9075342466 | M57: 0.9075342466 | N57: 0.9075342466 | O57: 0.9075342466
A58: Total Distribution Cost (2008$/GEG) - Calculated from above | B58: 1.75 | C58: 1.75 | D58: 1.25 | G58: 1.75 | H58: 1.75 | I58: 1.75 | J58: 1.75 | K58: 1.25 | L58: 1.25 | M58: 1.25 | N58: 1.25 | O58: 1.25
A59: Total Distribution Infrastructure Investment (billion 2008$) | B59: =B40*500000/(400*2*365) -> 0 | C59: =C40*500000/(400*3*365) -> 0 | D59: =D39*500000/1000000000 -> 24.56345026 | G59: 0 | H59: 0 | I59: 0 | J59: 0 | K59: 24.56345026 | L59: 24.56345026 | M59: 24.56345026 | N59: 24.56345026 | O59: 24.56345026
A60: Are governmental subsidies included in BULK DISTRIBUTION COST? (Y/N) | B60: No | C60: No | D60: No | G60: No | H60: No | I60: No | J60: No | K60: No | L60: No | M60: No | N60: No | O60: No
A61: + If "YES" above, amount of subsidy assumed ($/GEG)
A62: Other Pathway-specific Miscellaneous Costs (Subsidies) - (2008$/GEG)
A63: - Explanation of other cost/subsidy (if shown above)
A64: Total Fuel Cost (including Production, Distribution & Dispensing Infrastructure)- ex fuel Taxes 2008$/GGE | B64: =B18+B48+B58 -> 7.611586641 | C64: =C14+C48+C58 -> 6.047866651 | D64: =D18+D48+D58 -> 4.948812047 | G64: =G18+G48+G58 -> 7.471586641 | H64: =H18+H48+H58 -> 7.611586641 | I64: 5.959295222 | J64: 6.079295222 | K64: 4.614355604 | L64: 4.715784175 | M64: 4.826957575 | N64: 4.948812047 | O64: 5.082373781
A65: Federal Taxes ($/GEG) - use AEO2010 numbers (2008$) | B65: =I65 -> 0.2933274034 | C65: =I65 -> 0.2933274034 | D65: =N65 -> 0.2393860917 | G65: 0.3479895143 | H65: 0.3216898605 | I65: 0.2933274034 | J65: 0.26414993 | K65: 0.2375145494 | L65: 0.2133157566 | M65: 0.2263580824 | N65: 0.2393860917 | O65: 0.2524069428
A66: State and Local Taxes ($/GEG) - use AEO2010 numbers (2008$) | B66: =I66 -> 0.4675889713 | C66: =I66 -> 0.4675889713 | D66: =N66 -> 0.5247352476 | G66: 0.4675889713 | H66: 0.4675889713 | I66: 0.4675889713 | J66: 0.4675889713 | K66: 0.4675889713 | L66: 0.4675889713 | M66: 0.4961778004 | N66: 0.5247352476 | O66: 0.553277004
A67: Total Fuel Cost (including infrastructure costs and taxes) (2008$/GEG) | B67: =B64+B65+B66 -> 8.372503016 | C67: =C64+C65+C66 -> 6.808783026 | D67: =D64+D65+D66 -> 5.712933386 | G67: =G64+G65+G66 -> 8.287165127 | H67: =H64+H65+H66 -> 8.400865473 | I67: 6.720211597 | J67: =J64+J65+J66 -> 6.811034124 | K67: 5.319459124 | L67: 5.396688903 | M67: 5.549493458 | N67: 5.712933386 | O67: =O64+O65+O66 -> 5.888057728
A69: Total Distribution and Dispensing Infrastructure Investment (billion 2008$) | B69: =SUM(B49,B59) -> -0.0886008 | C69: =SUM(C49,C59) -> -0.0886008 | D69: 151.4484089 | G69: =SUM(G49,G59) -> -0.0886008 | H69: =SUM(H49,H59) -> -0.0886008 | I69: -0.0886008 | J69: -0.0886008 | K69: 24.41364786 | L69: 24.41364786 | M69: 24.41364786 | N69: 24.41364786 | O69: 151.4484089
A70: P50 Distribution and Dispensing Infrastructure Capital Cost ($/GEG) | B70: =B67-B66-B65-B57-B22- B21-B18-B47 -> 2.655843001 | C70: =C67-C66-C65-C57-C22- C21-C14-C47 -> 1.788326533 | D70: =D67-D66-D65-D57-D22- D21-D18-D47 -> 1.320305299 | G70: =G67-G65-G66-G18-G21-G22-G57-G47 -> 2.655843001 | H70: =H67-H65-H66-H18-H21-H22-H57-H47 -> 2.655843001 | I70: =I67-I65-I66-I18-I21-I22-I57-I47 -> 1.788326533 | J70: 1.788326533 | K70: 1.320305299 | L70: 1.320305299 | M70: 1.320305299 | N70: 1.320305299 | O70: 1.320305299
A72: Total Fuel Cost (including infrastructure costs and taxes) (2008$/GEG) - HIGH | B72: =B67 -> 8.372503016 | C72: =C67 -> 6.808783026 | D72: =D67 -> 5.712933386
A73: Total Fuel Cost (including infrastructure costs and taxes) (2008$/GEG) - LOW | B73: ='Hydrogen Low'!B67 -> 8.372503016 | C73: ='Hydrogen Low'!B67 -> 8.372503016 | D73: ='Hydrogen Low'!D67 -> 5.712933386

Sheet Electricity Summary
A1: DRAFT - Do not Cite or Quote. For NPC Study Discussion Only
A2: Source: Jaycie Chitwood (Electric Sub-group)
A3: Range of Charging Electricity Total Costs for VISION and VCM modeling
A5: All Prices in 2008$/GEG | B5: 2010 | C5: =B5+5 -> 2015 | D5: =C5+5 -> 2020 | E5: 2025 | F5: 2030 | G5: 2035 | H5: 2040 | I5: 2045 | J5: 2050 | K5: Comments | L5: kWh per 125,000 BTU | R5: =36.634 -> 36.634
A7: High Oil Case (HC): | L7: HC = Home Charging Only
A8: Total Fuel Price | K8: Inclusive of distribution & dispensing infrastructure costs
A9: PHEV10 ($/GEG) | B9: =('Electricity VISION Inputs'!E$11+'Electricity VISION Inputs'!E14)/8+'Electricity VISION Inputs'!E89 -> 4.952342605 | C9: =('Electricity VISION Inputs'!F$11+'Electricity VISION Inputs'!F14)/8+'Electricity VISION Inputs'!F89 -> 5.862995953 | D9: =('Electricity VISION Inputs'!G$11+'Electricity VISION Inputs'!G14)/8+'Electricity VISION Inputs'!G89 -> 5.584629645 | E9: =('Electricity VISION Inputs'!H$11+'Electricity VISION Inputs'!H14)/8+'Electricity VISION Inputs'!H89 -> 5.71054663 | F9: =('Electricity VISION Inputs'!I$11+'Electricity VISION Inputs'!I14)/8+'Electricity VISION Inputs'!I89 -> 5.85037692 | G9: =('Electricity VISION Inputs'!J$11+'Electricity VISION Inputs'!J14)/8+'Electricity VISION Inputs'!J89 -> 5.98160989 | H9: =('Electricity VISION Inputs'!K$11+'Electricity VISION Inputs'!K14)/8+'Electricity VISION Inputs'!K89 -> 6.228857352 | I9: =('Electricity VISION Inputs'!L$11+'Electricity VISION Inputs'!L14)/8+'Electricity VISION Inputs'!L89 -> 6.512835175 | J9: =('Electricity VISION Inputs'!M$11+'Electricity VISION Inputs'!M14)/8+'Electricity VISION Inputs'!M89 -> 6.845134103 | K9: see Electricity VISION Inputs | L9: High oil (AEO2010) transportation rates + tax + home charging costs
A10: $/kWh | B10: =B9/$R$5 -> 0.1351843262 | C10: =C9/$R$5 -> 0.1600424729 | D10: 0.1524438949 | E10: 0.1558810567 | F10: 0.1596980106 | G10: 0.1632802831 | H10: 0.1700294085 | I10: 0.1777811644 | J10: 0.1868519436
A11: PHEV40 ($/GEG) | B11: =('Electricity VISION Inputs'!E$11+'Electricity VISION Inputs'!E16)/8+'Electricity VISION Inputs'!E91 -> 5.006798763 | C11: =('Electricity VISION Inputs'!F$11+'Electricity VISION Inputs'!F16)/8+'Electricity VISION Inputs'!F91 -> 6.10756201 | D11: =('Electricity VISION Inputs'!G$11+'Electricity VISION Inputs'!G16)/8+'Electricity VISION Inputs'!G91 -> 5.773961383 | E11: =('Electricity VISION Inputs'!H$11+'Electricity VISION Inputs'!H16)/8+'Electricity VISION Inputs'!H91 -> 5.851376306 | F11: =('Electricity VISION Inputs'!I$11+'Electricity VISION Inputs'!I16)/8+'Electricity VISION Inputs'!I91 -> 5.97364602 | G11: =('Electricity VISION Inputs'!J$11+'Electricity VISION Inputs'!J16)/8+'Electricity VISION Inputs'!J91 -> 6.089454032 | H11: =('Electricity VISION Inputs'!K$11+'Electricity VISION Inputs'!K16)/8+'Electricity VISION Inputs'!K91 -> 6.325988312 | I11: =('Electricity VISION Inputs'!L$11+'Electricity VISION Inputs'!L16)/8+'Electricity VISION Inputs'!L91 -> 6.600606579 | J11: =('Electricity VISION Inputs'!M$11+'Electricity VISION Inputs'!M16)/8+'Electricity VISION Inputs'!M91 -> 6.927612147 | K11: see Electricity VISION Inputs
A12: $/kWh | B12: =B11/$R$5 -> 0.1366708184 | C12: 0.1667184039 | D12: 0.1576120921 | E12: 0.1597252909 | F12: 0.163062893 | G12: 0.1662241096 | H12: 0.1726807969 | I12: 0.1801770645 | J12: 0.1891033506
A13: BEV100 ($/GEG) | B13: =('Electricity VISION Inputs'!E$11+'Electricity VISION Inputs'!E18)/8+'Electricity VISION Inputs'!E93 -> 7.014519653 | C13: =('Electricity VISION Inputs'!F$11+'Electricity VISION Inputs'!F18)/8+'Electricity VISION Inputs'!F93 -> 6.562342889 | D13: =('Electricity VISION Inputs'!G$11+'Electricity VISION Inputs'!G18)/8+'Electricity VISION Inputs'!G93 -> 6.116398651 | E13: =('Electricity VISION Inputs'!H$11+'Electricity VISION Inputs'!H18)/8+'Electricity VISION Inputs'!H93 -> 6.192272787 | F13: =('Electricity VISION Inputs'!I$11+'Electricity VISION Inputs'!I18)/8+'Electricity VISION Inputs'!I93 -> 6.289289298 | G13: =('Electricity VISION Inputs'!J$11+'Electricity VISION Inputs'!J18)/8+'Electricity VISION Inputs'!J93 -> 6.365299053 | H13: =('Electricity VISION Inputs'!K$11+'Electricity VISION Inputs'!K18)/8+'Electricity VISION Inputs'!K93 -> 6.583055938 | I13: =('Electricity VISION Inputs'!L$11+'Electricity VISION Inputs'!L18)/8+'Electricity VISION Inputs'!L93 -> 6.842609529 | J13: =('Electricity VISION Inputs'!M$11+'Electricity VISION Inputs'!M18)/8+'Electricity VISION Inputs'!M93 -> 7.158517944 | K13: see Electricity VISION Inputs
A14: $/kWh | B14: =B13/$R$5 -> 0.1914756689 | C14: 0.1791325787 | D14: 0.1669596181 | E14: 0.169030758 | F14: 0.1716790222 | G14: 0.173753864 | H14: 0.1796979838 | I14: 0.1867830302 | J14: 0.1954063969
A15: High Oil Case (UC): | L15: UC = Home + Public Charging
A16: Total Fuel Price | K16: Inclusive of distribution & dispensing infrastructure costs
A17: PHEV10 ($/GEG) | B17: =('Electricity VISION Inputs'!E$11+'Electricity VISION Inputs'!E21)/8+'Electricity VISION Inputs'!E89 -> 4.952342605 | C17: =('Electricity VISION Inputs'!F$11+'Electricity VISION Inputs'!F21)/8+'Electricity VISION Inputs'!F89 -> 6.080114719 | D17: =('Electricity VISION Inputs'!G$11+'Electricity VISION Inputs'!G21)/8+'Electricity VISION Inputs'!G89 -> 5.779155047 | E17: =('Electricity VISION Inputs'!H$11+'Electricity VISION Inputs'!H21)/8+'Electricity VISION Inputs'!H89 -> 5.838835723 | F17: =('Electricity VISION Inputs'!I$11+'Electricity VISION Inputs'!I21)/8+'Electricity VISION Inputs'!I89 -> 6.006708927 | G17: =('Electricity VISION Inputs'!J$11+'Electricity VISION Inputs'!J21)/8+'Electricity VISION Inputs'!J89 -> 6.17188905 | H17: =('Electricity VISION Inputs'!K$11+'Electricity VISION Inputs'!K21)/8+'Electricity VISION Inputs'!K89 -> 6.453820716 | I17: =('Electricity VISION Inputs'!L$11+'Electricity VISION Inputs'!L21)/8+'Electricity VISION Inputs'!L89 -> 6.766842371 | J17: =('Electricity VISION Inputs'!M$11+'Electricity VISION Inputs'!M21)/8+'Electricity VISION Inputs'!M89 -> 7.119246456 | K17: see Electricity VISION Inputs | L17: High oil (AEO2010) transportation rates + tax + ubiquitous charging costs
A18: $/kWh | B18: =B17/$R$5 -> 0.1351843262 | C18: 0.165969174 | D18: 0.1577538638 | E18: 0.15938297 | F18: 0.1639654126 | G18: 0.1684743422 | H18: 0.1761702439 | I18: 0.1847148106 | J18: 0.1943344013
A19: PHEV40 ($/GEG) | B19: =('Electricity VISION Inputs'!E$11+'Electricity VISION Inputs'!E23)/8+'Electricity VISION Inputs'!E91 -> 5.006798763 | C19: =('Electricity VISION Inputs'!F$11+'Electricity VISION Inputs'!F23)/8+'Electricity VISION Inputs'!F91 -> 5.981444296 | D19: =('Electricity VISION Inputs'!G$11+'Electricity VISION Inputs'!G23)/8+'Electricity VISION Inputs'!G91 -> 5.674565308 | E19: =('Electricity VISION Inputs'!H$11+'Electricity VISION Inputs'!H23)/8+'Electricity VISION Inputs'!H91 -> 5.759171662 | F19: =('Electricity VISION Inputs'!I$11+'Electricity VISION Inputs'!I23)/8+'Electricity VISION Inputs'!I91 -> 5.905803265 | G19: =('Electricity VISION Inputs'!J$11+'Electricity VISION Inputs'!J23)/8+'Electricity VISION Inputs'!J91 -> 6.047465846 | H19: =('Electricity VISION Inputs'!K$11+'Electricity VISION Inputs'!K23)/8+'Electricity VISION Inputs'!K91 -> 6.309200646 | I19: =('Electricity VISION Inputs'!L$11+'Electricity VISION Inputs'!L23)/8+'Electricity VISION Inputs'!L91 -> 6.606176537 | J19: =('Electricity VISION Inputs'!M$11+'Electricity VISION Inputs'!M23)/8+'Electricity VISION Inputs'!M91 -> 6.950767434 | K19: see Electricity VISION Inputs
A20: $/kWh | B20: =B19/$R$5 -> 0.1366708184 | C20: 0.1632757628 | D20: 0.1548988728 | E20: 0.1572083764 | F20: 0.1612109861 | G20: 0.1650779562 | H20: 0.1722225432 | I20: 0.1803291078 | J20: 0.1897354216
A21: BEV100 ($/GEG) | B21: =('Electricity VISION Inputs'!E$11+'Electricity VISION Inputs'!E25)/8+'Electricity VISION Inputs'!E93 -> 7.023350904 | C21: =('Electricity VISION Inputs'!F$11+'Electricity VISION Inputs'!F25)/8+'Electricity VISION Inputs'!F93 -> 6.569615354 | D21: =('Electricity VISION Inputs'!G$11+'Electricity VISION Inputs'!G25)/8+'Electricity VISION Inputs'!G93 -> 6.122302381 | E21: =('Electricity VISION Inputs'!H$11+'Electricity VISION Inputs'!H25)/8+'Electricity VISION Inputs'!H93 -> 6.197093802 | F21: =('Electricity VISION Inputs'!I$11+'Electricity VISION Inputs'!I25)/8+'Electricity VISION Inputs'!I93 -> 6.293860516 | G21: =('Electricity VISION Inputs'!J$11+'Electricity VISION Inputs'!J25)/8+'Electricity VISION Inputs'!J93 -> 6.369657599 | H21: =('Electricity VISION Inputs'!K$11+'Electricity VISION Inputs'!K25)/8+'Electricity VISION Inputs'!K93 -> 6.587260389 | I21: =('Electricity VISION Inputs'!L$11+'Electricity VISION Inputs'!L25)/8+'Electricity VISION Inputs'!L93 -> 6.846668888 | J21: =('Electricity VISION Inputs'!M$11+'Electricity VISION Inputs'!M25)/8+'Electricity VISION Inputs'!M93 -> 7.162438866 | K21: see Electricity VISION Inputs
A22: $/kWh | B22: =B21/$R$5 -> 0.1917167359 | C22: 0.1793310955 | D22: 0.1671207725 | E22: 0.1691623574 | F22: 0.1718038029 | G22: 0.1738728394 | H22: 0.1798127529 | I22: 0.1868938387 | J22: 0.1955134265
A24: Reference Case (HC): | L24: HC = Home Charging Only
A25: Total Fuel Price | K25: Inclusive of distribution & dispensing infrastructure costs
A26: PHEV10 ($/GEG) | B26: =('Electricity VISION Inputs'!E$33+'Electricity VISION Inputs'!E36)/8+'Electricity VISION Inputs'!E89 -> 4.949429901 | C26: =('Electricity VISION Inputs'!F$33+'Electricity VISION Inputs'!F36)/8+'Electricity VISION Inputs'!F89 -> 5.778585342 | D26: =('Electricity VISION Inputs'!G$33+'Electricity VISION Inputs'!G36)/8+'Electricity VISION Inputs'!G89 -> 5.546302371 | E26: =('Electricity VISION Inputs'!H$33+'Electricity VISION Inputs'!H36)/8+'Electricity VISION Inputs'!H89 -> 5.419234354 | F26: =('Electricity VISION Inputs'!I$33+'Electricity VISION Inputs'!I36)/8+'Electricity VISION Inputs'!I89 -> 5.545694706 | G26: =('Electricity VISION Inputs'!J$33+'Electricity VISION Inputs'!J36)/8+'Electricity VISION Inputs'!J89 -> 5.655650231 | H26: =('Electricity VISION Inputs'!K$33+'Electricity VISION Inputs'!K36)/8+'Electricity VISION Inputs'!K89 -> 5.885739366 | I26: =('Electricity VISION Inputs'!L$33+'Electricity VISION Inputs'!L36)/8+'Electricity VISION Inputs'!L89 -> 6.151695672 | J26: =('Electricity VISION Inputs'!M$33+'Electricity VISION Inputs'!M36)/8+'Electricity VISION Inputs'!M89 -> 6.464939354 | K26: see Electricity VISION Inputs | L26: Ref oil (AEO2010) transportation rates + tax + home charging costs
A27: $/kWh | B27: =B26/$R$5 -> 0.135104818 | C27: 0.1577383125 | D27: 0.1513976735 | E27: 0.1479290919 | F27: 0.151381086 | G27: 0.1543825471 | H27: 0.1606633009 | I27: 0.1679231226 | J27: 0.1764737499
A28: PHEV40 ($/GEG) | B28: =('Electricity VISION Inputs'!E$33+'Electricity VISION Inputs'!E37)/8+'Electricity VISION Inputs'!E91 -> 5.003886059 | C28: =('Electricity VISION Inputs'!F$33+'Electricity VISION Inputs'!F37)/8+'Electricity VISION Inputs'!F91 -> 6.023151398 | D28: =('Electricity VISION Inputs'!G$33+'Electricity VISION Inputs'!G37)/8+'Electricity VISION Inputs'!G91 -> 5.73563411 | E28: =('Electricity VISION Inputs'!H$33+'Electricity VISION Inputs'!H37)/8+'Electricity VISION Inputs'!H91 -> 5.560064031 | F28: =('Electricity VISION Inputs'!I$33+'Electricity VISION Inputs'!I37)/8+'Electricity VISION Inputs'!I91 -> 5.668963806 | G28: =('Electricity VISION Inputs'!J$33+'Electricity VISION Inputs'!J37)/8+'Electricity VISION Inputs'!J91 -> 5.763494372 | H28: =('Electricity VISION Inputs'!K$33+'Electricity VISION Inputs'!K37)/8+'Electricity VISION Inputs'!K91 -> 5.982870327 | I28: =('Electricity VISION Inputs'!L$33+'Electricity VISION Inputs'!L37)/8+'Electricity VISION Inputs'!L91 -> 6.239467076 | J28: =('Electricity VISION Inputs'!M$33+'Electricity VISION Inputs'!M37)/8+'Electricity VISION Inputs'!M91 -> 6.547417398 | K28: see Electricity VISION Inputs
A29: $/kWh | B29: =B28/$R$5 -> 0.1365913102 | C29: 0.1644142435 | D29: 0.1565658708 | E29: 0.1517733262 | F29: 0.1547459684 | G29: 0.1573263736 | H29: 0.1633146893 | I29: 0.1703190227 | J29: 0.1787251569
A30: BEV100 ($/GEG) | B30: =('Electricity VISION Inputs'!E$33+'Electricity VISION Inputs'!E38)/8+'Electricity VISION Inputs'!E93 -> 7.011606949 | C30: =('Electricity VISION Inputs'!F$33+'Electricity VISION Inputs'!F38)/8+'Electricity VISION Inputs'!F93 -> 6.477932277 | D30: =('Electricity VISION Inputs'!G$33+'Electricity VISION Inputs'!G38)/8+'Electricity VISION Inputs'!G93 -> 6.078071377 | E30: =('Electricity VISION Inputs'!H$33+'Electricity VISION Inputs'!H38)/8+'Electricity VISION Inputs'!H93 -> 5.900960512 | F30: =('Electricity VISION Inputs'!I$33+'Electricity VISION Inputs'!I38)/8+'Electricity VISION Inputs'!I93 -> 5.984607084 | G30: =('Electricity VISION Inputs'!J$33+'Electricity VISION Inputs'!J38)/8+'Electricity VISION Inputs'!J93 -> 6.039339393 | H30: =('Electricity VISION Inputs'!K$33+'Electricity VISION Inputs'!K38)/8+'Electricity VISION Inputs'!K93 -> 6.239937952 | I30: =('Electricity VISION Inputs'!L$33+'Electricity VISION Inputs'!L38)/8+'Electricity VISION Inputs'!L93 -> 6.481470025 | J30: =('Electricity VISION Inputs'!M$33+'Electricity VISION Inputs'!M38)/8+'Electricity VISION Inputs'!M93 -> 6.778323195 | K30: see Electricity VISION Inputs
A31: $/kWh | B31: =B30/$R$5 -> 0.1913961607 | C31: 0.1768284183 | D31: 0.1659133968 | E31: 0.1610787932 | F31: 0.1633620976 | G31: 0.164856128 | H31: 0.1703318762 | I31: 0.1769249884 | J31: 0.1850282032
A32: Reference Case (UC): | L32: UC = Home + Public Charging
A33: Total Fuel Price | K33: Inclusive of distribution & dispensing infrastructure costs
A34: PHEV10 ($/GEG) | B34: =('Electricity VISION Inputs'!E$33+'Electricity VISION Inputs'!E40)/8+'Electricity VISION Inputs'!E89 -> 4.949429901 | C34: =('Electricity VISION Inputs'!F$33+'Electricity VISION Inputs'!F40)/8+'Electricity VISION Inputs'!F89 -> 5.995704108 | D34: =('Electricity VISION Inputs'!G$33+'Electricity VISION Inputs'!G40)/8+'Electricity VISION Inputs'!G89 -> 5.740827773 | E34: =('Electricity VISION Inputs'!H$33+'Electricity VISION Inputs'!H40)/8+'Electricity VISION Inputs'!H89 -> 5.547523447 | F34: =('Electricity VISION Inputs'!I$33+'Electricity VISION Inputs'!I40)/8+'Electricity VISION Inputs'!I89 -> 5.702026713 | G34: =('Electricity VISION Inputs'!J$33+'Electricity VISION Inputs'!J40)/8+'Electricity VISION Inputs'!J89 -> 5.84592939 | H34: =('Electricity VISION Inputs'!K$33+'Electricity VISION Inputs'!K40)/8+'Electricity VISION Inputs'!K89 -> 6.11070273 | I34: =('Electricity VISION Inputs'!L$33+'Electricity VISION Inputs'!L40)/8+'Electricity VISION Inputs'!L89 -> 6.405702868 | J34: =('Electricity VISION Inputs'!M$33+'Electricity VISION Inputs'!M40)/8+'Electricity VISION Inputs'!M89 -> 6.739051707 | K34: see Electricity VISION Inputs | L34: Ref oil (AEO2010) transportation rates + tax + ubiquitous charging costs
A35: $/kWh | B35: =B34/$R$5 -> 0.135104818 | C35: 0.1636650136 | D35: 0.1567076424 | E35: 0.1514310053 | F35: 0.1556484881 | G35: 0.1595766062 | H35: 0.1668041363 | I35: 0.1748567688 | J35: 0.1839562075
A36: PHEV40 ($/GEG) | B36: =('Electricity VISION Inputs'!E$33+'Electricity VISION Inputs'!E41)/8+'Electricity VISION Inputs'!E91 -> 5.003886059 | C36: =('Electricity VISION Inputs'!F$33+'Electricity VISION Inputs'!F41)/8+'Electricity VISION Inputs'!F91 -> 5.897033684 | D36: =('Electricity VISION Inputs'!G$33+'Electricity VISION Inputs'!G41)/8+'Electricity VISION Inputs'!G91 -> 5.636238034 | E36: =('Electricity VISION Inputs'!H$33+'Electricity VISION Inputs'!H41)/8+'Electricity VISION Inputs'!H91 -> 5.467859386 | F36: =('Electricity VISION Inputs'!I$33+'Electricity VISION Inputs'!I41)/8+'Electricity VISION Inputs'!I91 -> 5.601121051 | G36: =('Electricity VISION Inputs'!J$33+'Electricity VISION Inputs'!J41)/8+'Electricity VISION Inputs'!J91 -> 5.721506186 | H36: =('Electricity VISION Inputs'!K$33+'Electricity VISION Inputs'!K41)/8+'Electricity VISION Inputs'!K91 -> 5.96608266 | I36: =('Electricity VISION Inputs'!L$33+'Electricity VISION Inputs'!L41)/8+'Electricity VISION Inputs'!L91 -> 6.245037033 | J36: =('Electricity VISION Inputs'!M$33+'Electricity VISION Inputs'!M41)/8+'Electricity VISION Inputs'!M91 -> 6.570572685 | K36: see Electricity VISION Inputs
A37: $/kWh | B37: =B36/$R$5 -> 0.1365913102 | C37: 0.1609716024 | D37: 0.1538526515 | E37: 0.1492564117 | F37: 0.1528940616 | G37: 0.1561802202 | H37: 0.1628564356 | I37: 0.170471066 | J37: 0.1793572278
A38: BEV100 ($/GEG) | B38: =('Electricity VISION Inputs'!E$33+'Electricity VISION Inputs'!E42)/8+'Electricity VISION Inputs'!E93 -> 7.0204382 | C38: =('Electricity VISION Inputs'!F$33+'Electricity VISION Inputs'!F42)/8+'Electricity VISION Inputs'!F93 -> 6.485204742 | D38: =('Electricity VISION Inputs'!G$33+'Electricity VISION Inputs'!G42)/8+'Electricity VISION Inputs'!G93 -> 6.083975107 | E38: =('Electricity VISION Inputs'!H$33+'Electricity VISION Inputs'!H42)/8+'Electricity VISION Inputs'!H93 -> 5.905781527 | F38: =('Electricity VISION Inputs'!I$33+'Electricity VISION Inputs'!I42)/8+'Electricity VISION Inputs'!I93 -> 5.989178302 | G38: =('Electricity VISION Inputs'!J$33+'Electricity VISION Inputs'!J42)/8+'Electricity VISION Inputs'!J93 -> 6.043697939 | H38: =('Electricity VISION Inputs'!K$33+'Electricity VISION Inputs'!K42)/8+'Electricity VISION Inputs'!K93 -> 6.244142403 | I38: =('Electricity VISION Inputs'!L$33+'Electricity VISION Inputs'!L42)/8+'Electricity VISION Inputs'!L93 -> 6.485529384 | J38: =('Electricity VISION Inputs'!M$33+'Electricity VISION Inputs'!M42)/8+'Electricity VISION Inputs'!M93 -> 6.782244117 | K38: see Electricity VISION Inputs
A39: $/kWh | B39: =B38/$R$5 -> 0.1916372277 | C39: 0.1770269352 | D39: 0.1660745512 | E39: 0.1612103927 | F39: 0.1634868784 | G39: 0.1649751034 | H39: 0.1704466453 | I39: 0.1770357969 | J39: 0.1851352327
A41: Low Oil Case (HC): | L41: HC = Home Charging Only
A42: Total Fuel Price | K42: Inclusive of distribution & dispensing infrastructure costs
A43: PHEV10 ($/GEG) | B43: =('Electricity VISION Inputs'!E$49+'Electricity VISION Inputs'!E52)/8+'Electricity VISION Inputs'!E89 -> 4.95572791 | C43: =('Electricity VISION Inputs'!F$49+'Electricity VISION Inputs'!F52)/8+'Electricity VISION Inputs'!F89 -> 5.673618407 | D43: =('Electricity VISION Inputs'!G$49+'Electricity VISION Inputs'!G52)/8+'Electricity VISION Inputs'!G89 -> 5.491703381 | E43: =('Electricity VISION Inputs'!H$49+'Electricity VISION Inputs'!H52)/8+'Electricity VISION Inputs'!H89 -> 5.403406041 | F43: =('Electricity VISION Inputs'!I$49+'Electricity VISION Inputs'!I52)/8+'Electricity VISION Inputs'!I89 -> 5.362838344 | G43: =('Electricity VISION Inputs'!J$49+'Electricity VISION Inputs'!J52)/8+'Electricity VISION Inputs'!J89 -> 5.394124339 | H43: =('Electricity VISION Inputs'!K$49+'Electricity VISION Inputs'!K52)/8+'Electricity VISION Inputs'!K89 -> 5.546493483 | I43: =('Electricity VISION Inputs'!L$49+'Electricity VISION Inputs'!L52)/8+'Electricity VISION Inputs'!L89 -> 5.727954444 | J43: =('Electricity VISION Inputs'!M$49+'Electricity VISION Inputs'!M52)/8+'Electricity VISION Inputs'!M89 -> 5.947611087 | K43: see Electricity VISION Inputs | L43: Low oil (AEO2010) transportation rates + tax + home charging costs
A44: $/kWh | B44: =B43/$R$5 -> 0.135276735 | C44: 0.1548730253 | D44: 0.1499072823 | E44: 0.1474970257 | F44: 0.1463896474 | G44: 0.1472436627 | H44: 0.1514028903 | I44: 0.1563562386 | J44: 0.1623522162
A45: PHEV40 ($/GEG) | B45: =('Electricity VISION Inputs'!E$49+'Electricity VISION Inputs'!E53)/8+'Electricity VISION Inputs'!E91 -> 5.010184068 | C45: =('Electricity VISION Inputs'!F$49+'Electricity VISION Inputs'!F53)/8+'Electricity VISION Inputs'!F91 -> 5.918184463 | D45: =('Electricity VISION Inputs'!G$49+'Electricity VISION Inputs'!G53)/8+'Electricity VISION Inputs'!G91 -> 5.68103512 | E45: =('Electricity VISION Inputs'!H$49+'Electricity VISION Inputs'!H53)/8+'Electricity VISION Inputs'!H91 -> 5.544235718 | F45: =('Electricity VISION Inputs'!I$49+'Electricity VISION Inputs'!I53)/8+'Electricity VISION Inputs'!I91 -> 5.486107444 | G45: =('Electricity VISION Inputs'!J$49+'Electricity VISION Inputs'!J53)/8+'Electricity VISION Inputs'!J91 -> 5.50196848 | H45: =('Electricity VISION Inputs'!K$49+'Electricity VISION Inputs'!K53)/8+'Electricity VISION Inputs'!K91 -> 5.643624443 | I45: =('Electricity VISION Inputs'!L$49+'Electricity VISION Inputs'!L53)/8+'Electricity VISION Inputs'!L91 -> 5.815725848 | J45: =('Electricity VISION Inputs'!M$49+'Electricity VISION Inputs'!M53)/8+'Electricity VISION Inputs'!M91 -> 6.030089131 | K45: see Electricity VISION Inputs
A46: $/kWh | B46: =B45/$R$5 -> 0.1367632273 | C46: 0.1615489563 | D46: 0.1550754796 | E46: 0.15134126 | F46: 0.1497545298 | G46: 0.1501874892 | H46: 0.1540542786 | I46: 0.1587521387 | J46: 0.1646036232
A47: BEV100 ($/GEG) | B47: =('Electricity VISION Inputs'!E$49+'Electricity VISION Inputs'!E54)/8+'Electricity VISION Inputs'!E93 -> 7.017904959 | C47: =('Electricity VISION Inputs'!F$49+'Electricity VISION Inputs'!F54)/8+'Electricity VISION Inputs'!F93 -> 6.372965343 | D47: =('Electricity VISION Inputs'!G$49+'Electricity VISION Inputs'!G54)/8+'Electricity VISION Inputs'!G93 -> 6.023472387 | E47: =('Electricity VISION Inputs'!H$49+'Electricity VISION Inputs'!H54)/8+'Electricity VISION Inputs'!H93 -> 5.885132199 | F47: =('Electricity VISION Inputs'!I$49+'Electricity VISION Inputs'!I54)/8+'Electricity VISION Inputs'!I93 -> 5.801750722 | G47: =('Electricity VISION Inputs'!J$49+'Electricity VISION Inputs'!J54)/8+'Electricity VISION Inputs'!J93 -> 5.777813501 | H47: =('Electricity VISION Inputs'!K$49+'Electricity VISION Inputs'!K54)/8+'Electricity VISION Inputs'!K93 -> 5.900692069 | I47: =('Electricity VISION Inputs'!L$49+'Electricity VISION Inputs'!L54)/8+'Electricity VISION Inputs'!L93 -> 6.057728797 | J47: =('Electricity VISION Inputs'!M$49+'Electricity VISION Inputs'!M54)/8+'Electricity VISION Inputs'!M93 -> 6.260994927 | K47: see Electricity VISION Inputs
A48: $/kWh | B48: =B47/$R$5 -> 0.1915680777 | C48: 0.173963131 | D48: 0.1644230056 | E48: 0.160646727 | F48: 0.158370659 | G48: 0.1577172436 | H48: 0.1610714655 | I48: 0.1653581044 | J48: 0.1709066694
A49: Low Oil Case (UC): | L49: UC = Home + Public Charging
A50: Total Fuel Price | K50: Inclusive of distribution & dispensing infrastructure costs
A51: PHEV10 ($/GEG) | B51: =('Electricity VISION Inputs'!E$49+'Electricity VISION Inputs'!E56)/8+'Electricity VISION Inputs'!E89 -> 4.95572791 | C51: =('Electricity VISION Inputs'!F$49+'Electricity VISION Inputs'!F56)/8+'Electricity VISION Inputs'!F89 -> 5.890737173 | D51: =('Electricity VISION Inputs'!G$49+'Electricity VISION Inputs'!G56)/8+'Electricity VISION Inputs'!G89 -> 5.686228783 | E51: =('Electricity VISION Inputs'!H$49+'Electricity VISION Inputs'!H56)/8+'Electricity VISION Inputs'!H89 -> 5.531695134 | F51: =('Electricity VISION Inputs'!I$49+'Electricity VISION Inputs'!I56)/8+'Electricity VISION Inputs'!I89 -> 5.519170351 | G51: =('Electricity VISION Inputs'!J$49+'Electricity VISION Inputs'!J56)/8+'Electricity VISION Inputs'!J89 -> 5.584403499 | H51: =('Electricity VISION Inputs'!K$49+'Electricity VISION Inputs'!K56)/8+'Electricity VISION Inputs'!K89 -> 5.771456846 | I51: =('Electricity VISION Inputs'!L$49+'Electricity VISION Inputs'!L56)/8+'Electricity VISION Inputs'!L89 -> 5.981961639 | J51: =('Electricity VISION Inputs'!M$49+'Electricity VISION Inputs'!M56)/8+'Electricity VISION Inputs'!M89 -> 6.22172344 | K51: see Electricity VISION Inputs | L51: Low oil (AEO2010) transportation rates + tax + ubiquitous charging costs
A52: $/kWh | B52: =B51/$R$5 -> 0.135276735 | C52: 0.1607997263 | D52: 0.1552172513 | E52: 0.1509989391 | F52: 0.1506570495 | G52: 0.1524377218 | H52: 0.1575437257 | I52: 0.1632898848 | J52: 0.1698346738
A53: PHEV40 ($/GEG) | B53: =('Electricity VISION Inputs'!E$49+'Electricity VISION Inputs'!E57)/8+'Electricity VISION Inputs'!E91 -> 5.010184068 | C53: =('Electricity VISION Inputs'!F$49+'Electricity VISION Inputs'!F57)/8+'Electricity VISION Inputs'!F91 -> 5.792066749 | D53: =('Electricity VISION Inputs'!G$49+'Electricity VISION Inputs'!G57)/8+'Electricity VISION Inputs'!G91 -> 5.581639044 | E53: =('Electricity VISION Inputs'!H$49+'Electricity VISION Inputs'!H57)/8+'Electricity VISION Inputs'!H91 -> 5.452031073 | F53: =('Electricity VISION Inputs'!I$49+'Electricity VISION Inputs'!I57)/8+'Electricity VISION Inputs'!I91 -> 5.418264689 | G53: =('Electricity VISION Inputs'!J$49+'Electricity VISION Inputs'!J57)/8+'Electricity VISION Inputs'!J91 -> 5.459980294 | H53: =('Electricity VISION Inputs'!K$49+'Electricity VISION Inputs'!K57)/8+'Electricity VISION Inputs'!K91 -> 5.626836777 | I53: =('Electricity VISION Inputs'!L$49+'Electricity VISION Inputs'!L57)/8+'Electricity VISION Inputs'!L91 -> 5.821295805 | J53: =('Electricity VISION Inputs'!M$49+'Electricity VISION Inputs'!M57)/8+'Electricity VISION Inputs'!M91 -> 6.053244418 | K53: see Electricity VISION Inputs
A54: $/kWh | B54: =B53/$R$5 -> 0.1367632273 | C54: 0.1581063152 | D54: 0.1523622603 | E54: 0.1488243455 | F54: 0.1479026229 | G54: 0.1490413358 | H54: 0.1535960249 | I54: 0.158904182 | J54: 0.1652356941
A55: BEV100 ($/GEG) | B55: =('Electricity VISION Inputs'!E$49+'Electricity VISION Inputs'!E58)/8+'Electricity VISION Inputs'!E93 -> 7.026736209 | C55: =('Electricity VISION Inputs'!F$49+'Electricity VISION Inputs'!F58)/8+'Electricity VISION Inputs'!F93 -> 6.380237808 | D55: =('Electricity VISION Inputs'!G$49+'Electricity VISION Inputs'!G58)/8+'Electricity VISION Inputs'!G93 -> 6.029376117 | E55: =('Electricity VISION Inputs'!H$49+'Electricity VISION Inputs'!H58)/8+'Electricity VISION Inputs'!H93 -> 5.889953214 | F55: =('Electricity VISION Inputs'!I$49+'Electricity VISION Inputs'!I58)/8+'Electricity VISION Inputs'!I93 -> 5.80632194 | G55: =('Electricity VISION Inputs'!J$49+'Electricity VISION Inputs'!J58)/8+'Electricity VISION Inputs'!J93 -> 5.782172047 | H55: =('Electricity VISION Inputs'!K$49+'Electricity VISION Inputs'!K58)/8+'Electricity VISION Inputs'!K93 -> 5.90489652 | I55: =('Electricity VISION Inputs'!L$49+'Electricity VISION Inputs'!L58)/8+'Electricity VISION Inputs'!L93 -> 6.061788156 | J55: =('Electricity VISION Inputs'!M$49+'Electricity VISION Inputs'!M58)/8+'Electricity VISION Inputs'!M93 -> 6.264915849 | K55: see Electricity VISION Inputs
A56: $/kWh | B56: =B55/$R$5 -> 0.1918091448 | C56: 0.1741616479 | D56: 0.16458416 | E56: 0.1607783265 | F56: 0.1584954398 | G56: 0.157836219 | H56: 0.1611862346 | I56: 0.1654689129 | J56: 0.171013699
A58: Low GHG Case (HC) | L58: HC = Home Charging Only
A59: Total Fuel Price | K59: Inclusive of distribution & dispensing infrastructure costs
A60: PHEV10 ($/GEG) | B60: =('Electricity VISION Inputs'!E$66+'Electricity VISION Inputs'!E69)/8+'Electricity VISION Inputs'!E89 -> 4.879971433 | C60: =('Electricity VISION Inputs'!F$66+'Electricity VISION Inputs'!F69)/8+'Electricity VISION Inputs'!F89 -> 6.25743077 | D60: =('Electricity VISION Inputs'!G$66+'Electricity VISION Inputs'!G69)/8+'Electricity VISION Inputs'!G89 -> 6.199573058 | E60: =('Electricity VISION Inputs'!H$66+'Electricity VISION Inputs'!H69)/8+'Electricity VISION Inputs'!H89 -> 6.459370001 | F60: =('Electricity VISION Inputs'!I$66+'Electricity VISION Inputs'!I69)/8+'Electricity VISION Inputs'!I89 -> 6.685401064 | G60: =('Electricity VISION Inputs'!J$66+'Electricity VISION Inputs'!J69)/8+'Electricity VISION Inputs'!J89 -> 6.9112033 | H60: =('Electricity VISION Inputs'!K$66+'Electricity VISION Inputs'!K69)/8+'Electricity VISION Inputs'!K89 -> 7.268167272 | I60: =('Electricity VISION Inputs'!L$66+'Electricity VISION Inputs'!L69)/8+'Electricity VISION Inputs'!L89 -> 7.67303418 | J60: =('Electricity VISION Inputs'!M$66+'Electricity VISION Inputs'!M69)/8+'Electricity VISION Inputs'!M89 -> 8.1383214 | K60: see Electricity VISION Inputs | L60: Low GHG (AEO2011) transportation rates + tax + home charging costs
A61: $/kWh | B61: =B60/$R$5 -> 0.1332088069 | C61: 0.1708093784 | D61: 0.1692300338 | E61: 0.176321723 | F61: 0.1824917035 | G61: 0.1886554376 | H61: 0.1983994997 | I61: 0.2094511705 | J61: 0.2221521374
A62: PHEV40 ($/GEG) | B62: =('Electricity VISION Inputs'!E$66+'Electricity VISION Inputs'!E70)/8+'Electricity VISION Inputs'!E91 -> 4.934427591 | C62: =('Electricity VISION Inputs'!F$66+'Electricity VISION Inputs'!F70)/8+'Electricity VISION Inputs'!F91 -> 6.501996826 | D62: =('Electricity VISION Inputs'!G$66+'Electricity VISION Inputs'!G70)/8+'Electricity VISION Inputs'!G91 -> 6.388904797 | E62: =('Electricity VISION Inputs'!H$66+'Electricity VISION Inputs'!H70)/8+'Electricity VISION Inputs'!H91 -> 6.600199678 | F62: =('Electricity VISION Inputs'!I$66+'Electricity VISION Inputs'!I70)/8+'Electricity VISION Inputs'!I91 -> 6.808670165 | G62: =('Electricity VISION Inputs'!J$66+'Electricity VISION Inputs'!J70)/8+'Electricity VISION Inputs'!J91 -> 7.019047441 | H62: =('Electricity VISION Inputs'!K$66+'Electricity VISION Inputs'!K70)/8+'Electricity VISION Inputs'!K91 -> 7.365298232 | I62: =('Electricity VISION Inputs'!L$66+'Electricity VISION Inputs'!L70)/8+'Electricity VISION Inputs'!L91 -> 7.760805584 | J62: =('Electricity VISION Inputs'!M$66+'Electricity VISION Inputs'!M70)/8+'Electricity VISION Inputs'!M91 -> 8.220799445 | K62: see Electricity VISION Inputs
A63: $/kWh | B63: =B62/$R$5 -> 0.1346952992 | C63: 0.1774853094 | D63: 0.1743982311 | E63: 0.1801659573 | F63: 0.1858565858 | G63: 0.1915992641 | H63: 0.201050888 | I63: 0.2118470706 | J63: 0.2244035444
A64: BEV100 ($/GEG) | B64: =('Electricity VISION Inputs'!E$66+'Electricity VISION Inputs'!E71)/8+'Electricity VISION Inputs'!E93 -> 6.942148481 | C64: =('Electricity VISION Inputs'!F$66+'Electricity VISION Inputs'!F71)/8+'Electricity VISION Inputs'!F93 -> 6.956777705 | D64: =('Electricity VISION Inputs'!G$66+'Electricity VISION Inputs'!G71)/8+'Electricity VISION Inputs'!G93 -> 6.731342064 | E64: =('Electricity VISION Inputs'!H$66+'Electricity VISION Inputs'!H71)/8+'Electricity VISION Inputs'!H93 -> 6.941096159 | F64: =('Electricity VISION Inputs'!I$66+'Electricity VISION Inputs'!I71)/8+'Electricity VISION Inputs'!I93 -> 7.124313443 | G64: =('Electricity VISION Inputs'!J$66+'Electricity VISION Inputs'!J71)/8+'Electricity VISION Inputs'!J93 -> 7.294892462 | H64: =('Electricity VISION Inputs'!K$66+'Electricity VISION Inputs'!K71)/8+'Electricity VISION Inputs'!K93 -> 7.622365857 | I64: =('Electricity VISION Inputs'!L$66+'Electricity VISION Inputs'!L71)/8+'Electricity VISION Inputs'!L93 -> 8.002808534 | J64: =('Electricity VISION Inputs'!M$66+'Electricity VISION Inputs'!M71)/8+'Electricity VISION Inputs'!M93 -> 8.451705241 | K64: see Electricity VISION Inputs
A65: $/kWh | B65: =B64/$R$5 -> 0.1895001496 | C65: 0.1898994842 | D65: 0.1837457571 | E65: 0.1894714243 | F65: 0.194472715 | G65: 0.1991290185 | H65: 0.2080680749 | I65: 0.2184530363 | J65: 0.2307065906
A66: Low GHG Case (UC) | L66: UC = Home + Public Charging
A67: Total Fuel Price | K67: Inclusive of distribution & dispensing infrastructure costs
A68: PHEV10 ($/GEG) | B68: =('Electricity VISION Inputs'!E$66+'Electricity VISION Inputs'!E73)/8+'Electricity VISION Inputs'!E89 -> 4.879971433 | C68: =('Electricity VISION Inputs'!F$66+'Electricity VISION Inputs'!F73)/8+'Electricity VISION Inputs'!F89 -> 6.474549536 | D68: =('Electricity VISION Inputs'!G$66+'Electricity VISION Inputs'!G73)/8+'Electricity VISION Inputs'!G89 -> 6.39409846 | E68: =('Electricity VISION Inputs'!H$66+'Electricity VISION Inputs'!H73)/8+'Electricity VISION Inputs'!H89 -> 6.587659095 | F68: =('Electricity VISION Inputs'!I$66+'Electricity VISION Inputs'!I73)/8+'Electricity VISION Inputs'!I89 -> 6.841733072 | G68: =('Electricity VISION Inputs'!J$66+'Electricity VISION Inputs'!J73)/8+'Electricity VISION Inputs'!J89 -> 7.10148246 | H68: =('Electricity VISION Inputs'!K$66+'Electricity VISION Inputs'!K73)/8+'Electricity VISION Inputs'!K89 -> 7.493130635 | I68: =('Electricity VISION Inputs'!L$66+'Electricity VISION Inputs'!L73)/8+'Electricity VISION Inputs'!L89 -> 7.927041376 | J68: =('Electricity VISION Inputs'!M$66+'Electricity VISION Inputs'!M73)/8+'Electricity VISION Inputs'!M89 -> 8.412433754 | K68: see Electricity VISION Inputs | L68: Low GHG (AEO2011) transportation rates + tax + ubiquitous charging costs
A69: $/kWh | B69: =B68/$R$5 -> 0.1332088069 | C69: =C68/$R$5 -> 0.1767360795 | D69: =D68/$R$5 -> 0.1745400027 | E69: =E68/$R$5 -> 0.1798236364 | F69: =F68/$R$5 -> 0.1867591055 | G69: =G68/$R$5 -> 0.1938494966 | H69: =H68/$R$5 -> 0.2045403351 | I69: =I68/$R$5 -> 0.2163848167 | J69: =J68/$R$5 -> 0.229634595
A70: PHEV40 ($/GEG) | B70: =('Electricity VISION Inputs'!E$66+'Electricity VISION Inputs'!E74)/8+'Electricity VISION Inputs'!E91 -> 4.934427591 | C70: =('Electricity VISION Inputs'!F$66+'Electricity VISION Inputs'!F74)/8+'Electricity VISION Inputs'!F91 -> 6.375879112 | D70: =('Electricity VISION Inputs'!G$66+'Electricity VISION Inputs'!G74)/8+'Electricity VISION Inputs'!G91 -> 6.289508721 | E70: =('Electricity VISION Inputs'!H$66+'Electricity VISION Inputs'!H74)/8+'Electricity VISION Inputs'!H91 -> 6.507995033 | F70: =('Electricity VISION Inputs'!I$66+'Electricity VISION Inputs'!I74)/8+'Electricity VISION Inputs'!I91 -> 6.74082741 | G70: =('Electricity VISION Inputs'!J$66+'Electricity VISION Inputs'!J74)/8+'Electricity VISION Inputs'!J91 -> 6.977059255 | H70: =('Electricity VISION Inputs'!K$66+'Electricity VISION Inputs'!K74)/8+'Electricity VISION Inputs'!K91 -> 7.348510566 | I70: =('Electricity VISION Inputs'!L$66+'Electricity VISION Inputs'!L74)/8+'Electricity VISION Inputs'!L91 -> 7.766375541 | J70: =('Electricity VISION Inputs'!M$66+'Electricity VISION Inputs'!M74)/8+'Electricity VISION Inputs'!M91 -> 8.243954731 | K70: see Electricity VISION Inputs
A71: $/kWh | B71: =B70/$R$5 -> 0.1346952992 | C71: =C70/$R$5 -> 0.1740426683 | D71: =D70/$R$5 -> 0.1716850118 | E71: =E70/$R$5 -> 0.1776490428 | F71: =F70/$R$5 -> 0.184004679 | G71: =G70/$R$5 -> 0.1904531106 | H71: =H70/$R$5 -> 0.2005926343 | I71: =I70/$R$5 -> 0.211999114 | J71: =J70/$R$5 -> 0.2250356153
A72: BEV100 ($/GEG) | B72: =('Electricity VISION Inputs'!E$66+'Electricity VISION Inputs'!E75)/8+'Electricity VISION Inputs'!E93 -> 6.950979732 | C72: =('Electricity VISION Inputs'!F$66+'Electricity VISION Inputs'!F75)/8+'Electricity VISION Inputs'!F93 -> 6.96405017 | D72: =('Electricity VISION Inputs'!G$66+'Electricity VISION Inputs'!G75)/8+'Electricity VISION Inputs'!G93 -> 6.737245794 | E72: =('Electricity VISION Inputs'!H$66+'Electricity VISION Inputs'!H75)/8+'Electricity VISION Inputs'!H93 -> 6.945917174 | F72: =('Electricity VISION Inputs'!I$66+'Electricity VISION Inputs'!I75)/8+'Electricity VISION Inputs'!I93 -> 7.128884661 | G72: =('Electricity VISION Inputs'!J$66+'Electricity VISION Inputs'!J75)/8+'Electricity VISION Inputs'!J93 -> 7.299251009 | H72: =('Electricity VISION Inputs'!K$66+'Electricity VISION Inputs'!K75)/8+'Electricity VISION Inputs'!K93 -> 7.626570308 | I72: =('Electricity VISION Inputs'!L$66+'Electricity VISION Inputs'!L75)/8+'Electricity VISION Inputs'!L93 -> 8.006867892 | J72: =('Electricity VISION Inputs'!M$66+'Electricity VISION Inputs'!M75)/8+'Electricity VISION Inputs'!M93 -> 8.455626163 | K72: see Electricity VISION Inputs
A73: $/kWh | B73: =B72/$R$5 -> 0.1897412167 | C73: =C72/$R$5 -> 0.1900980011 | D73: =D72/$R$5 -> 0.1839069115 | E73: =E72/$R$5 -> 0.1896030238 | F73: =F72/$R$5 -> 0.1945974958 | G73: =G72/$R$5 -> 0.1992479939 | H73: =H72/$R$5 -> 0.208182844 | I73: =I72/$R$5 -> 0.2185638449 | J73: =J72/$R$5 -> 0.2308136202

Sheet Elec Dist & Disp
A1: DRAFT - Do not Cite or Quote. For NPC Study Discussion Only
A2: Source: Jaycie Chitwood (Electric Sub-group)
A3: Range of Charging Electricity Distribution and Dispensing Costs for VISION and VCM modeling
A5: All Prices in 2008$/GEG | B5: 2010 | C5: =B5+5 -> 2015 | D5: =C5+5 -> 2020 | E5: 2025 | F5: 2030 | G5: 2035 | H5: 2040 | I5: 2045 | J5: 2050 | K5: Comments | L5: kWh per 125,000 BTU | R5: =36.634 -> 36.634
A7: High Oil Case (HC): | L7: HC = Home Charging Only
A8: Distribution and Dispensing
A9: PHEV10 ($/GEG) | B9: ='Electricity VISION Inputs'!E$14/8 -> 0 | C9: ='Electricity VISION Inputs'!F$14/8 -> 1.054098298 | D9: ='Electricity VISION Inputs'!G$14/8 -> 0.8590719882 | E9: ='Electricity VISION Inputs'!H$14/8 -> 0.7711491888 | F9: ='Electricity VISION Inputs'!I$14/8 -> 0.6348625121 | G9: ='Electricity VISION Inputs'!J$14/8 -> 0.4948564731 | H9: ='Electricity VISION Inputs'!K$14/8 -> 0.3613871097 | I9: ='Electricity VISION Inputs'!L$14/8 -> 0.2424102357 | J9: ='Electricity VISION Inputs'!M$14/8 -> 0.1472913978 | K9: see Electricity VISION Inputs
A10: $/kWh | B10: =B9/$R$5 -> 0 | C10: =C9/$R$5 -> 0.02877377021 | D10: 0.02345012797 | E10: 0.02105009524 | F10: 0.01732987149 | G10: 0.01350812014 | H10: 0.009864800724 | I10: 0.006617083467 | J10: 0.004020620129
A11: PHEV40 ($/GEG) | B11: ='Electricity VISION Inputs'!E$16/8 -> 0 | C11: ='Electricity VISION Inputs'!F$16/8 -> 1.245964224 | D11: ='Electricity VISION Inputs'!G$16/8 -> 1.002636239 | E11: ='Electricity VISION Inputs'!H$16/8 -> 0.8642467559 | F11: ='Electricity VISION Inputs'!I$16/8 -> 0.7116810523 | G11: ='Electricity VISION Inputs'!J$16/8 -> 0.555742642 | H11: ='Electricity VISION Inputs'!K$16/8 -> 0.406599549 | I11: ='Electricity VISION Inputs'!L$16/8 -> 0.2732110651 | J11: ='Electricity VISION Inputs'!M$16/8 -> 0.166438276 | K11: see Electricity VISION Inputs
A12: $/kWh | B12: =B11/$R$5 -> 0 | C12: 0.0340111433 | D12: 0.027369008 | E12: 0.02359138385 | F12: 0.01942679075 | G12: 0.01517013272 | H12: 0.01109896678 | I12: 0.007457855137 | J12: 0.004543273351
A13: BEV100 ($/GEG) | B13: ='Electricity VISION Inputs'!E$18/8 -> 1.824092338 | C13: ='Electricity VISION Inputs'!F$18/8 -> 1.523037951 | D13: ='Electricity VISION Inputs'!G$18/8 -> 1.197861489 | E13: ='Electricity VISION Inputs'!H$18/8 -> 1.040801599 | F13: ='Electricity VISION Inputs'!I$18/8 -> 0.8617458221 | G13: ='Electricity VISION Inputs'!J$18/8 -> 0.6722832361 | H13: ='Electricity VISION Inputs'!K$18/8 -> 0.4927276738 | I13: ='Electricity VISION Inputs'!L$18/8 -> 0.331964385 | J13: ='Electricity VISION Inputs'!M$18/8 -> 0.202774122 | K13: see Electricity VISION Inputs
A14: $/kWh | B14: =B13/$R$5 -> 0.04979233329 | C14: 0.04157443772 | D14: 0.0326980807 | E14: 0.0284108096 | F14: 0.02352311574 | G14: 0.01835134673 | H14: 0.0134500102 | I14: 0.009061647239 | J14: 0.005535134628
A15: High Oil Case (UC): | L15: UC = Home + Public Charging
A16: Distribution and Dispensing
A17: PHEV10 ($/GEG) | B17: ='Electricity VISION Inputs'!E$21/8 -> 0 | C17: ='Electricity VISION Inputs'!F$21/8 -> 1.271217064 | D17: ='Electricity VISION Inputs'!G$21/8 -> 1.05359739 | E17: ='Electricity VISION Inputs'!H$21/8 -> 0.8994382824 | F17: ='Electricity VISION Inputs'!I$21/8 -> 0.7911945194 | G17: ='Electricity VISION Inputs'!J$21/8 -> 0.6851356331 | H17: ='Electricity VISION Inputs'!K$21/8 -> 0.5863504732 | I17: ='Electricity VISION Inputs'!L$21/8 -> 0.4964174316 | J17: ='Electricity VISION Inputs'!M$21/8 -> 0.4214037511 | K17: see Electricity VISION Inputs
A18: $/kWh | B18: =B17/$R$5 -> 0 | C18: 0.03470047125 | D18: 0.02876009691 | E18: 0.02455200858 | F18: 0.02159727355 | G18: 0.01870217921 | H18: 0.01600563611 | I18: 0.01355072969 | J18: 0.01150307777
A19: PHEV40 ($/GEG) | B19: ='Electricity VISION Inputs'!E$23/8 -> 0 | C19: ='Electricity VISION Inputs'!F$23/8 -> 1.11984651 | D19: ='Electricity VISION Inputs'!G$23/8 -> 0.9032401631 | E19: ='Electricity VISION Inputs'!H$23/8 -> 0.7720421111 | F19: ='Electricity VISION Inputs'!I$23/8 -> 0.643838297 | G19: ='Electricity VISION Inputs'!J$23/8 -> 0.5137544558 | H19: ='Electricity VISION Inputs'!K$23/8 -> 0.3898118828 | I19: ='Electricity VISION Inputs'!L$23/8 -> 0.2787810224 | J19: ='Electricity VISION Inputs'!M$23/8 -> 0.1895935627 | K19: see Electricity VISION Inputs
A20: $/kWh | B20: =B19/$R$5 -> 0 | C20: 0.0305685022 | D20: 0.0246557887 | E20: 0.02107446938 | F20: 0.01757488391 | G20: 0.01402397925 | H20: 0.01064071308 | I20: 0.00760989852 | J20: 0.005175344289
A21: BEV100 ($/GEG) | B21: ='Electricity VISION Inputs'!E$25/8 -> 1.832923588 | C21: ='Electricity VISION Inputs'!F$25/8 -> 1.530310417 | D21: ='Electricity VISION Inputs'!G$25/8 -> 1.203765219 | E21: ='Electricity VISION Inputs'!H$25/8 -> 1.045622614 | F21: ='Electricity VISION Inputs'!I$25/8 -> 0.86631704 | G21: ='Electricity VISION Inputs'!J$25/8 -> 0.6766417825 | H21: ='Electricity VISION Inputs'!K$25/8 -> 0.4969321247 | I21: ='Electricity VISION Inputs'!L$25/8 -> 0.3360237437 | J21: ='Electricity VISION Inputs'!M$25/8 -> 0.2066950438 | K21: see Electricity VISION Inputs
A22: $/kWh | B22: =B21/$R$5 -> 0.05003340034 | C22: 0.04177295454 | D22: 0.0328592351 | E22: 0.02854240906 | F22: 0.02364789649 | G22: 0.01847032217 | H22: 0.0135647793 | I22: 0.009172455744 | J22: 0.005642164213
A24: Reference Case (HC): | L24: HC = Home Charging Only
A25: Distribution and Dispensing
A26: PHEV10 ($/GEG) | B26: ='Electricity VISION Inputs'!E$14/8 -> 0 | C26: ='Electricity VISION Inputs'!F$14/8 -> 1.054098298 | D26: ='Electricity VISION Inputs'!G$14/8 -> 0.8590719882 | E26: ='Electricity VISION Inputs'!H$14/8 -> 0.7711491888 | F26: ='Electricity VISION Inputs'!I$14/8 -> 0.6348625121 | G26: ='Electricity VISION Inputs'!J$14/8 -> 0.4948564731 | H26: ='Electricity VISION Inputs'!K$14/8 -> 0.3613871097 | I26: ='Electricity VISION Inputs'!L$14/8 -> 0.2424102357 | J26: ='Electricity VISION Inputs'!M$14/8 -> 0.1472913978 | K26: see Electricity VISION Inputs
A27: $/kWh | B27: =B26/$R$5 -> 0 | C27: =C26/$R$5 -> 0.02877377021 | D27: 0.02345012797 | E27: 0.02105009524 | F27: 0.01732987149 | G27: 0.01350812014 | H27: 0.009864800724 | I27: 0.006617083467 | J27: 0.004020620129
A28: PHEV40 ($/GEG) | B28: ='Electricity VISION Inputs'!E$16/8 -> 0 | C28: ='Electricity VISION Inputs'!F$16/8 -> 1.245964224 | D28: ='Electricity VISION Inputs'!G$16/8 -> 1.002636239 | E28: ='Electricity VISION Inputs'!H$16/8 -> 0.8642467559 | F28: ='Electricity VISION Inputs'!I$16/8 -> 0.7116810523 | G28: ='Electricity VISION Inputs'!J$16/8 -> 0.555742642 | H28: ='Electricity VISION Inputs'!K$16/8 -> 0.406599549 | I28: ='Electricity VISION Inputs'!L$16/8 -> 0.2732110651 | J28: ='Electricity VISION Inputs'!M$16/8 -> 0.166438276 | K28: see Electricity VISION Inputs
A29: $/kWh | B29: =B28/$R$5 -> 0 | C29: 0.0340111433 | D29: 0.027369008 | E29: 0.02359138385 | F29: 0.01942679075 | G29: 0.01517013272 | H29: 0.01109896678 | I29: 0.007457855137 | J29: 0.004543273351
A30: BEV100 ($/GEG) | B30: ='Electricity VISION Inputs'!E$18/8 -> 1.824092338 | C30: ='Electricity VISION Inputs'!F$18/8 -> 1.523037951 | D30: ='Electricity VISION Inputs'!G$18/8 -> 1.197861489 | E30: ='Electricity VISION Inputs'!H$18/8 -> 1.040801599 | F30: ='Electricity VISION Inputs'!I$18/8 -> 0.8617458221 | G30: ='Electricity VISION Inputs'!J$18/8 -> 0.6722832361 | H30: ='Electricity VISION Inputs'!K$18/8 -> 0.4927276738 | I30: ='Electricity VISION Inputs'!L$18/8 -> 0.331964385 | J30: ='Electricity VISION Inputs'!M$18/8 -> 0.202774122 | K30: see Electricity VISION Inputs
A31: $/kWh | B31: =B30/$R$5 -> 0.04979233329 | C31: 0.04157443772 | D31: 0.0326980807 | E31: 0.0284108096 | F31: 0.02352311574 | G31: 0.01835134673 | H31: 0.0134500102 | I31: 0.009061647239 | J31: 0.005535134628
A32: Reference Case (UC): | L32: UC = Home + Public Charging
A33: Distribution and Dispensing
A34: PHEV10 ($/GEG) | B34: ='Electricity VISION Inputs'!E$21/8 -> 0 | C34: ='Electricity VISION Inputs'!F$21/8 -> 1.271217064 | D34: ='Electricity VISION Inputs'!G$21/8 -> 1.05359739 | E34: ='Electricity VISION Inputs'!H$21/8 -> 0.8994382824 | F34: ='Electricity VISION Inputs'!I$21/8 -> 0.7911945194 | G34: ='Electricity VISION Inputs'!J$21/8 -> 0.6851356331 | H34: ='Electricity VISION Inputs'!K$21/8 -> 0.5863504732 | I34: ='Electricity VISION Inputs'!L$21/8 -> 0.4964174316 | J34: ='Electricity VISION Inputs'!M$21/8 -> 0.4214037511 | K34: see Electricity VISION Inputs
A35: $/kWh | B35: =B34/$R$5 -> 0 | C35: 0.03470047125 | D35: 0.02876009691 | E35: 0.02455200858 | F35: 0.02159727355 | G35: 0.01870217921 | H35: 0.01600563611 | I35: 0.01355072969 | J35: 0.01150307777
A36: PHEV40 ($/GEG) | B36: ='Electricity VISION Inputs'!E$23/8 -> 0 | C36: ='Electricity VISION Inputs'!F$23/8 -> 1.11984651 | D36: ='Electricity VISION Inputs'!G$23/8 -> 0.9032401631 | E36: ='Electricity VISION Inputs'!H$23/8 -> 0.7720421111 | F36: ='Electricity VISION Inputs'!I$23/8 -> 0.643838297 | G36: ='Electricity VISION Inputs'!J$23/8 -> 0.5137544558 | H36: ='Electricity VISION Inputs'!K$23/8 -> 0.3898118828 | I36: ='Electricity VISION Inputs'!L$23/8 -> 0.2787810224 | J36: ='Electricity VISION Inputs'!M$23/8 -> 0.1895935627 | K36: see Electricity VISION Inputs
A37: $/kWh | B37: =B36/$R$5 -> 0 | C37: 0.0305685022 | D37: 0.0246557887 | E37: 0.02107446938 | F37: 0.01757488391 | G37: 0.01402397925 | H37: 0.01064071308 | I37: 0.00760989852 | J37: 0.005175344289
A38: BEV100 ($/GEG) | B38: ='Electricity VISION Inputs'!E$25/8 -> 1.832923588 | C38: ='Electricity VISION Inputs'!F$25/8 -> 1.530310417 | D38: ='Electricity VISION Inputs'!G$25/8 -> 1.203765219 | E38: ='Electricity VISION Inputs'!H$25/8 -> 1.045622614 | F38: ='Electricity VISION Inputs'!I$25/8 -> 0.86631704 | G38: ='Electricity VISION Inputs'!J$25/8 -> 0.6766417825 | H38: ='Electricity VISION Inputs'!K$25/8 -> 0.4969321247 | I38: ='Electricity VISION Inputs'!L$25/8 -> 0.3360237437 | J38: ='Electricity VISION Inputs'!M$25/8 -> 0.2066950438 | K38: see Electricity VISION Inputs
A39: $/kWh | B39: =B38/$R$5 -> 0.05003340034 | C39: 0.04177295454 | D39: 0.0328592351 | E39: 0.02854240906 | F39: 0.02364789649 | G39: 0.01847032217 | H39: 0.0135647793 | I39: 0.009172455744 | J39: 0.005642164213
A41: Low Oil Case (HC): | L41: HC = Home Charging Only
A42: Distribution and Dispensing
A43: PHEV10 ($/GEG) | B43: ='Electricity VISION Inputs'!E$14/8 -> 0 | C43: ='Electricity VISION Inputs'!F$14/8 -> 1.054098298 | D43: ='Electricity VISION Inputs'!G$14/8 -> 0.8590719882 | E43: ='Electricity VISION Inputs'!H$14/8 -> 0.7711491888 | F43: ='Electricity VISION Inputs'!I$14/8 -> 0.6348625121 | G43: ='Electricity VISION Inputs'!J$14/8 -> 0.4948564731 | H43: ='Electricity VISION Inputs'!K$14/8 -> 0.3613871097 | I43: ='Electricity VISION Inputs'!L$14/8 -> 0.2424102357 | J43: ='Electricity VISION Inputs'!M$14/8 -> 0.1472913978 | K43: see Electricity VISION Inputs
A44: $/kWh | B44: =B43/$R$5 -> 0 | C44: 0.02877377021 | D44: 0.02345012797 | E44: 0.02105009524 | F44: 0.01732987149 | G44: 0.01350812014 | H44: 0.009864800724 | I44: 0.006617083467 | J44: 0.004020620129
A45: PHEV40 ($/GEG) | B45: ='Electricity VISION Inputs'!E$16/8 -> 0 | C45: ='Electricity VISION Inputs'!F$16/8 -> 1.245964224 | D45: ='Electricity VISION Inputs'!G$16/8 -> 1.002636239 | E45: ='Electricity VISION Inputs'!H$16/8 -> 0.8642467559 | F45: ='Electricity VISION Inputs'!I$16/8 -> 0.7116810523 | G45: ='Electricity VISION Inputs'!J$16/8 -> 0.555742642 | H45: ='Electricity VISION Inputs'!K$16/8 -> 0.406599549 | I45: ='Electricity VISION Inputs'!L$16/8 -> 0.2732110651 | J45: ='Electricity VISION Inputs'!M$16/8 -> 0.166438276 | K45: see Electricity VISION Inputs
A46: $/kWh | B46: =B45/$R$5 -> 0 | C46: 0.0340111433 | D46: 0.027369008 | E46: 0.02359138385 | F46: 0.01942679075 | G46: 0.01517013272 | H46: 0.01109896678 | I46: 0.007457855137 | J46: 0.004543273351
A47: BEV100 ($/GEG) | B47: ='Electricity VISION Inputs'!E$18/8 -> 1.824092338 | C47: ='Electricity VISION Inputs'!F$18/8 -> 1.523037951 | D47: ='Electricity VISION Inputs'!G$18/8 -> 1.197861489 | E47: ='Electricity VISION Inputs'!H$18/8 -> 1.040801599 | F47: ='Electricity VISION Inputs'!I$18/8 -> 0.8617458221 | G47: ='Electricity VISION Inputs'!J$18/8 -> 0.6722832361 | H47: ='Electricity VISION Inputs'!K$18/8 -> 0.4927276738 | I47: ='Electricity VISION Inputs'!L$18/8 -> 0.331964385 | J47: ='Electricity VISION Inputs'!M$18/8 -> 0.202774122 | K47: see Electricity VISION Inputs
A48: $/kWh | B48: =B47/$R$5 -> 0.04979233329 | C48: 0.04157443772 | D48: 0.0326980807 | E48: 0.0284108096 | F48: 0.02352311574 | G48: 0.01835134673 | H48: 0.0134500102 | I48: 0.009061647239 | J48: 0.005535134628
A49: Low Oil Case (UC): | L49: UC = Home + Public Charging
A50: Distribution and Dispensing
A51: PHEV10 ($/GEG) | B51: ='Electricity VISION Inputs'!E$21/8 -> 0 | C51: ='Electricity VISION Inputs'!F$21/8 -> 1.271217064 | D51: ='Electricity VISION Inputs'!G$21/8 -> 1.05359739 | E51: ='Electricity VISION Inputs'!H$21/8 -> 0.8994382824 | F51: ='Electricity VISION Inputs'!I$21/8 -> 0.7911945194 | G51: ='Electricity VISION Inputs'!J$21/8 -> 0.6851356331 | H51: ='Electricity VISION Inputs'!K$21/8 -> 0.5863504732 | I51: ='Electricity VISION Inputs'!L$21/8 -> 0.4964174316 | J51: ='Electricity VISION Inputs'!M$21/8 -> 0.4214037511 | K51: see Electricity VISION Inputs
A52: $/kWh | B52: =B51/$R$5 -> 0 | C52: 0.03470047125 | D52: 0.02876009691 | E52: 0.02455200858 | F52: 0.02159727355 | G52: 0.01870217921 | H52: 0.01600563611 | I52: 0.01355072969 | J52: 0.01150307777
A53: PHEV40 ($/GEG) | B53: ='Electricity VISION Inputs'!E$23/8 -> 0 | C53: ='Electricity VISION Inputs'!F$23/8 -> 1.11984651 | D53: ='Electricity VISION Inputs'!G$23/8 -> 0.9032401631 | E53: ='Electricity VISION Inputs'!H$23/8 -> 0.7720421111 | F53: ='Electricity VISION Inputs'!I$23/8 -> 0.643838297 | G53: ='Electricity VISION Inputs'!J$23/8 -> 0.5137544558 | H53: ='Electricity VISION Inputs'!K$23/8 -> 0.3898118828 | I53: ='Electricity VISION Inputs'!L$23/8 -> 0.2787810224 | J53: ='Electricity VISION Inputs'!M$23/8 -> 0.1895935627 | K53: see Electricity VISION Inputs
A54: $/kWh | B54: =B53/$R$5 -> 0 | C54: 0.0305685022 | D54: 0.0246557887 | E54: 0.02107446938 | F54: 0.01757488391 | G54: 0.01402397925 | H54: 0.01064071308 | I54: 0.00760989852 | J54: 0.005175344289
A55: BEV100 ($/GEG) | B55: ='Electricity VISION Inputs'!E$25/8 -> 1.832923588 | C55: ='Electricity VISION Inputs'!F$25/8 -> 1.530310417 | D55: ='Electricity VISION Inputs'!G$25/8 -> 1.203765219 | E55: ='Electricity VISION Inputs'!H$25/8 -> 1.045622614 | F55: ='Electricity VISION Inputs'!I$25/8 -> 0.86631704 | G55: ='Electricity VISION Inputs'!J$25/8 -> 0.6766417825 | H55: ='Electricity VISION Inputs'!K$25/8 -> 0.4969321247 | I55: ='Electricity VISION Inputs'!L$25/8 -> 0.3360237437 | J55: ='Electricity VISION Inputs'!M$25/8 -> 0.2066950438 | K55: see Electricity VISION Inputs
A56: $/kWh | B56: =B55/$R$5 -> 0.05003340034 | C56: 0.04177295454 | D56: 0.0328592351 | E56: 0.02854240906 | F56: 0.02364789649 | G56: 0.01847032217 | H56: 0.0135647793 | I56: 0.009172455744 | J56: 0.005642164213
A58: Low GHG Case (HC) | L58: HC = Home Charging Only
A59: Distribution and Dispensing
A60: PHEV10 ($/GEG) | B60: ='Electricity VISION Inputs'!E$14/8 -> 0 | C60: ='Electricity VISION Inputs'!F$14/8 -> 1.054098298 | D60: ='Electricity VISION Inputs'!G$14/8 -> 0.8590719882 | E60: ='Electricity VISION Inputs'!H$14/8 -> 0.7711491888 | F60: ='Electricity VISION Inputs'!I$14/8 -> 0.6348625121 | G60: ='Electricity VISION Inputs'!J$14/8 -> 0.4948564731 | H60: ='Electricity VISION Inputs'!K$14/8 -> 0.3613871097 | I60: ='Electricity VISION Inputs'!L$14/8 -> 0.2424102357 | J60: ='Electricity VISION Inputs'!M$14/8 -> 0.1472913978 | K60: see Electricity VISION Inputs
A61: $/kWh | B61: =B60/$R$5 -> 0 | C61: 0.02877377021 | D61: 0.02345012797 | E61: 0.02105009524 | F61: 0.01732987149 | G61: 0.01350812014 | H61: 0.009864800724 | I61: 0.006617083467 | J61: 0.004020620129
A62: PHEV40 ($/GEG) | B62: ='Electricity VISION Inputs'!E$16/8 -> 0 | C62: ='Electricity VISION Inputs'!F$16/8 -> 1.245964224 | D62: ='Electricity VISION Inputs'!G$16/8 -> 1.002636239 | E62: ='Electricity VISION Inputs'!H$16/8 -> 0.8642467559 | F62: ='Electricity VISION Inputs'!I$16/8 -> 0.7116810523 | G62: ='Electricity VISION Inputs'!J$16/8 -> 0.555742642 | H62: ='Electricity VISION Inputs'!K$16/8 -> 0.406599549 | I62: ='Electricity VISION Inputs'!L$16/8 -> 0.2732110651 | J62: ='Electricity VISION Inputs'!M$16/8 -> 0.166438276 | K62: see Electricity VISION Inputs
A63: $/kWh | B63: =B62/$R$5 -> 0 | C63: 0.0340111433 | D63: 0.027369008 | E63: 0.02359138385 | F63: 0.01942679075 | G63: 0.01517013272 | H63: 0.01109896678 | I63: 0.007457855137 | J63: 0.004543273351
A64: BEV100 ($/GEG) | B64: ='Electricity VISION Inputs'!E$18/8 -> 1.824092338 | C64: ='Electricity VISION Inputs'!F$18/8 -> 1.523037951 | D64: ='Electricity VISION Inputs'!G$18/8 -> 1.197861489 | E64: ='Electricity VISION Inputs'!H$18/8 -> 1.040801599 | F64: ='Electricity VISION Inputs'!I$18/8 -> 0.8617458221 | G64: ='Electricity VISION Inputs'!J$18/8 -> 0.6722832361 | H64: ='Electricity VISION Inputs'!K$18/8 -> 0.4927276738 | I64: ='Electricity VISION Inputs'!L$18/8 -> 0.331964385 | J64: ='Electricity VISION Inputs'!M$18/8 -> 0.202774122 | K64: see Electricity VISION Inputs
A65: $/kWh | B65: =B64/$R$5 -> 0.04979233329 | C65: 0.04157443772 | D65: 0.0326980807 | E65: 0.0284108096 | F65: 0.02352311574 | G65: 0.01835134673 | H65: 0.0134500102 | I65: 0.009061647239 | J65: 0.005535134628
A66: Low GHG Case (UC) | L66: UC = Home + Public Charging
A67: Distribution and Dispensing
A68: PHEV10 ($/GEG) | B68: ='Electricity VISION Inputs'!E$21/8 -> 0 | C68: ='Electricity VISION Inputs'!F$21/8 -> 1.271217064 | D68: ='Electricity VISION Inputs'!G$21/8 -> 1.05359739 | E68: ='Electricity VISION Inputs'!H$21/8 -> 0.8994382824 | F68: ='Electricity VISION Inputs'!I$21/8 -> 0.7911945194 | G68: ='Electricity VISION Inputs'!J$21/8 -> 0.6851356331 | H68: ='Electricity VISION Inputs'!K$21/8 -> 0.5863504732 | I68: ='Electricity VISION Inputs'!L$21/8 -> 0.4964174316 | J68: ='Electricity VISION Inputs'!M$21/8 -> 0.4214037511 | K68: see Electricity VISION Inputs
A69: $/kWh | B69: =B68/$R$5 -> 0 | C69: 0.03470047125 | D69: 0.02876009691 | E69: 0.02455200858 | F69: 0.02159727355 | G69: 0.01870217921 | H69: 0.01600563611 | I69: 0.01355072969 | J69: 0.01150307777
A70: PHEV40 ($/GEG) | B70: ='Electricity VISION Inputs'!E$23/8 -> 0 | C70: ='Electricity VISION Inputs'!F$23/8 -> 1.11984651 | D70: ='Electricity VISION Inputs'!G$23/8 -> 0.9032401631 | E70: ='Electricity VISION Inputs'!H$23/8 -> 0.7720421111 | F70: ='Electricity VISION Inputs'!I$23/8 -> 0.643838297 | G70: ='Electricity VISION Inputs'!J$23/8 -> 0.5137544558 | H70: ='Electricity VISION Inputs'!K$23/8 -> 0.3898118828 | I70: ='Electricity VISION Inputs'!L$23/8 -> 0.2787810224 | J70: ='Electricity VISION Inputs'!M$23/8 -> 0.1895935627 | K70: see Electricity VISION Inputs
A71: $/kWh | B71: =B70/$R$5 -> 0 | C71: 0.0305685022 | D71: 0.0246557887 | E71: 0.02107446938 | F71: 0.01757488391 | G71: 0.01402397925 | H71: 0.01064071308 | I71: 0.00760989852 | J71: 0.005175344289
A72: BEV100 ($/GEG) | B72: ='Electricity VISION Inputs'!E$25/8 -> 1.832923588 | C72: ='Electricity VISION Inputs'!F$25/8 -> 1.530310417 | D72: ='Electricity VISION Inputs'!G$25/8 -> 1.203765219 | E72: ='Electricity VISION Inputs'!H$25/8 -> 1.045622614 | F72: ='Electricity VISION Inputs'!I$25/8 -> 0.86631704 | G72: ='Electricity VISION Inputs'!J$25/8 -> 0.6766417825 | H72: ='Electricity VISION Inputs'!K$25/8 -> 0.4969321247 | I72: ='Electricity VISION Inputs'!L$25/8 -> 0.3360237437 | J72: ='Electricity VISION Inputs'!M$25/8 -> 0.2066950438 | K72: see Electricity VISION Inputs
A73: $/kWh | B73: =B72/$R$5 -> 0.05003340034 | C73: 0.04177295454 | D73: 0.0328592351 | E73: 0.02854240906 | F73: 0.02364789649 | G73: 0.01847032217 | H73: 0.0135647793 | I73: 0.009172455744 | J73: 0.005642164213

Sheet Other Supporting Data -->

Sheet Electricity VISION Inputs
A1: Extrapolations of Transportation Fuel Prices under the High and Low World Oil Price Cases of the AEO2010
A2: Prepared by Deanne Short on 6/14/11
A3: Source: Jaycie Chitwood (Electric Sub-group)
A6: Table 3. Energy Prices by Sector and Source | F6: transportation electricity | O6: $/GEG to $/MMBTU multiplier | P6: 0.1249933649
A7: (2008 dollars per million Btu, unless otherwise noted)
A8: High Oil Price Case
A9: Sector and Source | B9: 2007 | C9: 2008 | D9: 2009 | E9: 2010 | F9: 2015 | G9: 2020 | H9: 2025 | I9: 2030 | J9: 2035 | K9: 2040 | L9: 2045 | M9: 2050 | V9: GDP Chain-type Price Index (2008=1.000)
A10: Transportation | V10: 2007 | W10: 0.9781142857
A11: Electricity | B11: 32.025463 | C11: 33.733215 | D11: 32.31472397 | E11: 30.31429863 | F11: 29.46677589 | G11: 28.85747719 | H11: 30.96205521 | I11: 33.44806671 | J11: 35.86713028 | K11: 38.41632376 | L11: 41.14733219 | M11: 44.07420402 | V11: 2008 | W11: 1
A12: $/kWh | B12: =B11/$P$12 -> 0.1092758147 | C12: =C11/$P$12 -> 0.1151029276 | D12: 0.1102628176 | E12: 0.1034370581 | F12: 0.10054518 | G12: 0.0984661589 | H12: 0.1056473034 | I12: 0.1141299577 | J12: 0.1223841754 | K12: 0.1310824164 | L12: 0.1404010379 | M12: 0.1503879757 | O12: kWh per MMBTU | P12: =293.07 -> 293.07 | V12: 2009 | W12: 1.01520898
A13: + charging infrastructure for Residential Charging Scenario | V13: 2010 | W13: 1.03016
A14: PHEV10 | E14: =OFFSET('PHEV_BEV Results'!$BG5,3*(E$9-2010)/5,0)/$P$6/$W$14 -> 0 | F14: =OFFSET('PHEV_BEV Results'!$BG5,3*(F$9-2010)/5,0)/$P$6/$W$14 -> 8.432786384 | G14: =OFFSET('PHEV_BEV Results'!$BG5,3*(G$9-2010)/5,0)/$P$6/$W$14 -> 6.872575906 | H14: =OFFSET('PHEV_BEV Results'!$BG5,3*(H$9-2010)/5,0)/$P$6/$W$14 -> 6.169193511 | I14: =OFFSET('PHEV_BEV Results'!$BG5,3*(I$9-2010)/5,0)/$P$6/$W$14 -> 5.078900097 | J14: =OFFSET('PHEV_BEV Results'!$BG5,3*(J$9-2010)/5,0)/$P$6/$W$14 -> 3.958851785 | K14: =OFFSET('PHEV_BEV Results'!$BG5,3*(K$9-2010)/5,0)/$P$6/$W$14 -> 2.891096878 | L14: =OFFSET('PHEV_BEV Results'!$BG5,3*(L$9-2010)/5,0)/$P$6/$W$14 -> 1.939281886 | M14: =OFFSET('PHEV_BEV Results'!$BG5,3*(M$9-2010)/5,0)/$P$6/$W$14 -> 1.178331182 | V14: 2011 | W14: 1.043595918
A15: $/kWh | E15: =E14/$P$12 -> 0 | F15: =F14/$P$12 -> 0.02877396658 | G15: 0.02345028801 | H15: 0.02105023889 | I15: 0.01732998975 | J15: 0.01350821232 | K15: 0.009864868044 | L15: 0.006617128624 | M15: 0.004020647567 | V15: 2012 | W15: 1.058506939
A16: PHEV40 | E16: =OFFSET('PHEV_BEV Results'!$BG6,3*(E$9-2010)/5,0)/$P$6/$W$14 -> 0 | F16: =OFFSET('PHEV_BEV Results'!$BG6,3*(F$9-2010)/5,0)/$P$6/$W$14 -> 9.96771379 | G16: =OFFSET('PHEV_BEV Results'!$BG6,3*(G$9-2010)/5,0)/$P$6/$W$14 -> 8.021089913 | H16: =OFFSET('PHEV_BEV Results'!$BG6,3*(H$9-2010)/5,0)/$P$6/$W$14 -> 6.913974047 | I16: =OFFSET('PHEV_BEV Results'!$BG6,3*(I$9-2010)/5,0)/$P$6/$W$14 -> 5.693448418 | J16: =OFFSET('PHEV_BEV Results'!$BG6,3*(J$9-2010)/5,0)/$P$6/$W$14 -> 4.445941136 | K16: =OFFSET('PHEV_BEV Results'!$BG6,3*(K$9-2010)/5,0)/$P$6/$W$14 -> 3.252796392 | L16: =OFFSET('PHEV_BEV Results'!$BG6,3*(L$9-2010)/5,0)/$P$6/$W$14 -> 2.185688521 | M16: =OFFSET('PHEV_BEV Results'!$BG6,3*(M$9-2010)/5,0)/$P$6/$W$14 -> 1.331506208 | V16: 2013 | W16: 1.077161633
A17: $/kWh | E17: 0 | F17: 0.0340113754 | G17: 0.02736919477 | H17: 0.02359154484 | I17: 0.01942692332 | J17: 0.01517023624 | K17: 0.01109904252 | L17: 0.007457906031 | M17: 0.004543304356 | V17: 2014 | W17: 1.095747755
A18: BEV100 | E18: =OFFSET('PHEV_BEV Results'!$BG7,3*(E$9-2010)/5,0)/$P$6/$W$14 -> 14.5927387 | F18: =OFFSET('PHEV_BEV Results'!$BG7,3*(F$9-2010)/5,0)/$P$6/$W$14 -> 12.18430361 | G18: =OFFSET('PHEV_BEV Results'!$BG7,3*(G$9-2010)/5,0)/$P$6/$W$14 -> 9.582891908 | H18: =OFFSET('PHEV_BEV Results'!$BG7,3*(H$9-2010)/5,0)/$P$6/$W$14 -> 8.32641279 | I18: =OFFSET('PHEV_BEV Results'!$BG7,3*(I$9-2010)/5,0)/$P$6/$W$14 -> 6.893966576 | J18: =OFFSET('PHEV_BEV Results'!$BG7,3*(J$9-2010)/5,0)/$P$6/$W$14 -> 5.378265889 | K18: =OFFSET('PHEV_BEV Results'!$BG7,3*(K$9-2010)/5,0)/$P$6/$W$14 -> 3.941821391 | L18: =OFFSET('PHEV_BEV Results'!$BG7,3*(L$9-2010)/5,0)/$P$6/$W$14 -> 2.65571508 | M18: =OFFSET('PHEV_BEV Results'!$BG7,3*(M$9-2010)/5,0)/$P$6/$W$14 -> 1.622192976 | V18: 2015 | W18: 1.114380408
A19: $/kWh | E19: 0.04979267308 | F19: 0.04157472143 | G19: 0.03269830385 | H19: 0.02841100348 | I19: 0.02352327627 | J19: 0.01835147197 | K19: 0.01345010199 | L19: 0.009061709079 | M19: 0.005535172401 | V19: 2016 | W19: 1.134323265
A20: + charging infrastructure for Ubiquitous Charging Scenario | V20: 2017 | W20: 1.155306939
A21: PHEV10 | E21: =OFFSET('PHEV_BEV Results'!$BH5,3*(E$9-2010)/5,0)/$P$6/$W$14 -> 0 | F21: =OFFSET('PHEV_BEV Results'!$BH5,3*(F$9-2010)/5,0)/$P$6/$W$14 -> 10.16973651 | G21: =OFFSET('PHEV_BEV Results'!$BH5,3*(G$9-2010)/5,0)/$P$6/$W$14 -> 8.428779122 | H21: =OFFSET('PHEV_BEV Results'!$BH5,3*(H$9-2010)/5,0)/$P$6/$W$14 -> 7.195506259 | I21: =OFFSET('PHEV_BEV Results'!$BH5,3*(I$9-2010)/5,0)/$P$6/$W$14 -> 6.329556155 | J21: =OFFSET('PHEV_BEV Results'!$BH5,3*(J$9-2010)/5,0)/$P$6/$W$14 -> 5.481085065 | K21: =OFFSET('PHEV_BEV Results'!$BH5,3*(K$9-2010)/5,0)/$P$6/$W$14 -> 4.690803786 | L21: =OFFSET('PHEV_BEV Results'!$BH5,3*(L$9-2010)/5,0)/$P$6/$W$14 -> 3.971339453 | M21: =OFFSET('PHEV_BEV Results'!$BH5,3*(M$9-2010)/5,0)/$P$6/$W$14 -> 3.371230009 | O21: Corrected formulas to pick up column BH in Results Summary worksheet rather than column BG | V21: 2018 | W21: 1.176720816
A22: $/kWh | E22: =E21/$P$12 -> 0 | F22: 0.03470070806 | G22: 0.02876029318 | H22: 0.02455217613 | I22: 0.02159742094 | J22: 0.01870230684 | K22: 0.01600574534 | L22: 0.01355082217 | M22: 0.01150315627 | V22: 2019 | W22: 1.198477551
A23: PHEV40 | E23: =OFFSET('PHEV_BEV Results'!$BH6,3*(E$9-2010)/5,0)/$P$6/$W$14 -> 0 | F23: =OFFSET('PHEV_BEV Results'!$BH6,3*(F$9-2010)/5,0)/$P$6/$W$14 -> 8.958772078 | G23: =OFFSET('PHEV_BEV Results'!$BH6,3*(G$9-2010)/5,0)/$P$6/$W$14 -> 7.225921305 | H23: =OFFSET('PHEV_BEV Results'!$BH6,3*(H$9-2010)/5,0)/$P$6/$W$14 -> 6.176336889 | I23: =OFFSET('PHEV_BEV Results'!$BH6,3*(I$9-2010)/5,0)/$P$6/$W$14 -> 5.150706376 | J23: =OFFSET('PHEV_BEV Results'!$BH6,3*(J$9-2010)/5,0)/$P$6/$W$14 -> 4.110035647 | K23: =OFFSET('PHEV_BEV Results'!$BH6,3*(K$9-2010)/5,0)/$P$6/$W$14 -> 3.118495063 | L23: =OFFSET('PHEV_BEV Results'!$BH6,3*(L$9-2010)/5,0)/$P$6/$W$14 -> 2.230248179 | M23: =OFFSET('PHEV_BEV Results'!$BH6,3*(M$9-2010)/5,0)/$P$6/$W$14 -> 1.516748501 | V23: 2020 | W23: 1.222132245
A24: $/kWh | E24: =E23/$P$12 -> 0 | F24: 0.03056871081 | G24: 0.02465595696 | H24: 0.02107461319 | I24: 0.01757500384 | J24: 0.01402407495 | K24: 0.01064078569 | L24: 0.007609950452 | M24: 0.005175379607 | V24: 2021 | W24: 1.248013878
A25: BEV100 | E25: =OFFSET('PHEV_BEV Results'!$BH7,3*(E$9-2010)/5,0)/$P$6/$W$14 -> 14.66338871 | F25: =OFFSET('PHEV_BEV Results'!$BH7,3*(F$9-2010)/5,0)/$P$6/$W$14 -> 12.24248333 | G25: =OFFSET('PHEV_BEV Results'!$BH7,3*(G$9-2010)/5,0)/$P$6/$W$14 -> 9.63012175 | H25: =OFFSET('PHEV_BEV Results'!$BH7,3*(H$9-2010)/5,0)/$P$6/$W$14 -> 8.364980908 | I25: =OFFSET('PHEV_BEV Results'!$BH7,3*(I$9-2010)/5,0)/$P$6/$W$14 -> 6.93053632 | J25: =OFFSET('PHEV_BEV Results'!$BH7,3*(J$9-2010)/5,0)/$P$6/$W$14 -> 5.41313426 | K25: =OFFSET('PHEV_BEV Results'!$BH7,3*(K$9-2010)/5,0)/$P$6/$W$14 -> 3.975456998 | L25: =OFFSET('PHEV_BEV Results'!$BH7,3*(L$9-2010)/5,0)/$P$6/$W$14 -> 2.68818995 | M25: =OFFSET('PHEV_BEV Results'!$BH7,3*(M$9-2010)/5,0)/$P$6/$W$14 -> 1.65356035 | V25: 2022 | W25: 1.275367347
A26: $/kWh | E26: =E25/$P$12 -> 0.05003374179 | F26: 0.04177323961 | G26: 0.03285945934 | H26: 0.02854260384 | I26: 0.02364805787 | J26: 0.01847044822 | K26: 0.01356487187 | L26: 0.00917251834 | M26: 0.005642202717 | V26: 2023 | W26: 1.302884898
V27: 2024 | W27: 1.329976327
A28: Table 3. Energy Prices by Sector and Source | F28: transportation electricity | V28: 2025 | W28: 1.357126531
A29: (2008 dollars per million Btu, unless otherwise noted) | V29: 2026 | W29: 1.385351837
A30: Reference Case | V30: 2027 | W30: 1.414536327
A31: Sector and Source | B31: 2007 | C31: 2008 | D31: 2009 | E31: 2010 | F31: 2015 | G31: 2020 | H31: 2025 | I31: 2030 | J31: 2035 | K31: 2040 | L31: 2045 | M31: 2050 | V31: 2028 | W31: 1.445208163
A32: Transportation | V32: 2029 | W32: 1.476693878
A33: Electricity | B33: 32.025463 | C33: 33.733215 | D33: 32.303364 | E33: 30.290997 | F33: 28.791491 | G33: 28.550859 | H33: 28.631557 | I33: 31.010609 | J33: 33.259453 | K33: 35.67137988 | L33: 38.25821616 | M33: 41.03264603 | V33: 2030 | W33: 1.509317551
A34: $/kWh | B34: =B33/$P$12 -> 0.1092758147 | C34: =C33/$P$12 -> 0.1151029276 | D34: 0.1102240557 | E34: 0.1033575494 | F34: 0.09824100386 | G34: 0.09741993039 | H34: 0.0976952844 | I34: 0.1058129764 | J34: 0.1134863787 | K34: 0.1217162448 | L34: 0.1305429289 | M34: 0.1400097111 | V34: 2031 | W34: 1.542928163
A35: + charging infrastructure for Residential Charging Scenario | V35: 2032 | W35: 1.577490612
A36: PHEV10 | E36: =E52 -> 0 | F36: =F52 -> 8.432786384 | G36: 6.872575906 | H36: 6.169193511 | I36: 5.078900097 | J36: 3.958851785 | K36: 2.891096878 | L36: 1.939281886 | M36: 1.178331182 | V36: 2033 | W36: 1.611430204
A37: PHEV40 | E37: =E53 -> 0 | F37: 9.96771379 | G37: 8.021089913 | H37: 6.913974047 | I37: 5.693448418 | J37: 4.445941136 | K37: 3.252796392 | L37: 2.185688521 | M37: 1.331506208 | V37: 2034 | W37: 1.645799184
A38: BEV100 | E38: =E54 -> 14.5927387 | F38: 12.18430361 | G38: 9.582891908 | H38: 8.32641279 | I38: 6.893966576 | J38: 5.378265889 | K38: 3.941821391 | L38: 2.65571508 | M38: 1.622192976 | V38: 2035 | W38: 1.680536327
A39: + charging infrastructure for Ubiquitous Charging Scenario
A40: PHEV10 | E40: =E56 -> 0 | F40: =F56 -> 10.16973651 | G40: 8.428779122 | H40: 7.195506259 | I40: 6.329556155 | J40: 5.481085065 | K40: 4.690803786 | L40: 3.971339453 | M40: 3.371230009
A41: PHEV40 | E41: =E57 -> 0 | F41: 8.958772078 | G41: 7.225921305 | H41: 6.176336889 | I41: 5.150706376 | J41: 4.110035647 | K41: 3.118495063 | L41: 2.230248179 | M41: 1.516748501
A42: BEV100 | E42: =E58 -> 14.66338871 | F42: 12.24248333 | G42: 9.63012175 | H42: 8.364980908 | I42: 6.93053632 | J42: 5.41313426 | K42: 3.975456998 | L42: 2.68818995 | M42: 1.65356035
A44: Table 3. Energy Prices by Sector and Source | F44: transportation electricity
A45: (2008 dollars per million Btu, unless otherwise noted)
A46: Low Oil Price Case
A47: Sector and Source | B47: 2007 | C47: 2008 | D47: 2009 | E47: 2010 | F47: 2015 | G47: 2020 | H47: 2025 | I47: 2030 | J47: 2035 | K47: 2040 | L47: 2045 | M47: 2050
A48: Transportation
A49: Electricity | B49: 32.025463 | C49: 33.733215 | D49: 32.34696579 | E49: 30.34138107 | F49: 27.95175552 | G49: 28.11406708 | H49: 28.5049305 | I49: 29.5477581 | J49: 31.16724586 | K49: 32.95741281 | L49: 34.86828634 | M49: 36.89401989
A50: $/kWh | B50: =B49/$P$12 -> 0.1092758147 | C50: =C49/$P$12 -> 0.1151029276 | D50: =D49/$P$12 -> 0.1103728317 | E50: =E49/$P$12 -> 0.1035294676 | F50: =F49/$P$12 -> 0.09537569701 | G50: =G49/$P$12 -> 0.09592952905 | H50: =H49/$P$12 -> 0.09726321526 | I50: =I49/$P$12 -> 0.1008215037 | J50: =J49/$P$12 -> 0.1063474455 | K50: =K49/$P$12 -> 0.112455771 | L50: =L49/$P$12 -> 0.1189759659 | M50: =M49/$P$12 -> 0.125888081
A51: + charging infrastructure for Residential Charging Scenario
A52: PHEV10 | E52: =+E14 -> 0 | F52: =+F14 -> 8.432786384 | G52: 6.872575906 | H52: 6.169193511 | I52: 5.078900097 | J52: 3.958851785 | K52: 2.891096878 | L52: 1.939281886 | M52: 1.178331182
A53: PHEV40 | E53: =+E16 -> 0 | F53: 9.96771379 | G53: 8.021089913 | H53: 6.913974047 | I53: 5.693448418 | J53: 4.445941136 | K53: 3.252796392 | L53: 2.185688521 | M53: 1.331506208
A54: BEV100 | E54: =+E18 -> 14.5927387 | F54: 12.18430361 | G54: 9.582891908 | H54: 8.32641279 | I54: 6.893966576 | J54: 5.378265889 | K54: 3.941821391 | L54: 2.65571508 | M54: 1.622192976
A55: + charging infrastructure for Ubiquitous Charging Scenario
A56: PHEV10 | E56: =+E21 -> 0 | F56: 10.16973651 | G56: 8.428779122 | H56: 7.195506259 | I56: 6.329556155 | J56: 5.481085065 | K56: 4.690803786 | L56: 3.971339453 | M56: 3.371230009
A57: PHEV40 | E57: =+E23 -> 0 | F57: 8.958772078 | G57: 7.225921305 | H57: 6.176336889 | I57: 5.150706376 | J57: 4.110035647 | K57: 3.118495063 | L57: 2.230248179 | M57: 1.516748501
A58: BEV100 | E58: =+E25 -> 14.66338871 | F58: 12.24248333 | G58: 9.63012175 | H58: 8.364980908 | I58: 6.93053632 | J58: 5.41313426 | K58: 3.975456998 | L58: 2.68818995 | M58: 1.65356035 | P58: 2036 | Q58: 2037 | R58: 2038 | S58: 2039 | T58: 2040 | U58: 2041 | V58: 2042 | W58: 2043 | X58: 2044 | Y58: 2045 | Z58: 2046 | AA58: 2047 | AB58: 2048 | AC58: 2049 | AD58: 2050
P59: =+($J$66/$I$66)^(1/5)*J66 -> 43.96854334 | Q59: =+($J$66/$I$66)^(1/5)*P59 -> 44.64341099 | R59: =+($J$66/$I$66)^(1/5)*Q59 -> 45.32863711 | S59: 46.02438067 | T59: 46.73080312 | U59: 47.44806835 | V59: 48.1763428 | W59: 48.91579544 | X59: 49.66659785 | Y59: 50.42892423 | Z59: 51.20295146 | AA59: 51.98885914 | AB59: 52.78682961 | AC59: 53.59704804 | AD59: 54.4197024
A61: AEO 2011, Electricity Supply, Disposition, Prices, and Emissions, GHG price economywide Case
A62: End-Use Prices
A63: (2009 cents per kilowatthour)
A64: Transportation | C64: 2008 | D64: 2009 | E64: 2010 | F64: 2015 | G64: 2020 | H64: 2025 | I64: 2030 | J64: 2035 | K64: 2040 | L64: 2045 | M64: 2050
A65: Electricity | C65: 11.8 | D65: 11.9 | E65: 10.3 | F65: 11.3 | G65: 11.7 | H65: 12.8 | I65: 13.9 | J65: 15
A66: $/MMBTU | E66: =E65/100/3412*1000000/$W$12 -> 29.73532926 | F66: 32.62225443 | G66: 33.77702449 | H66: 36.95264218 | I66: 40.12825987 | J66: 43.30387756 | K66: =+T59 -> 46.73080312 | L66: =+Y59 -> 50.42892423 | M66: =+AD59 -> 54.4197024
A68: + charging infrastructure for Residential Charging Scenario
A69: PHEV10 | E69: =+E14 -> 0 | F69: 8.432786384 | G69: 6.872575906 | H69: 6.169193511 | I69: 5.078900097 | J69: 3.958851785 | K69: 2.891096878 | L69: 1.939281886 | M69: 1.178331182 | O69: kWh per 125,000 BTU | P69: =36.634 -> 36.634
A70: PHEV40 | E70: =+E16 -> 0 | F70: 9.96771379 | G70: 8.021089913 | H70: 6.913974047 | I70: 5.693448418 | J70: 4.445941136 | K70: 3.252796392 | L70: 2.185688521 | M70: 1.331506208
A71: BEV100 | E71: =+E18 -> 14.5927387 | F71: 12.18430361 | G71: 9.582891908 | H71: 8.32641279 | I71: 6.893966576 | J71: 5.378265889 | K71: 3.941821391 | L71: 2.65571508 | M71: 1.622192976
A72: + charging infrastructure for Ubiquitous Charging Scenario
A73: PHEV10 | E73: =+E21 -> 0 | F73: =+F21 -> 10.16973651 | G73: 8.428779122 | H73: 7.195506259 | I73: 6.329556155 | J73: 5.481085065 | K73: 4.690803786 | L73: 3.971339453 | M73: 3.371230009
A74: PHEV40 | E74: =+E23 -> 0 | F74: 8.958772078 | G74: 7.225921305 | H74: 6.176336889 | I74: 5.150706376 | J74: 4.110035647 | K74: 3.118495063 | L74: 2.230248179 | M74: 1.516748501
A75: BEV100 | E75: =+E25 -> 14.66338871 | F75: 12.24248333 | G75: 9.63012175 | H75: 8.364980908 | I75: 6.93053632 | J75: 5.41313426 | K75: 3.975456998 | L75: 2.68818995 | M75: 1.65356035
A83: Infrastructure Cost - Ubiquitous Charging ($/MMBTU)
A84: PHEV10 | E84: =OFFSET('PHEV_BEV Results'!$BH5,3*(E$9-2010)/5,0)/$P$6/$W$14 -> 0 | F84: =OFFSET('PHEV_BEV Results'!$BH5,3*(F$9-2010)/5,0)/$P$6/$W$14 -> 10.16973651 | G84: =OFFSET('PHEV_BEV Results'!$BH5,3*(G$9-2010)/5,0)/$P$6/$W$14 -> 8.428779122 | H84: =OFFSET('PHEV_BEV Results'!$BH5,3*(H$9-2010)/5,0)/$P$6/$W$14 -> 7.195506259 | I84: =OFFSET('PHEV_BEV Results'!$BH5,3*(I$9-2010)/5,0)/$P$6/$W$14 -> 6.329556155 | J84: =OFFSET('PHEV_BEV Results'!$BH5,3*(J$9-2010)/5,0)/$P$6/$W$14 -> 5.481085065 | K84: =OFFSET('PHEV_BEV Results'!$BH5,3*(K$9-2010)/5,0)/$P$6/$W$14 -> 4.690803786 | L84: =OFFSET('PHEV_BEV Results'!$BH5,3*(L$9-2010)/5,0)/$P$6/$W$14 -> 3.971339453 | M84: =OFFSET('PHEV_BEV Results'!$BH5,3*(M$9-2010)/5,0)/$P$6/$W$14 -> 3.371230009
A85: PHEV40 | E85: =OFFSET('PHEV_BEV Results'!$BH6,3*(E$9-2010)/5,0)/$P$6/$W$14 -> 0 | F85: =OFFSET('PHEV_BEV Results'!$BH6,3*(F$9-2010)/5,0)/$P$6/$W$14 -> 8.958772078 | G85: =OFFSET('PHEV_BEV Results'!$BH6,3*(G$9-2010)/5,0)/$P$6/$W$14 -> 7.225921305 | H85: =OFFSET('PHEV_BEV Results'!$BH6,3*(H$9-2010)/5,0)/$P$6/$W$14 -> 6.176336889 | I85: =OFFSET('PHEV_BEV Results'!$BH6,3*(I$9-2010)/5,0)/$P$6/$W$14 -> 5.150706376 | J85: =OFFSET('PHEV_BEV Results'!$BH6,3*(J$9-2010)/5,0)/$P$6/$W$14 -> 4.110035647 | K85: =OFFSET('PHEV_BEV Results'!$BH6,3*(K$9-2010)/5,0)/$P$6/$W$14 -> 3.118495063 | L85: =OFFSET('PHEV_BEV Results'!$BH6,3*(L$9-2010)/5,0)/$P$6/$W$14 -> 2.230248179 | M85: =OFFSET('PHEV_BEV Results'!$BH6,3*(M$9-2010)/5,0)/$P$6/$W$14 -> 1.516748501
A86: BEV100 | E86: =OFFSET('PHEV_BEV Results'!$BH7,3*(E$9-2010)/5,0)/$P$6/$W$14 -> 14.66338871 | F86: =OFFSET('PHEV_BEV Results'!$BH7,3*(F$9-2010)/5,0)/$P$6/$W$14 -> 12.24248333 | G86: =OFFSET('PHEV_BEV Results'!$BH7,3*(G$9-2010)/5,0)/$P$6/$W$14 -> 9.63012175 | H86: =OFFSET('PHEV_BEV Results'!$BH7,3*(H$9-2010)/5,0)/$P$6/$W$14 -> 8.364980908 | I86: =OFFSET('PHEV_BEV Results'!$BH7,3*(I$9-2010)/5,0)/$P$6/$W$14 -> 6.93053632 | J86: =OFFSET('PHEV_BEV Results'!$BH7,3*(J$9-2010)/5,0)/$P$6/$W$14 -> 5.41313426 | K86: =OFFSET('PHEV_BEV Results'!$BH7,3*(K$9-2010)/5,0)/$P$6/$W$14 -> 3.975456998 | L86: =OFFSET('PHEV_BEV Results'!$BH7,3*(L$9-2010)/5,0)/$P$6/$W$14 -> 2.68818995 | M86: =OFFSET('PHEV_BEV Results'!$BH7,3*(M$9-2010)/5,0)/$P$6/$W$14 -> 1.65356035
A88: Taxes (Both Scenarios) $/GEG | E88: =+'PHEV_BEV Results'!A5 -> 2010 | F88: =+'PHEV_BEV Results'!A8 -> 2015 | G88: =+'PHEV_BEV Results'!A11 -> 2020 | H88: =+'PHEV_BEV Results'!A14 -> 2025 | I88: =+'PHEV_BEV Results'!A17 -> 2030 | J88: =+'PHEV_BEV Results'!A20 -> 2035 | K88: =+'PHEV_BEV Results'!A23 -> 2040 | L88: =+'PHEV_BEV Results'!A26 -> 2045 | M88: =+'PHEV_BEV Results'!A29 -> 2050
A89: PHEV10 | E89: =+'PHEV_BEV Results'!AZ5 -> 1.163055276 | F89: =+'PHEV_BEV Results'!AZ8 -> 1.125550669 | G89: =+'PHEV_BEV Results'!AZ11 -> 1.118373008 | H89: =+'PHEV_BEV Results'!AZ14 -> 1.06914054 | I89: =+'PHEV_BEV Results'!AZ17 -> 1.034506069 | J89: =+'PHEV_BEV Results'!AZ20 -> 1.003362132 | K89: =+'PHEV_BEV Results'!AZ23 -> 1.065429772 | L89: =+'PHEV_BEV Results'!AZ26 -> 1.127008416 | M89: =+'PHEV_BEV Results'!AZ29 -> 1.188567202
A90: $/kWh | E90: =E89/$P$69 -> 0.03174797391 | F90: =F89/$P$69 -> 0.03072420889 | G90: 0.03052827996 | H90: 0.02918437899 | I90: 0.02823896022 | J90: 0.02738882274 | K90: 0.02908308599 | L90: 0.03076400108 | M90: 0.03244437414
A91: PHEV40 | E91: =+'PHEV_BEV Results'!AZ6 -> 1.217511434 | F91: =+'PHEV_BEV Results'!AZ9 -> 1.178250799 | G91: =+'PHEV_BEV Results'!AZ12 -> 1.164140496 | H91: =+'PHEV_BEV Results'!AZ15 -> 1.11687265 | I91: =+'PHEV_BEV Results'!AZ18 -> 1.080956629 | J91: =+'PHEV_BEV Results'!AZ21 -> 1.050320105 | K91: =+'PHEV_BEV Results'!AZ24 -> 1.117348293 | L91: =+'PHEV_BEV Results'!AZ27 -> 1.18397899 | M91: =+'PHEV_BEV Results'!AZ30 -> 1.251898368
A92: $/kWh | E92: =E91/$P$69 -> 0.03323446618 | F92: =F91/$P$69 -> 0.0321627668 | G92: =G91/$P$69 -> 0.0317775972 | H92: =H91/$P$69 -> 0.03048732461 | I92: =I91/$P$69 -> 0.02950692333 | J92: =J91/$P$69 -> 0.0286706367 | K92: =K91/$P$69 -> 0.03050030826 | L92: =L91/$P$69 -> 0.03231912951 | M92: =M91/$P$69 -> 0.03417312792
A93: BEV100 | E93: =+'PHEV_BEV Results'!AZ7 -> 1.401139987 | F93: =+'PHEV_BEV Results'!AZ10 -> 1.355957951 | G93: =+'PHEV_BEV Results'!AZ13 -> 1.311352514 | H93: =+'PHEV_BEV Results'!AZ16 -> 1.281214288 | I93: =+'PHEV_BEV Results'!AZ19 -> 1.246535137 | J93: =+'PHEV_BEV Results'!AZ22 -> 1.209624532 | K93: =+'PHEV_BEV Results'!AZ25 -> 1.288287794 | L93: =+'PHEV_BEV Results'!AZ28 -> 1.36722862 | M93: =+'PHEV_BEV Results'!AZ31 -> 1.446468319
A94: $/kWh | E94: =E93/$P$69 -> 0.03824698332 | F94: =F93/$P$69 -> 0.03701364718 | G94: =G93/$P$69 -> 0.03579605049 | H94: =H93/$P$69 -> 0.03497336594 | I94: =I93/$P$69 -> 0.03402672756 | J94: =J93/$P$69 -> 0.03301917704 | K94: =K93/$P$69 -> 0.03516645176 | L94: =L93/$P$69 -> 0.03732130316 | M94: =M93/$P$69 -> 0.0394843129

Sheet PHEV_BEV Results
A1: Results generated 10/14/2011 4:06:45 PM
A2: Source: Jaycie Chitwood (Electric Sub-group) | G2: Residential | U2: Residential charger cost details | Y2: Workplace / Commercial charger cost details | AE2: Workplace / commercial | AT2: Results
C3: VMT per vehicle per yr | G3: L1 density | I3: L2 density | K3: Charger cost | M3: Num of chargers | O3: Weighted charger cost | Q3: Total charger cost | U3: Weighted average EVSE cost | W3: Weighted average installation cost | Y3: Weighted average EVSE cost | AA3: Weighted average installation cost | AE3: L1 density | AG3: L2 density | AI3: L3 density | AK3: Charger costs | AN3: Weighted charger cost | AP3: Num of chargers | AR3: Total charger cost | AT3: Total cost | AV3: Levelized cost ($/GEG) | AX3: kWh/yr | AZ3: Taxes $ / GEG | BA3: Adder cost ($/GEG) | BD3: Adder cost ($/kWh) | BG3: Infrastructure cost ($/GEG)
A4: Year | B4: Vehicle type | C4: Home | D4: Ubiq | E4: Veh effic miles/kWh | G4: Home charging | H4: Ubiq charging | I4: Home charging | J4: Ubiq charging | K4: L1 | L4: L2 | M4: Home charging | N4: Ubiq charging | O4: Home charging | P4: Ubiq charging | Q4: Home charging | R4: Ubiq charging | U4: Home charging | V4: Ubiq charging | W4: Home charging | X4: Ubiq charging | Y4: Home charging | Z4: Ubiq charging | AA4: Home charging | AB4: Ubiq charging | AE4: Home charging | AF4: Ubiq charging | AG4: Home charging | AH4: Ubiq charging | AI4: Home charging | AJ4: Ubiq charging | AK4: L1 | AL4: L2 | AM4: L3 | AN4: Home charging | AO4: Ubiq charging | AP4: Home charging | AQ4: Ubiq charging | AR4: Home charging | AS4: Ubiq charging | AT4: Home charging | AU4: Ubiq charging | AV4: Home charging | AW4: Ubiq charging | AX4: Home charging | AY4: Ubiq charging | AZ4: Both scenarios | BA4: Home charging | BB4: Ubiq charging | BD4: Residential Scenario | BE4: Ubiquitous Scenario | BG4: Residential Scenario | BH4: Ubiquitous Scenario
A5: 2010 | B5: PHEV10 | C5: 3224.769846 | D5: 5971.79601 | E5: 3.260623116 | G5: 1 | H5: 1 | K5: 500 | L5: 1100 | M5: 1 | N5: 1 | O5: 500 | P5: 500 | Q5: 500 | R5: 500 | U5: 500 | V5: 500 | W5: 302.75 | X5: 302.75 | Y5: 0 | Z5: 162.4740454 | AA5: 0 | AB5: 214.845576 | AF5: 0.2687730727 | AH5: 0.07451700737 | AK5: 1000 | AL5: 2744.5 | AM5: 39331.6667 | AN5: 0 | AO5: 473.285 | AP5: 0 | AQ5: 0.3432900801 | AR5: 0 | AS5: 162.4740454 | AT5: 0 | AU5: 162.4740454 | AV5: 0 | AW5: 0.3817892596 | AX5: 989.0041662 | AY5: 1831.489197 | AZ5: 1.163055276 | BA5: 2.48049303 | BB5: 2.761115303
A6: 2010 | B6: PHEV40 | C6: 7763.334813 | D6: 9554.873617 | E6: 3.413290844 | G6: 0.6 | H6: 0.6 | I6: 0.4 | J6: 0.4 | K6: 500 | L6: 1100 | M6: 1 | N6: 1 | O6: 740 | P6: 740 | Q6: 740 | R6: 740 | U6: 740 | V6: 740 | W6: 822.9728571 | X6: 822.9728571 | Y6: 0 | Z6: 32.51053469 | AA6: 0 | AB6: 56.31104519 | AF6: 0.07674811777 | AH6: 0.05918151776 | AK6: 1000 | AL6: 2744.5 | AM6: 39331.6667 | AN6: 0 | AO6: 239.1718 | AP6: 0 | AQ6: 0.1359296355 | AR6: 0 | AS6: 32.51053469 | AT6: 0 | AU6: 32.51053469 | AV6: 0 | AW6: 0.04998233433 | AX6: 2274.442809 | AY6: 2799.314226 | AZ6: 1.217511434 | BA6: 2.7747479 | BB6: 2.619322103
A7: 2010 | B7: BEV100 | C7: 11943.59202 | D7: 11943.59202 | E7: 3.92809312 | G7: 0.2 | H7: 0.2 | I7: 0.8 | J7: 0.8 | K7: 500 | L7: 1100 | M7: 1 | N7: 1 | O7: 980 | P7: 980 | Q7: 980 | R7: 980 | U7: 980 | V7: 980 | W7: 1343.195714 | X7: 1343.195714 | Y7: 1.078994772 | Z7: 3.684903773 | AA7: 0.5486646582 | AB7: 4.453649834 | AF7: 0.009971911394 | AH7: 0.01791415542 | AI7: 0.00523767438 | AJ7: 0.001666643989 | AK7: 1000 | AL7: 2744.5 | AM7: 39331.6667 | AN7: 206.0065 | AO7: 124.6892 | AP7: 0.00523767438 | AQ7: 0.0295527108 | AR7: 1.078994772 | AS7: 3.684903773 | AT7: 1.078994772 | AU7: 3.684903773 | AV7: 0.001527250337 | AW7: 0.005215753284 | AX7: 3040.557251 | AY7: 3040.557251 | AZ7: 1.401139987 | BA7: 3.30465426 | BB7: 3.313870028 | BD7: =+BA7/36.64 -> 0.09019252893 | BE7: =+BB7/36.64 -> 0.09044405098 | BG7: =BA7-$AZ7 -> 1.903514273 | BH7: =BB7-$AZ7 -> 1.912730041
A8: 2015 | B8: PHEV10 | C8: 3282.897506 | D8: 6079.439826 | E8: 3.260623116 | G8: 1 | H8: 1 | K8: 429.367 | L8: 944.6074 | M8: 1 | N8: 1 | O8: 429.367 | P8: 429.367 | Q8: 429.3670128 | R8: 429.3670128 | U8: 429.3670128 | V8: 429.3670128 | W8: 257.3375 | X8: 257.3375 | Y8: 0 | Z8: 139.521991 | AA8: 0 | AB8: 177.8494047 | AF8: 0.2687730727 | AH8: 0.07451700737 | AK8: 858.734 | AL8: 2356.7955 | AM8: 33775.4405 | AN8: 0 | AO8: 406.4259 | AP8: 0 | AQ8: 0.3432900801 | AR8: 0 | AS8: 139.521991 | AT8: 0 | AU8: 139.521991 | AV8: 0 | AW8: 0.3220503521 | AX8: 1006.831329 | AY8: 1864.502462 | AZ8: 1.125550669 | BA8: 2.225544959 | BB8: 2.452117189 | BD8: =+BA8/36.64 -> 0.06074085586 | BE8: 0.06692459578 | BG8: 1.09999429 | BH8: 1.326566521
A9: 2015 | B9: PHEV40 | C9: 7903.271773 | D9: 9727.103721 | E9: 3.413290844 | G9: 0.6 | H9: 0.6 | I9: 0.4 | J9: 0.4 | K9: 429.367 | L9: 944.6074 | M9: 1 | N9: 1 | O9: 635.4632 | P9: 635.4632 | Q9: 635.463179 | R9: 635.463179 | U9: 635.463179 | V9: 635.463179 | W9: 699.5269286 | X9: 699.5269286 | Y9: 0 | Z9: 27.91790233 | AA9: 0 | AB9: 46.36456058 | AF9: 0.07674811777 | AH9: 0.05918151776 | AK9: 858.734 | AL9: 2356.7955 | AM9: 33775.4405 | AN9: 0 | AO9: 205.385 | AP9: 0 | AQ9: 0.1359296355 | AR9: 0 | AS9: 27.91790233 | AT9: 0 | AU9: 27.91790233 | AV9: 0 | AW9: 0.04216155369 | AX9: 2315.440475 | AY9: 2849.772892 | AZ9: 1.178250799 | BA9: 2.478464958 | BB9: 2.346856012 | BD9: 0.06764369426 | BE9: 0.06405174706 | BG9: 1.300214159 | BH9: 1.168605213
A10: 2015 | B10: BEV100 | C10: 12158.87965 | D10: 12158.87965 | E10: 3.92809312 | G10: 0.2 | H10: 0.2 | I10: 0.8 | J10: 0.8 | K10: 429.367 | L10: 944.6074 | M10: 1 | N10: 1 | O10: 841.5593 | P10: 841.5593 | Q10: 841.5593452 | R10: 841.5593452 | U10: 841.5593452 | V10: 841.5593452 | W10: 1141.716357 | X10: 1141.716357 | Y10: 0.9265695247 | Z10: 3.164352251 | AA10: 0.4663649595 | AB10: 3.686898343 | AF10: 0.009971911394 | AH10: 0.01791415542 | AI10: 0.00523767438 | AJ10: 0.001666643989 | AK10: 858.734 | AL10: 2356.7955 | AM10: 33775.4405 | AN10: 176.9048 | AO10: 107.0749 | AP10: 0.00523767438 | AQ10: 0.0295527108 | AR10: 0.9265695247 | AS10: 3.164352251 | AT10: 0.9265695247 | AU10: 3.164352251 | AV10: 0.001288280108 | AW10: 0.004399639694 | AX10: 3095.364412 | AY10: 3095.364412 | AZ10: 1.355957951 | BA10: 2.945309772 | BB10: 2.952898884 | BD10: 0.08038509203 | BE10: 0.08059221846 | BG10: 1.589351821 | BH10: 1.596940933
A11: 2020 | B11: PHEV10 | C11: 3388.260543 | D11: 6274.556562 | E11: 3.360591734 | G11: 1 | H11: 1 | K11: 388.1138 | L11: 853.8503 | M11: 1 | N11: 1 | O11: 388.1138 | P11: 388.1138 | Q11: 388.1137724 | R11: 388.1137724 | U11: 388.1137724 | V11: 388.1137724 | W11: 210.017675 | X11: 210.017675 | Y11: 0 | Z11: 126.1168293 | AA11: 0 | AB11: 140.8532334 | AF11: 0.2687730727 | AH11: 0.07451700737 | AK11: 776.2275 | AL11: 2130.3565 | AM11: 30530.323 | AN11: 0 | AO11: 367.3769 | AP11: 0 | AQ11: 0.3432900801 | AR11: 0 | AS11: 126.1168293 | AT11: 0 | AU11: 126.1168293 | AV11: 0 | AW11: 0.2907032145 | AX11: 1008.233315 | AY11: 1867.098731 | AZ11: 1.118373008 | BA11: 2.01484944 | BB11: 2.21784458 | BD11: 0.05499043233 | BE11: 0.06053069269 | BG11: 0.8964764325 | BH11: 1.099471572
A12: 2020 | B12: PHEV40 | C12: 8156.92353 | D12: 10039.2905 | E12: 3.498118159 | G12: 0.6 | H12: 0.6 | I12: 0.4 | J12: 0.4 | K12: 388.1138 | L12: 853.8503 | M12: 1 | N12: 1 | O12: 574.4084 | P12: 574.4084 | Q12: 574.4083831 | R12: 574.4083831 | U12: 574.4083831 | V12: 574.4083831 | W12: 566.8923 | X12: 566.8923 | Y12: 0 | Z12: 25.23557252 | AA12: 0 | AB12: 36.41807597 | AF12: 0.07674811777 | AH12: 0.05918151776 | AK12: 776.2275 | AL12: 2130.3565 | AM12: 30530.323 | AN12: 0 | AO12: 185.6517 | AP12: 0 | AQ12: 0.1359296355 | AR12: 0 | AS12: 25.23557252 | AT12: 0 | AU12: 25.23557252 | AV12: 0 | AW12: 0.03784327292 | AX12: 2331.803318 | AY12: 2869.911776 | AZ12: 1.164140496 | BA12: 2.210432042 | BB12: 2.106708209 | BD12: 0.06032838542 | BE12: 0.05749749478 | BG12: 1.046291546 | BH12: 0.9425677128
A13: 2020 | B13: BEV100 | C13: 12549.11312 | D13: 12549.11312 | E13: 3.940474588 | G13: 0.2 | H13: 0.2 | I13: 0.8 | J13: 0.8 | K13: 388.1138 | L13: 853.8503 | M13: 1 | N13: 1 | O13: 760.703 | P13: 760.703 | Q13: 760.7029939 | R13: 760.7029939 | U13: 760.7029939 | V13: 760.7029939 | W13: 923.766925 | X13: 923.766925 | Y13: 0.837545463 | Z13: 2.860323808 | AA13: 0.3840652608 | AB13: 2.920146853 | AF13: 0.009971911394 | AH13: 0.01791415542 | AI13: 0.00523767438 | AJ13: 0.001666643989 | AK13: 776.2275 | AL13: 2130.3565 | AM13: 30530.323 | AN13: 159.9079 | AO13: 96.7872 | AP13: 0.00523767438 | AQ13: 0.0295527108 | AR13: 0.837545463 | AS13: 2.860323808 | AT13: 0.837545463 | AU13: 2.860323808 | AV13: 0.001131847618 | AW13: 0.003865402935 | AX13: 3184.670487 | AY13: 3184.670487 | AZ13: 1.311352514 | BA13: 2.561369519 | BB13: 2.5675303 | BD13: 0.06990637333 | BE13: 0.07007451693 | BG13: 1.250017005 | BH13: 1.256177787
A14: 2025 | B14: PHEV10 | C14: 3576.201365 | D14: 6622.595121 | E14: 3.340755266 | G14: 1 | H14: 1 | K14: 369.0923 | L14: 812.0031 | M14: 1 | N14: 1 | O14: 369.0923 | P14: 369.0923 | Q14: 369.0923358 | R14: 369.0923358 | U14: 369.0923358 | V14: 369.0923358 | W14: 200.1616874 | X14: 200.1616874 | Y14: 0 | Z14: 119.9358498 | AA14: 0 | AB14: 112.2372242 | AF14: 0.2687730727 | AH14: 0.07451700737 | AK14: 738.1847 | AL14: 2025.9478 | AM14: 29034.0334 | AN14: 0 | AO14: 349.3717 | AP14: 0 | AQ14: 0.3432900801 | AR14: 0 | AS14: 119.9358498 | AT14: 0 | AU14: 119.9358498 | AV14: 0 | AW14: 0.2603811541 | AX14: 1070.476907 | AY14: 1982.364643 | AZ14: 1.06914054 | BA14: 1.873865968 | BB14: 2.007740836 | BD14: 0.05114263014 | BE14: 0.0547964202 | BG14: 0.8047254284 | BH14: 0.9386002962
A15: 2025 | B15: PHEV40 | C15: 8609.373657 | D15: 10596.15219 | E15: 3.489904317 | G15: 0.6 | H15: 0.6 | I15: 0.4 | J15: 0.4 | K15: 369.0923 | L15: 812.0031 | M15: 1 | N15: 1 | O15: 546.2567 | P15: 546.2567 | Q15: 546.2566569 | R15: 546.2566569 | U15: 546.2566569 | V15: 546.2566569 | W15: 516.9648791 | X15: 516.9648791 | Y15: 0 | Z15: 23.99877837 | AA15: 0 | AB15: 27.41910897 | AF15: 0.07674811777 | AH15: 0.05918151776 | AK15: 738.1847 | AL15: 2025.9478 | AM15: 29034.0334 | AN15: 0 | AO15: 176.553 | AP15: 0 | AQ15: 0.1359296355 | AR15: 0 | AS15: 23.99877837 | AT15: 0 | AU15: 23.99877837 | AV15: 0 | AW15: 0.03401719831 | AX15: 2466.936877 | AY15: 3036.230002 | AZ15: 1.11687265 | BA15: 2.018749162 | BB15: 1.922529879 | BD15: 0.05509686577 | BE15: 0.05247079363 | BG15: 0.9018765122 | BH15: 0.8056572289
A16: 2025 | B16: BEV100 | C16: 13245.19024 | D16: 13245.19024 | E16: 4.003424452 | G16: 0.2 | H16: 0.2 | I16: 0.8 | J16: 0.8 | K16: 369.0923 | L16: 812.0031 | M16: 1 | N16: 1 | O16: 723.421 | P16: 723.421 | Q16: 723.4209781 | R16: 723.4209781 | U16: 723.4209781 | V16: 723.4209781 | W16: 833.7680708 | X16: 833.7680708 | Y16: 0.7964974017 | Z16: 2.720139481 | AA16: 0.3840652608 | AB16: 2.327922763 | AF16: 0.009971911394 | AH16: 0.01791415542 | AI16: 0.00523767438 | AJ16: 0.001666643989 | AK16: 738.1847 | AL16: 2025.9478 | AM16: 29034.0334 | AN16: 152.0708 | AO16: 92.0437 | AP16: 0.00523767438 | AQ16: 0.0295527108 | AR16: 0.7964974017 | AS16: 2.720139481 | AT16: 0.7964974017 | AU16: 2.720139481 | AV16: 0.001036100479 | AW16: 0.003538414329 | AX16: 3308.465141 | AY16: 3308.465141 | AZ16: 1.281214288 | BA16: 2.367332933 | BB16: 2.372363858 | BD16: 0.06461061499 | BE16: 0.06474792188 | BG16: 1.086118645 | BH16: 1.09114957
A17: 2030 | B17: PHEV10 | C17: 3702.454849 | D17: 6856.397868 | E17: 3.354641904 | G17: 1 | H17: 1 | K17: 351.0031 | L17: 772.2069 | M17: 1 | N17: 1 | O17: 351.0031 | P17: 351.0031 | Q17: 351.0031388 | R17: 351.0031388 | U17: 351.0031388 | V17: 351.0031388 | W17: 169.8981036 | X17: 169.8981036 | Y17: 0 | Z17: 114.0577998 | AA17: 0 | AB17: 108.1454654 | AF17: 0.2687730727 | AH17: 0.07451700737 | AK17: 702.0063 | AL17: 1926.6562 | AM17: 27611.0769 | AN17: 0 | AO17: 332.249 | AP17: 0 | AQ17: 0.3432900801 | AR17: 0 | AS17: 114.0577998 | AT17: 0 | AU17: 114.0577998 | AV17: 0 | AW17: 0.2401702555 | AX17: 1103.681095 | AY17: 2043.853879 | AZ17: 1.034506069 | BA17: 1.697010827 | BB17: 1.860149612 | BD17: 0.04631579768 | BE17: 0.05076827543 | BG17: 0.6625047584 | BH17: 0.8256435431
A18: 2030 | B18: PHEV40 | C18: 8913.317228 | D18: 10970.23659 | E18: 3.50526934 | G18: 0.6 | H18: 0.6 | I18: 0.4 | J18: 0.4 | K18: 351.0031 | L18: 772.2069 | M18: 1 | N18: 1 | O18: 519.4846 | P18: 519.4846 | Q18: 519.4846454 | R18: 519.4846454 | U18: 519.4846454 | V18: 519.4846454 | W18: 438.802019 | X18: 438.802019 | Y18: 0 | Z18: 22.82259944 | AA18: 0 | AB18: 26.95646714 | AF18: 0.07674811777 | AH18: 0.05918151776 | AK18: 702.0063 | AL18: 1926.6562 | AM18: 27611.0769 | AN18: 0 | AO18: 167.9001 | AP18: 0 | AQ18: 0.1359296355 | AR18: 0 | AS18: 22.82259944 | AT18: 0 | AU18: 22.82259944 | AV18: 0 | AW18: 0.03138445435 | AX18: 2542.833764 | AY18: 3129.641555 | AZ18: 1.080956629 | BA18: 1.823624647 | BB18: 1.752827983 | BD18: 0.04977141504 | BE18: 0.04783919167 | BG18: 0.742668018 | BH18: 0.6718713537
A19: 2030 | B19: BEV100 | C19: 13712.79574 | D19: 13712.79574 | E19: 4.042198623 | G19: 0.2 | H19: 0.2 | I19: 0.8 | J19: 0.8 | K19: 351.0031 | L19: 772.2069 | M19: 1 | N19: 1 | O19: 687.9662 | P19: 687.9662 | Q19: 687.966152 | R19: 687.966152 | U19: 687.966152 | V19: 687.966152 | W19: 707.7059345 | X19: 707.7059345 | Y19: 0.7574611038 | Z19: 2.586825581 | AA19: 0.3840652608 | AB19: 2.314853872 | AF19: 0.009971911394 | AH19: 0.01791415542 | AI19: 0.00523767438 | AJ19: 0.001666643989 | AK19: 702.0063 | AL19: 1926.6562 | AM19: 27611.0769 | AN19: 144.6178 | AO19: 87.5326 | AP19: 0.00523767438 | AQ19: 0.0295527108 | AR19: 0.7574611038 | AS19: 2.586825581 | AT19: 0.7574611038 | AU19: 2.586825581 | AV19: 0.0009609395173 | AW19: 0.003281730128 | AX19: 3392.410174 | AY19: 3392.410174 | AZ19: 1.246535137 | BA19: 2.145801824 | BB19: 2.150572075 | BD19: 0.05856446026 | BE19: 0.0586946527 | BG19: 0.8992666864 | BH19: 0.9040369376
A20: 2035 | B20: PHEV10 | C20: 3790.843078 | D20: 7020.079773 | E20: 3.369282023 | G20: 1 | H20: 1 | K20: 333.8005 | L20: 734.3611 | M20: 1 | N20: 1 | O20: 333.8005 | P20: 333.8005 | Q20: 333.8004925 | R20: 333.8004925 | U20: 333.8004925 | V20: 333.8004925 | W20: 135.0028517 | X20: 135.0028517 | Y20: 0 | Z20: 108.4678327 | AA20: 0 | AB20: 102.6650858 | AF20: 0.2687730727 | AH20: 0.07451700737 | AK20: 667.601 | AL20: 1832.2309 | AM20: 26257.8594 | AN20: 0 | AO20: 315.9655 | AP20: 0 | AQ20: 0.3432900801 | AR20: 0 | AS20: 108.4678327 | AT20: 0 | AU20: 108.4678327 | AV20: 0 | AW20: 0.22404763 | AX20: 1125.118958 | AY20: 2083.553625 | AZ20: 1.003362132 | BA20: 1.519764915 | BB20: 1.71832893 | BD20: 0.0414783001 | BE20: 0.04689762363 | BG20: 0.5164027831 | BH20: 0.7149667974
A21: 2035 | B21: PHEV40 | C21: 9126.103705 | D21: 11232.12764 | E21: 3.52696652 | G21: 0.6 | H21: 0.6 | I21: 0.4 | J21: 0.4 | K21: 333.8005 | L21: 734.3611 | M21: 1 | N21: 1 | O21: 494.0247 | P21: 494.0247 | Q21: 494.0247289 | R21: 494.0247289 | U21: 494.0247289 | V21: 494.0247289 | W21: 348.6767814 | X21: 348.6767814 | Y21: 0 | Z21: 21.70406498 | AA21: 0 | AB21: 26.33681847 | AF21: 0.07674811777 | AH21: 0.05918151776 | AK21: 667.601 | AL21: 1832.2309 | AM21: 26257.8594 | AN21: 0 | AO21: 159.6713 | AP21: 0 | AQ21: 0.1359296355 | AR21: 0 | AS21: 21.70406498 | AT21: 0 | AU21: 21.70406498 | AV21: 0 | AW21: 0.0293308374 | AX21: 2587.522069 | AY21: 3184.642546 | AZ21: 1.050320105 | BA21: 1.630260073 | BB21: 1.586443699 | BD21: 0.04449399762 | BE21: 0.04329813589 | BG21: 0.5799399677 | BH21: 0.5361235939
A22: 2035 | B22: BEV100 | C22: 14040.15955 | D22: 14040.15955 | E22: 4.061909511 | G22: 0.2 | H22: 0.2 | I22: 0.8 | J22: 0.8 | K22: 333.8005 | L22: 734.3611 | M22: 1 | N22: 1 | O22: 654.249 | P22: 654.249 | Q22: 654.2489653 | R22: 654.2489653 | U22: 654.2489653 | V22: 654.2489653 | W22: 562.3507111 | X22: 562.3507111 | Y22: 0.7203379729 | Z22: 2.460045388 | AA22: 0.3840652608 | AB22: 2.297349788 | AF22: 0.009971911394 | AH22: 0.01791415542 | AI22: 0.00523767438 | AJ22: 0.001666643989 | AK22: 667.601 | AL22: 1832.2309 | AM22: 26257.8594 | AN22: 137.5301 | AO22: 83.2426 | AP22: 0.00523767438 | AQ22: 0.0295527108 | AR22: 0.7203379729 | AS22: 2.460045388 | AT22: 0.7203379729 | AU22: 2.460045388 | AV22: 0.000896888767 | AW22: 0.003062988706 | AX22: 3456.541685 | AY22: 3456.541685 | AZ22: 1.209624532 | BA22: 1.911179332 | BB22: 1.915727652 | BD22: 0.05216100797 | BE22: 0.05228514333 | BG22: 0.7015548003 | BH22: 0.7061031201
A23: 2040 | B23: PHEV10 | C23: 3830.603688 | D23: 7093.710533 | E23: 3.371564066 | G23: 1 | H23: 1 | K23: 317.4409 | L23: 698.3701 | M23: 1 | N23: 1 | O23: 317.4409 | P23: 317.4409 | Q23: 317.440947 | R23: 317.440947 | U23: 317.440947 | V23: 317.440947 | W23: 99.5574371 | X23: 99.5574371 | Y23: 0 | Z23: 103.1518296 | AA23: 0 | AB23: 96.42390134 | AF23: 0.2687730727 | AH23: 0.07451700737 | AK23: 634.8819 | AL23: 1742.4334 | AM23: 24970.963 | AN23: 0 | AO23: 300.4801 | AP23: 0 | AQ23: 0.3432900801 | AR23: 0 | AS23: 103.1518296 | AT23: 0 | AU23: 103.1518296 | AV23: 0 | AW23: 0.2109983036 | AX23: 1136.150348 | AY23: 2103.982126 | AZ23: 1.065429772 | BA23: 1.442551866 | BB23: 1.677310252 | BD23: 0.03937095704 | BE23: 0.04577811823 | BG23: =BA23-$AZ23 -> 0.3771220937 | BH23: 0.6118804799
A24: 2040 | B24: PHEV40 | C24: 9221.823692 | D24: 11349.93685 | E24: 3.535860788 | G24: 0.6 | H24: 0.6 | I24: 0.4 | J24: 0.4 | K24: 317.4409 | L24: 698.3701 | M24: 1 | N24: 1 | O24: 469.8126 | P24: 469.8126 | Q24: 469.8126016 | R24: 469.8126016 | U24: 469.8126016 | V24: 469.8126016 | W24: 257.1306183 | X24: 257.1306183 | Y24: 0 | Z24: 20.64034984 | AA24: 0 | AB24: 25.63114809 | AF24: 0.07674811777 | AH24: 0.05918151776 | AK24: 634.8819 | AL24: 1742.4334 | AM24: 24970.963 | AN24: 0 | AO24: 151.8458 | AP24: 0 | AQ24: 0.1359296355 | AR24: 0 | AS24: 20.64034984 | AT24: 0 | AU24: 20.64034984 | AV24: 0 | AW24: 0.02767342041 | AX24: 2608.084493 | AY24: 3209.950145 | AZ24: 1.117348293 | BA24: 1.541651399 | BB24: 1.524132789 | BD24: 0.04207563863 | BE24: 0.04159751063 | BG24: 0.4243031063 | BH24: 0.4067844963
A25: 2040 | B25: BEV100 | C25: 14187.42107 | D25: 14187.42107 | E25: 4.076800692 | G25: 0.2 | H25: 0.2 | I25: 0.8 | J25: 0.8 | K25: 317.4409 | L25: 698.3701 | M25: 1 | N25: 1 | O25: 622.1843 | P25: 622.1843 | Q25: 622.1842561 | R25: 622.1842561 | U25: 622.1842561 | V25: 622.1842561 | W25: 414.7037994 | X25: 414.7037994 | Y25: 0.6850342448 | Z25: 2.339478687 | AA25: 0.3840652608 | AB25: 2.277415729 | AF25: 0.009971911394 | AH25: 0.01791415542 | AI25: 0.00523767438 | AJ25: 0.001666643989 | AK25: 634.8819 | AL25: 1742.4334 | AM25: 24970.963 | AN25: 130.7898 | AO25: 79.1629 | AP25: 0.00523767438 | AQ25: 0.0295527108 | AR25: 0.6850342448 | AS25: 2.339478687 | AT25: 0.6850342448 | AU25: 2.339478687 | AV25: 0.0008471735311 | AW25: 0.00289320488 | AX25: 3480.037936 | AY25: 3480.037936 | AZ25: 1.288287794 | BA25: 1.802469089 | BB25: 1.806856604 | BD25: 0.04919402534 | BE25: 0.04931377193 | BG25: 0.5141812948 | BH25: 0.5185688097
A26: 2045 | B26: PHEV10 | C26: 3868.006426 | D26: 7162.974863 | E26: 3.372336002 | G26: 1 | H26: 1 | K26: 301.8832 | L26: 664.143 | M26: 1 | N26: 1 | O26: 301.8832 | P26: 301.8832 | Q26: 301.883182 | R26: 301.883182 | U26: 301.883182 | V26: 301.883182 | W26: 67.41748487 | X26: 67.41748487 | Y26: 0 | Z26: 98.09636362 | AA26: 0 | AB26: 90.15325777 | AF26: 0.2687730727 | AH26: 0.07451700737 | AK26: 603.7664 | AL26: 1657.0368 | AM26: 23747.1374 | AN26: 0 | AO26: 285.7536 | AP26: 0 | AQ26: 0.3432900801 | AR26: 0 | AS26: 98.09636362 | AT26: 0 | AU26: 98.09636362 | AV26: 0 | AW26: 0.1987624743 | AX26: 1146.981328 | AY26: 2124.039497 | AZ26: 1.127008416 | BA26: 1.37997332 | BB26: 1.645040122 | BD26: 0.03766302729 | BE26: 0.04489738325 | BG26: 0.2529649043 | BH26: 0.5180317065
A27: 2045 | B27: PHEV40 | C27: 9311.867322 | D27: 11460.75978 | E27: 3.542808483 | G27: 0.6 | H27: 0.6 | I27: 0.4 | J27: 0.4 | K27: 301.8832 | L27: 664.143 | M27: 1 | N27: 1 | O27: 446.7871 | P27: 446.7871 | Q27: 446.7871094 | R27: 446.7871094 | U27: 446.7871094 | V27: 446.7871094 | W27: 174.1215932 | X27: 174.1215932 | Y27: 0 | Z27: 19.62876732 | AA27: 0 | AB27: 24.92214685 | AF27: 0.07674811777 | AH27: 0.05918151776 | AK27: 603.7664 | AL27: 1657.0368 | AM27: 23747.1374 | AN27: 0 | AO27: 144.4039 | AP27: 0 | AQ27: 0.1359296355 | AR27: 0 | AS27: 19.62876732 | AT27: 0 | AU27: 19.62876732 | AV27: 0 | AW27: 0.02611387778 | AX27: 2628.385748 | AY27: 3234.936305 | AZ27: 1.18397899 | BA27: 1.469085808 | BB27: 1.474898285 | BD27: 0.04009513669 | BE27: 0.04025377414 | BG27: 0.2851068179 | BH27: 0.2909192941
A28: 2045 | B28: BEV100 | C28: 14325.94973 | D28: 14325.94973 | E28: 4.091144515 | G28: 0.2 | H28: 0.2 | I28: 0.8 | J28: 0.8 | K28: 301.8832 | L28: 664.143 | M28: 1 | N28: 1 | O28: 591.691 | P28: 591.691 | Q28: 591.6910368 | R28: 591.6910368 | U28: 591.6910368 | V28: 591.6910368 | W28: 280.8257016 | X28: 280.8257016 | Y28: 0.6514607506 | Z28: 2.224820953 | AA28: 0.3840652608 | AB28: 2.257387579 | AF28: 0.009971911394 | AH28: 0.01791415542 | AI28: 0.00523767438 | AJ28: 0.001666643989 | AK28: 603.7664 | AL28: 1657.0368 | AM28: 23747.1374 | AN28: 124.3798 | AO28: 75.2831 | AP28: 0.00523767438 | AQ28: 0.0295527108 | AR28: 0.6514607506 | AS28: 2.224820953 | AT28: 0.6514607506 | AU28: 2.224820953 | AV28: 0.0008006703153 | AW28: 0.00273439051 | AX28: 3501.697306 | AY28: 3501.697306 | AZ28: 1.36722862 | BA28: 1.713646908 | BB28: 1.717883014 | BD28: 0.0467698392 | BE28: 0.04688545343 | BG28: 0.3464182881 | BH28: 0.3506543935
A29: 2050 | B29: PHEV10 | C29: 3907.277197 | D29: 7235.698512 | E29: 3.373067559 | G29: 1 | H29: 1 | K29: 287.0879 | L29: 631.5934 | M29: 1 | N29: 1 | O29: 287.0879 | P29: 287.0879 | Q29: 287.0879023 | R29: 287.0879023 | U29: 287.0879023 | V29: 287.0879023 | W29: 41.37059921 | X29: 41.37059921 | Y29: 0 | Z29: 93.28866573 | AA29: 0 | AB29: 84.52989134 | AF29: 0.2687730727 | AH29: 0.07451700737 | AK29: 574.1758 | AL29: 1575.8255 | AM29: 22583.2914 | AN29: 0 | AO29: 271.7488 | AP29: 0 | AQ29: 0.3432900801 | AR29: 0 | AS29: 93.28866573 | AT29: 0 | AU29: 93.28866573 | AV29: 0 | AW29: 0.1871619375 | AX29: 1158.375019 | AY29: 2145.138924 | AZ29: 1.188567202 | BA29: 1.342271745 | BB29: 1.628319093 | BD29: 0.03663405416 | BE29: 0.04444102329 | BG29: 0.1537045424 | BH29: 0.4397518912
A30: 2050 | B30: PHEV40 | C30: 9406.408066 | D30: 11577.11762 | E30: 3.552796817 | G30: 0.6 | H30: 0.6 | I30: 0.4 | J30: 0.4 | K30: 287.0879 | L30: 631.5934 | M30: 1 | N30: 1 | O30: 424.8901 | P30: 424.8901 | Q30: 424.8900955 | R30: 424.8900955 | U30: 424.8900955 | V30: 424.8900955 | W30: 106.8493531 | X30: 106.8493531 | Y30: 0 | Z30: 18.66676242 | AA30: 0 | AB30: 24.28633113 | AF30: 0.07674811777 | AH30: 0.05918151776 | AK30: 574.1758 | AL30: 1575.8255 | AM30: 22583.2914 | AN30: 0 | AO30: 137.3267 | AP30: 0 | AQ30: 0.1359296355 | AR30: 0 | AS30: 18.66676242 | AT30: 0 | AU30: 18.66676242 | AV30: 0 | AW30: 0.02465375067 | AX30: 2647.606534 | AY30: 3258.592657 | AZ30: 1.251898368 | BA30: 1.425583454 | BB30: 1.449746934 | BD30: 0.03890784536 | BE30: 0.03956732898 | BG30: =BA30-$AZ30 -> 0.1736850857 | BH30: =BB30-$AZ30 -> 0.1978485657
A31: 2050 | B31: BEV100 | C31: 14471.39702 | D31: 14471.39702 | E31: 4.104972232 | G31: 0.2 | H31: 0.2 | I31: 0.8 | J31: 0.8 | K31: 287.0879 | L31: 631.5934 | M31: 1 | N31: 1 | O31: 562.6923 | P31: 562.6923 | Q31: 562.6922886 | R31: 562.6922886 | U31: 562.6922886 | V31: 562.6922886 | W31: 172.328107 | X31: 172.328107 | Y31: 0.6195326917 | Z31: 2.115782589 | AA31: 0.3840652608 | AB31: 2.239426803 | AF31: 0.009971911394 | AH31: 0.01791415542 | AI31: 0.00523767438 | AJ31: 0.001666643989 | AK31: 574.1758 | AL31: 1575.8255 | AM31: 22583.2914 | AN31: 118.2839 | AO31: 71.5935 | AP31: 0.00523767438 | AQ31: 0.0295527108 | AR31: 0.6195326917 | AS31: 2.115782589 | AT31: 0.6195326917 | AU31: 2.115782589 | AV31: 0.0007563243234 | AW31: 0.002582943332 | AX31: 3525.333719 | AY31: 3525.333719 | AZ31: 1.446468319 | BA31: 1.658071332 | BB31: 1.662162973 | BD31: 0.04525303854 | BE31: 0.04536470996 | BG31: =BA31-$AZ31 -> 0.2116030134 | BH31: =BB31-$AZ31 -> 0.2156946543

Sheet Elec - Annual Input Values
H1: Source: Jaycie Chitwood (Electric Sub-group) | Z1: 26 | AA1: 27 | AB1: 28 | AC1: 29 | AD1: 30 | AE1: 31 | AF1: 32 | AG1: 33 | AH1: 34 | AI1: 35 | AJ1: 36 | AK1: 37 | AL1: 38 | AM1: 39 | AN1: 40 | AO1: 41 | AP1: 42 | AQ1: 43 | AR1: 44 | AS1: 45 | AT1: 46 | AU1: 47 | AV1: 48 | AW1: 49 | AX1: 50 | AY1: 51 | AZ1: 52 | BA1: 53 | BB1: 54 | BC1: 55 | BD1: 56 | BE1: 57 | BF1: 58 | BG1: 59 | BH1: 60 | BI1: 61 | BK1: 63 | BL1: 64 | BM1: 65 | BN1: 66 | BP1: 68 | BQ1: 69 | BR1: 70
A3: 1 | C3: 3 | D3: 4 | F3: 6 | G3: 7 | H3: 8 | I3: 9 | J3: 10 | K3: 11 | M3: 13 | N3: 14 | O3: 15 | S3: 19 | T3: 20 | U3: 21 | V3: 22 | W3: 23 | X3: 24 | Z3: Charger density
Z4: PHEV10 | AL4: PHEV40 | AX4: BEV100 | BL4: Taxes $/GEG
A5: Year | F5: Utility factor (from Marcus's chart) | M5: Vehicle Efficiency in Wh/mile | S5: Total charger units costs | Z5: Residential | AF5: Workplace / Commercial | AL5: Residential | AR5: Workplace / Commercial | AX5: Residential | BD5: Workplace / Commercial | BK5: Taxes / mile (test economy) | BP5: =AVERAGE(BP8:BP16) -> 122.3917869 | BQ5: =AVERAGE(BQ8:BQ16) -> 128.1516818 | BR5: =AVERAGE(BR8:BR16) -> 147.281038
F6: PHEV10 | H6: PHEV40 | J6: BEV100 | M6: PHEV10 | N6: PHEV40 | O6: BEV100 | S6: Residential | V6: Workplace / Commercial | Z6: Home charging scenario | AC6: Ubiquitous charging scenario | AF6: Home charging scenario | AI6: Ubiquitous charging scenario | AL6: Home charging scenario | AO6: Ubiquitous charging scenario | AR6: Home charging scenario | AU6: Ubiquitous charging scenario | AX6: Home charging scenario | BA6: Ubiquitous charging scenario | BD6: Home charging scenario | BG6: Ubiquitous charging scenario | BK6: $/mile | BL6: PHEV10 | BM6: PHEV40 | BN6: BEV100 | BP6: PHEV10 | BQ6: PHEV40 | BR6: BEV100
F7: Home | G7: Ubiq | H7: Home | I7: Ubiq | J7: Home | K7: Ubiq | M7: Avg | N7: Avg | O7: Avg | S7: L1 | T7: L2 | U7: L3/DC | V7: L1 | W7: L2 | X7: L3 | Z7: L1 | AA7: L2 | AB7: L3/DC | AC7: L1 | AD7: L2 | AE7: L3/DC | AF7: L1 | AG7: L2 | AH7: L3/DC | AI7: L1 | AJ7: L2 | AK7: L3/DC | AL7: L1 | AM7: L2 | AN7: L3/DC | AO7: L1 | AP7: L2 | AQ7: L3/DC | AR7: L1 | AS7: L2 | AT7: L3/DC | AU7: L1 | AV7: L2 | AW7: L3/DC | AX7: L1 | AY7: L2 | AZ7: L3/DC | BA7: L1 | BB7: L2 | BC7: L3/DC | BD7: L1 | BE7: L2 | BF7: L3/DC | BG7: L1 | BH7: L2 | BI7: L3/DC
A8: 2010 | C8: 2010 | D8: 11943.59202 | F8: 0.27 | G8: 0.5 | H8: 0.65 | I8: 0.8 | J8: 1 | K8: 1 | M8: =+M9 -> 306.6898456 | N8: =+N9 -> 292.9723969 | O8: =+O9 -> 254.5764495 | Q8: 1 | R8: 2010 | S8: =OFFSET('Elec - Charger Costs Used'!$B$9,0,$Q8-1) -> 500 | T8: =OFFSET('Elec - Charger Costs Used'!$B$15,0,$Q21-1) -> 1100 | U8: =OFFSET('Elec - Charger Costs Used'!$B$39,0,$Q21-1) -> 39331.66667 | V8: =OFFSET('Elec - Charger Costs Used'!$B$31,0,$Q21-1) -> 1000 | W8: =OFFSET('Elec - Charger Costs Used'!$B$35,0,$Q21-1) -> 2744.5 | X8: =OFFSET('Elec - Charger Costs Used'!$B$39,0,$Q21-1) -> 39331.66667 | Z8: 1 | AC8: 1 | AI8: 0.2687730727 | AJ8: 0.07451700737 | AL8: 0.6 | AM8: 0.4 | AO8: 0.6 | AP8: 0.4 | AU8: 0.07674811777 | AV8: 0.05918151776 | AX8: 0.2 | AY8: 0.8 | BA8: 0.2 | BB8: 0.8 | BF8: =5.23767438001313/1000 -> 0.00523767438 | BG8: 0.009971911394 | BH8: 0.01791415542 | BI8: =1.6666439893577/1000 -> 0.001666643989 | BK8: 0.009735186767 | BL8: =(1/M8)*1000*36.64*BK8 -> 1.163055276 | BM8: =1/N8*1000*36.64*BK8 -> 1.217511434 | BN8: =1/O8*1000*36.64*BK8 -> 1.401139987 | BP8: =(1000/M8)*36.64 -> 119.469231 | BQ8: =(1000/N8)*36.64 -> 125.0629765 | BR8: =(1000/O8)*36.64 -> 143.9253319
A9: 2015 | C9: 2015 | D9: 12158.87965 | F9: 0.27 | G9: 0.5 | H9: 0.65 | I9: 0.8 | J9: 1 | K9: 1 | M9: 306.6898456 | N9: 292.9723969 | O9: 254.5764495 | Q9: 2 | R9: 2015 | S9: =OFFSET('Elec - Charger Costs Used'!$B$9,0,$Q9-1) -> 429.3670128 | T9: =OFFSET('Elec - Charger Costs Used'!$B$15,0,$Q22-1) -> 944.6074283 | U9: =OFFSET('Elec - Charger Costs Used'!$B$39,0,$Q22-1) -> 33775.44045 | V9: =OFFSET('Elec - Charger Costs Used'!$B$31,0,$Q22-1) -> 858.7340257 | W9: =OFFSET('Elec - Charger Costs Used'!$B$35,0,$Q22-1) -> 2356.795534 | X9: =OFFSET('Elec - Charger Costs Used'!$B$39,0,$Q22-1) -> 33775.44045 | Z9: 1 | AC9: 1 | AI9: 0.2687730727 | AJ9: 0.07451700737 | AL9: 0.6 | AM9: 0.4 | AO9: 0.6 | AP9: 0.4 | AU9: 0.07674811777 | AV9: 0.05918151776 | AX9: 0.2 | AY9: 0.8 | BA9: 0.2 | BB9: 0.8 | BF9: =5.23767438001313/1000 -> 0.00523767438 | BG9: 0.009971911394 | BH9: 0.01791415542 | BI9: =1.6666439893577/1000 -> 0.001666643989 | BK9: 0.009421259848 | BL9: =(1/M9)*1000*36.64*BK9 -> 1.125550669 | BM9: 1.178250799 | BN9: 1.355957951 | BP9: =(1000/M9)*36.64 -> 119.469231 | BQ9: 125.0629765 | BR9: =(1000/O9)*36.64 -> 143.9253319
A10: 2020 | C10: 2020 | D10: 12549.11312 | F10: 0.27 | G10: 0.5 | H10: 0.65 | I10: 0.8 | J10: 1 | K10: 1 | M10: 297.5666428 | N10: 285.8679881 | O10: 253.7765383 | Q10: 3 | R10: 2020 | S10: =OFFSET('Elec - Charger Costs Used'!$B$9,0,$Q10-1) -> 388.1137724 | T10: =OFFSET('Elec - Charger Costs Used'!$B$15,0,$Q23-1) -> 853.8502992 | U10: =OFFSET('Elec - Charger Costs Used'!$B$39,0,$Q23-1) -> 30530.32305 | V10: =OFFSET('Elec - Charger Costs Used'!$B$31,0,$Q23-1) -> 776.2275448 | W10: =OFFSET('Elec - Charger Costs Used'!$B$35,0,$Q23-1) -> 2130.356497 | X10: =OFFSET('Elec - Charger Costs Used'!$B$39,0,$Q23-1) -> 30530.32305 | Z10: 1 | AC10: 1 | AI10: 0.2687730727 | AJ10: 0.07451700737 | AL10: 0.6 | AM10: 0.4 | AO10: 0.6 | AP10: 0.4 | AU10: 0.07674811777 | AV10: 0.05918151776 | AX10: 0.2 | AY10: 0.8 | BA10: 0.2 | BB10: 0.8 | BF10: 0.00523767438 | BG10: 0.009971911394 | BH10: 0.01791415542 | BI10: 0.001666643989 | BK10: 0.00908271019 | BL10: 1.118373008 | BM10: 1.164140496 | BN10: 1.311352514 | BP10: 123.1320811 | BQ10: 128.1710493 | BR10: 144.3789889
A11: 2025 | C11: 2025 | D11: 13245.19024 | F11: 0.27 | G11: 0.5 | H11: 0.65 | I11: 0.8 | J11: 1 | K11: 1 | M11: 299.33351 | N11: 286.5408072 | O11: 249.7861549 | Q11: 4 | R11: 2025 | S11: =OFFSET('Elec - Charger Costs Used'!$B$9,0,$Q11-1) -> 369.0923358 | T11: =OFFSET('Elec - Charger Costs Used'!$B$15,0,$Q24-1) -> 812.0031387 | U11: =OFFSET('Elec - Charger Costs Used'!$B$39,0,$Q24-1) -> 29034.03344 | V11: =OFFSET('Elec - Charger Costs Used'!$B$31,0,$Q24-1) -> 738.1846715 | W11: =OFFSET('Elec - Charger Costs Used'!$B$35,0,$Q24-1) -> 2025.947831 | X11: =OFFSET('Elec - Charger Costs Used'!$B$39,0,$Q24-1) -> 29034.03344 | Z11: 1 | AC11: 1 | AI11: 0.2687730727 | AJ11: 0.07451700737 | AL11: 0.6 | AM11: 0.4 | AO11: 0.6 | AP11: 0.4 | AU11: 0.07674811777 | AV11: 0.05918151776 | AX11: 0.2 | AY11: 0.8 | BA11: 0.2 | BB11: 0.8 | BF11: 0.00523767438 | BG11: 0.009971911394 | BH11: 0.01791415542 | BI11: 0.001666643989 | BK11: 0.008734432056 | BL11: 1.06914054 | BM11: 1.11687265 | BN11: 1.281214288 | BP11: 122.405273 | BQ11: 127.8700942 | BR11: 146.6854719
A12: 2030 | C12: 2030 | D12: 13712.79574 | F12: 0.27 | G12: 0.5 | H12: 0.65 | I12: 0.8 | J12: 1 | K12: 1 | M12: 298.0944103 | N12: 285.2847821 | O12: 247.3901194 | Q12: 5 | R12: 2030 | S12: =OFFSET('Elec - Charger Costs Used'!$B$9,0,$Q12-1) -> 351.0031388 | T12: =OFFSET('Elec - Charger Costs Used'!$B$15,0,$Q25-1) -> 772.2069054 | U12: =OFFSET('Elec - Charger Costs Used'!$B$39,0,$Q25-1) -> 27611.07691 | V12: =OFFSET('Elec - Charger Costs Used'!$B$31,0,$Q25-1) -> 702.0062776 | W12: =OFFSET('Elec - Charger Costs Used'!$B$35,0,$Q25-1) -> 1926.656229 | X12: =OFFSET('Elec - Charger Costs Used'!$B$39,0,$Q25-1) -> 27611.07691 | Z12: 1 | AC12: 1 | AI12: 0.2687730727 | AJ12: 0.07451700737 | AL12: 0.6 | AM12: 0.4 | AO12: 0.6 | AP12: 0.4 | AU12: 0.07674811777 | AV12: 0.05918151776 | AX12: 0.2 | AY12: 0.8 | BA12: 0.2 | BB12: 0.8 | BF12: 0.00523767438 | BG12: 0.009971911394 | BH12: 0.01791415542 | BI12: 0.001666643989 | BK12: 0.00841649772 | BL12: 1.034506069 | BM12: 1.080956629 | BN12: 1.246535137 | BP12: 122.9140794 | BQ12: 128.4330686 | BR12: 148.1061576
A13: 2035 | C13: 2035 | D13: 14040.15955 | F13: 0.27 | G13: 0.5 | H13: 0.65 | I13: 0.8 | J13: 1 | K13: 1 | M13: 296.799138 | N13: 283.5297683 | O13: 246.1896301 | Q13: 6 | R13: 2035 | S13: =OFFSET('Elec - Charger Costs Used'!$B$9,0,$Q13-1) -> 333.8004925 | T13: =OFFSET('Elec - Charger Costs Used'!$B$15,0,$Q26-1) -> 734.3610835 | U13: =OFFSET('Elec - Charger Costs Used'!$B$39,0,$Q26-1) -> 26257.85941 | V13: =OFFSET('Elec - Charger Costs Used'!$B$31,0,$Q26-1) -> 667.600985 | W13: =OFFSET('Elec - Charger Costs Used'!$B$35,0,$Q26-1) -> 1832.230903 | X13: =OFFSET('Elec - Charger Costs Used'!$B$39,0,$Q26-1) -> 26257.85941 | Z13: 1 | AC13: 1 | AI13: 0.2687730727 | AJ13: 0.07451700737 | AL13: 0.6 | AM13: 0.4 | AO13: 0.6 | AP13: 0.4 | AU13: 0.07674811777 | AV13: 0.05918151776 | AX13: 0.2 | AY13: 0.8 | BA13: 0.2 | BB13: 0.8 | BF13: 0.00523767438 | BG13: 0.009971911394 | BH13: 0.01791415542 | BI13: 0.001666643989 | BK13: 0.008127647816 | BL13: 1.003362132 | BM13: 1.050320105 | BN13: 1.209624532 | BP13: 123.4504933 | BQ13: 129.2280533 | BR13: 148.8283645
A14: 2040 | C14: 2040 | D14: 14187.42107 | F14: 0.27 | G14: 0.5 | H14: 0.65 | I14: 0.8 | J14: 1 | K14: 1 | M14: 296.5982495 | N14: 282.8165643 | O14: 245.2903822 | Q14: 7 | R14: 2040 | S14: =OFFSET('Elec - Charger Costs Used'!$B$9,0,$Q14-1) -> 317.440947 | T14: =OFFSET('Elec - Charger Costs Used'!$B$15,0,$Q27-1) -> 698.3700834 | U14: =OFFSET('Elec - Charger Costs Used'!$B$39,0,$Q27-1) -> 24970.96303 | V14: =OFFSET('Elec - Charger Costs Used'!$B$31,0,$Q27-1) -> 634.881894 | W14: =OFFSET('Elec - Charger Costs Used'!$B$35,0,$Q27-1) -> 1742.433358 | X14: =OFFSET('Elec - Charger Costs Used'!$B$39,0,$Q27-1) -> 24970.96303 | Z14: 1 | AC14: 1 | AI14: 0.2687730727 | AJ14: 0.07451700737 | AL14: 0.6 | AM14: 0.4 | AO14: 0.6 | AP14: 0.4 | AU14: 0.07674811777 | AV14: 0.05918151776 | AX14: 0.2 | AY14: 0.8 | BA14: 0.2 | BB14: 0.8 | BF14: 0.00523767438 | BG14: 0.009971911394 | BH14: 0.01791415542 | BI14: 0.001666643989 | BK14: 0.00862457984 | BL14: 1.065429772 | BM14: 1.117348293 | BN14: 1.288287794 | BP14: 123.5341074 | BQ14: 129.5539393 | BR14: 149.3739774
A15: 2045 | C15: 2045 | D15: 14325.94973 | F15: 0.27 | G15: 0.5 | H15: 0.65 | I15: 0.8 | J15: 1 | K15: 1 | M15: 296.5303575 | N15: 282.2619413 | O15: 244.4303779 | Q15: 8 | R15: 2045 | S15: =OFFSET('Elec - Charger Costs Used'!$B$9,0,$Q15-1) -> 301.883182 | T15: =OFFSET('Elec - Charger Costs Used'!$B$15,0,$Q28-1) -> 664.1430005 | U15: =OFFSET('Elec - Charger Costs Used'!$B$39,0,$Q28-1) -> 23747.13738 | V15: =OFFSET('Elec - Charger Costs Used'!$B$31,0,$Q28-1) -> 603.7663641 | W15: =OFFSET('Elec - Charger Costs Used'!$B$35,0,$Q28-1) -> 1657.036786 | X15: =OFFSET('Elec - Charger Costs Used'!$B$39,0,$Q28-1) -> 23747.13738 | Z15: 1 | AC15: 1 | AI15: 0.2687730727 | AJ15: 0.07451700737 | AL15: 0.6 | AM15: 0.4 | AO15: 0.6 | AP15: 0.4 | AU15: 0.07674811777 | AV15: 0.05918151776 | AX15: 0.2 | AY15: 0.8 | BA15: 0.2 | BB15: 0.8 | BF15: 0.00523767438 | BG15: 0.009971911394 | BH15: 0.01791415542 | BI15: 0.001666643989 | BK15: 0.009120966385 | BL15: 1.127008416 | BM15: 1.18397899 | BN15: 1.36722862 | BP15: 123.5623911 | BQ15: 129.8085028 | BR15: 149.899535
A16: 2050 | C16: 2050 | D16: 14471.39702 | F16: 0.27 | G16: 0.5 | H16: 0.65 | I16: 0.8 | J16: 1 | K16: 1 | M16: 296.4660454 | N16: 281.46839 | O16: 243.6070072 | Q16: 9 | R16: 2050 | S16: =OFFSET('Elec - Charger Costs Used'!$B$9,0,$Q16-1) -> 287.0879023 | T16: =OFFSET('Elec - Charger Costs Used'!$B$15,0,$Q29-1) -> 631.5933852 | U16: =OFFSET('Elec - Charger Costs Used'!$B$39,0,$Q29-1) -> 22583.29136 | V16: =OFFSET('Elec - Charger Costs Used'!$B$31,0,$Q29-1) -> 574.1758047 | W16: =OFFSET('Elec - Charger Costs Used'!$B$35,0,$Q29-1) -> 1575.825496 | X16: =OFFSET('Elec - Charger Costs Used'!$B$39,0,$Q29-1) -> 22583.29136 | Z16: 1 | AC16: 1 | AI16: 0.2687730727 | AJ16: 0.07451700737 | AL16: 0.6 | AM16: 0.4 | AO16: 0.6 | AP16: 0.4 | AU16: 0.07674811777 | AV16: 0.05918151776 | AX16: 0.2 | AY16: 0.8 | BA16: 0.2 | BB16: 0.8 | BF16: =5.23767438001313/1000 -> 0.00523767438 | BG16: 0.009971911394 | BH16: 0.01791415542 | BI16: =1.6666439893577/1000 -> 0.001666643989 | BK16: 0.009617080189 | BL16: 1.188567202 | BM16: 1.251898368 | BN16: 1.446468319 | BP16: 123.5891953 | BQ16: 130.1744754 | BR16: 150.4061826
S18: Total charger installation costs These values are referenced from the "Charger Costs used" tab
S19: Residential | V19: Workplace / Commercial | BK19: These are the approx. total tax values (for comparison) using average test fuel economy; For Fed and State see "Fuel Taxes" tab
S20: L1 | T20: L2 | U20: L3/DC | V20: L1 | W20: L2 | X20: L3 | BK20: Total | BL20: PHEV10 | BM20: PHEV40 | BN20: BEV100
Q21: 1 | R21: 2010 | S21: =OFFSET('Elec - Charger Costs Used'!$B$12,0,$Q21-1) -> 302.75 | T21: =OFFSET('Elec - Charger Costs Used'!$B$18,0,$Q34-1) -> 1603.307143 | U21: =+X21 -> 20000 | V21: =OFFSET('Elec - Charger Costs Used'!$B$32,0,$Q34-1) -> 605.5 | W21: =OFFSET('Elec - Charger Costs Used'!$B$36,0,$Q34-1) -> 6214.69619 | X21: =OFFSET('Elec - Charger Costs Used'!$B$40,0,$Q34-1) -> 20000 | BK21: 2010 | BL21: 1.193758704 | BM21: 1.249973106 | BN21: 1.436322214
Q22: 2 | R22: 2015 | S22: =OFFSET('Elec - Charger Costs Used'!$B$12,0,$Q22-1) -> 257.3375 | T22: =OFFSET('Elec - Charger Costs Used'!$B$18,0,$Q35-1) -> 1362.811071 | U22: 17000 | V22: =OFFSET('Elec - Charger Costs Used'!$B$32,0,$Q35-1) -> 514.675 | W22: =OFFSET('Elec - Charger Costs Used'!$B$36,0,$Q35-1) -> 5096.050876 | X22: =OFFSET('Elec - Charger Costs Used'!$B$40,0,$Q35-1) -> 17000 | BK22: 2015 | BL22: 1.155264014 | BM22: 1.209665692 | BN22: 1.39000567
Q23: 3 | R23: 2020 | S23: =OFFSET('Elec - Charger Costs Used'!$B$12,0,$Q23-1) -> 210.017675 | T23: =OFFSET('Elec - Charger Costs Used'!$B$18,0,$Q36-1) -> 1102.204238 | U23: 14000 | V23: =OFFSET('Elec - Charger Costs Used'!$B$32,0,$Q36-1) -> 423.85 | W23: =OFFSET('Elec - Charger Costs Used'!$B$36,0,$Q36-1) -> 3977.405562 | X23: =OFFSET('Elec - Charger Costs Used'!$B$40,0,$Q36-1) -> 14000 | BK23: 2020 | BL23: 1.113750009 | BM23: 1.166196781 | BN23: 1.340056305
Q24: 4 | R24: 2025 | S24: =OFFSET('Elec - Charger Costs Used'!$B$12,0,$Q24-1) -> 200.1616874 | T24: =OFFSET('Elec - Charger Costs Used'!$B$18,0,$Q37-1) -> 992.1696666 | U24: 14000 | V24: =OFFSET('Elec - Charger Costs Used'!$B$32,0,$Q37-1) -> 423.85 | W24: =OFFSET('Elec - Charger Costs Used'!$B$36,0,$Q37-1) -> 2858.760248 | X24: =OFFSET('Elec - Charger Costs Used'!$B$40,0,$Q37-1) -> 14000 | BK24: 2025 | BL24: 1.071043067 | BM24: 1.121478758 | BN24: 1.288671608
Q25: 5 | R25: 2030 | S25: =OFFSET('Elec - Charger Costs Used'!$B$12,0,$Q25-1) -> 169.8981036 | T25: =OFFSET('Elec - Charger Costs Used'!$B$18,0,$Q38-1) -> 842.1578923 | U25: 14000 | V25: =OFFSET('Elec - Charger Costs Used'!$B$32,0,$Q38-1) -> 379.5031257 | W25: =OFFSET('Elec - Charger Costs Used'!$B$36,0,$Q38-1) -> 2858.760248 | X25: =OFFSET('Elec - Charger Costs Used'!$B$40,0,$Q38-1) -> 14000 | BK25: 2030 | BL25: 1.032056975 | BM25: 1.080656802 | BN25: 1.241763813
Q26: 6 | R26: 2035 | S26: =OFFSET('Elec - Charger Costs Used'!$B$12,0,$Q26-1) -> 135.0028517 | T26: =OFFSET('Elec - Charger Costs Used'!$B$18,0,$Q39-1) -> 669.1876759 | U26: 14000 | V26: =OFFSET('Elec - Charger Costs Used'!$B$32,0,$Q39-1) -> 320.1062455 | W26: =OFFSET('Elec - Charger Costs Used'!$B$36,0,$Q39-1) -> 2858.760248 | X26: =OFFSET('Elec - Charger Costs Used'!$B$40,0,$Q39-1) -> 14000 | BK26: 2035 | BL26: 0.996637307 | BM26: 1.043569212 | BN26: 1.199147113
Q27: 7 | R27: 2040 | S27: =OFFSET('Elec - Charger Costs Used'!$B$12,0,$Q27-1) -> 99.5574371 | T27: =OFFSET('Elec - Charger Costs Used'!$B$18,0,$Q40-1) -> 493.49039 | U27: 14000 | V27: =OFFSET('Elec - Charger Costs Used'!$B$32,0,$Q40-1) -> 252.4636901 | W27: =OFFSET('Elec - Charger Costs Used'!$B$36,0,$Q40-1) -> 2858.760248 | X27: =OFFSET('Elec - Charger Costs Used'!$B$40,0,$Q40-1) -> 14000 | BK27: 2040 | BL27: 1.057572648 | BM27: 1.107374014 | BN27: 1.272464094
Q28: 8 | R28: 2045 | S28: =OFFSET('Elec - Charger Costs Used'!$B$12,0,$Q28-1) -> 67.41748487 | T28: =OFFSET('Elec - Charger Costs Used'!$B$18,0,$Q41-1) -> 334.1777558 | U28: 14000 | V28: =OFFSET('Elec - Charger Costs Used'!$B$32,0,$Q41-1) -> 184.5018537 | W28: =OFFSET('Elec - Charger Costs Used'!$B$36,0,$Q41-1) -> 2858.760248 | X28: =OFFSET('Elec - Charger Costs Used'!$B$40,0,$Q41-1) -> 14000 | BK28: 2045 | BL28: 1.118441101 | BM28: 1.171108778 | BN28: 1.345700596
Q29: 9 | R29: 2050 | S29: =OFFSET('Elec - Charger Costs Used'!$B$12,0,$Q29-1) -> 41.37059921 | T29: =OFFSET('Elec - Charger Costs Used'!$B$18,0,$Q42-1) -> 205.067484 | U29: 14000 | V29: =OFFSET('Elec - Charger Costs Used'!$B$32,0,$Q42-1) -> 123.5552689 | W29: =OFFSET('Elec - Charger Costs Used'!$B$36,0,$Q42-1) -> 2858.760248 | X29: =OFFSET('Elec - Charger Costs Used'!$B$40,0,$Q42-1) -> 14000 | BK29: 2050 | BL29: 1.17927611 | BM29: 1.234808523 | BN29: 1.418896857
BK30: Note: Test fuel economy used for conversion to c/mile
S31: Total infrastructure costs (including installation)
S32: Residential | V32: Workplace / Commercial
S33: L1 | T33: L2 | U33: L3/DC | V33: L1 | W33: L2 | X33: L3
Q34: 1 | R34: 2010 | S34: =S8+S21 -> 802.75 | T34: 2703.307143 | U34: 59331.66667 | V34: 1605.5 | W34: 8959.19619 | X34: 59331.66667
Q35: 2 | R35: 2015 | S35: 686.7045128 | T35: 2307.4185 | U35: 50775.44045 | V35: 1373.409026 | W35: 7452.84641 | X35: 50775.44045
Q36: 3 | R36: 2020 | S36: 598.1314474 | T36: 1956.054537 | U36: 44530.32305 | V36: 1200.077545 | W36: 6107.762058 | X36: 44530.32305
Q37: 4 | R37: 2025 | S37: 569.2540232 | T37: 1804.172805 | U37: 43034.03344 | V37: 1162.034672 | W37: 4884.708079 | X37: 43034.03344
Q38: 5 | R38: 2030 | S38: 520.9012424 | T38: 1614.364798 | U38: 41611.07691 | V38: 1081.509403 | W38: 4785.416476 | X38: 41611.07691
Q39: 6 | R39: 2035 | S39: 468.8033442 | T39: 1403.548759 | U39: 40257.85941 | V39: 987.7072305 | W39: 4690.991151 | X39: 40257.85941
Q40: 7 | R40: 2040 | S40: 416.9983841 | T40: 1191.860473 | U40: 38970.96303 | V40: 887.3455841 | W40: 4601.193606 | X40: 38970.96303
Q41: 8 | R41: 2045 | S41: 369.3006669 | T41: 998.3207563 | U41: 37747.13738 | V41: 788.2682177 | W41: 4515.797034 | X41: 37747.13738
Q42: 9 | R42: 2050 | S42: 328.4585015 | T42: 836.6608691 | U42: 36583.29136 | V42: 697.7310736 | W42: 4434.585744 | X42: 36583.29136

Sheet Electricity
A1: Source: Jaycie Chitwood (Electric Subgroup) | B1: Electricity | M1: Input required
A2: BEV100 in 2050 | B2: Using EVSE Unit costs | D2: Using EVSE Installation costs | M2: Calculation
B3: Residential Charging Scenario | C3: "Ubiquitous" Charging Scenario
A4: Note: GEG = Gasoline Equivalent Gallons (energy basis) | D4: Notes | E4: alt units/calc | F4: units | H4: 2008 | I4: 2009 | J4: 2010 | K4: 2011 | L4: 2012 | M4: 2013 | N4: 2014 | O4: 2015 | P4: 2016 | Q4: 2017 | R4: 2018 | S4: 2019 | T4: 2020 | U4: 2021 | V4: 2022 | W4: 2023 | X4: 2024 | Y4: 2025 | Z4: 2026 | AA4: 2027 | AB4: 2028 | AC4: 2029 | AD4: 2030 | AE4: 2031 | AF4: 2032 | AG4: 2033 | AH4: 2034 | AI4: 2035
A5: Will pathway use AEO2010 Reference Case CUSTOMER PRICE? | B5: Yes | C5: Yes | D5: Yes, for "Low" case; AEO2011 GHG Price case will be used for "High" case
A6: + If "YES" above, indicate CUSTOMER Price (2008$) | G6: End-use Residential Electricity price (2008 c/kWH) from AEO2010 (Table 8) - assumes include capital recovery for generation, distribution and transmission | H6: 11.4 | I6: 11 | J6: 10.6 | K6: 10.2 | L6: 10.6 | M6: 10.7 | N6: 10.7 | O6: 10.7 | P6: 10.8 | Q6: 10.9 | R6: 10.8 | S6: 10.8 | T6: 10.9 | U6: 10.9 | V6: 10.9 | W6: 11 | X6: 11 | Y6: 11 | Z6: 11.1 | AA6: 11.1 | AB6: 11.2 | AC6: 11.3 | AD6: 11.4 | AE6: 11.5 | AF6: 11.6 | AG6: 11.7 | AH6: 11.8 | AI6: 11.8
A7: CUSTOMER price used ($/GEG) (2008$) | G7: Convert to $/geg using 36.64 kWH/geg | H7: =H6*36.64/100 -> 4.17696 | I7: =I6*36.64/100 -> 4.0304 | J7: 3.88384 | K7: 3.73728 | L7: 3.88384 | M7: 3.92048 | N7: 3.92048 | O7: 3.92048 | P7: 3.95712 | Q7: 3.99376 | R7: 3.95712 | S7: 3.95712 | T7: 3.99376 | U7: 3.99376 | V7: 3.99376 | W7: 4.0304 | X7: 4.0304 | Y7: 4.0304 | Z7: 4.06704 | AA7: 4.06704 | AB7: 4.10368 | AC7: 4.14032 | AD7: 4.17696 | AE7: 4.2136 | AF7: 4.25024 | AG7: 4.28688 | AH7: 4.32352 | AI7: 4.32352
A8: Does pathway need an adjustment for bulk distribution & vehicle dispensing infrastructure costs? (Y/N) | B8: Yes | C8: Yes
A10: Annual mileage on electricity | B10: 14471.39702 | C10: 14471.39702 | F10: From VMT and utility factor
A11: Vehicle efficiency | B11: 4.104972232 | C11: 4.104972232
A12: ALL CALCULATIONS NOW DONE ON A PER-VEHICLE BASIS (Changed 9/21/2011 by J. Chitwood & P. Curtiss)
A14: Residential Infrastructure Costs
A15: Level 1
A16: Level 1 ratio per vehicle | B16: 0.2 | C16: 0.2 | D16: =+B16 -> 0.2 | E16: =+C16 -> 0.2
A17: Level 1 unit / installation cost | B17: 287.0879023 | C17: 287.0879023 | D17: 41.37059921 | E17: 41.37059921
A18: Level 2
A19: Level 2 ratio per vehicle | B19: 0.8 | C19: 0.8 | D19: =+B19 -> 0.8 | E19: =+C19 -> 0.8
A20: Level 2 unit / installation cost | B20: 631.5933852 | C20: 631.5933852 | D20: 205.067484 | E20: 205.067484
A22: Total number of chargers needed | B22: =+B16+B19 -> 1 | C22: =+C16+C19 -> 1 | D22: =+B22 -> 1 | E22: =+C22 -> 1
A23: Weighted average cost for charger / installation | B23: =(B16*B17)+(B19*B20) -> 562.6922886 | C23: =(C16*C17)+(C19*C20) -> 562.6922886 | D23: =(D16*D17)+(D19*D20) -> 172.328107 | E23: =(E16*E17)+(E19*E20) -> 172.328107
A24: Total Cost to install chargers | B24: =B22*B23 -> 562.6922886 | C24: =C22*C23 -> 562.6922886 | D24: =D22*D23 -> 172.328107 | E24: =E22*E23 -> 172.328107
A25: Electricity Consumption
A26: Per year per vehicle (kWH/year) | B26: =+B$10/B11*B22/(B$22+B$41) -> 3506.965376 | C26: =+C$10/C11*C22/(C$22+C$41) -> 3424.141068 | F26: Change based on Ian's numbers
A27: Per year for vehicle (GEG/year) | B27: =+B26/36.64 -> 95.71412053 | C27: =+C26/36.64 -> 93.45363178
A29: Workplace / Commercial Infrastructure Costs
A30: Level 1
A31: Level 1 ratio per vehicle | C31: 0.009971911394 | D31: =+B31 -> 0 | E31: =+C31 -> 0.009971911394
A32: Level 1 unit / installation cost | B32: 574.1758047 | C32: 574.1758047 | D32: 123.5552689 | E32: 123.5552689
A33: Level 2
A34: Level 2 ratio per vehicle | C34: 0.01791415542 | D34: =+B34 -> 0 | E34: =+C34 -> 0.01791415542
A35: Level 2 unit / installation cost | B35: 1575.825496 | C35: 1575.825496 | D35: 2858.760248 | E35: 2858.760248
A36: Level 3 / DC
A37: DC ratio per vehicle | B37: 0.00523767438 | C37: 0.001666643989 | D37: =+B37 -> 0.00523767438 | E37: =+C37 -> 0.001666643989
A38: DC unit / installation cost | B38: 22583.29136 | C38: 22583.29136 | D38: 14000 | E38: 14000
A40: Weighted average cost for charger / installation | B40: =(B31*B32)+(B34*B35)+(B37*B38) -> 118.2839266 | C40: =(C31*C32)+(C34*C35)+(C37*C38) -> 71.5935199 | D40: =(D31*D32)+(D34*D35)+(D37*D38) -> 73.32744132 | E40: =(E31*E32)+(E34*E35)+(E37*E38) -> 75.77737343
A41: Total number of chargers needed | B41: =B31+B34+B37 -> 0.00523767438 | C41: =C31+C34+C37 -> 0.0295527108 | D41: =+B41 -> 0.00523767438 | E41: =+C41 -> 0.0295527108
A42: Total Cost to install chargers | B42: =B40*B41 -> 0.6195326917 | C42: =C40*C41 -> 2.115782589 | D42: =D40*D41 -> 0.3840652608 | E42: =E40*E41 -> 2.239426803
A43: Electricity Consumption
A44: Per year per vehicle (kWH/year) | B44: =+B$10/B11*B41/(B$22+B$41) -> 18.3683427 | C44: =+C$10/B11*C41/(C$22+C$41) -> 101.1926507
A45: Per year for vehicle (GEG/year) | B45: =+B44/36.64 -> 0.5013193969 | C45: =+C44/36.64 -> 2.761808154
A47: Economic inputs
A48: Average economic life of charging infrastructure (years) | B48: 20 | C48: =Economic_Life -> 20 | D48: 20 | E48: 20
A49: Real Weighted Average Cost-of-Capital (incl. capital depreciation and investor return) | B49: 0.1 | C49: =+B49 -> 0.1 | D49: =+B49 -> 0.1 | E49: =+B49 -> 0.1
A51: Results
A52: Total Costs | B52: =B42 -> 0.6195326917 | C52: =C42 -> 2.115782589 | D52: =D24+D42 -> 172.7121723 | E52: =E24+E42 -> 174.5675338 | G52: Cells B52 and C52 do NOT consider residential EVSE cost - changed 10/14/2011 by PSC
A53: Total electricity consumption (GEG/yr) | B53: =B27+B45 -> 96.21543993 | C53: =C27+C45 -> 96.21543993 | D53: =+B53 -> 96.21543993 | E53: =+C53 -> 96.21543993
A54: Total Charging Infrastructure Cost (2008$/GEG) | B54: =+B52/B53 -> 0.00643901532 | C54: =+C52/C53 -> 0.02199005264 | D54: =+D52/D53 -> 1.795056723 | E54: 1.81434013
A56: Levelized Fixed Cost for Dispensing ($/GEG) | B56: =(B54*B49/(1-(1/(1+B49)^B48))) -> 0.0007563243234 | C56: =(C54*C49/(1-(1/(1+C49)^C48))) -> 0.002582943332 | D56: =(D54*D49/(1-(1/(1+D49)^D48))) -> 0.2108466891 | E56: =(E54*E49/(1-(1/(1+E49)^E48))) -> 0.2131117109
A58: Total Fuel Cost (including Production, Distribution & Dispensing Infrastructure)- ex fuel Taxes | B58: =+B56+D56 -> 0.2116030134 | C58: =+C56+E56 -> 0.2156946543
H59: 0.4534697434 | I59: 0.4466762534 | J59: 0.4401935072 | K59: 0.4345261757 | L59: 0.428405074 | M59: 0.4209857923 | N59: 0.4138450125 | O59: 0.4069254449 | P59: 0.3997711739 | Q59: 0.3925101877 | R59: 0.3853673166 | S59: 0.3783714956 | T59: 0.3710480149 | U59: 0.3633531258 | V59: 0.3555601016 | W59: 0.3480505025 | X59: 0.3409607633 | Y59: 0.3341396201 | Z59: 0.3273318239 | AA59: 0.3205783654 | AB59: 0.31377469 | AC59: 0.307084461 | AD59: 0.3004468762 | AE59: 0.2939020456 | AF59: 0.2874627208 | AG59: 0.2814082436 | AH59: 0.2755316371 | AI59: 0.2698363232
A60: Taxes ($/GEG) - use AEO2010 numbers (2008$) | B60: 1.446468319 | C60: 1.446468319 | F60: Replaced by single total tax! | H60: 0.591482274 | I60: 0.591482274 | J60: 0.591482274 | K60: 0.591482274 | L60: 0.591482274 | M60: 0.591482274 | N60: 0.591482274 | O60: 0.591482274 | P60: 0.591482274 | Q60: 0.591482274 | R60: 0.591482274 | S60: 0.591482274 | T60: 0.591482274 | U60: 0.591482274 | V60: 0.591482274 | W60: 0.591482274 | X60: 0.591482274 | Y60: 0.591482274 | Z60: 0.591482274 | AA60: 0.591482274 | AB60: 0.591482274 | AC60: 0.591482274 | AD60: 0.591482274 | AE60: 0.591482274 | AF60: 0.591482274 | AG60: 0.591482274 | AH60: 0.591482274 | AI60: 0.591482274
A61: Total Fuel Cost (including infrastructure costs and taxes) (2008$/GEG) | B61: =+B60+B59+B58 -> 1.658071332 | C61: =+C60+C59+C58 -> 1.662162973 | H61: =H7+#REF!+H59+H60 ->  | I61: =I7+#REF!+I59+I60 ->  | J61: =J7+#REF!+J59+J60 ->  | K61: =K7+#REF!+K59+K60 ->  | L61: =L7+#REF!+L59+L60 ->  | M61: =M7+#REF!+M59+M60 ->  | N61: =N7+#REF!+N59+N60 ->  | O61: =O7+#REF!+O59+O60 ->  | P61: =P7+#REF!+P59+P60 ->  | Q61: =Q7+#REF!+Q59+Q60 ->  | R61: =R7+#REF!+R59+R60 ->  | S61: =S7+#REF!+S59+S60 ->  | T61: =T7+#REF!+T59+T60 ->  | U61: =U7+#REF!+U59+U60 ->  | V61: =V7+#REF!+V59+V60 ->  | W61: =W7+#REF!+W59+W60 ->  | X61: =X7+#REF!+X59+X60 ->  | Y61: =Y7+#REF!+Y59+Y60 ->  | Z61: =Z7+#REF!+Z59+Z60 ->  | AA61: =AA7+#REF!+AA59+AA60 ->  | AB61: =AB7+#REF!+AB59+AB60 ->  | AC61: =AC7+#REF!+AC59+AC60 ->  | AD61: =AD7+#REF!+AD59+AD60 ->  | AE61: =AE7+#REF!+AE59+AE60 ->  | AF61: =AF7+#REF!+AF59+AF60 ->  | AG61: =AG7+#REF!+AG59+AG60 ->  | AH61: =AH7+#REF!+AH59+AH60 ->  | AI61: =AI7+#REF!+AI59+AI60 -> 

Sheet Elec - Assumptions
B1: Source: Jaycie Chitwood (Electric Subgroup)
A2: Key Assumptions for Electricity Infrastructure Calculations
A5: EVSE Cost
B6: Started with Average of Actual Costs
B7: Reduced over time for learning: 3%/yr reduction for 5 years, 2%/yr reduction for 5 years, 1%/yr from 2025 on
A9: EVSE Installation Cost
B10: Started with Average of Actual Costs
B11: To account for housing stock turnover that would lead to pre-wiring, installation costs from 2020 on were reduced by the turnover rate
B12: L1 commerical installation: As no data exists, used Residential L1 cost (unadjusted for turnover)
B13: Level 1 residential installation -- under the assumption that circuits should be dedicated -- assume 50% require upgrade to dedicated
B14: For commercial L2 install, multiple EVSEs in one location leads to decreased costs, so methodology was to use data from CFCI showing decrease in costs from 1 unit per installation to 6+ units per installation (a 50%+ cost decrease). Assumption is that by 2025, this would be the case.
A16: EVSE Density
B17: Methodology for determining density is EPRI's benefits-based occupied parking method, except for the following:
B18: -- Methodology did not capture Residential L1 vs. L2, so 100% L1 assumed
B19: -- Methodology calculated Residential L2 for BEV as significantly lower than any other source, so 20/80% L1/L2 was used, which is consistent with eTec and within the range of other estimates

Sheet Elec - Charger Costs Used
A1: Source: Jaycie Chitwood (Electric Subgroup)
A3: Installed Charger Costs by Location and Type to 2050
C6: 0.03 | D6: 0.02 | E6: 0.01 | F6: 0.01 | G6: 0.01 | H6: 0.01 | I6: 0.01 | J6: 0.01
A7: Charger Location & Type | B7: 2010 | C7: 2015 | D7: 2020 | E7: 2025 | F7: 2030 | G7: 2035 | H7: 2040 | I7: 2045 | J7: 2050 | K7: Comments
A8: Residential
A9: L1 unit | B9: ='Elec - Summary of Costs'!E8 -> 500 | C9: =B9*(1-C$6)^(C$7-B$7) -> 429.3670128 | D9: =C9*(1-D6)^(D7-C7) -> 388.1137724 | E9: 369.0923358 | F9: 351.0031388 | G9: 333.8004925 | H9: 317.440947 | I9: 301.883182 | J9: =I9*(1-J6)^(J7-I7) -> 287.0879023
A10: L1 install no turnover | B10: ='Elec - Summary of Costs'!F8 -> 605.5 | C10: =+B10*0.85 -> 514.675 | D10: =+B10*0.7 -> 423.85 | E10: =+D10 -> 423.85 | F10: =+E10*'Elec - Turnover'!F8 -> 379.5031257 | G10: =+F10*'Elec - Turnover'!G8 -> 320.1062455 | H10: =+G10*'Elec - Turnover'!H8 -> 252.4636901 | I10: =+H10*'Elec - Turnover'!I8 -> 184.5018537 | J10: =+I10*'Elec - Turnover'!J8 -> 123.5552689
A11: Housing Turnover | B11: ='Elec - Turnover'!B8 -> 1 | C11: ='Elec - Turnover'!C8 -> 1 | D11: ='Elec - Turnover'!D8 -> 0.991 | E11: ='Elec - Turnover'!E8 -> 0.9444930395 | F11: ='Elec - Turnover'!F8 -> 0.8953713004 | G11: ='Elec - Turnover'!G8 -> 0.8434877709 | H11: ='Elec - Turnover'!H8 -> 0.7886871738 | I11: ='Elec - Turnover'!I8 -> 0.7308055017 | J11: ='Elec - Turnover'!J8 -> 0.6696695262 | K11: This is the fraction of existing housing stock that has not been turned over and therefore does NOT have dedicated charging circuit in place
A12: L1 install w/ turnover | B12: =B10*B11*0.5 -> 302.75 | C12: =C10*C11*0.5 -> 257.3375 | D12: 210.017675 | E12: 200.1616874 | F12: 169.8981036 | G12: 135.0028517 | H12: 99.5574371 | I12: 67.41748487 | J12: 41.37059921 | K12: 0.5 factor applied to existing housing stock to take into account dedicated circuits already in place
A13: Total L1 | B13: =SUM(B9+B12) -> 802.75 | C13: =SUM(C9+C12) -> 686.7045128 | D13: 598.1314474 | E13: 569.2540232 | F13: 520.9012424 | G13: 468.8033442 | H13: 416.9983841 | I13: 369.3006669 | J13: 328.4585015
A15: L2 unit | B15: ='Elec - Summary of Costs'!E11 -> 1100 | C15: =B15*(1-C$6)^(C$7-B$7) -> 944.6074283 | D15: =C15*(1-D$6)^(D$7-C$7) -> 853.8502992 | E15: 812.0031387 | F15: 772.2069054 | G15: 734.3610835 | H15: 698.3700834 | I15: 664.1430005 | J15: 631.5933852
A16: L2 install no turnover | B16: ='Elec - Summary of Costs'!F11*'Elec - Turnover'!B8 -> 1603.307143 | C16: =+B16*0.85*'Elec - Turnover'!C8 -> 1362.811071 | D16: =+B16*0.7*'Elec - Turnover'!D8 -> 1112.214165 | E16: =+D16*'Elec - Turnover'!E8 -> 1050.478537 | F16: =+E16*'Elec - Turnover'!F8 -> 940.568334 | G16: =+F16*'Elec - Turnover'!G8 -> 793.3578874 | H16: =+G16*'Elec - Turnover'!H8 -> 625.71119 | I16: =+H16*'Elec - Turnover'!I8 -> 457.2731801 | J16: =+I16*'Elec - Turnover'!J8 -> 306.2219139
A17: Housing Turnover | B17: ='Elec - Turnover'!B8 -> 1 | C17: ='Elec - Turnover'!C8 -> 1 | D17: ='Elec - Turnover'!D8 -> 0.991 | E17: ='Elec - Turnover'!E8 -> 0.9444930395 | F17: ='Elec - Turnover'!F8 -> 0.8953713004 | G17: ='Elec - Turnover'!G8 -> 0.8434877709 | H17: ='Elec - Turnover'!H8 -> 0.7886871738 | I17: ='Elec - Turnover'!I8 -> 0.7308055017 | J17: ='Elec - Turnover'!J8 -> 0.6696695262
A18: L2 install w/ turnover | B18: =B16*B17 -> 1603.307143 | C18: =C16*C17 -> 1362.811071 | D18: 1102.204238 | E18: 992.1696666 | F18: 842.1578923 | G18: 669.1876759 | H18: 493.49039 | I18: 334.1777558 | J18: 205.067484
A19: Total L2 | B19: =B15+B18 -> 2703.307143 | C19: =C15+C18 -> 2307.4185 | D19: 1956.054537 | E19: 1804.172805 | F19: 1614.364798 | G19: 1403.548759 | H19: 1191.860473 | I19: 998.3207563 | J19: 836.6608691
A21: Workplace | B21: 2010 | C21: 2015 | D21: 2020 | E21: 2025 | F21: 2030 | G21: 2035 | H21: 2040 | I21: 2045 | J21: 2050
A22: L1 unit
A23: L1 install
A24: Total L1 | B24: =SUM(B22:B23) -> 0 | C24: =SUM(C22:C23) -> 0 | D24: 0 | E24: 0 | F24: 0 | G24: 0 | H24: 0 | I24: 0 | J24: 0
A26: L2 unit
A27: L2 install
A28: Total L2 | B28: =SUM(B26:B27) -> 0 | C28: =SUM(C26:C27) -> 0 | D28: 0 | E28: 0 | F28: 0 | G28: 0 | H28: 0 | I28: 0 | J28: 0
A30: Public/Commercial | B30: 2010 | C30: 2015 | D30: 2020 | E30: 2025 | F30: 2030 | G30: 2035 | H30: 2040 | I30: 2045 | J30: 2050
A31: L1 unit | B31: ='Elec - Summary of Costs'!E20 -> 1000 | C31: =B31*(1-C$6)^(C$7-B$7) -> 858.7340257 | D31: 776.2275448 | E31: 738.1846715 | F31: 702.0062776 | G31: 667.600985 | H31: 634.881894 | I31: 603.7663641 | J31: 574.1758047
A32: L1 install | B32: =+B10 -> 605.5 | C32: =+C10 -> 514.675 | D32: 423.85 | E32: 423.85 | F32: 379.5031257 | G32: 320.1062455 | H32: 252.4636901 | I32: 184.5018537 | J32: 123.5552689
A33: Total L1 | B33: =SUM(B31:B32) -> 1605.5 | C33: =SUM(C31:C32) -> 1373.409026 | D33: 1200.077545 | E33: 1162.034672 | F33: 1081.509403 | G33: 987.7072305 | H33: 887.3455841 | I33: 788.2682177 | J33: 697.7310736
A35: L2 unit | B35: ='Elec - Summary of Costs'!E23 -> 2744.5 | C35: =B35*(1-C$6)^(C$7-B$7) -> 2356.795534 | D35: =C35*(1-D$6)^(D$7-C$7) -> 2130.356497 | E35: 2025.947831 | F35: 1926.656229 | G35: 1832.230903 | H35: 1742.433358 | I35: 1657.036786 | J35: 1575.825496
A36: L2 install | B36: ='Elec - Summary of Costs'!F23 -> 6214.69619 | C36: =B36-(B36-E36)/3 -> 5096.050876 | D36: =B36-(B36-E36)*2/3 -> 3977.405562 | E36: =+B36*0.46 -> 2858.760248 | F36: =+E36 -> 2858.760248 | G36: =+F36 -> 2858.760248 | H36: =+G36 -> 2858.760248 | I36: =+H36 -> 2858.760248 | J36: =+I36 -> 2858.760248
A37: Total L2 | B37: =SUM(B35:B36) -> 8959.19619 | C37: =SUM(C35:C36) -> 7452.84641 | D37: 6107.762058 | E37: 4884.708079 | F37: 4785.416476 | G37: 4690.991151 | H37: 4601.193606 | I37: 4515.797034 | J37: 4434.585744
A39: L3 DC unit | B39: ='Elec - Summary of Costs'!E34 -> 39331.66667 | C39: =B39*(1-C$6)^(C$7-B$7) -> 33775.44045 | D39: =C39*(1-D$6)^(D$7-C$7) -> 30530.32305 | E39: 29034.03344 | F39: 27611.07691 | G39: 26257.85941 | H39: 24970.96303 | I39: 23747.13738 | J39: 22583.29136
A40: L3 DC install | B40: ='Elec - Summary of Costs'!F34 -> 20000 | C40: =+B40*0.85 -> 17000 | D40: =+B40*0.7 -> 14000 | E40: =+D40 -> 14000 | F40: 14000 | G40: 14000 | H40: 14000 | I40: 14000 | J40: 14000
A41: Total L3 DC | B41: =SUM(B39:B40) -> 59331.66667 | C41: =SUM(C39:C40) -> 50775.44045 | D41: 44530.32305 | E41: 43034.03344 | F41: 41611.07691 | G41: 40257.85941 | H41: 38970.96303 | I41: 37747.13738 | J41: 36583.29136

Sheet Elec - Summary of Costs
D1: 2011-10-14 | E1: Source: Jaycie Chitwood (Electric Subgroup)
A2: Installed EVSE Costs
E4: EVSE Cost | F4: Installation Cost
F5: Average Per Unit
B6: Residential
C7: Level 1
D8: Average | E8: 500 | F8: 605.5
D9: *Installation cost based on average of two estimates
C10: Level 2
D11: Average of Actual | E11: 1100 | F11: 1603.307143
E12: Count | F12: Count
D13: 0-1000 | E13: 1 | F13: 0
D14: 1000-2000 | E14: 1 | F14: 5
D15: 2000-3000 | E15: 0 | F15: 2
B17: Commercial
C19: Level 1
D20: Average of Actual | E20: 1000
D21: *No data available, calculations will use residential level 1
C22: Level 2
D23: Average of Actual | E23: 2744.5 | F23: 6214.69619
E24: Count | F24: Count
D25: 1000-2000 | E25: 1 | F25: 4
D26: 2000-3000 | E26: 2 | F26: 3
D27: 3000-4000 | E27: 3 | F27: 4
D28: 4000-6000 | F28: 3
D29: 6000-10000 | F29: 5
D30: 10000-20000 | F30: 1
D31: 20000+ | F31: 1
C33: DC
D34: Average of Actual | E34: 39331.66667 | F34: 20000
E35: Count | F35: Count
D36: 10000-20000 | F36: 1
D37: 20000-30000 | E37: 2 | F37: 1
D38: 30000+ | E38: 1

Sheet Elec - Turnover
A1: Residential Housing Stock Turnover | C1: Source: Jaycie Chitwood (Electric Subgroup)
B3: Original 120V available | F3: 0.62
B5: 2010 | C5: 2015 | D5: 2020 | E5: 2025 | F5: 2030 | G5: 2035 | H5: 2040 | I5: 2045 | J5: 2050
A6: 240V available | B6: 0 | C6: 0 | D6: 0 | E6: 0.05 | F6: 0.11 | G6: 0.16 | H6: 0.23 | I6: 0.29 | J6: 0.36
A7: 120V available | B7: =$F$3 -> 0.62 | C7: =$F$3 -> 0.62 | D7: =$F$3 -> 0.62 | E7: 0.64 | F7: 0.65 | G7: 0.67 | H7: 0.69 | I7: 0.71 | J7: 0.73
A8: Fraction w/o L1/L2 prewire | B8: 1 | C8: 1 | D8: 0.991 | E8: 0.9444930395 | F8: 0.8953713004 | G8: 0.8434877709 | H8: 0.7886871738 | I8: 0.7308055017 | J8: 0.6696695262
A11: *Assumes building code mandates do not take effect until 2020
B13: 240V available | C13: 120V available | D13: Fraction without L1/L2 prewire
A14: 2010 | B14: 0 | C14: =$F$3 -> 0.62 | D14: 1
A15: 2015 | B15: 0 | C15: =$F$3 -> 0.62 | D15: 1
A16: 2020 | B16: 0 | C16: 0.62 | D16: 0.991
A17: 2025 | B17: 0.05 | C17: 0.62 | D17: 0.9444930395
A18: 2030 | B18: 0.11 | C18: 0.62 | D18: 0.8953713004
A19: 2035 | B19: 0.16 | C19: 0.62 | D19: 0.8434877709
A20: 2040 | B20: 0.23 | C20: 0.62 | D20: 0.7886871738
A21: 2045 | B21: 0.29 | C21: 0.62 | D21: 0.7308055017
A22: 2050 | B22: 0.36 | C22: 0.62 | D22: 0.6696695262

Sheet Elec - Data Flow
A1: Electricity -- Flow of Data | F1: Source: Jaycie Chitwood (Electric Subgroup)
B4: Turnover + Summary of Costs | C4: → | D4: Charger Costs Used | E4: → | F4: Annual Input Values | G4: → | H4: Electricity | I4: → | J4: PHEV_BEV Results | K4: → | L4: Electricity VISION Inputs
B8: Values from the "Elec - Summary of Costs" and "Elec - Turnover" are referenced in the "Elec - charger Costs Used" sheet.
B9: The values from the "Elec - Charger Costs Used" sheet are subsequently used in the "Elec - Annual Input Values" sheet.
B10: The values in the "Elec - Annual Input Values" sheet represent the full matrix of all values -- that is, vehicle types and years -- that we want to see in the final results. The macros take these values individually and stick them -- one at a time -- into the "Electricity" sheet where the economics are calculated. The individual results are then itemized in the "PHEV_BEV Results" tab. That macro takes care of grabbing the values from the "Electricity" tab and putting them into the "PHEV_BEV Results" tab.
B11: The values from the "PHEV_BEV Results" tab are then summarized and corrected for inflation in the "Electricity VISION Inputs" sheet.

Sheet CNG Retail per AEO
A1: Source: Graham Williams (Natural Gas Subgroup)
A2: FOR LD APPLICATIONS ONLY | B2: CNG AEO 2010 Retail | C2: BASED ON AEO 2010 REFERENCE CASE | N2: BASED ON AEO 2010 LOW OIL CASE | Y2: Input required
Y3: Calculation
A4: Note: GEG = Gasoline Equivalent Gallons (energy basis) | C4: 2008 | D4: 2010 | E4: 2015 | F4: 2020 | G4: 2025 | H4: 2030 | I4: 2035 | J4: 2040 | K4: 2045 | L4: 2050 | N4: 2008 | O4: 2010 | P4: 2015 | Q4: 2020 | R4: 2025 | S4: 2030 | T4: 2035 | U4: 2040 | V4: 2045 | W4: 2050
A5: Will pathway use AEO2010 Reference Case CUSTOMER PRICE? | B5: Yes
A6: + If "YES" above, indicate CUSTOMER Price (2008$)
A7: Will Pathway use AEO2010 Reference Case FUEL PRODUCTION PRICE? (e.g. Lower 48 Gas Price, Refinery Gate Gasoline price) | B7: Yes
A8: Fuel Production Price used ($/MMBTU) from AEO 2010 Table 3 - Delivered Retail Price for Transportation - 2008 dollars | C8: 15.960423 | D8: 11.995728 | E8: 13.372604 | F8: 13.441866 | G8: 13.432893 | H8: 14.192698 | I8: 14.780481 | J8: 15.39260672 | K8: 16.0300833 | L8: 16.69396063 | N8: 15.960423 | O8: 11.9922905 | P8: 12.77564335 | Q8: 12.83128357 | R8: 13.40136147 | S8: 13.63123703 | T8: 14.16767597 | U8: 14.72522574 | V8: 15.30471714 | W8: 15.90701363
A9: Fuel Production PRICE used ($/GEG) (2008$) | C9: =C8*0.125 -> 1.995052875 | D9: =D8*0.125 -> 1.499466 | E9: 1.6715755 | F9: 1.68023325 | G9: 1.679111625 | H9: 1.77408725 | I9: 1.847560125 | J9: 1.92407584 | K9: 2.003760412 | L9: 2.086745078 | N9: =N8*0.125 -> 1.995052875 | O9: =O8*0.125 -> 1.499036312 | P9: 1.596955419 | Q9: 1.603910446 | R9: 1.675170183 | S9: 1.703904629 | T9: 1.770959496 | U9: 1.840653218 | V9: 1.913089642 | W9: 1.988376704
A10: + Reference: Public source for price (if other than AEO2010)
A11: Are governmental subsidies included in PRODUCTION PRICE? (Y/N) | B11: No | C11: No | D11: No | E11: No | F11: No | G11: No | H11: No | I11: No | N11: No | O11: No | P11: No | Q11: No | R11: No | S11: No | T11: No
A12: + If "YES" above, amount of subsidy assumed ($/GEG)
A13: Does pathway need an adjustment for bulk distribution & vehicle dispensing infrastructure costs? (Y/N) | B13: No | C13: No | D13: No | E13: No | F13: No | G13: No | H13: No | I13: No | N13: No | O13: No | P13: No | Q13: No | R13: No | S13: No | T13: No
A15: AEO 2010 Retail CNG price has an assumption for Capital Investment built in, along with Taxes. However the section below will identify estimates of capital that must be assumed within the AEO delivered CNG price for transportation
A17: VEHICLE DISPENSING INFRASTRUCTURE
A18: Current number of dispensing stations (http://www.afdc.energy.gov/afdc/fuels/stations_counts.html) | B18: 885
A19: Number of additional dispensing stations required for ubiquitous supply | B19: 49500
A20: Average dispensing capacity per station (GEG/station-yr) | B20: 1000000
A21: Total Fuel Dispensing Capacity Available (billion GEG/yr) - Calculated from above | B21: =(B18+B19)*B20/1000000000 -> 50.385
A22: Capital investment per additional dispensing station (i.e. typical station 8 dispensers) (2008$)
A23: +Land | B23: 1000000
A24: +Dispensing infrastructure | B24: 1000000
A25: Economic Life (Years) | B25: 20
A26: Real Weighted Average Cost-of-Capital (incl. capital depreciation and investor return) | B26: 0.1
A27: Levelized Fixed Cost for Dispensing ($/GEG) - Calculated from above | B27: =((B23+B24)*B26/(1-(1/(1+B26)^B25)))/B20 -> 0.2349192495
A28: Variable Cost for dispensing ($/GEG) - incl. Operating & Maintenance, taxes (land, etc) | B28: 0.1
A29: Total Dispensing Infrastructure Cost (2008$/GEG) - Calculated from above | B29: =SUM(B27:B28) -> 0.3349192495
A30: Total Dispensing Infrastructure Investment (billion 2008$) - Calculated from above | B30: =B19*(B23+B24)/1000000000 -> 99
A31: Are governmental subsidies included in DISPENSING COST? (Y/N) | B31: No
A32: + If "YES" above, amount of subsidy assumed ($/GEG) | B32: 0
A33: BULK DISTRIBUTION INFRASTRUCTURE
A34: Capital investment required in distribution infrastructure for ubiquitous supply (billion 2008$) | B34: 0
A35: Economic Life (Years) -- use AEO2010 values | B35: 20
A36: Real Weighted Average Cost-of-Capital (incl. capital depreciation and investor return) | B36: 0.1
A37: Levelized Fixed Cost for Distribution (2008$/GEG) - Calculated from above | B37: =(B34*B36/(1-(1/(1+B36)^B35)))/B21 -> 0
A38: Variable Cost for distribution ($/GEG) - incl. Operating & Maintenanc, taxes (land,etc) | B38: 0
A39: Total Distribution Infrastructure Cost (2008$/GEG) - Calculated from above | B39: =SUM(B37:B38) -> 0
A40: Are governmental subsidies included in BULK DISTRIBUTION COST? (Y/N) | B40: No
A41: + If "YES" above, amount of subsidy assumed ($/GEG)
A42: Other Pathway-specific Miscellaneous Costs (Subsidies) - (2008$/GEG) | B42: 0
A43: - Explanation of other cost/subsidy (if shown above)
A44: Total Fuel Cost (including Production, Distribution & Dispensing Infrastructure)- ex fuel Taxes | B44: =SUM(B9,B29,B39,B42) -> 0.3349192495
A45: Federal Taxes ($/GEG) - use AEO2010 numbers (2008$) | B45: 0.18
A46: State and Local Taxes ($/GEG) - use AEO2010 numbers (2008$) | B46: 0.22
A47: Total Fuel Cost (including infrastructure costs and taxes) (2008$/GEG) | B47: =SUM(B44:B46) -> 0.7349192495 | C47: =C9 -> 1.995052875 | D47: =D9 -> 1.499466 | E47: 1.6715755 | F47: 1.68023325 | G47: 1.679111625 | H47: 1.77408725 | I47: 1.847560125 | N47: =N9 -> 1.995052875 | O47: =O9 -> 1.499036312 | P47: 1.596955419 | Q47: 1.603910446 | R47: 1.675170183 | S47: 1.703904629 | T47: 1.770959496
A48: Total Distribution and Dispensing Infrastructure Investment (billion 2008$) | B48: =SUM(B30,B34) -> 99

Sheet CNG New Station -Industrial
A1: Source: Graham Williams (Natural Gas Subgroup) | B1: CNG New | AI1: Input required
A2: FOR LD APPLICATIONS ONLY | C2: BASED ON AEO 2010 REFERENCE INDUSTRIAL GAS PRICE | N2: BASED ON AEO 2010 HIGH OIL CASE - INDUSTRIAL GAS PRICE | Y2: BASED ON AEO 2010 LOW OIL CASE - INDUSTRIAL GAS PRICE | AI2: Calculation
A3: Note: GEG = Gasoline Equivalent Gallons (energy basis) | C3: 2008 | D3: 2010 | E3: 2015 | F3: 2020 | G3: 2025 | H3: 2030 | I3: 2035 | J3: 2040 | K3: 2045 | L3: 2050 | N3: 2008 | O3: 2010 | P3: 2015 | Q3: 2020 | R3: 2025 | S3: 2030 | T3: 2035 | U3: 2040 | V3: 2045 | W3: 2050 | Y3: 2008 | Z3: 2010 | AA3: 2015 | AB3: 2020 | AC3: 2025 | AD3: 2030 | AE3: 2035 | AF3: 2040 | AG3: 2045 | AH3: 2050
A4: Will pathway use AEO2010 Reference Case CUSTOMER PRICE? | B4: No
A5: + If "YES" above, indicate CUSTOMER Price (2008$)
A6: Will Pathway use AEO2010 Reference Case FUEL PRODUCTION PRICE? (e.g. Lower 48 Gas Price, Refinery Gate Gasoline price) | B6: Yes
A7: AEO 2010 Reference Case - Henry Hub $/MMBTU - 2008 dollars - Table 13
A8: AEO 2010 Reference Case - Avg Lower 48 Wellhead $/MMBTU - 2008 dollars - Table 13
A9: AEO 2010 Reference Case - Industrial Prices $/MMBTU - 2008 dollars - Table 3 | C9: 9.111268 | D9: 4.874732 | E9: 6.445826 | F9: 6.69952 | G9: 7.015675 | H9: 7.979671 | I9: 8.731973 | J9: 9.555200017 | K9: 10.45603867 | L9: 11.44180598 | N9: 9.111268 | O9: 4.89063406 | P9: 6.939293385 | Q9: 7.098266602 | R9: 7.44015646 | S9: 8.371922493 | T9: 9.369755745 | U9: 10.48651881 | V9: 11.73638671 | W9: 13.13522395 | Y9: 9.111268 | Z9: 4.841237068 | AA9: 5.818676472 | AB9: 6.075504303 | AC9: 6.917211533 | AD9: 7.393825054 | AE9: 8.097071648 | AF9: 8.867205917 | AG9: 9.710589728 | AH9: 10.63419004
A10: Local Utility Charges $/MMBTU | B10: Based on Sempra | C10: 0.76 | D10: =$C10 -> 0.76 | E10: 0.76 | F10: 0.76 | G10: 0.76 | H10: 0.76 | I10: 0.76 | J10: 0.76 | K10: 0.76 | L10: 0.76 | N10: 0.76 | O10: =$C10 -> 0.76 | P10: 0.76 | Q10: 0.76 | R10: 0.76 | S10: 0.76 | T10: 0.76 | U10: 0.76 | V10: 0.76 | W10: 0.76 | Y10: 0.76 | Z10: =$C10 -> 0.76 | AA10: 0.76 | AB10: 0.76 | AC10: 0.76 | AD10: 0.76 | AE10: 0.76 | AF10: 0.76 | AG10: 0.76 | AH10: 0.76 | AI10: www.socalgas.com/documents/business/ratesci.pef
A11: Fuel Production PRICE used ($/GEG) (2008$) - based on Industrial Price - before Capital or taxes | B11: 0 | C11: =((C9+C10)*0.125) -> 1.2339085 | D11: =((D9+D10)*0.125) -> 0.7043415 | E11: 0.90072825 | F11: 0.93244 | G11: 0.971959375 | H11: 1.092458875 | I11: 1.186496625 | J11: =((J9+J10)*0.125) -> 1.289400002 | K11: =((K9+K10)*0.125) -> 1.402004834 | L11: =((L9+L10)*0.125) -> 1.525225747 | N11: =((N9+N10)*0.125) -> 1.2339085 | O11: 0.7063292575 | P11: 0.9624116731 | Q11: 0.9822833252 | R11: 1.025019557 | S11: 1.141490312 | T11: 1.266219468 | U11: =((U9+U10)*0.125) -> 1.405814852 | V11: =((V9+V10)*0.125) -> 1.562048339 | W11: =((W9+W10)*0.125) -> 1.736902993 | Y11: =((Y9+Y10)*0.125) -> 1.2339085 | Z11: 0.7001546335 | AA11: 0.822334559 | AB11: 0.8544380379 | AC11: 0.9596514416 | AD11: 1.019228132 | AE11: 1.107133956 | AF11: =((AF9+AF10)*0.125) -> 1.20340074 | AG11: =((AG9+AG10)*0.125) -> 1.308823716 | AH11: =((AH9+AH10)*0.125) -> 1.424273755
A12: + Reference: Public source for price (if other than AEO2010) | B12: AEO 2010 Industrial Price | C12: AEO 2010 Industrial Price | D12: AEO 2010 Industrial Price | E12: AEO 2010 Industrial Price | F12: AEO 2010 Industrial Price | G12: AEO 2010 Industrial Price | H12: AEO 2010 Industrial Price | I12: AEO 2010 Industrial Price | J12: AEO 2010 Industrial Price | K12: AEO 2010 Industrial Price | L12: AEO 2010 Industrial Price | N12: AEO 2010 Industrial Price | O12: AEO 2010 Industrial Price | P12: AEO 2010 Industrial Price | Q12: AEO 2010 Industrial Price | R12: AEO 2010 Industrial Price | S12: AEO 2010 Industrial Price | T12: AEO 2010 Industrial Price | U12: AEO 2010 Industrial Price | V12: AEO 2010 Industrial Price | W12: AEO 2010 Industrial Price | Y12: AEO 2010 Industrial Price | Z12: AEO 2010 Industrial Price | AA12: AEO 2010 Industrial Price | AB12: AEO 2010 Industrial Price | AC12: AEO 2010 Industrial Price | AD12: AEO 2010 Industrial Price | AE12: AEO 2010 Industrial Price | AF12: AEO 2010 Industrial Price | AG12: AEO 2010 Industrial Price | AH12: AEO 2010 Industrial Price | AI12: Should we really take the Industrial price and assume that has all transmission in it?
A13: Are governmental subsidies included in PRODUCTION PRICE? (Y/N) | B13: No | C13: No | D13: No | E13: No | F13: No | G13: No | H13: No | I13: No | J13: No | K13: No | L13: No | N13: No | O13: No | P13: No | Q13: No | R13: No | S13: No | T13: No | U13: No | V13: No | W13: No | Y13: No | Z13: No | AA13: No | AB13: No | AC13: No | AD13: No | AE13: No | AF13: No | AG13: No | AH13: No
A14: + If "YES" above, amount of subsidy assumed ($/GEG)
A15: Does pathway need an adjustment for bulk distribution & vehicle dispensing infrastructure costs? (Y/N) | B15: Yes | C15: Yes | D15: Yes | E15: Yes | F15: Yes | G15: Yes | H15: Yes | I15: Yes | J15: Yes | K15: Yes | L15: Yes | N15: Yes | O15: Yes | P15: Yes | Q15: Yes | R15: Yes | S15: Yes | T15: Yes | U15: Yes | V15: Yes | W15: Yes | Y15: Yes | Z15: Yes | AA15: Yes | AB15: Yes | AC15: Yes | AD15: Yes | AE15: Yes | AF15: Yes | AG15: Yes | AH15: Yes
A16: VEHICLE DISPENSING INFRASTRUCTURE
A17: Current number of dispensing stations (http://www.afdc.energy.gov/afdc/fuels/stations_counts.html) | B17: 885 | C17: 885 | D17: 885 | E17: 885 | F17: 885 | G17: 885 | H17: 885 | I17: 885 | J17: 885 | K17: 885 | L17: 885 | N17: 885 | O17: 885 | P17: 885 | Q17: 885 | R17: 885 | S17: 885 | T17: 885 | U17: 885 | V17: 885 | W17: 885 | Y17: 885 | Z17: 885 | AA17: 885 | AB17: 885 | AC17: 885 | AD17: 885 | AE17: 885 | AF17: 885 | AG17: 885 | AH17: 885
A18: Number of additional dispensing stations required for ubiquitous supply | B18: 49500 | C18: 49500 | D18: 49500 | E18: 49500 | F18: 49500 | G18: 49500 | H18: 49500 | I18: 49500 | J18: 49500 | K18: 49500 | L18: 49500 | N18: 49500 | O18: 49500 | P18: 49500 | Q18: 49500 | R18: 49500 | S18: 49500 | T18: 49500 | U18: 49500 | V18: 49500 | W18: 49500 | Y18: 49500 | Z18: 49500 | AA18: 49500 | AB18: 49500 | AC18: 49500 | AD18: 49500 | AE18: 49500 | AF18: 49500 | AG18: 49500 | AH18: 49500
A19: Average dispensing capacity per station (GEG/station-yr) | B19: 1000000 | C19: 1000000 | D19: =$C$19 -> 1000000 | E19: =$C$19 -> 1000000 | F19: 1000000 | G19: 1000000 | H19: 1000000 | I19: 1000000 | J19: 1000000 | K19: 1000000 | L19: 1000000 | N19: 1000000 | O19: 1000000 | P19: 1000000 | Q19: 1000000 | R19: 1000000 | S19: 1000000 | T19: 1000000 | U19: 1000000 | V19: 1000000 | W19: 1000000 | Y19: 1000000 | Z19: 1000000 | AA19: 1000000 | AB19: 1000000 | AC19: 1000000 | AD19: 1000000 | AE19: 1000000 | AF19: 1000000 | AG19: 1000000 | AH19: 1000000
A20: Average Station utilisation rate
A21: Utilised dispensed capacity per station (GEG/station/yr) | C21: =C19*C18 -> 49500000000
